Workbook

Sheet Velkomst

Sheet Tabel 1 S
A1: Tabel 1. Forsikrede medlemmer
A4: Sjælland
B6: 0
B7: 0 | C7: Mænd | D7: 0 | E7: Kvinder | F7: 0 | G7: I alt
B8: 0
A9: Civ. ing. | B9: 0 | C9: 1571 | D9: 0 | E9: 577 | F9: 0 | G9: 2148
A10: Diplom ing. | B10: 0 | C10: 3087 | D10: 0 | E10: 689 | F10: 0 | G10: 3776
A11: Cand. Scient. Tek. | B11: 0 | C11: 549 | D11: 0 | E11: 506 | F11: 0 | G11: 1055
A12: MA. Hum. | B12: 0 | C12: 850 | D12: 0 | E12: 1958 | F12: 0 | G12: 2808
A13: MA. Nat. | B13: 0 | C13: 716 | D13: 0 | E13: 714 | F13: 0 | G13: 1430
A14: MA. Ph.d. | B14: 0 | C14: 72 | D14: 0 | E14: 66 | F14: 0 | G14: 138
A15: MA. Samf. | B15: 0 | C15: 90 | D15: 0 | E15: 249 | F15: 0 | G15: 339
A16: Øvrige Mag. | B16: 0 | C16: 89 | D16: 0 | E16: 159 | F16: 0 | G16: 248
A17: Agronom | B17: 0 | C17: 218 | D17: 0 | E17: 242 | F17: 0 | G17: 460
A18: Landsk. Arkt. | B18: 0 | C18: 26 | D18: 0 | E18: 72 | F18: 0 | G18: 98
A19: Hortonom | B19: 0 | C19: 21 | D19: 0 | E19: 37 | F19: 0 | G19: 58
A20: Forstkand. | B20: 0 | C20: 58 | D20: 0 | E20: 16 | F20: 0 | G20: 74
A21: Jordbrugsakad. | B21: 0 | C21: 323 | D21: 0 | E21: 367 | F21: 0 | G21: 690
A22: Mejeriing. | B22: 0 | C22: 14 | D22: 0 | E22: 21 | F22: 0 | G22: 35
A23: Levn.m.kand. | B23: 0 | C23: 6 | D23: 0 | E23: 38 | F23: 0 | G23: 44
A24: Dyrlæge | B24: 0 | C24: 86 | D24: 0 | E24: 308 | F24: 0 | G24: 394
A25: Farmaceut | B25: 0 | C25: 132 | D25: 0 | E25: 413 | F25: 0 | G25: 545
A26: Læge | B26: 0 | C26: 227 | D26: 0 | E26: 458 | F26: 0 | G26: 685
A27: Tandlæge | B27: 0 | C27: 29 | D27: 0 | E27: 144 | F27: 0 | G27: 173
A28: Arkitekt | B28: 0 | C28: 109 | D28: 0 | E28: 145 | F28: 0 | G28: 254
A29: Landinspek. | B29: 0 | C29: 53 | D29: 0 | E29: 23 | F29: 0 | G29: 76
A30: Bibliotekar | B30: 0 | C30: 112 | D30: 0 | E30: 293 | F30: 0 | G30: 405
A31: Musikudd. | B31: 0 | C31: 40 | D31: 0 | E31: 69 | F31: 0 | G31: 109
A32: Teolog | B32: 0 | C32: 79 | D32: 0 | E32: 150 | F32: 0 | G32: 229
A33: Psykolog | B33: 0 | C33: 90 | D33: 0 | E33: 437 | F33: 0 | G33: 527
A34: Jurist | B34: 0 | C34: 304 | D34: 0 | E34: 734 | F34: 0 | G34: 1038
A35: Økonom | B35: 0 | C35: 327 | D35: 0 | E35: 249 | F35: 0 | G35: 576
A36: Samf. Adm. | B36: 0 | C36: 778 | D36: 0 | E36: 1059 | F36: 0 | G36: 1837
A37: Cand. Merc. | B37: 0 | C37: 1012 | D37: 0 | E37: 984 | F37: 0 | G37: 1996
A38: HA | B38: 0 | C38: 317 | D38: 0 | E38: 240 | F38: 0 | G38: 557
A39: HD | B39: 0 | C39: 313 | D39: 0 | E39: 213 | F39: 0 | G39: 526
A40: Komm. og Sprog | B40: 0 | C40: 63 | D40: 0 | E40: 543 | F40: 0 | G40: 606
A41: Cand. IT. | B41: 0 | C41: 94 | D41: 0 | E41: 75 | F41: 0 | G41: 169
A42: Bac. Samf. | B42: 0 | C42: 43 | D42: 0 | E42: 47 | F42: 0 | G42: 90
A43: Bac. Hum. | B43: 0 | C43: 95 | D43: 0 | E43: 174 | F43: 0 | G43: 269
A44: Bac. Nat. | B44: 0 | C44: 107 | D44: 0 | E44: 55 | F44: 0 | G44: 162
A45: Andre | B45: 0 | C45: 896 | D45: 0 | E45: 736 | F45: 0 | G45: 1632
A47: Total | B47: 0 | C47: 12673 | D47: 0 | E47: 12893 | F47: 0 | G47: 25566
A49: Ingeniører i alt | B49: 0 | C49: 4658 | D49: 0 | E49: 1266 | F49: 0 | G49: 5924
A50: Magistre i alt | B50: 0 | C50: 1817 | D50: 0 | E50: 3146 | F50: 0 | G50: 4963
A51: DJØF'ere i alt | B51: 0 | C51: 2738 | D51: 0 | E51: 3266 | F51: 0 | G51: 6004
A57: Greve | B57: 0
B58: 0
B59: 0 | C59: Mænd | D59: 0 | E59: Kvinder | F59: 0 | G59: I alt
B60: 0
A61: Civ. ing. | B61: 0 | C61: 127 | D61: 0 | E61: 50 | F61: 0 | G61: 177
A62: Diplom ing. | B62: 0 | C62: 283 | D62: 0 | E62: 56 | F62: 0 | G62: 339
A63: Cand. Scient. Tek. | B63: 0 | C63: 46 | D63: 0 | E63: 40 | F63: 0 | G63: 86
A64: MA. Hum. | B64: 0 | C64: 27 | D64: 0 | E64: 101 | F64: 0 | G64: 128
A65: MA. Nat. | B65: 0 | C65: 45 | D65: 0 | E65: 43 | F65: 0 | G65: 88
A66: MA. Ph.d. | B66: 0 | C66: 2 | D66: 0 | E66: 5 | F66: 0 | G66: 7
A67: MA. Samf. | B67: 0 | C67: 4 | D67: 0 | E67: 9 | F67: 0 | G67: 13
A68: Øvrige Mag. | B68: 0 | C68: 2 | D68: 0 | E68: 13 | F68: 0 | G68: 15
A69: Agronom | B69: 0 | C69: 6 | D69: 0 | E69: 9 | F69: 0 | G69: 15
A70: Landsk. Arkt. | B70: 0 | C70: 1 | D70: 0 | E70: 3 | F70: 0 | G70: 4
A71: Hortonom | B71: 0 | C71: 0 | D71: 0 | E71: 2 | F71: 0 | G71: 2
A72: Forstkand. | B72: 0 | C72: 1 | D72: 0 | E72: 0 | F72: 0 | G72: 1
A73: Jordbrugsakad. | B73: 0 | C73: 8 | D73: 0 | E73: 14 | F73: 0 | G73: 22
A74: Mejeriing. | B74: 0 | C74: 1 | D74: 0 | E74: 1 | F74: 0 | G74: 2
A75: Levn.m.kand. | B75: 0 | C75: 0 | D75: 0 | E75: 2 | F75: 0 | G75: 2
A76: Dyrlæge | B76: 0 | C76: 4 | D76: 0 | E76: 10 | F76: 0 | G76: 14
A77: Farmaceut | B77: 0 | C77: 16 | D77: 0 | E77: 49 | F77: 0 | G77: 65
A78: Læge | B78: 0 | C78: 12 | D78: 0 | E78: 35 | F78: 0 | G78: 47
A79: Tandlæge | B79: 0 | C79: 2 | D79: 0 | E79: 17 | F79: 0 | G79: 19
A80: Arkitekt | B80: 0 | C80: 6 | D80: 0 | E80: 8 | F80: 0 | G80: 14
A81: Landinspek. | B81: 0 | C81: 3 | D81: 0 | E81: 2 | F81: 0 | G81: 5
A82: Bibliotekar | B82: 0 | C82: 5 | D82: 0 | E82: 13 | F82: 0 | G82: 18
A83: Musikudd. | B83: 0 | C83: 2 | D83: 0 | E83: 4 | F83: 0 | G83: 6
A84: Teolog | B84: 0 | C84: 6 | D84: 0 | E84: 10 | F84: 0 | G84: 16
A85: Psykolog | B85: 0 | C85: 4 | D85: 0 | E85: 18 | F85: 0 | G85: 22
A86: Jurist | B86: 0 | C86: 34 | D86: 0 | E86: 76 | F86: 0 | G86: 110
A87: Økonom | B87: 0 | C87: 30 | D87: 0 | E87: 27 | F87: 0 | G87: 57
A88: Samf. Adm. | B88: 0 | C88: 49 | D88: 0 | E88: 72 | F88: 0 | G88: 121
A89: Cand. Merc. | B89: 0 | C89: 133 | D89: 0 | E89: 142 | F89: 0 | G89: 275
A90: HA | B90: 0 | C90: 48 | D90: 0 | E90: 24 | F90: 0 | G90: 72
A91: HD | B91: 0 | C91: 45 | D91: 0 | E91: 30 | F91: 0 | G91: 75
A92: Komm. og Sprog | B92: 0 | C92: 4 | D92: 0 | E92: 56 | F92: 0 | G92: 60
A93: Cand. IT. | B93: 0 | C93: 15 | D93: 0 | E93: 8 | F93: 0 | G93: 23
A94: Bac. Samf. | B94: 0 | C94: 3 | D94: 0 | E94: 6 | F94: 0 | G94: 9
A95: Bac. Hum. | B95: 0 | C95: 4 | D95: 0 | E95: 11 | F95: 0 | G95: 15
A96: Bac. Nat. | B96: 0 | C96: 9 | D96: 0 | E96: 5 | F96: 0 | G96: 14
A97: Andre | B97: 0 | C97: 71 | D97: 0 | E97: 71 | F97: 0 | G97: 142
A99: Total | B99: 0 | C99: 1050 | D99: 0 | E99: 1028 | F99: 0 | G99: 2078
A101: Ingeniører i alt | B101: 0 | C101: 410 | D101: 0 | E101: 106 | F101: 0 | G101: 516
A102: Magistre i alt | B102: 0 | C102: 80 | D102: 0 | E102: 171 | F102: 0 | G102: 251
A103: DJØF'ere i alt | B103: 0 | C103: 294 | D103: 0 | E103: 341 | F103: 0 | G103: 635
A110: Køge | B110: 0 | F110: 0
B111: 0 | F111: 0
B112: 0 | C112: Mænd | D112: 0 | E112: Kvinder | F112: 0 | G112: I alt
B113: 0 | F113: 0
A114: Civ. ing. | B114: 0 | C114: 138 | D114: 0 | E114: 47 | F114: 0 | G114: 185
A115: Diplom ing. | B115: 0 | C115: 285 | D115: 0 | E115: 58 | F115: 0 | G115: 343
A116: Cand. Scient. Tek. | B116: 0 | C116: 48 | D116: 0 | E116: 19 | F116: 0 | G116: 67
A117: MA. Hum. | B117: 0 | C117: 56 | D117: 0 | E117: 138 | F117: 0 | G117: 194
A118: MA. Nat. | B118: 0 | C118: 42 | D118: 0 | E118: 53 | F118: 0 | G118: 95
A119: MA. Ph.d. | B119: 0 | C119: 1 | D119: 0 | E119: 4 | F119: 0 | G119: 5
A120: MA. Samf. | B120: 0 | C120: 7 | D120: 0 | E120: 26 | F120: 0 | G120: 33
A121: Øvrige Mag. | B121: 0 | C121: 8 | D121: 0 | E121: 13 | F121: 0 | G121: 21
A122: Agronom | B122: 0 | C122: 14 | D122: 0 | E122: 24 | F122: 0 | G122: 38
A123: Landsk. Arkt. | B123: 0 | C123: 0 | D123: 0 | E123: 8 | F123: 0 | G123: 8
A124: Hortonom | B124: 0 | C124: 3 | D124: 0 | E124: 4 | F124: 0 | G124: 7
A125: Forstkand. | B125: 0 | C125: 3 | D125: 0 | E125: 2 | F125: 0 | G125: 5
A126: Jordbrugsakad. | B126: 0 | C126: 20 | D126: 0 | E126: 38 | F126: 0 | G126: 58
A127: Mejeriing. | B127: 0 | C127: 0 | D127: 0 | E127: 0 | F127: 0 | G127: 0
A128: Levn.m.kand. | B128: 0 | C128: 1 | D128: 0 | E128: 4 | F128: 0 | G128: 5
A129: Dyrlæge | B129: 0 | C129: 6 | D129: 0 | E129: 25 | F129: 0 | G129: 31
A130: Farmaceut | B130: 0 | C130: 8 | D130: 0 | E130: 38 | F130: 0 | G130: 46
A131: Læge | B131: 0 | C131: 22 | D131: 0 | E131: 29 | F131: 0 | G131: 51
A132: Tandlæge | B132: 0 | C132: 1 | D132: 0 | E132: 14 | F132: 0 | G132: 15
A133: Arkitekt | B133: 0 | C133: 10 | D133: 0 | E133: 11 | F133: 0 | G133: 21
A134: Landinspek. | B134: 0 | C134: 5 | D134: 0 | E134: 3 | F134: 0 | G134: 8
A135: Bibliotekar | B135: 0 | C135: 2 | D135: 0 | E135: 25 | F135: 0 | G135: 27
A136: Musikudd. | B136: 0 | C136: 2 | D136: 0 | E136: 5 | F136: 0 | G136: 7
A137: Teolog | B137: 0 | C137: 4 | D137: 0 | E137: 6 | F137: 0 | G137: 10
A138: Psykolog | B138: 0 | C138: 5 | D138: 0 | E138: 44 | F138: 0 | G138: 49
A139: Jurist | B139: 0 | C139: 27 | D139: 0 | E139: 79 | F139: 0 | G139: 106
A140: Økonom | B140: 0 | C140: 37 | D140: 0 | E140: 27 | F140: 0 | G140: 64
A141: Samf. Adm. | B141: 0 | C141: 60 | D141: 0 | E141: 84 | F141: 0 | G141: 144
A142: Cand. Merc. | B142: 0 | C142: 101 | D142: 0 | E142: 105 | F142: 0 | G142: 206
A143: HA | B143: 0 | C143: 24 | D143: 0 | E143: 20 | F143: 0 | G143: 44
A144: HD | B144: 0 | C144: 28 | D144: 0 | E144: 22 | F144: 0 | G144: 50
A145: Komm. og Sprog | B145: 0 | C145: 7 | D145: 0 | E145: 56 | F145: 0 | G145: 63
A146: Cand. IT. | B146: 0 | C146: 11 | D146: 0 | E146: 4 | F146: 0 | G146: 15
A147: Bac. Samf. | B147: 0 | C147: 4 | D147: 0 | E147: 2 | F147: 0 | G147: 6
A148: Bac. Hum. | B148: 0 | C148: 5 | D148: 0 | E148: 18 | F148: 0 | G148: 23
A149: Bac. Nat. | B149: 0 | C149: 5 | D149: 0 | E149: 4 | F149: 0 | G149: 9
A150: Andre | B150: 0 | C150: 76 | D150: 0 | E150: 67 | F150: 0 | G150: 143
A152: Total | B152: 0 | C152: 1056 | D152: 0 | E152: 1088 | F152: 0 | G152: 2144
A154: Ingeniører i alt | B154: 0 | C154: 423 | D154: 0 | E154: 105 | F154: 0 | G154: 528
A155: Magistre i alt | B155: 0 | C155: 114 | D155: 0 | E155: 234 | F155: 0 | G155: 348
A156: DJØF'ere i alt | B156: 0 | C156: 249 | D156: 0 | E156: 315 | F156: 0 | G156: 564
A163: Roskilde | B163: 0
B164: 0
B165: 0 | C165: Mænd | D165: 0 | E165: Kvinder
B166: 0
A167: Civ. ing. | B167: 0 | C167: 498 | D167: 0 | E167: 182 | F167: 0 | G167: 680
A168: Diplom ing. | B168: 0 | C168: 624 | D168: 0 | E168: 157 | F168: 0 | G168: 781
A169: Cand. Scient. Tek. | B169: 0 | C169: 146 | D169: 0 | E169: 145 | F169: 0 | G169: 291
A170: MA. Hum. | B170: 0 | C170: 195 | D170: 0 | E170: 471 | F170: 0 | G170: 666
A171: MA. Nat. | B171: 0 | C171: 199 | D171: 0 | E171: 193 | F171: 0 | G171: 392
A172: MA. Ph.d. | B172: 0 | C172: 33 | D172: 0 | E172: 16 | F172: 0 | G172: 49
A173: MA. Samf. | B173: 0 | C173: 38 | D173: 0 | E173: 76 | F173: 0 | G173: 114
A174: Øvrige Mag. | B174: 0 | C174: 20 | D174: 0 | E174: 36 | F174: 0 | G174: 56
A175: Agronom | B175: 0 | C175: 37 | D175: 0 | E175: 42 | F175: 0 | G175: 79
A176: Landsk. Arkt. | B176: 0 | C176: 3 | D176: 0 | E176: 22 | F176: 0 | G176: 25
A177: Hortonom | B177: 0 | C177: 2 | D177: 0 | E177: 2 | F177: 0 | G177: 4
A178: Forstkand. | B178: 0 | C178: 10 | D178: 0 | E178: 3 | F178: 0 | G178: 13
A179: Jordbrugsakad. | B179: 0 | C179: 52 | D179: 0 | E179: 69 | F179: 0 | G179: 121
A180: Mejeriing. | B180: 0 | C180: 2 | D180: 0 | E180: 1 | F180: 0 | G180: 3
A181: Levn.m.kand. | B181: 0 | C181: 3 | D181: 0 | E181: 9 | F181: 0 | G181: 12
A182: Dyrlæge | B182: 0 | C182: 17 | D182: 0 | E182: 42 | F182: 0 | G182: 59
A183: Farmaceut | B183: 0 | C183: 38 | D183: 0 | E183: 123 | F183: 0 | G183: 161
A184: Læge | B184: 0 | C184: 71 | D184: 0 | E184: 147 | F184: 0 | G184: 218
A185: Tandlæge | B185: 0 | C185: 8 | D185: 0 | E185: 33 | F185: 0 | G185: 41
A186: Arkitekt | B186: 0 | C186: 26 | D186: 0 | E186: 37 | F186: 0 | G186: 63
A187: Landinspek. | B187: 0 | C187: 13 | D187: 0 | E187: 4 | F187: 0 | G187: 17
A188: Bibliotekar | B188: 0 | C188: 21 | D188: 0 | E188: 68 | F188: 0 | G188: 89
A189: Musikudd. | B189: 0 | C189: 5 | D189: 0 | E189: 12 | F189: 0 | G189: 17
A190: Teolog | B190: 0 | C190: 15 | D190: 0 | E190: 17 | F190: 0 | G190: 32
A191: Psykolog | B191: 0 | C191: 18 | D191: 0 | E191: 101 | F191: 0 | G191: 119
A192: Jurist | B192: 0 | C192: 72 | D192: 0 | E192: 164 | F192: 0 | G192: 236
A193: Økonom | B193: 0 | C193: 98 | D193: 0 | E193: 65 | F193: 0 | G193: 163
A194: Samf. Adm. | B194: 0 | C194: 283 | D194: 0 | E194: 348 | F194: 0 | G194: 631
A195: Cand. Merc. | B195: 0 | C195: 249 | D195: 0 | E195: 266 | F195: 0 | G195: 515
A196: HA | B196: 0 | C196: 51 | D196: 0 | E196: 55 | F196: 0 | G196: 106
A197: HD | B197: 0 | C197: 52 | D197: 0 | E197: 45 | F197: 0 | G197: 97
A198: Komm. og Sprog | B198: 0 | C198: 11 | D198: 0 | E198: 101 | F198: 0 | G198: 112
A199: Cand. IT. | B199: 0 | C199: 25 | D199: 0 | E199: 23 | F199: 0 | G199: 48
A200: Bac. Samf. | B200: 0 | C200: 10 | D200: 0 | E200: 12 | F200: 0 | G200: 22
A201: Bac. Hum. | B201: 0 | C201: 29 | D201: 0 | E201: 31 | F201: 0 | G201: 60
A202: Bac. Nat. | B202: 0 | C202: 18 | D202: 0 | E202: 9 | F202: 0 | G202: 27
A203: Andre | B203: 0 | C203: 148 | D203: 0 | E203: 180 | F203: 0 | G203: 328
A205: Total | B205: 0 | C205: 3088 | D205: 0 | E205: 3238 | F205: 0 | G205: 6326
A207: Ingeniører i alt | B207: 0 | C207: 1122 | D207: 0 | E207: 339 | F207: 0 | G207: 1461
A208: Magistre i alt | B208: 0 | C208: 485 | D208: 0 | E208: 792 | F208: 0 | G208: 1277
A209: DJØF'ere i alt | B209: 0 | C209: 753 | D209: 0 | E209: 898 | F209: 0 | G209: 1651
A216: Solrød | B216: 0
B217: 0
B218: 0 | C218: Mænd | D218: 0 | E218: Kvinder
B219: 0
A220: Civ. ing. | B220: 0 | C220: 89 | D220: 0 | E220: 33 | F220: 0 | G220: 122
A221: Diplom ing. | B221: 0 | C221: 148 | D221: 0 | E221: 30 | F221: 0 | G221: 178
A222: Cand. Scient. Tek. | B222: 0 | C222: 13 | D222: 0 | E222: 21 | F222: 0 | G222: 34
A223: MA. Hum. | B223: 0 | C223: 19 | D223: 0 | E223: 60 | F223: 0 | G223: 79
A224: MA. Nat. | B224: 0 | C224: 17 | D224: 0 | E224: 14 | F224: 0 | G224: 31
A225: MA. Ph.d. | B225: 0 | C225: 1 | D225: 0 | E225: 2 | F225: 0 | G225: 3
A226: MA. Samf. | B226: 0 | C226: 3 | D226: 0 | E226: 11 | F226: 0 | G226: 14
A227: Øvrige Mag. | B227: 0 | C227: 4 | D227: 0 | E227: 6 | F227: 0 | G227: 10
A228: Agronom | B228: 0 | C228: 2 | D228: 0 | E228: 2 | F228: 0 | G228: 4
A229: Landsk. Arkt. | B229: 0 | C229: 0 | D229: 0 | E229: 1 | F229: 0 | G229: 1
A230: Hortonom | B230: 0 | C230: 0 | D230: 0 | E230: 1 | F230: 0 | G230: 1
A231: Forstkand. | B231: 0 | C231: 1 | D231: 0 | E231: 0 | F231: 0 | G231: 1
A232: Jordbrugsakad. | B232: 0 | C232: 3 | D232: 0 | E232: 4 | F232: 0 | G232: 7
A233: Mejeriing. | B233: 0 | C233: 0 | D233: 0 | E233: 2 | F233: 0 | G233: 2
A234: Levn.m.kand. | B234: 0 | C234: 1 | D234: 0 | E234: 2 | F234: 0 | G234: 3
... 611 more rows

Sheet Tabel 2 S
A1: Tabel 2. Antal bruttoledighedsberørte og gennemsnitlig antal ledige brutto
A3: Sjælland
C5: Mænd | F5: Kvinder | I5: I alt
C6: Ledigheds- berørte | D6: Gns. brutto- ledighed | F6: Ledigheds- berørte | G6: Gns. brutto- ledighed | I6: Ledigheds- berørte | J6: Gns. brutto- ledighed
A9: Civ. ing. | C9: 27 | D9: 22.91648475 | F9: 20 | G9: 17.96981226 | I9: 47 | J9: 40.88629701
A10: Diplom ing. | C10: 61 | D10: 51.78382087 | F10: 19 | G10: 14.74833157 | I10: 80 | J10: 66.53215244
A11: Cand. Scient. Tek. | C11: 44 | D11: 40.2706917 | F11: 39 | G11: 30.29564024 | I11: 83 | J11: 70.56633194
A12: MA. Hum. | C12: 62 | D12: 52.91835589 | F12: 145 | G12: 128.8267947 | I12: 207 | J12: 181.7451506
A13: MA. Nat. | C13: 14 | D13: 12.01584233 | F13: 30 | G13: 26.81157612 | I13: 44 | J13: 38.82741845
A14: MA. Ph.d. | C14: 2 | D14: 1.637248176 | F14: 3 | G14: 2.953283852 | I14: 5 | J14: 4.590532028
A15: MA. Samf. | C15: 8 | D15: 7.029252167 | F15: 34 | G15: 29.72431859 | I15: 42 | J15: 36.75357076
A16: Øvrige Mag. | C16: 4 | D16: 3.768477515 | F16: 10 | G16: 8.313478451 | I16: 14 | J16: 12.08195597
A17: Agronom | C17: 4 | D17: 3.906941932 | F17: 13 | G17: 10.76217801 | I17: 17 | J17: 14.66911994
A18: Landsk. Arkt. | C18: 2 | D18: 1.307303686 | F18: 5 | G18: 4.648537392 | I18: 7 | J18: 5.955841078
A19: Hortonom | C19: 0 | D19: 0 | F19: 0 | G19: 0 | I19: 0 | J19: 0
A20: Forstkand. | C20: 0 | D20: 0 | F20: 1 | G20: 0.4921100231 | I20: 1 | J20: 0.4921100231
A21: Jordbrugsakad. | C21: 6 | D21: 5.214245618 | F21: 19 | G21: 15.90282542 | I21: 25 | J21: 21.11707104
A22: Mejeriing. | C22: 0 | D22: 0 | F22: 0 | G22: 0 | I22: 0 | J22: 0
A23: Levn.m.kand. | C23: 1 | D23: 0.9998128859 | F23: 2 | G23: 1.953470966 | I23: 3 | J23: 2.953283852
A24: Dyrlæge | C24: 2 | D24: 1.458242375 | F24: 9 | G24: 7.392877191 | I24: 11 | J24: 8.851119566
A25: Farmaceut | C25: 5 | D25: 4.800723508 | F25: 5 | G25: 3.614420258 | I25: 10 | J25: 8.415143766
A26: Læge | C26: 5 | D26: 4.02981351 | F26: 3 | G26: 2.663880746 | I26: 8 | J26: 6.693694256
A27: Tandlæge | C27: 0 | D27: 0 | F27: 1 | G27: 0.9998128859 | I27: 1 | J27: 0.9998128859
A28: Arkitekt | C28: 3 | D28: 2.999438658 | F28: 11 | G28: 8.690825173 | I28: 14 | J28: 11.69026383
A29: Landinspek. | C29: 1 | D29: 0.4459552174 | F29: 0 | G29: 0 | I29: 1 | J29: 0.4459552174
A30: Bibliotekar | C30: 7 | D30: 6.90638059 | F30: 11 | G30: 9.932015219 | I30: 18 | J30: 16.83839581
A31: Musikudd. | C31: 0 | D31: 0 | F31: 1 | G31: 0.4921100231 | I31: 1 | J31: 0.4921100231
A32: Teolog | C32: 3 | D32: 1.629139899 | F32: 3 | G32: 1.389010167 | I32: 6 | J32: 3.018150065
A33: Psykolog | C33: 4 | D33: 3.030000624 | F33: 22 | G33: 17.67042974 | I33: 26 | J33: 20.70043036
A34: Jurist | C34: 4 | D34: 3.306929458 | F34: 14 | G34: 12.47427181 | I34: 18 | J34: 15.78120127
A35: Økonom | C35: 9 | D35: 6.941308551 | F35: 5 | G35: 3.999875257 | I35: 14 | J35: 10.94118381
A36: Samf. Adm. | C36: 42 | D36: 34.50508327 | F36: 78 | G36: 67.62178008 | I36: 120 | J36: 102.1268633
A37: Cand. Merc. | C37: 39 | D37: 34.4745213 | F37: 63 | G37: 53.69487931 | I37: 102 | J37: 88.16940061
A38: HA | C38: 12 | D38: 10.5002183 | F38: 6 | G38: 5.841701491 | I38: 18 | J38: 16.34191979
A39: HD | C39: 12 | D39: 10.49335745 | F39: 15 | G39: 12.09131167 | I39: 27 | J39: 22.58466912
A40: Komm. og Sprog | C40: 5 | D40: 4.721511882 | F40: 30 | G40: 24.13709225 | I40: 35 | J40: 28.85860413
A41: Cand. IT. | C41: 4 | D41: 3.999251544 | F41: 7 | G41: 6.111145762 | I41: 11 | J41: 10.11039731
A42: Bac. Samf. | C42: 5 | D42: 2.522921474 | F42: 2 | G42: 1.940996694 | I42: 7 | J42: 4.463918169
A43: Bac. Hum. | C43: 6 | D43: 4.687207634 | F43: 19 | G43: 17.55816129 | I43: 25 | J43: 22.24536893
A44: Bac. Nat. | C44: 5 | D44: 4.58741346 | F44: 3 | G44: 2.907129046 | I44: 8 | J44: 7.494542506
A45: Andre | C45: 37 | D45: 28.205576 | F45: 61 | G45: 53.52148693 | I45: 98 | J45: 81.72706293
A47: Total | C47: 439 | D47: 372.7992266 | F47: 690 | G47: 592.2447452 | I47: 1129 | J47: 965.0439718
A49: Ingeniører i alt | C49: 88 | D49: 74.70030562 | F49: 39 | G49: 32.71814383 | I49: 127 | J49: 107.4184494
A50: Magistre i alt | C50: 90 | D50: 77.36917607 | F50: 222 | G50: 196.6294518 | I50: 312 | J50: 273.9986278
A51: DJØF'ere i alt | C51: 106 | D51: 89.72806087 | F51: 166 | G51: 143.632508 | I51: 272 | J51: 233.3605688
A55: Greve
C57: Mænd | F57: Kvinder | I57: I alt
C58: Ledigheds- berørte | D58: Gns. brutto- ledighed | F58: Ledigheds- berørte | G58: Gns. brutto- ledighed | I58: Ledigheds- berørte | J58: Gns. brutto- ledighed
A61: Civ. ing. | C61: 3 | D61: 2.441214994 | F61: 0 | G61: 0 | I61: 3 | J61: 2.441214994
A62: Diplom ing. | C62: 5 | D62: 4.35289715 | F62: 3 | G62: 2.860974241 | I62: 8 | J62: 7.21387139
A63: Cand. Scient. Tek. | C63: 0 | D63: 0 | F63: 6 | G63: 5.260400424 | I63: 6 | J63: 5.260400424
A64: MA. Hum. | C64: 4 | D64: 3.491548681 | F64: 5 | G64: 4.214432732 | I64: 9 | J64: 7.705981413
A65: MA. Nat. | C65: 0 | D65: 0 | F65: 1 | G65: 0.9075032745 | I65: 1 | J65: 0.9075032745
A66: MA. Ph.d. | C66: 1 | D66: 0.9998128859 | F66: 0 | G66: 0 | I66: 1 | J66: 0.9998128859
A67: MA. Samf. | C67: 2 | D67: 1.722696938 | F67: 2 | G67: 1.999625772 | I67: 4 | J67: 3.722322709
A68: Øvrige Mag. | C68: 0 | D68: 0 | F68: 2 | G68: 1.700243248 | I68: 2 | J68: 1.700243248
A69: Agronom | C69: 0 | D69: 0 | F69: 0 | G69: 0 | I69: 0 | J69: 0
A70: Landsk. Arkt. | C70: 0 | D70: 0 | F70: 0 | G70: 0 | I70: 0 | J70: 0
A71: Hortonom | C71: 0 | D71: 0 | F71: 0 | G71: 0 | I71: 0 | J71: 0
A72: Forstkand. | C72: 0 | D72: 0 | F72: 0 | G72: 0 | I72: 0 | J72: 0
A73: Jordbrugsakad. | C73: 0 | D73: 0 | F73: 0 | G73: 0 | I73: 0 | J73: 0
A74: Mejeriing. | C74: 0 | D74: 0 | F74: 0 | G74: 0 | I74: 0 | J74: 0
A75: Levn.m.kand. | C75: 0 | D75: 0 | F75: 0 | G75: 0 | I75: 0 | J75: 0
A76: Dyrlæge | C76: 1 | D76: 0.4584294892 | F76: 0 | G76: 0 | I76: 1 | J76: 0.4584294892
A77: Farmaceut | C77: 0 | D77: 0 | F77: 0 | G77: 0 | I77: 0 | J77: 0
A78: Læge | C78: 1 | D78: 0.9998128859 | F78: 2 | G78: 1.676542132 | I78: 3 | J78: 2.676355018
A79: Tandlæge | C79: 0 | D79: 0 | F79: 1 | G79: 0.9998128859 | I79: 1 | J79: 0.9998128859
A80: Arkitekt | C80: 0 | D80: 0 | F80: 2 | G80: 1.999625772 | I80: 2 | J80: 1.999625772
A81: Landinspek. | C81: 0 | D81: 0 | F81: 0 | G81: 0 | I81: 0 | J81: 0
A82: Bibliotekar | C82: 0 | D82: 0 | F82: 1 | G82: 0.9998128859 | I82: 1 | J82: 0.9998128859
A83: Musikudd. | C83: 0 | D83: 0 | F83: 0 | G83: 0 | I83: 0 | J83: 0
A84: Teolog | C84: 0 | D84: 0 | F84: 0 | G84: 0 | I84: 0 | J84: 0
A85: Psykolog | C85: 0 | D85: 0 | F85: 1 | G85: 0.9998128859 | I85: 1 | J85: 0.9998128859
A86: Jurist | C86: 0 | D86: 0 | F86: 0 | G86: 0 | I86: 0 | J86: 0
A87: Økonom | C87: 0 | D87: 0 | F87: 0 | G87: 0 | I87: 0 | J87: 0
A88: Samf. Adm. | C88: 1 | D88: 0.2151811888 | F88: 12 | G88: 11.57986653 | I88: 13 | J88: 11.79504771
A89: Cand. Merc. | C89: 5 | D89: 4.283041227 | F89: 9 | G89: 8.215555417 | I89: 14 | J89: 12.49859664
A90: HA | C90: 2 | D90: 1.753882617 | F90: 1 | G90: 0.9998128859 | I90: 3 | J90: 2.753695503
A91: HD | C91: 1 | D91: 0.9998128859 | F91: 1 | G91: 0.9998128859 | I91: 2 | J91: 1.999625772
A92: Komm. og Sprog | C92: 0 | D92: 0 | F92: 3 | G92: 1.769475457 | I92: 3 | J92: 1.769475457
A93: Cand. IT. | C93: 0 | D93: 0 | F93: 1 | G93: 0.9998128859 | I93: 1 | J93: 0.9998128859
A94: Bac. Samf. | C94: 0 | D94: 0 | F94: 0 | G94: 0 | I94: 0 | J94: 0
A95: Bac. Hum. | C95: 0 | D95: 0 | F95: 1 | G95: 0.7690388574 | I95: 1 | J95: 0.7690388574
A96: Bac. Nat. | C96: 1 | D96: 0.9536580802 | F96: 1 | G96: 0.9998128859 | I96: 2 | J96: 1.953470966
A97: Andre | C97: 1 | D97: 0.5382648288 | F97: 4 | G97: 3.860787127 | I97: 5 | J97: 4.399051955
A99: Total | C99: 28 | D99: 23.21025385 | F99: 59 | G99: 53.81276118 | I99: 87 | J99: 77.02301503
A101: Ingeniører i alt | C101: 8 | D101: 6.794112144 | F101: 3 | G101: 2.860974241 | I101: 11 | J101: 9.655086384
A102: Magistre i alt | C102: 7 | D102: 6.214058504 | F102: 10 | G102: 8.821805027 | I102: 17 | J102: 15.03586353
A103: DJØF'ere i alt | C103: 8 | D103: 6.252105033 | F103: 22 | G103: 20.79523483 | I103: 30 | J103: 27.04733986
A108: Køge
C110: Mænd | F110: Kvinder | I110: I alt
C111: Ledigheds- berørte | D111: Gns. brutto- ledighed | F111: Ledigheds- berørte | G111: Gns. brutto- ledighed | I111: Ledigheds- berørte | J111: Gns. brutto- ledighed
A114: Civ. ing. | C114: 3 | D114: 2.02020832 | F114: 3 | G114: 2.999438658 | I114: 6 | J114: 5.019646978
A115: Diplom ing. | C115: 4 | D115: 3.487806399 | F115: 2 | G115: 1.307303686 | I115: 6 | J115: 4.795110085
A116: Cand. Scient. Tek. | C116: 8 | D116: 7.671677166 | F116: 0 | G116: 0 | I116: 8 | J116: 7.671677166
A117: MA. Hum. | C117: 2 | D117: 0.8887918668 | F117: 7 | G117: 6.464791368 | I117: 9 | J117: 7.353583235
A118: MA. Nat. | C118: 1 | D118: 0.6767292459 | F118: 3 | G118: 2.837273124 | I118: 4 | J118: 3.51400237
A119: MA. Ph.d. | C119: 0 | D119: 0 | F119: 0 | G119: 0 | I119: 0 | J119: 0
A120: MA. Samf. | C120: 1 | D120: 0.9998128859 | F120: 5 | G120: 4.67598079 | I120: 6 | J120: 5.675793676
A121: Øvrige Mag. | C121: 1 | D121: 0.9998128859 | F121: 3 | G121: 2.999438658 | I121: 4 | J121: 3.999251544
A122: Agronom | C122: 0 | D122: 0 | F122: 4 | G122: 3.106093682 | I122: 4 | J122: 3.106093682
A123: Landsk. Arkt. | C123: 0 | D123: 0 | F123: 2 | G123: 1.700243248 | I123: 2 | J123: 1.700243248
A124: Hortonom | C124: 0 | D124: 0 | F124: 0 | G124: 0 | I124: 0 | J124: 0
A125: Forstkand. | C125: 0 | D125: 0 | F125: 1 | G125: 0.4921100231 | I125: 1 | J125: 0.4921100231
A126: Jordbrugsakad. | C126: 0 | D126: 0 | F126: 7 | G126: 5.298446953 | I126: 7 | J126: 5.298446953
A127: Mejeriing. | C127: 0 | D127: 0 | F127: 0 | G127: 0 | I127: 0 | J127: 0
A128: Levn.m.kand. | C128: 0 | D128: 0 | F128: 0 | G128: 0 | I128: 0 | J128: 0
A129: Dyrlæge | C129: 0 | D129: 0 | F129: 0 | G129: 0 | I129: 0 | J129: 0
A130: Farmaceut | C130: 0 | D130: 0 | F130: 2 | G130: 1.26114888 | I130: 2 | J130: 1.26114888
A131: Læge | C131: 0 | D131: 0 | F131: 0 | G131: 0 | I131: 0 | J131: 0
A132: Tandlæge | C132: 0 | D132: 0 | F132: 0 | G132: 0 | I132: 0 | J132: 0
A133: Arkitekt | C133: 0 | D133: 0 | F133: 0 | G133: 0 | I133: 0 | J133: 0
A134: Landinspek. | C134: 0 | D134: 0 | F134: 0 | G134: 0 | I134: 0 | J134: 0
A135: Bibliotekar | C135: 0 | D135: 0 | F135: 1 | G135: 0.7690388574 | I135: 1 | J135: 0.7690388574
A136: Musikudd. | C136: 0 | D136: 0 | F136: 0 | G136: 0 | I136: 0 | J136: 0
A137: Teolog | C137: 0 | D137: 0 | F137: 1 | G137: 0.9998128859 | I137: 1 | J137: 0.9998128859
A138: Psykolog | C138: 1 | D138: 0.3074908002 | F138: 2 | G138: 1.690263831 | I138: 3 | J138: 1.997754631
A139: Jurist | C139: 1 | D139: 0.3074908002 | F139: 2 | G139: 1.999625772 | I139: 3 | J139: 2.307116572
A140: Økonom | C140: 1 | D140: 0.5382648288 | F140: 0 | G140: 0 | I140: 1 | J140: 0.5382648288
A141: Samf. Adm. | C141: 3 | D141: 2.040790869 | F141: 9 | G141: 8.675232333 | I141: 12 | J141: 10.7160232
A142: Cand. Merc. | C142: 3 | D142: 2.307116572 | F142: 8 | G142: 6.43734797 | I142: 11 | J142: 8.744464542
A143: HA | C143: 0 | D143: 0 | F143: 0 | G143: 0 | I143: 0 | J143: 0
A144: HD | C144: 0 | D144: 0 | F144: 2 | G144: 1.445768103 | I144: 2 | J144: 1.445768103
A145: Komm. og Sprog | C145: 0 | D145: 0 | F145: 4 | G145: 3.999251544 | I145: 4 | J145: 3.999251544
A146: Cand. IT. | C146: 0 | D146: 0 | F146: 1 | G146: 0.5788062122 | I146: 1 | J146: 0.5788062122
A147: Bac. Samf. | C147: 1 | D147: 0.9998128859 | F147: 0 | G147: 0 | I147: 1 | J147: 0.9998128859
A148: Bac. Hum. | C148: 1 | D148: 0.9998128859 | F148: 1 | G148: 0.9998128859 | I148: 2 | J148: 1.999625772
A149: Bac. Nat. | C149: 0 | D149: 0 | F149: 0 | G149: 0 | I149: 0 | J149: 0
A150: Andre | C150: 2 | D150: 1.399613298 | F150: 9 | G150: 8.365246679 | I150: 11 | J150: 9.764859976
A152: Total | C152: 33 | D152: 25.64523171 | F152: 72 | G152: 63.80402919 | I152: 105 | J152: 89.4492609
A154: Ingeniører i alt | C154: 7 | D154: 5.50801472 | F154: 5 | G154: 4.306742344 | I154: 12 | J154: 9.814757064
A155: Magistre i alt | C155: 5 | D155: 3.565146885 | F155: 18 | G155: 16.97748394 | I155: 23 | J155: 20.54263082
A156: DJØF'ere i alt | C156: 8 | D156: 5.19366307 | F156: 19 | G156: 17.11220607 | I156: 27 | J156: 22.30586914
A161: Roskilde
C163: Mænd | F163: Kvinder | I163: I alt
C164: Ledigheds- berørte | D164: Gns. brutto- ledighed | F164: Ledigheds- berørte | G164: Gns. brutto- ledighed | I164: Ledigheds- berørte | J164: Gns. brutto- ledighed
A167: Civ. ing. | C167: 5 | D167: 4.214432732 | F167: 5 | G167: 4.168277927 | I167: 10 | J167: 8.382710659
A168: Diplom ing. | C168: 13 | D168: 12.50421007 | F168: 4 | G168: 2.512318343 | I168: 17 | J168: 15.01652841
A169: Cand. Scient. Tek. | C169: 13 | D169: 12.16865215 | F169: 9 | G169: 6.272063868 | I169: 22 | J169: 18.44071602
A170: MA. Hum. | C170: 12 | D170: 10.84388449 | F170: 37 | G170: 32.44994698 | I170: 49 | J170: 43.29383147
A171: MA. Nat. | C171: 4 | D171: 3.896338801 | F171: 9 | G171: 8.50620595 | I171: 13 | J171: 12.40254475
A172: MA. Ph.d. | C172: 1 | D172: 0.6374352897 | F172: 1 | G172: 0.9536580802 | I172: 2 | J172: 1.59109337
A173: MA. Samf. | C173: 4 | D173: 3.306929458 | F173: 12 | G173: 10.78899769 | I173: 16 | J173: 14.09592715
A174: Øvrige Mag. | C174: 2 | D174: 1.999625772 | F174: 1 | G174: 0.9536580802 | I174: 3 | J174: 2.953283852
A175: Agronom | C175: 1 | D175: 0.9998128859 | F175: 2 | G175: 1.90731616 | I175: 3 | J175: 2.907129046
A176: Landsk. Arkt. | C176: 0 | D176: 0 | F176: 1 | G176: 0.9486683715 | I176: 1 | J176: 0.9486683715
A177: Hortonom | C177: 0 | D177: 0 | F177: 0 | G177: 0 | I177: 0 | J177: 0
A178: Forstkand. | C178: 0 | D178: 0 | F178: 0 | G178: 0 | I178: 0 | J178: 0
A179: Jordbrugsakad. | C179: 1 | D179: 0.9998128859 | F179: 3 | G179: 2.855984532 | I179: 4 | J179: 3.855797418
A180: Mejeriing. | C180: 0 | D180: 0 | F180: 0 | G180: 0 | I180: 0 | J180: 0
A181: Levn.m.kand. | C181: 0 | D181: 0 | F181: 0 | G181: 0 | I181: 0 | J181: 0
A182: Dyrlæge | C182: 0 | D182: 0 | F182: 3 | G182: 2.323956839 | I182: 3 | J182: 2.323956839
A183: Farmaceut | C183: 2 | D183: 1.999625772 | F183: 2 | G183: 1.815006549 | I183: 4 | J183: 3.814632321
A184: Læge | C184: 1 | D184: 0.9075032745 | F184: 0 | G184: 0 | I184: 1 | J184: 0.9075032745
A185: Tandlæge | C185: 0 | D185: 0 | F185: 0 | G185: 0 | I185: 0 | J185: 0
A186: Arkitekt | C186: 1 | D186: 0.9998128859 | F186: 3 | G186: 1.753882617 | I186: 4 | J186: 2.753695503
A187: Landinspek. | C187: 0 | D187: 0 | F187: 0 | G187: 0 | I187: 0 | J187: 0
A188: Bibliotekar | C188: 0 | D188: 0 | F188: 5 | G188: 4.163911932 | I188: 5 | J188: 4.163911932
A189: Musikudd. | C189: 0 | D189: 0 | F189: 1 | G189: 0.4921100231 | I189: 1 | J189: 0.4921100231
A190: Teolog | C190: 0 | D190: 0 | F190: 0 | G190: 0 | I190: 0 | J190: 0
A191: Psykolog | C191: 1 | D191: 0.9998128859 | F191: 3 | G191: 1.863656209 | I191: 4 | J191: 2.863469095
A192: Jurist | C192: 1 | D192: 0.9998128859 | F192: 1 | G192: 0.9998128859 | I192: 2 | J192: 1.999625772
A193: Økonom | C193: 1 | D193: 0.9998128859 | F193: 2 | G193: 1.32352024 | I193: 3 | J193: 2.323333125
A194: Samf. Adm. | C194: 11 | D194: 9.6282667 | F194: 23 | G194: 20.90937442 | I194: 34 | J194: 30.53764112
A195: Cand. Merc. | C195: 8 | D195: 7.077278114 | F195: 10 | G195: 7.810141583 | I195: 18 | J195: 14.8874197
A196: HA | C196: 2 | D196: 1.999625772 | F196: 1 | G196: 0.9998128859 | I196: 3 | J196: 2.999438658
A197: HD | C197: 3 | D197: 2.838520551 | F197: 3 | G197: 2.572818562 | I197: 6 | J197: 5.411339113
A198: Komm. og Sprog | C198: 0 | D198: 0 | F198: 6 | G198: 5.410091686 | I198: 6 | J198: 5.410091686
A199: Cand. IT. | C199: 1 | D199: 0.9998128859 | F199: 2 | G199: 1.999625772 | I199: 3 | J199: 2.999438658
A200: Bac. Samf. | C200: 0 | D200: 0 | F200: 0 | G200: 0 | I200: 0 | J200: 0
A201: Bac. Hum. | C201: 2 | D201: 1.540572569 | F201: 6 | G201: 5.846691199 | I201: 8 | J201: 7.387263768
A202: Bac. Nat. | C202: 2 | D202: 1.999625772 | F202: 1 | G202: 0.9075032745 | I202: 3 | J202: 2.907129046
A203: Andre | C203: 9 | D203: 8.40890663 | F203: 12 | G203: 10.28378968 | I203: 21 | J203: 18.69269631
A205: Total | C205: 100 | D205: 91.97031123 | F205: 165 | G205: 140.9368178 | I205: 265 | J205: 232.907129
A207: Ingeniører i alt | C207: 18 | D207: 16.7186428 | F207: 9 | G207: 6.68059627 | I207: 27 | J207: 23.39923907
A208: Magistre i alt | C208: 23 | D208: 20.68421381 | F208: 60 | G208: 53.65246679 | I208: 83 | J208: 74.3366806
A209: DJØF'ere i alt | C209: 23 | D209: 20.70479636 | F209: 37 | G209: 32.04266201 | I209: 60 | J209: 52.74745837
A214: Solrød
C216: Mænd | F216: Kvinder | I216: I alt
C217: Ledigheds- berørte | D217: Gns. brutto- ledighed | F217: Ledigheds- berørte | G217: Gns. brutto- ledighed | I217: Ledigheds- berørte | J217: Gns. brutto- ledighed
A220: Civ. ing. | C220: 1 | D220: 0.7228840516 | F220: 1 | G220: 0.9998128859 | I220: 2 | J220: 1.722696938
A221: Diplom ing. | C221: 0 | D221: 0 | F221: 2 | G221: 1.768851743 | I221: 2 | J221: 1.768851743
A222: Cand. Scient. Tek. | C222: 2 | D222: 1.999625772 | F222: 0 | G222: 0 | I222: 2 | J222: 1.999625772
A223: MA. Hum. | C223: 1 | D223: 0.7933636874 | F223: 3 | G223: 2.091935383 | I223: 4 | J223: 2.885299071
A224: MA. Nat. | C224: 0 | D224: 0 | F224: 0 | G224: 0 | I224: 0 | J224: 0
A225: MA. Ph.d. | C225: 0 | D225: 0 | F225: 0 | G225: 0 | I225: 0 | J225: 0
A226: MA. Samf. | C226: 0 | D226: 0 | F226: 1 | G226: 0.8108276679 | I226: 1 | J226: 0.8108276679
A227: Øvrige Mag. | C227: 0 | D227: 0 | F227: 0 | G227: 0 | I227: 0 | J227: 0
A228: Agronom | C228: 0 | D228: 0 | F228: 0 | G228: 0 | I228: 0 | J228: 0
A229: Landsk. Arkt. | C229: 0 | D229: 0 | F229: 0 | G229: 0 | I229: 0 | J229: 0
A230: Hortonom | C230: 0 | D230: 0 | F230: 0 | G230: 0 | I230: 0 | J230: 0
A231: Forstkand. | C231: 0 | D231: 0 | F231: 0 | G231: 0 | I231: 0 | J231: 0
A232: Jordbrugsakad. | C232: 0 | D232: 0 | F232: 0 | G232: 0 | I232: 0 | J232: 0
A233: Mejeriing. | C233: 0 | D233: 0 | F233: 0 | G233: 0 | I233: 0 | J233: 0
A234: Levn.m.kand. | C234: 1 | D234: 0.9998128859 | F234: 0 | G234: 0 | I234: 1 | J234: 0.9998128859
A235: Dyrlæge | C235: 0 | D235: 0 | F235: 0 | G235: 0 | I235: 0 | J235: 0
A236: Farmaceut | C236: 0 | D236: 0 | F236: 1 | G236: 0.5382648288 | I236: 1 | J236: 0.5382648288
A237: Læge | C237: 0 | D237: 0 | F237: 0 | G237: 0 | I237: 0 | J237: 0
A238: Tandlæge | C238: 0 | D238: 0 | F238: 0 | G238: 0 | I238: 0 | J238: 0
A239: Arkitekt | C239: 0 | D239: 0 | F239: 0 | G239: 0 | I239: 0 | J239: 0
... 593 more rows

Sheet Tabel 3 S
A1: Tabel 3. Ledige i procent af forsikrede
A3: ='Tabel 2 S'!A3 -> Sjælland
C5: Mænd | F5: Kvinder | I5: I alt
C6: Ledigheds- berørte | D6: Gns. brutto- ledighed | F6: Ledigheds- berørte | G6: Gns. brutto- ledighed | I6: Ledigheds- berørte | J6: Gns. brutto- ledighed
A9: Civ. ing. | C9: =IF(OR('Tabel 1 S'!C9<5,'Tabel 2 S'!C9<0.5),"-",IFERROR('Tabel 2 S'!C9/'Tabel 1 S'!C9*100,"-")) -> 1.718650541 | D9: =IF(OR('Tabel 1 S'!C9<5,'Tabel 2 S'!D9<0.5),"-",IFERROR('Tabel 2 S'!D9/'Tabel 1 S'!C9*100,"-")) -> 1.458719589 | F9: =IF(OR('Tabel 1 S'!E9<5,'Tabel 2 S'!F9<0.5),"-",IFERROR('Tabel 2 S'!F9/'Tabel 1 S'!E9*100,"-")) -> 3.466204506 | G9: =IF(OR('Tabel 1 S'!E9<5,'Tabel 2 S'!G9<0.5),"-",IFERROR('Tabel 2 S'!G9/'Tabel 1 S'!E9*100,"-")) -> 3.114352212 | I9: =IF(OR('Tabel 1 S'!G9<5,'Tabel 2 S'!I9<0.5),"-",IFERROR('Tabel 2 S'!I9/'Tabel 1 S'!G9*100,"-")) -> 2.188081937 | J9: =IF(OR('Tabel 1 S'!G9<5,'Tabel 2 S'!J9<0.5),"-",IFERROR('Tabel 2 S'!J9/'Tabel 1 S'!G9*100,"-")) -> 1.903458893
A10: Diplom ing. | C10: =IF(OR('Tabel 1 S'!C10<5,'Tabel 2 S'!C10<0.5),"-",IFERROR('Tabel 2 S'!C10/'Tabel 1 S'!C10*100,"-")) -> 1.976028507 | D10: =IF(OR('Tabel 1 S'!C10<5,'Tabel 2 S'!D10<0.5),"-",IFERROR('Tabel 2 S'!D10/'Tabel 1 S'!C10*100,"-")) -> 1.67748043 | F10: =IF(OR('Tabel 1 S'!E10<5,'Tabel 2 S'!F10<0.5),"-",IFERROR('Tabel 2 S'!F10/'Tabel 1 S'!E10*100,"-")) -> 2.757619739 | G10: =IF(OR('Tabel 1 S'!E10<5,'Tabel 2 S'!G10<0.5),"-",IFERROR('Tabel 2 S'!G10/'Tabel 1 S'!E10*100,"-")) -> 2.140541592 | I10: =IF(OR('Tabel 1 S'!G10<5,'Tabel 2 S'!I10<0.5),"-",IFERROR('Tabel 2 S'!I10/'Tabel 1 S'!G10*100,"-")) -> 2.118644068 | J10: =IF(OR('Tabel 1 S'!G10<5,'Tabel 2 S'!J10<0.5),"-",IFERROR('Tabel 2 S'!J10/'Tabel 1 S'!G10*100,"-")) -> 1.761974376
A11: Cand. Scient. Tek. | C11: =IF(OR('Tabel 1 S'!C11<5,'Tabel 2 S'!C11<0.5),"-",IFERROR('Tabel 2 S'!C11/'Tabel 1 S'!C11*100,"-")) -> 8.014571949 | D11: =IF(OR('Tabel 1 S'!C11<5,'Tabel 2 S'!D11<0.5),"-",IFERROR('Tabel 2 S'!D11/'Tabel 1 S'!C11*100,"-")) -> 7.335280819 | F11: =IF(OR('Tabel 1 S'!E11<5,'Tabel 2 S'!F11<0.5),"-",IFERROR('Tabel 2 S'!F11/'Tabel 1 S'!E11*100,"-")) -> 7.707509881 | G11: =IF(OR('Tabel 1 S'!E11<5,'Tabel 2 S'!G11<0.5),"-",IFERROR('Tabel 2 S'!G11/'Tabel 1 S'!E11*100,"-")) -> 5.98728068 | I11: =IF(OR('Tabel 1 S'!G11<5,'Tabel 2 S'!I11<0.5),"-",IFERROR('Tabel 2 S'!I11/'Tabel 1 S'!G11*100,"-")) -> 7.867298578 | J11: =IF(OR('Tabel 1 S'!G11<5,'Tabel 2 S'!J11<0.5),"-",IFERROR('Tabel 2 S'!J11/'Tabel 1 S'!G11*100,"-")) -> 6.688751843
A12: MA. Hum. | C12: =IF(OR('Tabel 1 S'!C12<5,'Tabel 2 S'!C12<0.5),"-",IFERROR('Tabel 2 S'!C12/'Tabel 1 S'!C12*100,"-")) -> 7.294117647 | D12: =IF(OR('Tabel 1 S'!C12<5,'Tabel 2 S'!D12<0.5),"-",IFERROR('Tabel 2 S'!D12/'Tabel 1 S'!C12*100,"-")) -> 6.225688928 | F12: =IF(OR('Tabel 1 S'!E12<5,'Tabel 2 S'!F12<0.5),"-",IFERROR('Tabel 2 S'!F12/'Tabel 1 S'!E12*100,"-")) -> 7.405515832 | G12: =IF(OR('Tabel 1 S'!E12<5,'Tabel 2 S'!G12<0.5),"-",IFERROR('Tabel 2 S'!G12/'Tabel 1 S'!E12*100,"-")) -> 6.579509435 | I12: =IF(OR('Tabel 1 S'!G12<5,'Tabel 2 S'!I12<0.5),"-",IFERROR('Tabel 2 S'!I12/'Tabel 1 S'!G12*100,"-")) -> 7.371794872 | J12: =IF(OR('Tabel 1 S'!G12<5,'Tabel 2 S'!J12<0.5),"-",IFERROR('Tabel 2 S'!J12/'Tabel 1 S'!G12*100,"-")) -> 6.472405649
A13: MA. Nat. | C13: =IF(OR('Tabel 1 S'!C13<5,'Tabel 2 S'!C13<0.5),"-",IFERROR('Tabel 2 S'!C13/'Tabel 1 S'!C13*100,"-")) -> 1.955307263 | D13: =IF(OR('Tabel 1 S'!C13<5,'Tabel 2 S'!D13<0.5),"-",IFERROR('Tabel 2 S'!D13/'Tabel 1 S'!C13*100,"-")) -> 1.678190269 | F13: =IF(OR('Tabel 1 S'!E13<5,'Tabel 2 S'!F13<0.5),"-",IFERROR('Tabel 2 S'!F13/'Tabel 1 S'!E13*100,"-")) -> 4.201680672 | G13: =IF(OR('Tabel 1 S'!E13<5,'Tabel 2 S'!G13<0.5),"-",IFERROR('Tabel 2 S'!G13/'Tabel 1 S'!E13*100,"-")) -> 3.755122706 | I13: =IF(OR('Tabel 1 S'!G13<5,'Tabel 2 S'!I13<0.5),"-",IFERROR('Tabel 2 S'!I13/'Tabel 1 S'!G13*100,"-")) -> 3.076923077 | J13: =IF(OR('Tabel 1 S'!G13<5,'Tabel 2 S'!J13<0.5),"-",IFERROR('Tabel 2 S'!J13/'Tabel 1 S'!G13*100,"-")) -> 2.715204087
A14: MA. Ph.d. | C14: =IF(OR('Tabel 1 S'!C14<5,'Tabel 2 S'!C14<0.5),"-",IFERROR('Tabel 2 S'!C14/'Tabel 1 S'!C14*100,"-")) -> 2.777777778 | D14: =IF(OR('Tabel 1 S'!C14<5,'Tabel 2 S'!D14<0.5),"-",IFERROR('Tabel 2 S'!D14/'Tabel 1 S'!C14*100,"-")) -> 2.273955799 | F14: =IF(OR('Tabel 1 S'!E14<5,'Tabel 2 S'!F14<0.5),"-",IFERROR('Tabel 2 S'!F14/'Tabel 1 S'!E14*100,"-")) -> 4.545454545 | G14: =IF(OR('Tabel 1 S'!E14<5,'Tabel 2 S'!G14<0.5),"-",IFERROR('Tabel 2 S'!G14/'Tabel 1 S'!E14*100,"-")) -> 4.474672503 | I14: =IF(OR('Tabel 1 S'!G14<5,'Tabel 2 S'!I14<0.5),"-",IFERROR('Tabel 2 S'!I14/'Tabel 1 S'!G14*100,"-")) -> 3.623188406 | J14: =IF(OR('Tabel 1 S'!G14<5,'Tabel 2 S'!J14<0.5),"-",IFERROR('Tabel 2 S'!J14/'Tabel 1 S'!G14*100,"-")) -> 3.326472484
A15: MA. Samf. | C15: =IF(OR('Tabel 1 S'!C15<5,'Tabel 2 S'!C15<0.5),"-",IFERROR('Tabel 2 S'!C15/'Tabel 1 S'!C15*100,"-")) -> 8.888888889 | D15: =IF(OR('Tabel 1 S'!C15<5,'Tabel 2 S'!D15<0.5),"-",IFERROR('Tabel 2 S'!D15/'Tabel 1 S'!C15*100,"-")) -> 7.810280186 | F15: =IF(OR('Tabel 1 S'!E15<5,'Tabel 2 S'!F15<0.5),"-",IFERROR('Tabel 2 S'!F15/'Tabel 1 S'!E15*100,"-")) -> 13.65461847 | G15: =IF(OR('Tabel 1 S'!E15<5,'Tabel 2 S'!G15<0.5),"-",IFERROR('Tabel 2 S'!G15/'Tabel 1 S'!E15*100,"-")) -> 11.93747735 | I15: =IF(OR('Tabel 1 S'!G15<5,'Tabel 2 S'!I15<0.5),"-",IFERROR('Tabel 2 S'!I15/'Tabel 1 S'!G15*100,"-")) -> 12.38938053 | J15: =IF(OR('Tabel 1 S'!G15<5,'Tabel 2 S'!J15<0.5),"-",IFERROR('Tabel 2 S'!J15/'Tabel 1 S'!G15*100,"-")) -> 10.84176129
A16: Øvrige Mag. | C16: =IF(OR('Tabel 1 S'!C16<5,'Tabel 2 S'!C16<0.5),"-",IFERROR('Tabel 2 S'!C16/'Tabel 1 S'!C16*100,"-")) -> 4.494382022 | D16: =IF(OR('Tabel 1 S'!C16<5,'Tabel 2 S'!D16<0.5),"-",IFERROR('Tabel 2 S'!D16/'Tabel 1 S'!C16*100,"-")) -> 4.234244399 | F16: =IF(OR('Tabel 1 S'!E16<5,'Tabel 2 S'!F16<0.5),"-",IFERROR('Tabel 2 S'!F16/'Tabel 1 S'!E16*100,"-")) -> 6.289308176 | G16: =IF(OR('Tabel 1 S'!E16<5,'Tabel 2 S'!G16<0.5),"-",IFERROR('Tabel 2 S'!G16/'Tabel 1 S'!E16*100,"-")) -> 5.228602799 | I16: =IF(OR('Tabel 1 S'!G16<5,'Tabel 2 S'!I16<0.5),"-",IFERROR('Tabel 2 S'!I16/'Tabel 1 S'!G16*100,"-")) -> 5.64516129 | J16: =IF(OR('Tabel 1 S'!G16<5,'Tabel 2 S'!J16<0.5),"-",IFERROR('Tabel 2 S'!J16/'Tabel 1 S'!G16*100,"-")) -> 4.871756438
A17: Agronom | C17: =IF(OR('Tabel 1 S'!C17<5,'Tabel 2 S'!C17<0.5),"-",IFERROR('Tabel 2 S'!C17/'Tabel 1 S'!C17*100,"-")) -> 1.834862385 | D17: =IF(OR('Tabel 1 S'!C17<5,'Tabel 2 S'!D17<0.5),"-",IFERROR('Tabel 2 S'!D17/'Tabel 1 S'!C17*100,"-")) -> 1.792175198 | F17: =IF(OR('Tabel 1 S'!E17<5,'Tabel 2 S'!F17<0.5),"-",IFERROR('Tabel 2 S'!F17/'Tabel 1 S'!E17*100,"-")) -> 5.371900826 | G17: =IF(OR('Tabel 1 S'!E17<5,'Tabel 2 S'!G17<0.5),"-",IFERROR('Tabel 2 S'!G17/'Tabel 1 S'!E17*100,"-")) -> 4.447180995 | I17: =IF(OR('Tabel 1 S'!G17<5,'Tabel 2 S'!I17<0.5),"-",IFERROR('Tabel 2 S'!I17/'Tabel 1 S'!G17*100,"-")) -> 3.695652174 | J17: =IF(OR('Tabel 1 S'!G17<5,'Tabel 2 S'!J17<0.5),"-",IFERROR('Tabel 2 S'!J17/'Tabel 1 S'!G17*100,"-")) -> 3.188939117
A18: Landsk. Arkt. | C18: =IF(OR('Tabel 1 S'!C18<5,'Tabel 2 S'!C18<0.5),"-",IFERROR('Tabel 2 S'!C18/'Tabel 1 S'!C18*100,"-")) -> 7.692307692 | D18: =IF(OR('Tabel 1 S'!C18<5,'Tabel 2 S'!D18<0.5),"-",IFERROR('Tabel 2 S'!D18/'Tabel 1 S'!C18*100,"-")) -> 5.028091101 | F18: =IF(OR('Tabel 1 S'!E18<5,'Tabel 2 S'!F18<0.5),"-",IFERROR('Tabel 2 S'!F18/'Tabel 1 S'!E18*100,"-")) -> 6.944444444 | G18: =IF(OR('Tabel 1 S'!E18<5,'Tabel 2 S'!G18<0.5),"-",IFERROR('Tabel 2 S'!G18/'Tabel 1 S'!E18*100,"-")) -> 6.456301933 | I18: =IF(OR('Tabel 1 S'!G18<5,'Tabel 2 S'!I18<0.5),"-",IFERROR('Tabel 2 S'!I18/'Tabel 1 S'!G18*100,"-")) -> 7.142857143 | J18: =IF(OR('Tabel 1 S'!G18<5,'Tabel 2 S'!J18<0.5),"-",IFERROR('Tabel 2 S'!J18/'Tabel 1 S'!G18*100,"-")) -> 6.077388855
A19: Hortonom | C19: =IF(OR('Tabel 1 S'!C19<5,'Tabel 2 S'!C19<0.5),"-",IFERROR('Tabel 2 S'!C19/'Tabel 1 S'!C19*100,"-")) -> - | D19: =IF(OR('Tabel 1 S'!C19<5,'Tabel 2 S'!D19<0.5),"-",IFERROR('Tabel 2 S'!D19/'Tabel 1 S'!C19*100,"-")) -> - | F19: =IF(OR('Tabel 1 S'!E19<5,'Tabel 2 S'!F19<0.5),"-",IFERROR('Tabel 2 S'!F19/'Tabel 1 S'!E19*100,"-")) -> - | G19: =IF(OR('Tabel 1 S'!E19<5,'Tabel 2 S'!G19<0.5),"-",IFERROR('Tabel 2 S'!G19/'Tabel 1 S'!E19*100,"-")) -> - | I19: =IF(OR('Tabel 1 S'!G19<5,'Tabel 2 S'!I19<0.5),"-",IFERROR('Tabel 2 S'!I19/'Tabel 1 S'!G19*100,"-")) -> - | J19: =IF(OR('Tabel 1 S'!G19<5,'Tabel 2 S'!J19<0.5),"-",IFERROR('Tabel 2 S'!J19/'Tabel 1 S'!G19*100,"-")) -> -
A20: Forstkand. | C20: =IF(OR('Tabel 1 S'!C20<5,'Tabel 2 S'!C20<0.5),"-",IFERROR('Tabel 2 S'!C20/'Tabel 1 S'!C20*100,"-")) -> - | D20: =IF(OR('Tabel 1 S'!C20<5,'Tabel 2 S'!D20<0.5),"-",IFERROR('Tabel 2 S'!D20/'Tabel 1 S'!C20*100,"-")) -> - | F20: =IF(OR('Tabel 1 S'!E20<5,'Tabel 2 S'!F20<0.5),"-",IFERROR('Tabel 2 S'!F20/'Tabel 1 S'!E20*100,"-")) -> 6.25 | G20: =IF(OR('Tabel 1 S'!E20<5,'Tabel 2 S'!G20<0.5),"-",IFERROR('Tabel 2 S'!G20/'Tabel 1 S'!E20*100,"-")) -> - | I20: =IF(OR('Tabel 1 S'!G20<5,'Tabel 2 S'!I20<0.5),"-",IFERROR('Tabel 2 S'!I20/'Tabel 1 S'!G20*100,"-")) -> 1.351351351 | J20: =IF(OR('Tabel 1 S'!G20<5,'Tabel 2 S'!J20<0.5),"-",IFERROR('Tabel 2 S'!J20/'Tabel 1 S'!G20*100,"-")) -> -
A21: Jordbrugsakad. | C21: =IF(OR('Tabel 1 S'!C21<5,'Tabel 2 S'!C21<0.5),"-",IFERROR('Tabel 2 S'!C21/'Tabel 1 S'!C21*100,"-")) -> 1.857585139 | D21: =IF(OR('Tabel 1 S'!C21<5,'Tabel 2 S'!D21<0.5),"-",IFERROR('Tabel 2 S'!D21/'Tabel 1 S'!C21*100,"-")) -> 1.614317529 | F21: =IF(OR('Tabel 1 S'!E21<5,'Tabel 2 S'!F21<0.5),"-",IFERROR('Tabel 2 S'!F21/'Tabel 1 S'!E21*100,"-")) -> 5.177111717 | G21: =IF(OR('Tabel 1 S'!E21<5,'Tabel 2 S'!G21<0.5),"-",IFERROR('Tabel 2 S'!G21/'Tabel 1 S'!E21*100,"-")) -> 4.333194938 | I21: =IF(OR('Tabel 1 S'!G21<5,'Tabel 2 S'!I21<0.5),"-",IFERROR('Tabel 2 S'!I21/'Tabel 1 S'!G21*100,"-")) -> 3.623188406 | J21: =IF(OR('Tabel 1 S'!G21<5,'Tabel 2 S'!J21<0.5),"-",IFERROR('Tabel 2 S'!J21/'Tabel 1 S'!G21*100,"-")) -> 3.060445078
A22: Mejeriing. | C22: =IF(OR('Tabel 1 S'!C22<5,'Tabel 2 S'!C22<0.5),"-",IFERROR('Tabel 2 S'!C22/'Tabel 1 S'!C22*100,"-")) -> - | D22: =IF(OR('Tabel 1 S'!C22<5,'Tabel 2 S'!D22<0.5),"-",IFERROR('Tabel 2 S'!D22/'Tabel 1 S'!C22*100,"-")) -> - | F22: =IF(OR('Tabel 1 S'!E22<5,'Tabel 2 S'!F22<0.5),"-",IFERROR('Tabel 2 S'!F22/'Tabel 1 S'!E22*100,"-")) -> - | G22: =IF(OR('Tabel 1 S'!E22<5,'Tabel 2 S'!G22<0.5),"-",IFERROR('Tabel 2 S'!G22/'Tabel 1 S'!E22*100,"-")) -> - | I22: =IF(OR('Tabel 1 S'!G22<5,'Tabel 2 S'!I22<0.5),"-",IFERROR('Tabel 2 S'!I22/'Tabel 1 S'!G22*100,"-")) -> - | J22: =IF(OR('Tabel 1 S'!G22<5,'Tabel 2 S'!J22<0.5),"-",IFERROR('Tabel 2 S'!J22/'Tabel 1 S'!G22*100,"-")) -> -
A23: Levn.m.kand. | C23: =IF(OR('Tabel 1 S'!C23<5,'Tabel 2 S'!C23<0.5),"-",IFERROR('Tabel 2 S'!C23/'Tabel 1 S'!C23*100,"-")) -> 16.66666667 | D23: =IF(OR('Tabel 1 S'!C23<5,'Tabel 2 S'!D23<0.5),"-",IFERROR('Tabel 2 S'!D23/'Tabel 1 S'!C23*100,"-")) -> 16.6635481 | F23: =IF(OR('Tabel 1 S'!E23<5,'Tabel 2 S'!F23<0.5),"-",IFERROR('Tabel 2 S'!F23/'Tabel 1 S'!E23*100,"-")) -> 5.263157895 | G23: =IF(OR('Tabel 1 S'!E23<5,'Tabel 2 S'!G23<0.5),"-",IFERROR('Tabel 2 S'!G23/'Tabel 1 S'!E23*100,"-")) -> 5.140713069 | I23: =IF(OR('Tabel 1 S'!G23<5,'Tabel 2 S'!I23<0.5),"-",IFERROR('Tabel 2 S'!I23/'Tabel 1 S'!G23*100,"-")) -> 6.818181818 | J23: =IF(OR('Tabel 1 S'!G23<5,'Tabel 2 S'!J23<0.5),"-",IFERROR('Tabel 2 S'!J23/'Tabel 1 S'!G23*100,"-")) -> 6.712008755
A24: Dyrlæge | C24: =IF(OR('Tabel 1 S'!C24<5,'Tabel 2 S'!C24<0.5),"-",IFERROR('Tabel 2 S'!C24/'Tabel 1 S'!C24*100,"-")) -> 2.325581395 | D24: =IF(OR('Tabel 1 S'!C24<5,'Tabel 2 S'!D24<0.5),"-",IFERROR('Tabel 2 S'!D24/'Tabel 1 S'!C24*100,"-")) -> 1.695630669 | F24: =IF(OR('Tabel 1 S'!E24<5,'Tabel 2 S'!F24<0.5),"-",IFERROR('Tabel 2 S'!F24/'Tabel 1 S'!E24*100,"-")) -> 2.922077922 | G24: =IF(OR('Tabel 1 S'!E24<5,'Tabel 2 S'!G24<0.5),"-",IFERROR('Tabel 2 S'!G24/'Tabel 1 S'!E24*100,"-")) -> 2.400284802 | I24: =IF(OR('Tabel 1 S'!G24<5,'Tabel 2 S'!I24<0.5),"-",IFERROR('Tabel 2 S'!I24/'Tabel 1 S'!G24*100,"-")) -> 2.791878173 | J24: =IF(OR('Tabel 1 S'!G24<5,'Tabel 2 S'!J24<0.5),"-",IFERROR('Tabel 2 S'!J24/'Tabel 1 S'!G24*100,"-")) -> 2.246477047
A25: Farmaceut | C25: =IF(OR('Tabel 1 S'!C25<5,'Tabel 2 S'!C25<0.5),"-",IFERROR('Tabel 2 S'!C25/'Tabel 1 S'!C25*100,"-")) -> 3.787878788 | D25: =IF(OR('Tabel 1 S'!C25<5,'Tabel 2 S'!D25<0.5),"-",IFERROR('Tabel 2 S'!D25/'Tabel 1 S'!C25*100,"-")) -> 3.636911748 | F25: =IF(OR('Tabel 1 S'!E25<5,'Tabel 2 S'!F25<0.5),"-",IFERROR('Tabel 2 S'!F25/'Tabel 1 S'!E25*100,"-")) -> 1.210653753 | G25: =IF(OR('Tabel 1 S'!E25<5,'Tabel 2 S'!G25<0.5),"-",IFERROR('Tabel 2 S'!G25/'Tabel 1 S'!E25*100,"-")) -> 0.8751622901 | I25: =IF(OR('Tabel 1 S'!G25<5,'Tabel 2 S'!I25<0.5),"-",IFERROR('Tabel 2 S'!I25/'Tabel 1 S'!G25*100,"-")) -> 1.834862385 | J25: =IF(OR('Tabel 1 S'!G25<5,'Tabel 2 S'!J25<0.5),"-",IFERROR('Tabel 2 S'!J25/'Tabel 1 S'!G25*100,"-")) -> 1.544063076
A26: Læge | C26: =IF(OR('Tabel 1 S'!C26<5,'Tabel 2 S'!C26<0.5),"-",IFERROR('Tabel 2 S'!C26/'Tabel 1 S'!C26*100,"-")) -> 2.202643172 | D26: =IF(OR('Tabel 1 S'!C26<5,'Tabel 2 S'!D26<0.5),"-",IFERROR('Tabel 2 S'!D26/'Tabel 1 S'!C26*100,"-")) -> 1.775248242 | F26: =IF(OR('Tabel 1 S'!E26<5,'Tabel 2 S'!F26<0.5),"-",IFERROR('Tabel 2 S'!F26/'Tabel 1 S'!E26*100,"-")) -> 0.6550218341 | G26: =IF(OR('Tabel 1 S'!E26<5,'Tabel 2 S'!G26<0.5),"-",IFERROR('Tabel 2 S'!G26/'Tabel 1 S'!E26*100,"-")) -> 0.5816333506 | I26: =IF(OR('Tabel 1 S'!G26<5,'Tabel 2 S'!I26<0.5),"-",IFERROR('Tabel 2 S'!I26/'Tabel 1 S'!G26*100,"-")) -> 1.167883212 | J26: =IF(OR('Tabel 1 S'!G26<5,'Tabel 2 S'!J26<0.5),"-",IFERROR('Tabel 2 S'!J26/'Tabel 1 S'!G26*100,"-")) -> 0.9771816432
A27: Tandlæge | C27: =IF(OR('Tabel 1 S'!C27<5,'Tabel 2 S'!C27<0.5),"-",IFERROR('Tabel 2 S'!C27/'Tabel 1 S'!C27*100,"-")) -> - | D27: =IF(OR('Tabel 1 S'!C27<5,'Tabel 2 S'!D27<0.5),"-",IFERROR('Tabel 2 S'!D27/'Tabel 1 S'!C27*100,"-")) -> - | F27: =IF(OR('Tabel 1 S'!E27<5,'Tabel 2 S'!F27<0.5),"-",IFERROR('Tabel 2 S'!F27/'Tabel 1 S'!E27*100,"-")) -> 0.6944444444 | G27: =IF(OR('Tabel 1 S'!E27<5,'Tabel 2 S'!G27<0.5),"-",IFERROR('Tabel 2 S'!G27/'Tabel 1 S'!E27*100,"-")) -> 0.6943145041 | I27: =IF(OR('Tabel 1 S'!G27<5,'Tabel 2 S'!I27<0.5),"-",IFERROR('Tabel 2 S'!I27/'Tabel 1 S'!G27*100,"-")) -> 0.5780346821 | J27: =IF(OR('Tabel 1 S'!G27<5,'Tabel 2 S'!J27<0.5),"-",IFERROR('Tabel 2 S'!J27/'Tabel 1 S'!G27*100,"-")) -> 0.5779265237
A28: Arkitekt | C28: =IF(OR('Tabel 1 S'!C28<5,'Tabel 2 S'!C28<0.5),"-",IFERROR('Tabel 2 S'!C28/'Tabel 1 S'!C28*100,"-")) -> 2.752293578 | D28: =IF(OR('Tabel 1 S'!C28<5,'Tabel 2 S'!D28<0.5),"-",IFERROR('Tabel 2 S'!D28/'Tabel 1 S'!C28*100,"-")) -> 2.751778585 | F28: =IF(OR('Tabel 1 S'!E28<5,'Tabel 2 S'!F28<0.5),"-",IFERROR('Tabel 2 S'!F28/'Tabel 1 S'!E28*100,"-")) -> 7.586206897 | G28: =IF(OR('Tabel 1 S'!E28<5,'Tabel 2 S'!G28<0.5),"-",IFERROR('Tabel 2 S'!G28/'Tabel 1 S'!E28*100,"-")) -> 5.993672533 | I28: =IF(OR('Tabel 1 S'!G28<5,'Tabel 2 S'!I28<0.5),"-",IFERROR('Tabel 2 S'!I28/'Tabel 1 S'!G28*100,"-")) -> 5.511811024 | J28: =IF(OR('Tabel 1 S'!G28<5,'Tabel 2 S'!J28<0.5),"-",IFERROR('Tabel 2 S'!J28/'Tabel 1 S'!G28*100,"-")) -> 4.602466075
A29: Landinspek. | C29: =IF(OR('Tabel 1 S'!C29<5,'Tabel 2 S'!C29<0.5),"-",IFERROR('Tabel 2 S'!C29/'Tabel 1 S'!C29*100,"-")) -> 1.886792453 | D29: =IF(OR('Tabel 1 S'!C29<5,'Tabel 2 S'!D29<0.5),"-",IFERROR('Tabel 2 S'!D29/'Tabel 1 S'!C29*100,"-")) -> - | F29: =IF(OR('Tabel 1 S'!E29<5,'Tabel 2 S'!F29<0.5),"-",IFERROR('Tabel 2 S'!F29/'Tabel 1 S'!E29*100,"-")) -> - | G29: =IF(OR('Tabel 1 S'!E29<5,'Tabel 2 S'!G29<0.5),"-",IFERROR('Tabel 2 S'!G29/'Tabel 1 S'!E29*100,"-")) -> - | I29: =IF(OR('Tabel 1 S'!G29<5,'Tabel 2 S'!I29<0.5),"-",IFERROR('Tabel 2 S'!I29/'Tabel 1 S'!G29*100,"-")) -> 1.315789474 | J29: =IF(OR('Tabel 1 S'!G29<5,'Tabel 2 S'!J29<0.5),"-",IFERROR('Tabel 2 S'!J29/'Tabel 1 S'!G29*100,"-")) -> -
A30: Bibliotekar | C30: =IF(OR('Tabel 1 S'!C30<5,'Tabel 2 S'!C30<0.5),"-",IFERROR('Tabel 2 S'!C30/'Tabel 1 S'!C30*100,"-")) -> 6.25 | D30: =IF(OR('Tabel 1 S'!C30<5,'Tabel 2 S'!D30<0.5),"-",IFERROR('Tabel 2 S'!D30/'Tabel 1 S'!C30*100,"-")) -> 6.166411241 | F30: =IF(OR('Tabel 1 S'!E30<5,'Tabel 2 S'!F30<0.5),"-",IFERROR('Tabel 2 S'!F30/'Tabel 1 S'!E30*100,"-")) -> 3.754266212 | G30: =IF(OR('Tabel 1 S'!E30<5,'Tabel 2 S'!G30<0.5),"-",IFERROR('Tabel 2 S'!G30/'Tabel 1 S'!E30*100,"-")) -> 3.389766286 | I30: =IF(OR('Tabel 1 S'!G30<5,'Tabel 2 S'!I30<0.5),"-",IFERROR('Tabel 2 S'!I30/'Tabel 1 S'!G30*100,"-")) -> 4.444444444 | J30: =IF(OR('Tabel 1 S'!G30<5,'Tabel 2 S'!J30<0.5),"-",IFERROR('Tabel 2 S'!J30/'Tabel 1 S'!G30*100,"-")) -> 4.157628595
A31: Musikudd. | C31: =IF(OR('Tabel 1 S'!C31<5,'Tabel 2 S'!C31<0.5),"-",IFERROR('Tabel 2 S'!C31/'Tabel 1 S'!C31*100,"-")) -> - | D31: =IF(OR('Tabel 1 S'!C31<5,'Tabel 2 S'!D31<0.5),"-",IFERROR('Tabel 2 S'!D31/'Tabel 1 S'!C31*100,"-")) -> - | F31: =IF(OR('Tabel 1 S'!E31<5,'Tabel 2 S'!F31<0.5),"-",IFERROR('Tabel 2 S'!F31/'Tabel 1 S'!E31*100,"-")) -> 1.449275362 | G31: =IF(OR('Tabel 1 S'!E31<5,'Tabel 2 S'!G31<0.5),"-",IFERROR('Tabel 2 S'!G31/'Tabel 1 S'!E31*100,"-")) -> - | I31: =IF(OR('Tabel 1 S'!G31<5,'Tabel 2 S'!I31<0.5),"-",IFERROR('Tabel 2 S'!I31/'Tabel 1 S'!G31*100,"-")) -> 0.9174311927 | J31: =IF(OR('Tabel 1 S'!G31<5,'Tabel 2 S'!J31<0.5),"-",IFERROR('Tabel 2 S'!J31/'Tabel 1 S'!G31*100,"-")) -> -
A32: Teolog | C32: =IF(OR('Tabel 1 S'!C32<5,'Tabel 2 S'!C32<0.5),"-",IFERROR('Tabel 2 S'!C32/'Tabel 1 S'!C32*100,"-")) -> 3.797468354 | D32: =IF(OR('Tabel 1 S'!C32<5,'Tabel 2 S'!D32<0.5),"-",IFERROR('Tabel 2 S'!D32/'Tabel 1 S'!C32*100,"-")) -> 2.062202404 | F32: =IF(OR('Tabel 1 S'!E32<5,'Tabel 2 S'!F32<0.5),"-",IFERROR('Tabel 2 S'!F32/'Tabel 1 S'!E32*100,"-")) -> 2 | G32: =IF(OR('Tabel 1 S'!E32<5,'Tabel 2 S'!G32<0.5),"-",IFERROR('Tabel 2 S'!G32/'Tabel 1 S'!E32*100,"-")) -> 0.9260067777 | I32: =IF(OR('Tabel 1 S'!G32<5,'Tabel 2 S'!I32<0.5),"-",IFERROR('Tabel 2 S'!I32/'Tabel 1 S'!G32*100,"-")) -> 2.620087336 | J32: =IF(OR('Tabel 1 S'!G32<5,'Tabel 2 S'!J32<0.5),"-",IFERROR('Tabel 2 S'!J32/'Tabel 1 S'!G32*100,"-")) -> 1.317969461
A33: Psykolog | C33: =IF(OR('Tabel 1 S'!C33<5,'Tabel 2 S'!C33<0.5),"-",IFERROR('Tabel 2 S'!C33/'Tabel 1 S'!C33*100,"-")) -> 4.444444444 | D33: =IF(OR('Tabel 1 S'!C33<5,'Tabel 2 S'!D33<0.5),"-",IFERROR('Tabel 2 S'!D33/'Tabel 1 S'!C33*100,"-")) -> 3.36666736 | F33: =IF(OR('Tabel 1 S'!E33<5,'Tabel 2 S'!F33<0.5),"-",IFERROR('Tabel 2 S'!F33/'Tabel 1 S'!E33*100,"-")) -> 5.034324943 | G33: =IF(OR('Tabel 1 S'!E33<5,'Tabel 2 S'!G33<0.5),"-",IFERROR('Tabel 2 S'!G33/'Tabel 1 S'!E33*100,"-")) -> 4.043576599 | I33: =IF(OR('Tabel 1 S'!G33<5,'Tabel 2 S'!I33<0.5),"-",IFERROR('Tabel 2 S'!I33/'Tabel 1 S'!G33*100,"-")) -> 4.933586338 | J33: =IF(OR('Tabel 1 S'!G33<5,'Tabel 2 S'!J33<0.5),"-",IFERROR('Tabel 2 S'!J33/'Tabel 1 S'!G33*100,"-")) -> 3.927975401
A34: Jurist | C34: =IF(OR('Tabel 1 S'!C34<5,'Tabel 2 S'!C34<0.5),"-",IFERROR('Tabel 2 S'!C34/'Tabel 1 S'!C34*100,"-")) -> 1.315789474 | D34: =IF(OR('Tabel 1 S'!C34<5,'Tabel 2 S'!D34<0.5),"-",IFERROR('Tabel 2 S'!D34/'Tabel 1 S'!C34*100,"-")) -> 1.087805743 | F34: =IF(OR('Tabel 1 S'!E34<5,'Tabel 2 S'!F34<0.5),"-",IFERROR('Tabel 2 S'!F34/'Tabel 1 S'!E34*100,"-")) -> 1.907356948 | G34: =IF(OR('Tabel 1 S'!E34<5,'Tabel 2 S'!G34<0.5),"-",IFERROR('Tabel 2 S'!G34/'Tabel 1 S'!E34*100,"-")) -> 1.699492073 | I34: =IF(OR('Tabel 1 S'!G34<5,'Tabel 2 S'!I34<0.5),"-",IFERROR('Tabel 2 S'!I34/'Tabel 1 S'!G34*100,"-")) -> 1.734104046 | J34: =IF(OR('Tabel 1 S'!G34<5,'Tabel 2 S'!J34<0.5),"-",IFERROR('Tabel 2 S'!J34/'Tabel 1 S'!G34*100,"-")) -> 1.520346943
A35: Økonom | C35: =IF(OR('Tabel 1 S'!C35<5,'Tabel 2 S'!C35<0.5),"-",IFERROR('Tabel 2 S'!C35/'Tabel 1 S'!C35*100,"-")) -> 2.752293578 | D35: =IF(OR('Tabel 1 S'!C35<5,'Tabel 2 S'!D35<0.5),"-",IFERROR('Tabel 2 S'!D35/'Tabel 1 S'!C35*100,"-")) -> 2.122724328 | F35: =IF(OR('Tabel 1 S'!E35<5,'Tabel 2 S'!F35<0.5),"-",IFERROR('Tabel 2 S'!F35/'Tabel 1 S'!E35*100,"-")) -> 2.008032129 | G35: =IF(OR('Tabel 1 S'!E35<5,'Tabel 2 S'!G35<0.5),"-",IFERROR('Tabel 2 S'!G35/'Tabel 1 S'!E35*100,"-")) -> 1.606375605 | I35: =IF(OR('Tabel 1 S'!G35<5,'Tabel 2 S'!I35<0.5),"-",IFERROR('Tabel 2 S'!I35/'Tabel 1 S'!G35*100,"-")) -> 2.430555556 | J35: =IF(OR('Tabel 1 S'!G35<5,'Tabel 2 S'!J35<0.5),"-",IFERROR('Tabel 2 S'!J35/'Tabel 1 S'!G35*100,"-")) -> 1.899511078
A36: Samf. Adm. | C36: =IF(OR('Tabel 1 S'!C36<5,'Tabel 2 S'!C36<0.5),"-",IFERROR('Tabel 2 S'!C36/'Tabel 1 S'!C36*100,"-")) -> 5.398457584 | D36: =IF(OR('Tabel 1 S'!C36<5,'Tabel 2 S'!D36<0.5),"-",IFERROR('Tabel 2 S'!D36/'Tabel 1 S'!C36*100,"-")) -> 4.435100677 | F36: =IF(OR('Tabel 1 S'!E36<5,'Tabel 2 S'!F36<0.5),"-",IFERROR('Tabel 2 S'!F36/'Tabel 1 S'!E36*100,"-")) -> 7.365439093 | G36: =IF(OR('Tabel 1 S'!E36<5,'Tabel 2 S'!G36<0.5),"-",IFERROR('Tabel 2 S'!G36/'Tabel 1 S'!E36*100,"-")) -> 6.385437212 | I36: =IF(OR('Tabel 1 S'!G36<5,'Tabel 2 S'!I36<0.5),"-",IFERROR('Tabel 2 S'!I36/'Tabel 1 S'!G36*100,"-")) -> 6.532389766 | J36: =IF(OR('Tabel 1 S'!G36<5,'Tabel 2 S'!J36<0.5),"-",IFERROR('Tabel 2 S'!J36/'Tabel 1 S'!G36*100,"-")) -> 5.559437308
A37: Cand. Merc. | C37: =IF(OR('Tabel 1 S'!C37<5,'Tabel 2 S'!C37<0.5),"-",IFERROR('Tabel 2 S'!C37/'Tabel 1 S'!C37*100,"-")) -> 3.853754941 | D37: =IF(OR('Tabel 1 S'!C37<5,'Tabel 2 S'!D37<0.5),"-",IFERROR('Tabel 2 S'!D37/'Tabel 1 S'!C37*100,"-")) -> 3.406573251 | F37: =IF(OR('Tabel 1 S'!E37<5,'Tabel 2 S'!F37<0.5),"-",IFERROR('Tabel 2 S'!F37/'Tabel 1 S'!E37*100,"-")) -> 6.402439024 | G37: =IF(OR('Tabel 1 S'!E37<5,'Tabel 2 S'!G37<0.5),"-",IFERROR('Tabel 2 S'!G37/'Tabel 1 S'!E37*100,"-")) -> 5.456796678 | I37: =IF(OR('Tabel 1 S'!G37<5,'Tabel 2 S'!I37<0.5),"-",IFERROR('Tabel 2 S'!I37/'Tabel 1 S'!G37*100,"-")) -> 5.110220441 | J37: =IF(OR('Tabel 1 S'!G37<5,'Tabel 2 S'!J37<0.5),"-",IFERROR('Tabel 2 S'!J37/'Tabel 1 S'!G37*100,"-")) -> 4.41730464
A38: HA | C38: =IF(OR('Tabel 1 S'!C38<5,'Tabel 2 S'!C38<0.5),"-",IFERROR('Tabel 2 S'!C38/'Tabel 1 S'!C38*100,"-")) -> 3.785488959 | D38: =IF(OR('Tabel 1 S'!C38<5,'Tabel 2 S'!D38<0.5),"-",IFERROR('Tabel 2 S'!D38/'Tabel 1 S'!C38*100,"-")) -> 3.312371703 | F38: =IF(OR('Tabel 1 S'!E38<5,'Tabel 2 S'!F38<0.5),"-",IFERROR('Tabel 2 S'!F38/'Tabel 1 S'!E38*100,"-")) -> 2.5 | G38: =IF(OR('Tabel 1 S'!E38<5,'Tabel 2 S'!G38<0.5),"-",IFERROR('Tabel 2 S'!G38/'Tabel 1 S'!E38*100,"-")) -> 2.434042288 | I38: =IF(OR('Tabel 1 S'!G38<5,'Tabel 2 S'!I38<0.5),"-",IFERROR('Tabel 2 S'!I38/'Tabel 1 S'!G38*100,"-")) -> 3.231597846 | J38: =IF(OR('Tabel 1 S'!G38<5,'Tabel 2 S'!J38<0.5),"-",IFERROR('Tabel 2 S'!J38/'Tabel 1 S'!G38*100,"-")) -> 2.933917377
A39: HD | C39: =IF(OR('Tabel 1 S'!C39<5,'Tabel 2 S'!C39<0.5),"-",IFERROR('Tabel 2 S'!C39/'Tabel 1 S'!C39*100,"-")) -> 3.833865815 | D39: =IF(OR('Tabel 1 S'!C39<5,'Tabel 2 S'!D39<0.5),"-",IFERROR('Tabel 2 S'!D39/'Tabel 1 S'!C39*100,"-")) -> 3.352510367 | F39: =IF(OR('Tabel 1 S'!E39<5,'Tabel 2 S'!F39<0.5),"-",IFERROR('Tabel 2 S'!F39/'Tabel 1 S'!E39*100,"-")) -> 7.042253521 | G39: =IF(OR('Tabel 1 S'!E39<5,'Tabel 2 S'!G39<0.5),"-",IFERROR('Tabel 2 S'!G39/'Tabel 1 S'!E39*100,"-")) -> 5.676672145 | I39: =IF(OR('Tabel 1 S'!G39<5,'Tabel 2 S'!I39<0.5),"-",IFERROR('Tabel 2 S'!I39/'Tabel 1 S'!G39*100,"-")) -> 5.133079848 | J39: =IF(OR('Tabel 1 S'!G39<5,'Tabel 2 S'!J39<0.5),"-",IFERROR('Tabel 2 S'!J39/'Tabel 1 S'!G39*100,"-")) -> 4.293663331
A40: Komm. og Sprog | C40: =IF(OR('Tabel 1 S'!C40<5,'Tabel 2 S'!C40<0.5),"-",IFERROR('Tabel 2 S'!C40/'Tabel 1 S'!C40*100,"-")) -> 7.936507937 | D40: =IF(OR('Tabel 1 S'!C40<5,'Tabel 2 S'!D40<0.5),"-",IFERROR('Tabel 2 S'!D40/'Tabel 1 S'!C40*100,"-")) -> 7.494463304 | F40: =IF(OR('Tabel 1 S'!E40<5,'Tabel 2 S'!F40<0.5),"-",IFERROR('Tabel 2 S'!F40/'Tabel 1 S'!E40*100,"-")) -> 5.524861878 | G40: =IF(OR('Tabel 1 S'!E40<5,'Tabel 2 S'!G40<0.5),"-",IFERROR('Tabel 2 S'!G40/'Tabel 1 S'!E40*100,"-")) -> 4.445136694 | I40: =IF(OR('Tabel 1 S'!G40<5,'Tabel 2 S'!I40<0.5),"-",IFERROR('Tabel 2 S'!I40/'Tabel 1 S'!G40*100,"-")) -> 5.775577558 | J40: =IF(OR('Tabel 1 S'!G40<5,'Tabel 2 S'!J40<0.5),"-",IFERROR('Tabel 2 S'!J40/'Tabel 1 S'!G40*100,"-")) -> 4.762145896
A41: Cand. IT. | C41: =IF(OR('Tabel 1 S'!C41<5,'Tabel 2 S'!C41<0.5),"-",IFERROR('Tabel 2 S'!C41/'Tabel 1 S'!C41*100,"-")) -> 4.255319149 | D41: =IF(OR('Tabel 1 S'!C41<5,'Tabel 2 S'!D41<0.5),"-",IFERROR('Tabel 2 S'!D41/'Tabel 1 S'!C41*100,"-")) -> 4.254522919 | F41: =IF(OR('Tabel 1 S'!E41<5,'Tabel 2 S'!F41<0.5),"-",IFERROR('Tabel 2 S'!F41/'Tabel 1 S'!E41*100,"-")) -> 9.333333333 | G41: =IF(OR('Tabel 1 S'!E41<5,'Tabel 2 S'!G41<0.5),"-",IFERROR('Tabel 2 S'!G41/'Tabel 1 S'!E41*100,"-")) -> 8.148194349 | I41: =IF(OR('Tabel 1 S'!G41<5,'Tabel 2 S'!I41<0.5),"-",IFERROR('Tabel 2 S'!I41/'Tabel 1 S'!G41*100,"-")) -> 6.50887574 | J41: =IF(OR('Tabel 1 S'!G41<5,'Tabel 2 S'!J41<0.5),"-",IFERROR('Tabel 2 S'!J41/'Tabel 1 S'!G41*100,"-")) -> 5.982483613
A42: Bac. Samf. | C42: =IF(OR('Tabel 1 S'!C42<5,'Tabel 2 S'!C42<0.5),"-",IFERROR('Tabel 2 S'!C42/'Tabel 1 S'!C42*100,"-")) -> 11.62790698 | D42: =IF(OR('Tabel 1 S'!C42<5,'Tabel 2 S'!D42<0.5),"-",IFERROR('Tabel 2 S'!D42/'Tabel 1 S'!C42*100,"-")) -> 5.867259243 | F42: =IF(OR('Tabel 1 S'!E42<5,'Tabel 2 S'!F42<0.5),"-",IFERROR('Tabel 2 S'!F42/'Tabel 1 S'!E42*100,"-")) -> 4.255319149 | G42: =IF(OR('Tabel 1 S'!E42<5,'Tabel 2 S'!G42<0.5),"-",IFERROR('Tabel 2 S'!G42/'Tabel 1 S'!E42*100,"-")) -> 4.129780201 | I42: =IF(OR('Tabel 1 S'!G42<5,'Tabel 2 S'!I42<0.5),"-",IFERROR('Tabel 2 S'!I42/'Tabel 1 S'!G42*100,"-")) -> 7.777777778 | J42: =IF(OR('Tabel 1 S'!G42<5,'Tabel 2 S'!J42<0.5),"-",IFERROR('Tabel 2 S'!J42/'Tabel 1 S'!G42*100,"-")) -> 4.959909076
A43: Bac. Hum. | C43: =IF(OR('Tabel 1 S'!C43<5,'Tabel 2 S'!C43<0.5),"-",IFERROR('Tabel 2 S'!C43/'Tabel 1 S'!C43*100,"-")) -> 6.315789474 | D43: =IF(OR('Tabel 1 S'!C43<5,'Tabel 2 S'!D43<0.5),"-",IFERROR('Tabel 2 S'!D43/'Tabel 1 S'!C43*100,"-")) -> 4.933902773 | F43: =IF(OR('Tabel 1 S'!E43<5,'Tabel 2 S'!F43<0.5),"-",IFERROR('Tabel 2 S'!F43/'Tabel 1 S'!E43*100,"-")) -> 10.91954023 | G43: =IF(OR('Tabel 1 S'!E43<5,'Tabel 2 S'!G43<0.5),"-",IFERROR('Tabel 2 S'!G43/'Tabel 1 S'!E43*100,"-")) -> 10.09089729 | I43: =IF(OR('Tabel 1 S'!G43<5,'Tabel 2 S'!I43<0.5),"-",IFERROR('Tabel 2 S'!I43/'Tabel 1 S'!G43*100,"-")) -> 9.293680297 | J43: =IF(OR('Tabel 1 S'!G43<5,'Tabel 2 S'!J43<0.5),"-",IFERROR('Tabel 2 S'!J43/'Tabel 1 S'!G43*100,"-")) -> 8.269653876
A44: Bac. Nat. | C44: =IF(OR('Tabel 1 S'!C44<5,'Tabel 2 S'!C44<0.5),"-",IFERROR('Tabel 2 S'!C44/'Tabel 1 S'!C44*100,"-")) -> 4.672897196 | D44: =IF(OR('Tabel 1 S'!C44<5,'Tabel 2 S'!D44<0.5),"-",IFERROR('Tabel 2 S'!D44/'Tabel 1 S'!C44*100,"-")) -> 4.287302299 | F44: =IF(OR('Tabel 1 S'!E44<5,'Tabel 2 S'!F44<0.5),"-",IFERROR('Tabel 2 S'!F44/'Tabel 1 S'!E44*100,"-")) -> 5.454545455 | G44: =IF(OR('Tabel 1 S'!E44<5,'Tabel 2 S'!G44<0.5),"-",IFERROR('Tabel 2 S'!G44/'Tabel 1 S'!E44*100,"-")) -> 5.285689175 | I44: =IF(OR('Tabel 1 S'!G44<5,'Tabel 2 S'!I44<0.5),"-",IFERROR('Tabel 2 S'!I44/'Tabel 1 S'!G44*100,"-")) -> 4.938271605 | J44: =IF(OR('Tabel 1 S'!G44<5,'Tabel 2 S'!J44<0.5),"-",IFERROR('Tabel 2 S'!J44/'Tabel 1 S'!G44*100,"-")) -> 4.626260806
A45: Andre | C45: =IF(OR('Tabel 1 S'!C45<5,'Tabel 2 S'!C45<0.5),"-",IFERROR('Tabel 2 S'!C45/'Tabel 1 S'!C45*100,"-")) -> 4.129464286 | D45: =IF(OR('Tabel 1 S'!C45<5,'Tabel 2 S'!D45<0.5),"-",IFERROR('Tabel 2 S'!D45/'Tabel 1 S'!C45*100,"-")) -> 3.14794375 | F45: =IF(OR('Tabel 1 S'!E45<5,'Tabel 2 S'!F45<0.5),"-",IFERROR('Tabel 2 S'!F45/'Tabel 1 S'!E45*100,"-")) -> 8.288043478 | G45: =IF(OR('Tabel 1 S'!E45<5,'Tabel 2 S'!G45<0.5),"-",IFERROR('Tabel 2 S'!G45/'Tabel 1 S'!E45*100,"-")) -> 7.271941159 | I45: =IF(OR('Tabel 1 S'!G45<5,'Tabel 2 S'!I45<0.5),"-",IFERROR('Tabel 2 S'!I45/'Tabel 1 S'!G45*100,"-")) -> 6.004901961 | J45: =IF(OR('Tabel 1 S'!G45<5,'Tabel 2 S'!J45<0.5),"-",IFERROR('Tabel 2 S'!J45/'Tabel 1 S'!G45*100,"-")) -> 5.007785719
A47: Total | C47: =IF(OR('Tabel 1 S'!C47<5,'Tabel 2 S'!C47<0.5),"-",IFERROR('Tabel 2 S'!C47/'Tabel 1 S'!C47*100,"-")) -> 3.464057445 | D47: =IF(OR('Tabel 1 S'!C47<5,'Tabel 2 S'!D47<0.5),"-",IFERROR('Tabel 2 S'!D47/'Tabel 1 S'!C47*100,"-")) -> 2.941680948 | F47: =IF(OR('Tabel 1 S'!E47<5,'Tabel 2 S'!F47<0.5),"-",IFERROR('Tabel 2 S'!F47/'Tabel 1 S'!E47*100,"-")) -> 5.351741255 | G47: =IF(OR('Tabel 1 S'!E47<5,'Tabel 2 S'!G47<0.5),"-",IFERROR('Tabel 2 S'!G47/'Tabel 1 S'!E47*100,"-")) -> 4.593537154 | I47: =IF(OR('Tabel 1 S'!G47<5,'Tabel 2 S'!I47<0.5),"-",IFERROR('Tabel 2 S'!I47/'Tabel 1 S'!G47*100,"-")) -> 4.416021278 | J47: =IF(OR('Tabel 1 S'!G47<5,'Tabel 2 S'!J47<0.5),"-",IFERROR('Tabel 2 S'!J47/'Tabel 1 S'!G47*100,"-")) -> 3.77471631
A49: Ingeniører i alt | C49: =IF(OR('Tabel 1 S'!C49<5,'Tabel 2 S'!C49<0.5),"-",IFERROR('Tabel 2 S'!C49/'Tabel 1 S'!C49*100,"-")) -> 1.889222842 | D49: =IF(OR('Tabel 1 S'!C49<5,'Tabel 2 S'!D49<0.5),"-",IFERROR('Tabel 2 S'!D49/'Tabel 1 S'!C49*100,"-")) -> 1.603699133 | F49: =IF(OR('Tabel 1 S'!E49<5,'Tabel 2 S'!F49<0.5),"-",IFERROR('Tabel 2 S'!F49/'Tabel 1 S'!E49*100,"-")) -> 3.08056872 | G49: =IF(OR('Tabel 1 S'!E49<5,'Tabel 2 S'!G49<0.5),"-",IFERROR('Tabel 2 S'!G49/'Tabel 1 S'!E49*100,"-")) -> 2.58437155 | I49: =IF(OR('Tabel 1 S'!G49<5,'Tabel 2 S'!I49<0.5),"-",IFERROR('Tabel 2 S'!I49/'Tabel 1 S'!G49*100,"-")) -> 2.143821742 | J49: =IF(OR('Tabel 1 S'!G49<5,'Tabel 2 S'!J49<0.5),"-",IFERROR('Tabel 2 S'!J49/'Tabel 1 S'!G49*100,"-")) -> 1.813275649
A50: Magistre i alt | C50: =IF(OR('Tabel 1 S'!C50<5,'Tabel 2 S'!C50<0.5),"-",IFERROR('Tabel 2 S'!C50/'Tabel 1 S'!C50*100,"-")) -> 4.953219593 | D50: =IF(OR('Tabel 1 S'!C50<5,'Tabel 2 S'!D50<0.5),"-",IFERROR('Tabel 2 S'!D50/'Tabel 1 S'!C50*100,"-")) -> 4.258072431 | F50: =IF(OR('Tabel 1 S'!E50<5,'Tabel 2 S'!F50<0.5),"-",IFERROR('Tabel 2 S'!F50/'Tabel 1 S'!E50*100,"-")) -> 7.056579784 | G50: =IF(OR('Tabel 1 S'!E50<5,'Tabel 2 S'!G50<0.5),"-",IFERROR('Tabel 2 S'!G50/'Tabel 1 S'!E50*100,"-")) -> 6.250141505 | I50: =IF(OR('Tabel 1 S'!G50<5,'Tabel 2 S'!I50<0.5),"-",IFERROR('Tabel 2 S'!I50/'Tabel 1 S'!G50*100,"-")) -> 6.28652025 | J50: =IF(OR('Tabel 1 S'!G50<5,'Tabel 2 S'!J50<0.5),"-",IFERROR('Tabel 2 S'!J50/'Tabel 1 S'!G50*100,"-")) -> 5.520826674
A51: DJØF'ere i alt | C51: =IF(OR('Tabel 1 S'!C51<5,'Tabel 2 S'!C51<0.5),"-",IFERROR('Tabel 2 S'!C51/'Tabel 1 S'!C51*100,"-")) -> 3.871439007 | D51: =IF(OR('Tabel 1 S'!C51<5,'Tabel 2 S'!D51<0.5),"-",IFERROR('Tabel 2 S'!D51/'Tabel 1 S'!C51*100,"-")) -> 3.277138819 | F51: =IF(OR('Tabel 1 S'!E51<5,'Tabel 2 S'!F51<0.5),"-",IFERROR('Tabel 2 S'!F51/'Tabel 1 S'!E51*100,"-")) -> 5.082669933 | G51: =IF(OR('Tabel 1 S'!E51<5,'Tabel 2 S'!G51<0.5),"-",IFERROR('Tabel 2 S'!G51/'Tabel 1 S'!E51*100,"-")) -> 4.397811021 | I51: =IF(OR('Tabel 1 S'!G51<5,'Tabel 2 S'!I51<0.5),"-",IFERROR('Tabel 2 S'!I51/'Tabel 1 S'!G51*100,"-")) -> 4.530313125 | J51: =IF(OR('Tabel 1 S'!G51<5,'Tabel 2 S'!J51<0.5),"-",IFERROR('Tabel 2 S'!J51/'Tabel 1 S'!G51*100,"-")) -> 3.886751646
A55: ='Tabel 2 S'!A55 -> Greve
C57: Mænd | F57: Kvinder | I57: I alt
C58: Ledigheds- berørte | D58: Gns. brutto- ledighed | F58: Ledigheds- berørte | G58: Gns. brutto- ledighed | I58: Ledigheds- berørte | J58: Gns. brutto- ledighed
A61: Civ. ing. | C61: =IF(OR('Tabel 1 S'!C61<5,'Tabel 2 S'!C61<0.5),"-",IFERROR('Tabel 2 S'!C61/'Tabel 1 S'!C61*100,"-")) -> 2.362204724 | D61: =IF(OR('Tabel 1 S'!C61<5,'Tabel 2 S'!D61<0.5),"-",IFERROR('Tabel 2 S'!D61/'Tabel 1 S'!C61*100,"-")) -> 1.922216531 | F61: =IF(OR('Tabel 1 S'!E61<5,'Tabel 2 S'!F61<0.5),"-",IFERROR('Tabel 2 S'!F61/'Tabel 1 S'!E61*100,"-")) -> - | G61: =IF(OR('Tabel 1 S'!E61<5,'Tabel 2 S'!G61<0.5),"-",IFERROR('Tabel 2 S'!G61/'Tabel 1 S'!E61*100,"-")) -> - | I61: =IF(OR('Tabel 1 S'!G61<5,'Tabel 2 S'!I61<0.5),"-",IFERROR('Tabel 2 S'!I61/'Tabel 1 S'!G61*100,"-")) -> 1.694915254 | J61: =IF(OR('Tabel 1 S'!G61<5,'Tabel 2 S'!J61<0.5),"-",IFERROR('Tabel 2 S'!J61/'Tabel 1 S'!G61*100,"-")) -> 1.379217511
A62: Diplom ing. | C62: =IF(OR('Tabel 1 S'!C62<5,'Tabel 2 S'!C62<0.5),"-",IFERROR('Tabel 2 S'!C62/'Tabel 1 S'!C62*100,"-")) -> 1.766784452 | D62: =IF(OR('Tabel 1 S'!C62<5,'Tabel 2 S'!D62<0.5),"-",IFERROR('Tabel 2 S'!D62/'Tabel 1 S'!C62*100,"-")) -> 1.538126201 | F62: =IF(OR('Tabel 1 S'!E62<5,'Tabel 2 S'!F62<0.5),"-",IFERROR('Tabel 2 S'!F62/'Tabel 1 S'!E62*100,"-")) -> 5.357142857 | G62: =IF(OR('Tabel 1 S'!E62<5,'Tabel 2 S'!G62<0.5),"-",IFERROR('Tabel 2 S'!G62/'Tabel 1 S'!E62*100,"-")) -> 5.108882573 | I62: =IF(OR('Tabel 1 S'!G62<5,'Tabel 2 S'!I62<0.5),"-",IFERROR('Tabel 2 S'!I62/'Tabel 1 S'!G62*100,"-")) -> 2.359882006 | J62: =IF(OR('Tabel 1 S'!G62<5,'Tabel 2 S'!J62<0.5),"-",IFERROR('Tabel 2 S'!J62/'Tabel 1 S'!G62*100,"-")) -> 2.127985661
A63: Cand. Scient. Tek. | C63: =IF(OR('Tabel 1 S'!C63<5,'Tabel 2 S'!C63<0.5),"-",IFERROR('Tabel 2 S'!C63/'Tabel 1 S'!C63*100,"-")) -> - | D63: =IF(OR('Tabel 1 S'!C63<5,'Tabel 2 S'!D63<0.5),"-",IFERROR('Tabel 2 S'!D63/'Tabel 1 S'!C63*100,"-")) -> - | F63: =IF(OR('Tabel 1 S'!E63<5,'Tabel 2 S'!F63<0.5),"-",IFERROR('Tabel 2 S'!F63/'Tabel 1 S'!E63*100,"-")) -> 15 | G63: =IF(OR('Tabel 1 S'!E63<5,'Tabel 2 S'!G63<0.5),"-",IFERROR('Tabel 2 S'!G63/'Tabel 1 S'!E63*100,"-")) -> 13.15100106 | I63: =IF(OR('Tabel 1 S'!G63<5,'Tabel 2 S'!I63<0.5),"-",IFERROR('Tabel 2 S'!I63/'Tabel 1 S'!G63*100,"-")) -> 6.976744186 | J63: =IF(OR('Tabel 1 S'!G63<5,'Tabel 2 S'!J63<0.5),"-",IFERROR('Tabel 2 S'!J63/'Tabel 1 S'!G63*100,"-")) -> 6.116744679
A64: MA. Hum. | C64: =IF(OR('Tabel 1 S'!C64<5,'Tabel 2 S'!C64<0.5),"-",IFERROR('Tabel 2 S'!C64/'Tabel 1 S'!C64*100,"-")) -> 14.81481481 | D64: =IF(OR('Tabel 1 S'!C64<5,'Tabel 2 S'!D64<0.5),"-",IFERROR('Tabel 2 S'!D64/'Tabel 1 S'!C64*100,"-")) -> 12.93166178 | F64: =IF(OR('Tabel 1 S'!E64<5,'Tabel 2 S'!F64<0.5),"-",IFERROR('Tabel 2 S'!F64/'Tabel 1 S'!E64*100,"-")) -> 4.95049505 | G64: =IF(OR('Tabel 1 S'!E64<5,'Tabel 2 S'!G64<0.5),"-",IFERROR('Tabel 2 S'!G64/'Tabel 1 S'!E64*100,"-")) -> 4.172705676 | I64: =IF(OR('Tabel 1 S'!G64<5,'Tabel 2 S'!I64<0.5),"-",IFERROR('Tabel 2 S'!I64/'Tabel 1 S'!G64*100,"-")) -> 7.03125 | J64: =IF(OR('Tabel 1 S'!G64<5,'Tabel 2 S'!J64<0.5),"-",IFERROR('Tabel 2 S'!J64/'Tabel 1 S'!G64*100,"-")) -> 6.020297979
A65: MA. Nat. | C65: =IF(OR('Tabel 1 S'!C65<5,'Tabel 2 S'!C65<0.5),"-",IFERROR('Tabel 2 S'!C65/'Tabel 1 S'!C65*100,"-")) -> - | D65: =IF(OR('Tabel 1 S'!C65<5,'Tabel 2 S'!D65<0.5),"-",IFERROR('Tabel 2 S'!D65/'Tabel 1 S'!C65*100,"-")) -> - | F65: =IF(OR('Tabel 1 S'!E65<5,'Tabel 2 S'!F65<0.5),"-",IFERROR('Tabel 2 S'!F65/'Tabel 1 S'!E65*100,"-")) -> 2.325581395 | G65: =IF(OR('Tabel 1 S'!E65<5,'Tabel 2 S'!G65<0.5),"-",IFERROR('Tabel 2 S'!G65/'Tabel 1 S'!E65*100,"-")) -> 2.110472731 | I65: =IF(OR('Tabel 1 S'!G65<5,'Tabel 2 S'!I65<0.5),"-",IFERROR('Tabel 2 S'!I65/'Tabel 1 S'!G65*100,"-")) -> 1.136363636 | J65: =IF(OR('Tabel 1 S'!G65<5,'Tabel 2 S'!J65<0.5),"-",IFERROR('Tabel 2 S'!J65/'Tabel 1 S'!G65*100,"-")) -> 1.031253721
A66: MA. Ph.d. | C66: =IF(OR('Tabel 1 S'!C66<5,'Tabel 2 S'!C66<0.5),"-",IFERROR('Tabel 2 S'!C66/'Tabel 1 S'!C66*100,"-")) -> - | D66: =IF(OR('Tabel 1 S'!C66<5,'Tabel 2 S'!D66<0.5),"-",IFERROR('Tabel 2 S'!D66/'Tabel 1 S'!C66*100,"-")) -> - | F66: =IF(OR('Tabel 1 S'!E66<5,'Tabel 2 S'!F66<0.5),"-",IFERROR('Tabel 2 S'!F66/'Tabel 1 S'!E66*100,"-")) -> - | G66: =IF(OR('Tabel 1 S'!E66<5,'Tabel 2 S'!G66<0.5),"-",IFERROR('Tabel 2 S'!G66/'Tabel 1 S'!E66*100,"-")) -> - | I66: =IF(OR('Tabel 1 S'!G66<5,'Tabel 2 S'!I66<0.5),"-",IFERROR('Tabel 2 S'!I66/'Tabel 1 S'!G66*100,"-")) -> 14.28571429 | J66: =IF(OR('Tabel 1 S'!G66<5,'Tabel 2 S'!J66<0.5),"-",IFERROR('Tabel 2 S'!J66/'Tabel 1 S'!G66*100,"-")) -> 14.28304123
A67: MA. Samf. | C67: =IF(OR('Tabel 1 S'!C67<5,'Tabel 2 S'!C67<0.5),"-",IFERROR('Tabel 2 S'!C67/'Tabel 1 S'!C67*100,"-")) -> - | D67: =IF(OR('Tabel 1 S'!C67<5,'Tabel 2 S'!D67<0.5),"-",IFERROR('Tabel 2 S'!D67/'Tabel 1 S'!C67*100,"-")) -> - | F67: =IF(OR('Tabel 1 S'!E67<5,'Tabel 2 S'!F67<0.5),"-",IFERROR('Tabel 2 S'!F67/'Tabel 1 S'!E67*100,"-")) -> 22.22222222 | G67: =IF(OR('Tabel 1 S'!E67<5,'Tabel 2 S'!G67<0.5),"-",IFERROR('Tabel 2 S'!G67/'Tabel 1 S'!E67*100,"-")) -> 22.21806413 | I67: =IF(OR('Tabel 1 S'!G67<5,'Tabel 2 S'!I67<0.5),"-",IFERROR('Tabel 2 S'!I67/'Tabel 1 S'!G67*100,"-")) -> 30.76923077 | J67: =IF(OR('Tabel 1 S'!G67<5,'Tabel 2 S'!J67<0.5),"-",IFERROR('Tabel 2 S'!J67/'Tabel 1 S'!G67*100,"-")) -> 28.63325161
A68: Øvrige Mag. | C68: =IF(OR('Tabel 1 S'!C68<5,'Tabel 2 S'!C68<0.5),"-",IFERROR('Tabel 2 S'!C68/'Tabel 1 S'!C68*100,"-")) -> - | D68: =IF(OR('Tabel 1 S'!C68<5,'Tabel 2 S'!D68<0.5),"-",IFERROR('Tabel 2 S'!D68/'Tabel 1 S'!C68*100,"-")) -> - | F68: =IF(OR('Tabel 1 S'!E68<5,'Tabel 2 S'!F68<0.5),"-",IFERROR('Tabel 2 S'!F68/'Tabel 1 S'!E68*100,"-")) -> 15.38461538 | G68: =IF(OR('Tabel 1 S'!E68<5,'Tabel 2 S'!G68<0.5),"-",IFERROR('Tabel 2 S'!G68/'Tabel 1 S'!E68*100,"-")) -> 13.07879422 | I68: =IF(OR('Tabel 1 S'!G68<5,'Tabel 2 S'!I68<0.5),"-",IFERROR('Tabel 2 S'!I68/'Tabel 1 S'!G68*100,"-")) -> 13.33333333 | J68: =IF(OR('Tabel 1 S'!G68<5,'Tabel 2 S'!J68<0.5),"-",IFERROR('Tabel 2 S'!J68/'Tabel 1 S'!G68*100,"-")) -> 11.33495499
A69: Agronom | C69: =IF(OR('Tabel 1 S'!C69<5,'Tabel 2 S'!C69<0.5),"-",IFERROR('Tabel 2 S'!C69/'Tabel 1 S'!C69*100,"-")) -> - | D69: =IF(OR('Tabel 1 S'!C69<5,'Tabel 2 S'!D69<0.5),"-",IFERROR('Tabel 2 S'!D69/'Tabel 1 S'!C69*100,"-")) -> - | F69: =IF(OR('Tabel 1 S'!E69<5,'Tabel 2 S'!F69<0.5),"-",IFERROR('Tabel 2 S'!F69/'Tabel 1 S'!E69*100,"-")) -> - | G69: =IF(OR('Tabel 1 S'!E69<5,'Tabel 2 S'!G69<0.5),"-",IFERROR('Tabel 2 S'!G69/'Tabel 1 S'!E69*100,"-")) -> - | I69: =IF(OR('Tabel 1 S'!G69<5,'Tabel 2 S'!I69<0.5),"-",IFERROR('Tabel 2 S'!I69/'Tabel 1 S'!G69*100,"-")) -> - | J69: =IF(OR('Tabel 1 S'!G69<5,'Tabel 2 S'!J69<0.5),"-",IFERROR('Tabel 2 S'!J69/'Tabel 1 S'!G69*100,"-")) -> -
A70: Landsk. Arkt. | C70: =IF(OR('Tabel 1 S'!C70<5,'Tabel 2 S'!C70<0.5),"-",IFERROR('Tabel 2 S'!C70/'Tabel 1 S'!C70*100,"-")) -> - | D70: =IF(OR('Tabel 1 S'!C70<5,'Tabel 2 S'!D70<0.5),"-",IFERROR('Tabel 2 S'!D70/'Tabel 1 S'!C70*100,"-")) -> - | F70: =IF(OR('Tabel 1 S'!E70<5,'Tabel 2 S'!F70<0.5),"-",IFERROR('Tabel 2 S'!F70/'Tabel 1 S'!E70*100,"-")) -> - | G70: =IF(OR('Tabel 1 S'!E70<5,'Tabel 2 S'!G70<0.5),"-",IFERROR('Tabel 2 S'!G70/'Tabel 1 S'!E70*100,"-")) -> - | I70: =IF(OR('Tabel 1 S'!G70<5,'Tabel 2 S'!I70<0.5),"-",IFERROR('Tabel 2 S'!I70/'Tabel 1 S'!G70*100,"-")) -> - | J70: =IF(OR('Tabel 1 S'!G70<5,'Tabel 2 S'!J70<0.5),"-",IFERROR('Tabel 2 S'!J70/'Tabel 1 S'!G70*100,"-")) -> -
A71: Hortonom | C71: =IF(OR('Tabel 1 S'!C71<5,'Tabel 2 S'!C71<0.5),"-",IFERROR('Tabel 2 S'!C71/'Tabel 1 S'!C71*100,"-")) -> - | D71: =IF(OR('Tabel 1 S'!C71<5,'Tabel 2 S'!D71<0.5),"-",IFERROR('Tabel 2 S'!D71/'Tabel 1 S'!C71*100,"-")) -> - | F71: =IF(OR('Tabel 1 S'!E71<5,'Tabel 2 S'!F71<0.5),"-",IFERROR('Tabel 2 S'!F71/'Tabel 1 S'!E71*100,"-")) -> - | G71: =IF(OR('Tabel 1 S'!E71<5,'Tabel 2 S'!G71<0.5),"-",IFERROR('Tabel 2 S'!G71/'Tabel 1 S'!E71*100,"-")) -> - | I71: =IF(OR('Tabel 1 S'!G71<5,'Tabel 2 S'!I71<0.5),"-",IFERROR('Tabel 2 S'!I71/'Tabel 1 S'!G71*100,"-")) -> - | J71: =IF(OR('Tabel 1 S'!G71<5,'Tabel 2 S'!J71<0.5),"-",IFERROR('Tabel 2 S'!J71/'Tabel 1 S'!G71*100,"-")) -> -
A72: Forstkand. | C72: =IF(OR('Tabel 1 S'!C72<5,'Tabel 2 S'!C72<0.5),"-",IFERROR('Tabel 2 S'!C72/'Tabel 1 S'!C72*100,"-")) -> - | D72: =IF(OR('Tabel 1 S'!C72<5,'Tabel 2 S'!D72<0.5),"-",IFERROR('Tabel 2 S'!D72/'Tabel 1 S'!C72*100,"-")) -> - | F72: =IF(OR('Tabel 1 S'!E72<5,'Tabel 2 S'!F72<0.5),"-",IFERROR('Tabel 2 S'!F72/'Tabel 1 S'!E72*100,"-")) -> - | G72: =IF(OR('Tabel 1 S'!E72<5,'Tabel 2 S'!G72<0.5),"-",IFERROR('Tabel 2 S'!G72/'Tabel 1 S'!E72*100,"-")) -> - | I72: =IF(OR('Tabel 1 S'!G72<5,'Tabel 2 S'!I72<0.5),"-",IFERROR('Tabel 2 S'!I72/'Tabel 1 S'!G72*100,"-")) -> - | J72: =IF(OR('Tabel 1 S'!G72<5,'Tabel 2 S'!J72<0.5),"-",IFERROR('Tabel 2 S'!J72/'Tabel 1 S'!G72*100,"-")) -> -
A73: Jordbrugsakad. | C73: =IF(OR('Tabel 1 S'!C73<5,'Tabel 2 S'!C73<0.5),"-",IFERROR('Tabel 2 S'!C73/'Tabel 1 S'!C73*100,"-")) -> - | D73: =IF(OR('Tabel 1 S'!C73<5,'Tabel 2 S'!D73<0.5),"-",IFERROR('Tabel 2 S'!D73/'Tabel 1 S'!C73*100,"-")) -> - | F73: =IF(OR('Tabel 1 S'!E73<5,'Tabel 2 S'!F73<0.5),"-",IFERROR('Tabel 2 S'!F73/'Tabel 1 S'!E73*100,"-")) -> - | G73: =IF(OR('Tabel 1 S'!E73<5,'Tabel 2 S'!G73<0.5),"-",IFERROR('Tabel 2 S'!G73/'Tabel 1 S'!E73*100,"-")) -> - | I73: =IF(OR('Tabel 1 S'!G73<5,'Tabel 2 S'!I73<0.5),"-",IFERROR('Tabel 2 S'!I73/'Tabel 1 S'!G73*100,"-")) -> - | J73: =IF(OR('Tabel 1 S'!G73<5,'Tabel 2 S'!J73<0.5),"-",IFERROR('Tabel 2 S'!J73/'Tabel 1 S'!G73*100,"-")) -> -
A74: Mejeriing. | C74: =IF(OR('Tabel 1 S'!C74<5,'Tabel 2 S'!C74<0.5),"-",IFERROR('Tabel 2 S'!C74/'Tabel 1 S'!C74*100,"-")) -> - | D74: =IF(OR('Tabel 1 S'!C74<5,'Tabel 2 S'!D74<0.5),"-",IFERROR('Tabel 2 S'!D74/'Tabel 1 S'!C74*100,"-")) -> - | F74: =IF(OR('Tabel 1 S'!E74<5,'Tabel 2 S'!F74<0.5),"-",IFERROR('Tabel 2 S'!F74/'Tabel 1 S'!E74*100,"-")) -> - | G74: =IF(OR('Tabel 1 S'!E74<5,'Tabel 2 S'!G74<0.5),"-",IFERROR('Tabel 2 S'!G74/'Tabel 1 S'!E74*100,"-")) -> - | I74: =IF(OR('Tabel 1 S'!G74<5,'Tabel 2 S'!I74<0.5),"-",IFERROR('Tabel 2 S'!I74/'Tabel 1 S'!G74*100,"-")) -> - | J74: =IF(OR('Tabel 1 S'!G74<5,'Tabel 2 S'!J74<0.5),"-",IFERROR('Tabel 2 S'!J74/'Tabel 1 S'!G74*100,"-")) -> -
A75: Levn.m.kand. | C75: =IF(OR('Tabel 1 S'!C75<5,'Tabel 2 S'!C75<0.5),"-",IFERROR('Tabel 2 S'!C75/'Tabel 1 S'!C75*100,"-")) -> - | D75: =IF(OR('Tabel 1 S'!C75<5,'Tabel 2 S'!D75<0.5),"-",IFERROR('Tabel 2 S'!D75/'Tabel 1 S'!C75*100,"-")) -> - | F75: =IF(OR('Tabel 1 S'!E75<5,'Tabel 2 S'!F75<0.5),"-",IFERROR('Tabel 2 S'!F75/'Tabel 1 S'!E75*100,"-")) -> - | G75: =IF(OR('Tabel 1 S'!E75<5,'Tabel 2 S'!G75<0.5),"-",IFERROR('Tabel 2 S'!G75/'Tabel 1 S'!E75*100,"-")) -> - | I75: =IF(OR('Tabel 1 S'!G75<5,'Tabel 2 S'!I75<0.5),"-",IFERROR('Tabel 2 S'!I75/'Tabel 1 S'!G75*100,"-")) -> - | J75: =IF(OR('Tabel 1 S'!G75<5,'Tabel 2 S'!J75<0.5),"-",IFERROR('Tabel 2 S'!J75/'Tabel 1 S'!G75*100,"-")) -> -
A76: Dyrlæge | C76: =IF(OR('Tabel 1 S'!C76<5,'Tabel 2 S'!C76<0.5),"-",IFERROR('Tabel 2 S'!C76/'Tabel 1 S'!C76*100,"-")) -> - | D76: =IF(OR('Tabel 1 S'!C76<5,'Tabel 2 S'!D76<0.5),"-",IFERROR('Tabel 2 S'!D76/'Tabel 1 S'!C76*100,"-")) -> - | F76: =IF(OR('Tabel 1 S'!E76<5,'Tabel 2 S'!F76<0.5),"-",IFERROR('Tabel 2 S'!F76/'Tabel 1 S'!E76*100,"-")) -> - | G76: =IF(OR('Tabel 1 S'!E76<5,'Tabel 2 S'!G76<0.5),"-",IFERROR('Tabel 2 S'!G76/'Tabel 1 S'!E76*100,"-")) -> - | I76: =IF(OR('Tabel 1 S'!G76<5,'Tabel 2 S'!I76<0.5),"-",IFERROR('Tabel 2 S'!I76/'Tabel 1 S'!G76*100,"-")) -> 7.142857143 | J76: =IF(OR('Tabel 1 S'!G76<5,'Tabel 2 S'!J76<0.5),"-",IFERROR('Tabel 2 S'!J76/'Tabel 1 S'!G76*100,"-")) -> -
A77: Farmaceut | C77: =IF(OR('Tabel 1 S'!C77<5,'Tabel 2 S'!C77<0.5),"-",IFERROR('Tabel 2 S'!C77/'Tabel 1 S'!C77*100,"-")) -> - | D77: =IF(OR('Tabel 1 S'!C77<5,'Tabel 2 S'!D77<0.5),"-",IFERROR('Tabel 2 S'!D77/'Tabel 1 S'!C77*100,"-")) -> - | F77: =IF(OR('Tabel 1 S'!E77<5,'Tabel 2 S'!F77<0.5),"-",IFERROR('Tabel 2 S'!F77/'Tabel 1 S'!E77*100,"-")) -> - | G77: =IF(OR('Tabel 1 S'!E77<5,'Tabel 2 S'!G77<0.5),"-",IFERROR('Tabel 2 S'!G77/'Tabel 1 S'!E77*100,"-")) -> - | I77: =IF(OR('Tabel 1 S'!G77<5,'Tabel 2 S'!I77<0.5),"-",IFERROR('Tabel 2 S'!I77/'Tabel 1 S'!G77*100,"-")) -> - | J77: =IF(OR('Tabel 1 S'!G77<5,'Tabel 2 S'!J77<0.5),"-",IFERROR('Tabel 2 S'!J77/'Tabel 1 S'!G77*100,"-")) -> -
A78: Læge | C78: =IF(OR('Tabel 1 S'!C78<5,'Tabel 2 S'!C78<0.5),"-",IFERROR('Tabel 2 S'!C78/'Tabel 1 S'!C78*100,"-")) -> 8.333333333 | D78: =IF(OR('Tabel 1 S'!C78<5,'Tabel 2 S'!D78<0.5),"-",IFERROR('Tabel 2 S'!D78/'Tabel 1 S'!C78*100,"-")) -> 8.331774049 | F78: =IF(OR('Tabel 1 S'!E78<5,'Tabel 2 S'!F78<0.5),"-",IFERROR('Tabel 2 S'!F78/'Tabel 1 S'!E78*100,"-")) -> 5.714285714 | G78: =IF(OR('Tabel 1 S'!E78<5,'Tabel 2 S'!G78<0.5),"-",IFERROR('Tabel 2 S'!G78/'Tabel 1 S'!E78*100,"-")) -> 4.790120377 | I78: =IF(OR('Tabel 1 S'!G78<5,'Tabel 2 S'!I78<0.5),"-",IFERROR('Tabel 2 S'!I78/'Tabel 1 S'!G78*100,"-")) -> 6.382978723 | J78: =IF(OR('Tabel 1 S'!G78<5,'Tabel 2 S'!J78<0.5),"-",IFERROR('Tabel 2 S'!J78/'Tabel 1 S'!G78*100,"-")) -> 5.694372378
A79: Tandlæge | C79: =IF(OR('Tabel 1 S'!C79<5,'Tabel 2 S'!C79<0.5),"-",IFERROR('Tabel 2 S'!C79/'Tabel 1 S'!C79*100,"-")) -> - | D79: =IF(OR('Tabel 1 S'!C79<5,'Tabel 2 S'!D79<0.5),"-",IFERROR('Tabel 2 S'!D79/'Tabel 1 S'!C79*100,"-")) -> - | F79: =IF(OR('Tabel 1 S'!E79<5,'Tabel 2 S'!F79<0.5),"-",IFERROR('Tabel 2 S'!F79/'Tabel 1 S'!E79*100,"-")) -> 5.882352941 | G79: =IF(OR('Tabel 1 S'!E79<5,'Tabel 2 S'!G79<0.5),"-",IFERROR('Tabel 2 S'!G79/'Tabel 1 S'!E79*100,"-")) -> 5.88125227 | I79: =IF(OR('Tabel 1 S'!G79<5,'Tabel 2 S'!I79<0.5),"-",IFERROR('Tabel 2 S'!I79/'Tabel 1 S'!G79*100,"-")) -> 5.263157895 | J79: =IF(OR('Tabel 1 S'!G79<5,'Tabel 2 S'!J79<0.5),"-",IFERROR('Tabel 2 S'!J79/'Tabel 1 S'!G79*100,"-")) -> 5.262173084
A80: Arkitekt | C80: =IF(OR('Tabel 1 S'!C80<5,'Tabel 2 S'!C80<0.5),"-",IFERROR('Tabel 2 S'!C80/'Tabel 1 S'!C80*100,"-")) -> - | D80: =IF(OR('Tabel 1 S'!C80<5,'Tabel 2 S'!D80<0.5),"-",IFERROR('Tabel 2 S'!D80/'Tabel 1 S'!C80*100,"-")) -> - | F80: =IF(OR('Tabel 1 S'!E80<5,'Tabel 2 S'!F80<0.5),"-",IFERROR('Tabel 2 S'!F80/'Tabel 1 S'!E80*100,"-")) -> 25 | G80: =IF(OR('Tabel 1 S'!E80<5,'Tabel 2 S'!G80<0.5),"-",IFERROR('Tabel 2 S'!G80/'Tabel 1 S'!E80*100,"-")) -> 24.99532215 | I80: =IF(OR('Tabel 1 S'!G80<5,'Tabel 2 S'!I80<0.5),"-",IFERROR('Tabel 2 S'!I80/'Tabel 1 S'!G80*100,"-")) -> 14.28571429 | J80: =IF(OR('Tabel 1 S'!G80<5,'Tabel 2 S'!J80<0.5),"-",IFERROR('Tabel 2 S'!J80/'Tabel 1 S'!G80*100,"-")) -> 14.28304123
A81: Landinspek. | C81: =IF(OR('Tabel 1 S'!C81<5,'Tabel 2 S'!C81<0.5),"-",IFERROR('Tabel 2 S'!C81/'Tabel 1 S'!C81*100,"-")) -> - | D81: =IF(OR('Tabel 1 S'!C81<5,'Tabel 2 S'!D81<0.5),"-",IFERROR('Tabel 2 S'!D81/'Tabel 1 S'!C81*100,"-")) -> - | F81: =IF(OR('Tabel 1 S'!E81<5,'Tabel 2 S'!F81<0.5),"-",IFERROR('Tabel 2 S'!F81/'Tabel 1 S'!E81*100,"-")) -> - | G81: =IF(OR('Tabel 1 S'!E81<5,'Tabel 2 S'!G81<0.5),"-",IFERROR('Tabel 2 S'!G81/'Tabel 1 S'!E81*100,"-")) -> - | I81: =IF(OR('Tabel 1 S'!G81<5,'Tabel 2 S'!I81<0.5),"-",IFERROR('Tabel 2 S'!I81/'Tabel 1 S'!G81*100,"-")) -> - | J81: =IF(OR('Tabel 1 S'!G81<5,'Tabel 2 S'!J81<0.5),"-",IFERROR('Tabel 2 S'!J81/'Tabel 1 S'!G81*100,"-")) -> -
A82: Bibliotekar | C82: =IF(OR('Tabel 1 S'!C82<5,'Tabel 2 S'!C82<0.5),"-",IFERROR('Tabel 2 S'!C82/'Tabel 1 S'!C82*100,"-")) -> - | D82: =IF(OR('Tabel 1 S'!C82<5,'Tabel 2 S'!D82<0.5),"-",IFERROR('Tabel 2 S'!D82/'Tabel 1 S'!C82*100,"-")) -> - | F82: =IF(OR('Tabel 1 S'!E82<5,'Tabel 2 S'!F82<0.5),"-",IFERROR('Tabel 2 S'!F82/'Tabel 1 S'!E82*100,"-")) -> 7.692307692 | G82: =IF(OR('Tabel 1 S'!E82<5,'Tabel 2 S'!G82<0.5),"-",IFERROR('Tabel 2 S'!G82/'Tabel 1 S'!E82*100,"-")) -> 7.690868353 | I82: =IF(OR('Tabel 1 S'!G82<5,'Tabel 2 S'!I82<0.5),"-",IFERROR('Tabel 2 S'!I82/'Tabel 1 S'!G82*100,"-")) -> 5.555555556 | J82: =IF(OR('Tabel 1 S'!G82<5,'Tabel 2 S'!J82<0.5),"-",IFERROR('Tabel 2 S'!J82/'Tabel 1 S'!G82*100,"-")) -> 5.554516033
A83: Musikudd. | C83: =IF(OR('Tabel 1 S'!C83<5,'Tabel 2 S'!C83<0.5),"-",IFERROR('Tabel 2 S'!C83/'Tabel 1 S'!C83*100,"-")) -> - | D83: =IF(OR('Tabel 1 S'!C83<5,'Tabel 2 S'!D83<0.5),"-",IFERROR('Tabel 2 S'!D83/'Tabel 1 S'!C83*100,"-")) -> - | F83: =IF(OR('Tabel 1 S'!E83<5,'Tabel 2 S'!F83<0.5),"-",IFERROR('Tabel 2 S'!F83/'Tabel 1 S'!E83*100,"-")) -> - | G83: =IF(OR('Tabel 1 S'!E83<5,'Tabel 2 S'!G83<0.5),"-",IFERROR('Tabel 2 S'!G83/'Tabel 1 S'!E83*100,"-")) -> - | I83: =IF(OR('Tabel 1 S'!G83<5,'Tabel 2 S'!I83<0.5),"-",IFERROR('Tabel 2 S'!I83/'Tabel 1 S'!G83*100,"-")) -> - | J83: =IF(OR('Tabel 1 S'!G83<5,'Tabel 2 S'!J83<0.5),"-",IFERROR('Tabel 2 S'!J83/'Tabel 1 S'!G83*100,"-")) -> -
A84: Teolog | C84: =IF(OR('Tabel 1 S'!C84<5,'Tabel 2 S'!C84<0.5),"-",IFERROR('Tabel 2 S'!C84/'Tabel 1 S'!C84*100,"-")) -> - | D84: =IF(OR('Tabel 1 S'!C84<5,'Tabel 2 S'!D84<0.5),"-",IFERROR('Tabel 2 S'!D84/'Tabel 1 S'!C84*100,"-")) -> - | F84: =IF(OR('Tabel 1 S'!E84<5,'Tabel 2 S'!F84<0.5),"-",IFERROR('Tabel 2 S'!F84/'Tabel 1 S'!E84*100,"-")) -> - | G84: =IF(OR('Tabel 1 S'!E84<5,'Tabel 2 S'!G84<0.5),"-",IFERROR('Tabel 2 S'!G84/'Tabel 1 S'!E84*100,"-")) -> - | I84: =IF(OR('Tabel 1 S'!G84<5,'Tabel 2 S'!I84<0.5),"-",IFERROR('Tabel 2 S'!I84/'Tabel 1 S'!G84*100,"-")) -> - | J84: =IF(OR('Tabel 1 S'!G84<5,'Tabel 2 S'!J84<0.5),"-",IFERROR('Tabel 2 S'!J84/'Tabel 1 S'!G84*100,"-")) -> -
A85: Psykolog | C85: =IF(OR('Tabel 1 S'!C85<5,'Tabel 2 S'!C85<0.5),"-",IFERROR('Tabel 2 S'!C85/'Tabel 1 S'!C85*100,"-")) -> - | D85: =IF(OR('Tabel 1 S'!C85<5,'Tabel 2 S'!D85<0.5),"-",IFERROR('Tabel 2 S'!D85/'Tabel 1 S'!C85*100,"-")) -> - | F85: =IF(OR('Tabel 1 S'!E85<5,'Tabel 2 S'!F85<0.5),"-",IFERROR('Tabel 2 S'!F85/'Tabel 1 S'!E85*100,"-")) -> 5.555555556 | G85: =IF(OR('Tabel 1 S'!E85<5,'Tabel 2 S'!G85<0.5),"-",IFERROR('Tabel 2 S'!G85/'Tabel 1 S'!E85*100,"-")) -> 5.554516033 | I85: =IF(OR('Tabel 1 S'!G85<5,'Tabel 2 S'!I85<0.5),"-",IFERROR('Tabel 2 S'!I85/'Tabel 1 S'!G85*100,"-")) -> 4.545454545 | J85: =IF(OR('Tabel 1 S'!G85<5,'Tabel 2 S'!J85<0.5),"-",IFERROR('Tabel 2 S'!J85/'Tabel 1 S'!G85*100,"-")) -> 4.544604027
A86: Jurist | C86: =IF(OR('Tabel 1 S'!C86<5,'Tabel 2 S'!C86<0.5),"-",IFERROR('Tabel 2 S'!C86/'Tabel 1 S'!C86*100,"-")) -> - | D86: =IF(OR('Tabel 1 S'!C86<5,'Tabel 2 S'!D86<0.5),"-",IFERROR('Tabel 2 S'!D86/'Tabel 1 S'!C86*100,"-")) -> - | F86: =IF(OR('Tabel 1 S'!E86<5,'Tabel 2 S'!F86<0.5),"-",IFERROR('Tabel 2 S'!F86/'Tabel 1 S'!E86*100,"-")) -> - | G86: =IF(OR('Tabel 1 S'!E86<5,'Tabel 2 S'!G86<0.5),"-",IFERROR('Tabel 2 S'!G86/'Tabel 1 S'!E86*100,"-")) -> - | I86: =IF(OR('Tabel 1 S'!G86<5,'Tabel 2 S'!I86<0.5),"-",IFERROR('Tabel 2 S'!I86/'Tabel 1 S'!G86*100,"-")) -> - | J86: =IF(OR('Tabel 1 S'!G86<5,'Tabel 2 S'!J86<0.5),"-",IFERROR('Tabel 2 S'!J86/'Tabel 1 S'!G86*100,"-")) -> -
A87: Økonom | C87: =IF(OR('Tabel 1 S'!C87<5,'Tabel 2 S'!C87<0.5),"-",IFERROR('Tabel 2 S'!C87/'Tabel 1 S'!C87*100,"-")) -> - | D87: =IF(OR('Tabel 1 S'!C87<5,'Tabel 2 S'!D87<0.5),"-",IFERROR('Tabel 2 S'!D87/'Tabel 1 S'!C87*100,"-")) -> - | F87: =IF(OR('Tabel 1 S'!E87<5,'Tabel 2 S'!F87<0.5),"-",IFERROR('Tabel 2 S'!F87/'Tabel 1 S'!E87*100,"-")) -> - | G87: =IF(OR('Tabel 1 S'!E87<5,'Tabel 2 S'!G87<0.5),"-",IFERROR('Tabel 2 S'!G87/'Tabel 1 S'!E87*100,"-")) -> - | I87: =IF(OR('Tabel 1 S'!G87<5,'Tabel 2 S'!I87<0.5),"-",IFERROR('Tabel 2 S'!I87/'Tabel 1 S'!G87*100,"-")) -> - | J87: =IF(OR('Tabel 1 S'!G87<5,'Tabel 2 S'!J87<0.5),"-",IFERROR('Tabel 2 S'!J87/'Tabel 1 S'!G87*100,"-")) -> -
A88: Samf. Adm. | C88: =IF(OR('Tabel 1 S'!C88<5,'Tabel 2 S'!C88<0.5),"-",IFERROR('Tabel 2 S'!C88/'Tabel 1 S'!C88*100,"-")) -> 2.040816327 | D88: =IF(OR('Tabel 1 S'!C88<5,'Tabel 2 S'!D88<0.5),"-",IFERROR('Tabel 2 S'!D88/'Tabel 1 S'!C88*100,"-")) -> - | F88: =IF(OR('Tabel 1 S'!E88<5,'Tabel 2 S'!F88<0.5),"-",IFERROR('Tabel 2 S'!F88/'Tabel 1 S'!E88*100,"-")) -> 16.66666667 | G88: =IF(OR('Tabel 1 S'!E88<5,'Tabel 2 S'!G88<0.5),"-",IFERROR('Tabel 2 S'!G88/'Tabel 1 S'!E88*100,"-")) -> 16.08314795 | I88: =IF(OR('Tabel 1 S'!G88<5,'Tabel 2 S'!I88<0.5),"-",IFERROR('Tabel 2 S'!I88/'Tabel 1 S'!G88*100,"-")) -> 10.74380165 | J88: =IF(OR('Tabel 1 S'!G88<5,'Tabel 2 S'!J88<0.5),"-",IFERROR('Tabel 2 S'!J88/'Tabel 1 S'!G88*100,"-")) -> 9.747973317
A89: Cand. Merc. | C89: =IF(OR('Tabel 1 S'!C89<5,'Tabel 2 S'!C89<0.5),"-",IFERROR('Tabel 2 S'!C89/'Tabel 1 S'!C89*100,"-")) -> 3.759398496 | D89: =IF(OR('Tabel 1 S'!C89<5,'Tabel 2 S'!D89<0.5),"-",IFERROR('Tabel 2 S'!D89/'Tabel 1 S'!C89*100,"-")) -> 3.22033175 | F89: =IF(OR('Tabel 1 S'!E89<5,'Tabel 2 S'!F89<0.5),"-",IFERROR('Tabel 2 S'!F89/'Tabel 1 S'!E89*100,"-")) -> 6.338028169 | G89: =IF(OR('Tabel 1 S'!E89<5,'Tabel 2 S'!G89<0.5),"-",IFERROR('Tabel 2 S'!G89/'Tabel 1 S'!E89*100,"-")) -> 5.785602406 | I89: =IF(OR('Tabel 1 S'!G89<5,'Tabel 2 S'!I89<0.5),"-",IFERROR('Tabel 2 S'!I89/'Tabel 1 S'!G89*100,"-")) -> 5.090909091 | J89: =IF(OR('Tabel 1 S'!G89<5,'Tabel 2 S'!J89<0.5),"-",IFERROR('Tabel 2 S'!J89/'Tabel 1 S'!G89*100,"-")) -> 4.544944234
A90: HA | C90: =IF(OR('Tabel 1 S'!C90<5,'Tabel 2 S'!C90<0.5),"-",IFERROR('Tabel 2 S'!C90/'Tabel 1 S'!C90*100,"-")) -> 4.166666667 | D90: =IF(OR('Tabel 1 S'!C90<5,'Tabel 2 S'!D90<0.5),"-",IFERROR('Tabel 2 S'!D90/'Tabel 1 S'!C90*100,"-")) -> 3.653922119 | F90: =IF(OR('Tabel 1 S'!E90<5,'Tabel 2 S'!F90<0.5),"-",IFERROR('Tabel 2 S'!F90/'Tabel 1 S'!E90*100,"-")) -> 4.166666667 | G90: =IF(OR('Tabel 1 S'!E90<5,'Tabel 2 S'!G90<0.5),"-",IFERROR('Tabel 2 S'!G90/'Tabel 1 S'!E90*100,"-")) -> 4.165887025 | I90: =IF(OR('Tabel 1 S'!G90<5,'Tabel 2 S'!I90<0.5),"-",IFERROR('Tabel 2 S'!I90/'Tabel 1 S'!G90*100,"-")) -> 4.166666667 | J90: =IF(OR('Tabel 1 S'!G90<5,'Tabel 2 S'!J90<0.5),"-",IFERROR('Tabel 2 S'!J90/'Tabel 1 S'!G90*100,"-")) -> 3.824577088
A91: HD | C91: =IF(OR('Tabel 1 S'!C91<5,'Tabel 2 S'!C91<0.5),"-",IFERROR('Tabel 2 S'!C91/'Tabel 1 S'!C91*100,"-")) -> 2.222222222 | D91: =IF(OR('Tabel 1 S'!C91<5,'Tabel 2 S'!D91<0.5),"-",IFERROR('Tabel 2 S'!D91/'Tabel 1 S'!C91*100,"-")) -> 2.221806413 | F91: =IF(OR('Tabel 1 S'!E91<5,'Tabel 2 S'!F91<0.5),"-",IFERROR('Tabel 2 S'!F91/'Tabel 1 S'!E91*100,"-")) -> 3.333333333 | G91: =IF(OR('Tabel 1 S'!E91<5,'Tabel 2 S'!G91<0.5),"-",IFERROR('Tabel 2 S'!G91/'Tabel 1 S'!E91*100,"-")) -> 3.33270962 | I91: =IF(OR('Tabel 1 S'!G91<5,'Tabel 2 S'!I91<0.5),"-",IFERROR('Tabel 2 S'!I91/'Tabel 1 S'!G91*100,"-")) -> 2.666666667 | J91: =IF(OR('Tabel 1 S'!G91<5,'Tabel 2 S'!J91<0.5),"-",IFERROR('Tabel 2 S'!J91/'Tabel 1 S'!G91*100,"-")) -> 2.666167696
A92: Komm. og Sprog | C92: =IF(OR('Tabel 1 S'!C92<5,'Tabel 2 S'!C92<0.5),"-",IFERROR('Tabel 2 S'!C92/'Tabel 1 S'!C92*100,"-")) -> - | D92: =IF(OR('Tabel 1 S'!C92<5,'Tabel 2 S'!D92<0.5),"-",IFERROR('Tabel 2 S'!D92/'Tabel 1 S'!C92*100,"-")) -> - | F92: =IF(OR('Tabel 1 S'!E92<5,'Tabel 2 S'!F92<0.5),"-",IFERROR('Tabel 2 S'!F92/'Tabel 1 S'!E92*100,"-")) -> 5.357142857 | G92: =IF(OR('Tabel 1 S'!E92<5,'Tabel 2 S'!G92<0.5),"-",IFERROR('Tabel 2 S'!G92/'Tabel 1 S'!E92*100,"-")) -> 3.159777602 | I92: =IF(OR('Tabel 1 S'!G92<5,'Tabel 2 S'!I92<0.5),"-",IFERROR('Tabel 2 S'!I92/'Tabel 1 S'!G92*100,"-")) -> 5 | J92: =IF(OR('Tabel 1 S'!G92<5,'Tabel 2 S'!J92<0.5),"-",IFERROR('Tabel 2 S'!J92/'Tabel 1 S'!G92*100,"-")) -> 2.949125761
A93: Cand. IT. | C93: =IF(OR('Tabel 1 S'!C93<5,'Tabel 2 S'!C93<0.5),"-",IFERROR('Tabel 2 S'!C93/'Tabel 1 S'!C93*100,"-")) -> - | D93: =IF(OR('Tabel 1 S'!C93<5,'Tabel 2 S'!D93<0.5),"-",IFERROR('Tabel 2 S'!D93/'Tabel 1 S'!C93*100,"-")) -> - | F93: =IF(OR('Tabel 1 S'!E93<5,'Tabel 2 S'!F93<0.5),"-",IFERROR('Tabel 2 S'!F93/'Tabel 1 S'!E93*100,"-")) -> 12.5 | G93: =IF(OR('Tabel 1 S'!E93<5,'Tabel 2 S'!G93<0.5),"-",IFERROR('Tabel 2 S'!G93/'Tabel 1 S'!E93*100,"-")) -> 12.49766107 | I93: =IF(OR('Tabel 1 S'!G93<5,'Tabel 2 S'!I93<0.5),"-",IFERROR('Tabel 2 S'!I93/'Tabel 1 S'!G93*100,"-")) -> 4.347826087 | J93: =IF(OR('Tabel 1 S'!G93<5,'Tabel 2 S'!J93<0.5),"-",IFERROR('Tabel 2 S'!J93/'Tabel 1 S'!G93*100,"-")) -> 4.347012547
A94: Bac. Samf. | C94: =IF(OR('Tabel 1 S'!C94<5,'Tabel 2 S'!C94<0.5),"-",IFERROR('Tabel 2 S'!C94/'Tabel 1 S'!C94*100,"-")) -> - | D94: =IF(OR('Tabel 1 S'!C94<5,'Tabel 2 S'!D94<0.5),"-",IFERROR('Tabel 2 S'!D94/'Tabel 1 S'!C94*100,"-")) -> - | F94: =IF(OR('Tabel 1 S'!E94<5,'Tabel 2 S'!F94<0.5),"-",IFERROR('Tabel 2 S'!F94/'Tabel 1 S'!E94*100,"-")) -> - | G94: =IF(OR('Tabel 1 S'!E94<5,'Tabel 2 S'!G94<0.5),"-",IFERROR('Tabel 2 S'!G94/'Tabel 1 S'!E94*100,"-")) -> - | I94: =IF(OR('Tabel 1 S'!G94<5,'Tabel 2 S'!I94<0.5),"-",IFERROR('Tabel 2 S'!I94/'Tabel 1 S'!G94*100,"-")) -> - | J94: =IF(OR('Tabel 1 S'!G94<5,'Tabel 2 S'!J94<0.5),"-",IFERROR('Tabel 2 S'!J94/'Tabel 1 S'!G94*100,"-")) -> -
A95: Bac. Hum. | C95: =IF(OR('Tabel 1 S'!C95<5,'Tabel 2 S'!C95<0.5),"-",IFERROR('Tabel 2 S'!C95/'Tabel 1 S'!C95*100,"-")) -> - | D95: =IF(OR('Tabel 1 S'!C95<5,'Tabel 2 S'!D95<0.5),"-",IFERROR('Tabel 2 S'!D95/'Tabel 1 S'!C95*100,"-")) -> - | F95: =IF(OR('Tabel 1 S'!E95<5,'Tabel 2 S'!F95<0.5),"-",IFERROR('Tabel 2 S'!F95/'Tabel 1 S'!E95*100,"-")) -> 9.090909091 | G95: =IF(OR('Tabel 1 S'!E95<5,'Tabel 2 S'!G95<0.5),"-",IFERROR('Tabel 2 S'!G95/'Tabel 1 S'!E95*100,"-")) -> 6.99126234 | I95: =IF(OR('Tabel 1 S'!G95<5,'Tabel 2 S'!I95<0.5),"-",IFERROR('Tabel 2 S'!I95/'Tabel 1 S'!G95*100,"-")) -> 6.666666667 | J95: =IF(OR('Tabel 1 S'!G95<5,'Tabel 2 S'!J95<0.5),"-",IFERROR('Tabel 2 S'!J95/'Tabel 1 S'!G95*100,"-")) -> 5.126925716
A96: Bac. Nat. | C96: =IF(OR('Tabel 1 S'!C96<5,'Tabel 2 S'!C96<0.5),"-",IFERROR('Tabel 2 S'!C96/'Tabel 1 S'!C96*100,"-")) -> 11.11111111 | D96: =IF(OR('Tabel 1 S'!C96<5,'Tabel 2 S'!D96<0.5),"-",IFERROR('Tabel 2 S'!D96/'Tabel 1 S'!C96*100,"-")) -> 10.59620089 | F96: =IF(OR('Tabel 1 S'!E96<5,'Tabel 2 S'!F96<0.5),"-",IFERROR('Tabel 2 S'!F96/'Tabel 1 S'!E96*100,"-")) -> 20 | G96: =IF(OR('Tabel 1 S'!E96<5,'Tabel 2 S'!G96<0.5),"-",IFERROR('Tabel 2 S'!G96/'Tabel 1 S'!E96*100,"-")) -> 19.99625772 | I96: =IF(OR('Tabel 1 S'!G96<5,'Tabel 2 S'!I96<0.5),"-",IFERROR('Tabel 2 S'!I96/'Tabel 1 S'!G96*100,"-")) -> 14.28571429 | J96: =IF(OR('Tabel 1 S'!G96<5,'Tabel 2 S'!J96<0.5),"-",IFERROR('Tabel 2 S'!J96/'Tabel 1 S'!G96*100,"-")) -> 13.95336404
A97: Andre | C97: =IF(OR('Tabel 1 S'!C97<5,'Tabel 2 S'!C97<0.5),"-",IFERROR('Tabel 2 S'!C97/'Tabel 1 S'!C97*100,"-")) -> 1.408450704 | D97: =IF(OR('Tabel 1 S'!C97<5,'Tabel 2 S'!D97<0.5),"-",IFERROR('Tabel 2 S'!D97/'Tabel 1 S'!C97*100,"-")) -> 0.7581194772 | F97: =IF(OR('Tabel 1 S'!E97<5,'Tabel 2 S'!F97<0.5),"-",IFERROR('Tabel 2 S'!F97/'Tabel 1 S'!E97*100,"-")) -> 5.633802817 | G97: =IF(OR('Tabel 1 S'!E97<5,'Tabel 2 S'!G97<0.5),"-",IFERROR('Tabel 2 S'!G97/'Tabel 1 S'!E97*100,"-")) -> 5.437728347 | I97: =IF(OR('Tabel 1 S'!G97<5,'Tabel 2 S'!I97<0.5),"-",IFERROR('Tabel 2 S'!I97/'Tabel 1 S'!G97*100,"-")) -> 3.521126761 | J97: =IF(OR('Tabel 1 S'!G97<5,'Tabel 2 S'!J97<0.5),"-",IFERROR('Tabel 2 S'!J97/'Tabel 1 S'!G97*100,"-")) -> 3.097923912
A99: Total | C99: =IF(OR('Tabel 1 S'!C99<5,'Tabel 2 S'!C99<0.5),"-",IFERROR('Tabel 2 S'!C99/'Tabel 1 S'!C99*100,"-")) -> 2.666666667 | D99: =IF(OR('Tabel 1 S'!C99<5,'Tabel 2 S'!D99<0.5),"-",IFERROR('Tabel 2 S'!D99/'Tabel 1 S'!C99*100,"-")) -> 2.210500367 | F99: =IF(OR('Tabel 1 S'!E99<5,'Tabel 2 S'!F99<0.5),"-",IFERROR('Tabel 2 S'!F99/'Tabel 1 S'!E99*100,"-")) -> 5.739299611 | G99: =IF(OR('Tabel 1 S'!E99<5,'Tabel 2 S'!G99<0.5),"-",IFERROR('Tabel 2 S'!G99/'Tabel 1 S'!E99*100,"-")) -> 5.234704395 | I99: =IF(OR('Tabel 1 S'!G99<5,'Tabel 2 S'!I99<0.5),"-",IFERROR('Tabel 2 S'!I99/'Tabel 1 S'!G99*100,"-")) -> 4.186717998 | J99: =IF(OR('Tabel 1 S'!G99<5,'Tabel 2 S'!J99<0.5),"-",IFERROR('Tabel 2 S'!J99/'Tabel 1 S'!G99*100,"-")) -> 3.706593601
A101: Ingeniører i alt | C101: =IF(OR('Tabel 1 S'!C101<5,'Tabel 2 S'!C101<0.5),"-",IFERROR('Tabel 2 S'!C101/'Tabel 1 S'!C101*100,"-")) -> 1.951219512 | D101: =IF(OR('Tabel 1 S'!C101<5,'Tabel 2 S'!D101<0.5),"-",IFERROR('Tabel 2 S'!D101/'Tabel 1 S'!C101*100,"-")) -> 1.657100523 | F101: =IF(OR('Tabel 1 S'!E101<5,'Tabel 2 S'!F101<0.5),"-",IFERROR('Tabel 2 S'!F101/'Tabel 1 S'!E101*100,"-")) -> 2.830188679 | G101: =IF(OR('Tabel 1 S'!E101<5,'Tabel 2 S'!G101<0.5),"-",IFERROR('Tabel 2 S'!G101/'Tabel 1 S'!E101*100,"-")) -> 2.699032302 | I101: =IF(OR('Tabel 1 S'!G101<5,'Tabel 2 S'!I101<0.5),"-",IFERROR('Tabel 2 S'!I101/'Tabel 1 S'!G101*100,"-")) -> 2.131782946 | J101: =IF(OR('Tabel 1 S'!G101<5,'Tabel 2 S'!J101<0.5),"-",IFERROR('Tabel 2 S'!J101/'Tabel 1 S'!G101*100,"-")) -> 1.871140772
A102: Magistre i alt | C102: =IF(OR('Tabel 1 S'!C102<5,'Tabel 2 S'!C102<0.5),"-",IFERROR('Tabel 2 S'!C102/'Tabel 1 S'!C102*100,"-")) -> 8.75 | D102: =IF(OR('Tabel 1 S'!C102<5,'Tabel 2 S'!D102<0.5),"-",IFERROR('Tabel 2 S'!D102/'Tabel 1 S'!C102*100,"-")) -> 7.76757313 | F102: =IF(OR('Tabel 1 S'!E102<5,'Tabel 2 S'!F102<0.5),"-",IFERROR('Tabel 2 S'!F102/'Tabel 1 S'!E102*100,"-")) -> 5.847953216 | G102: =IF(OR('Tabel 1 S'!E102<5,'Tabel 2 S'!G102<0.5),"-",IFERROR('Tabel 2 S'!G102/'Tabel 1 S'!E102*100,"-")) -> 5.158950308 | I102: =IF(OR('Tabel 1 S'!G102<5,'Tabel 2 S'!I102<0.5),"-",IFERROR('Tabel 2 S'!I102/'Tabel 1 S'!G102*100,"-")) -> 6.772908367 | J102: =IF(OR('Tabel 1 S'!G102<5,'Tabel 2 S'!J102<0.5),"-",IFERROR('Tabel 2 S'!J102/'Tabel 1 S'!G102*100,"-")) -> 5.990383877
A103: DJØF'ere i alt | C103: =IF(OR('Tabel 1 S'!C103<5,'Tabel 2 S'!C103<0.5),"-",IFERROR('Tabel 2 S'!C103/'Tabel 1 S'!C103*100,"-")) -> 2.721088435 | D103: =IF(OR('Tabel 1 S'!C103<5,'Tabel 2 S'!D103<0.5),"-",IFERROR('Tabel 2 S'!D103/'Tabel 1 S'!C103*100,"-")) -> 2.126566338 | F103: =IF(OR('Tabel 1 S'!E103<5,'Tabel 2 S'!F103<0.5),"-",IFERROR('Tabel 2 S'!F103/'Tabel 1 S'!E103*100,"-")) -> 6.451612903 | G103: =IF(OR('Tabel 1 S'!E103<5,'Tabel 2 S'!G103<0.5),"-",IFERROR('Tabel 2 S'!G103/'Tabel 1 S'!E103*100,"-")) -> 6.098309334 | I103: =IF(OR('Tabel 1 S'!G103<5,'Tabel 2 S'!I103<0.5),"-",IFERROR('Tabel 2 S'!I103/'Tabel 1 S'!G103*100,"-")) -> 4.724409449 | J103: =IF(OR('Tabel 1 S'!G103<5,'Tabel 2 S'!J103<0.5),"-",IFERROR('Tabel 2 S'!J103/'Tabel 1 S'!G103*100,"-")) -> 4.2594236
A108: ='Tabel 2 S'!A108 -> Køge
C110: Mænd | F110: Kvinder | I110: I alt
C111: Ledigheds- berørte | D111: Gns. brutto- ledighed | F111: Ledigheds- berørte | G111: Gns. brutto- ledighed | I111: Ledigheds- berørte | J111: Gns. brutto- ledighed
A114: Civ. ing. | C114: =IF(OR('Tabel 1 S'!C114<5,'Tabel 2 S'!C114<0.5),"-",IFERROR('Tabel 2 S'!C114/'Tabel 1 S'!C114*100,"-")) -> 2.173913043 | D114: =IF(OR('Tabel 1 S'!C114<5,'Tabel 2 S'!D114<0.5),"-",IFERROR('Tabel 2 S'!D114/'Tabel 1 S'!C114*100,"-")) -> 1.463919073 | F114: =IF(OR('Tabel 1 S'!E114<5,'Tabel 2 S'!F114<0.5),"-",IFERROR('Tabel 2 S'!F114/'Tabel 1 S'!E114*100,"-")) -> 6.382978723 | G114: =IF(OR('Tabel 1 S'!E114<5,'Tabel 2 S'!G114<0.5),"-",IFERROR('Tabel 2 S'!G114/'Tabel 1 S'!E114*100,"-")) -> 6.381784378 | I114: =IF(OR('Tabel 1 S'!G114<5,'Tabel 2 S'!I114<0.5),"-",IFERROR('Tabel 2 S'!I114/'Tabel 1 S'!G114*100,"-")) -> 3.243243243 | J114: =IF(OR('Tabel 1 S'!G114<5,'Tabel 2 S'!J114<0.5),"-",IFERROR('Tabel 2 S'!J114/'Tabel 1 S'!G114*100,"-")) -> 2.713322691
A115: Diplom ing. | C115: =IF(OR('Tabel 1 S'!C115<5,'Tabel 2 S'!C115<0.5),"-",IFERROR('Tabel 2 S'!C115/'Tabel 1 S'!C115*100,"-")) -> 1.403508772 | D115: =IF(OR('Tabel 1 S'!C115<5,'Tabel 2 S'!D115<0.5),"-",IFERROR('Tabel 2 S'!D115/'Tabel 1 S'!C115*100,"-")) -> 1.223791719 | F115: =IF(OR('Tabel 1 S'!E115<5,'Tabel 2 S'!F115<0.5),"-",IFERROR('Tabel 2 S'!F115/'Tabel 1 S'!E115*100,"-")) -> 3.448275862 | G115: =IF(OR('Tabel 1 S'!E115<5,'Tabel 2 S'!G115<0.5),"-",IFERROR('Tabel 2 S'!G115/'Tabel 1 S'!E115*100,"-")) -> 2.253971873 | I115: =IF(OR('Tabel 1 S'!G115<5,'Tabel 2 S'!I115<0.5),"-",IFERROR('Tabel 2 S'!I115/'Tabel 1 S'!G115*100,"-")) -> 1.749271137 | J115: =IF(OR('Tabel 1 S'!G115<5,'Tabel 2 S'!J115<0.5),"-",IFERROR('Tabel 2 S'!J115/'Tabel 1 S'!G115*100,"-")) -> 1.397991279
A116: Cand. Scient. Tek. | C116: =IF(OR('Tabel 1 S'!C116<5,'Tabel 2 S'!C116<0.5),"-",IFERROR('Tabel 2 S'!C116/'Tabel 1 S'!C116*100,"-")) -> 16.66666667 | D116: =IF(OR('Tabel 1 S'!C116<5,'Tabel 2 S'!D116<0.5),"-",IFERROR('Tabel 2 S'!D116/'Tabel 1 S'!C116*100,"-")) -> 15.98266076 | F116: =IF(OR('Tabel 1 S'!E116<5,'Tabel 2 S'!F116<0.5),"-",IFERROR('Tabel 2 S'!F116/'Tabel 1 S'!E116*100,"-")) -> - | G116: =IF(OR('Tabel 1 S'!E116<5,'Tabel 2 S'!G116<0.5),"-",IFERROR('Tabel 2 S'!G116/'Tabel 1 S'!E116*100,"-")) -> - | I116: =IF(OR('Tabel 1 S'!G116<5,'Tabel 2 S'!I116<0.5),"-",IFERROR('Tabel 2 S'!I116/'Tabel 1 S'!G116*100,"-")) -> 11.94029851 | J116: =IF(OR('Tabel 1 S'!G116<5,'Tabel 2 S'!J116<0.5),"-",IFERROR('Tabel 2 S'!J116/'Tabel 1 S'!G116*100,"-")) -> 11.45026443
A117: MA. Hum. | C117: =IF(OR('Tabel 1 S'!C117<5,'Tabel 2 S'!C117<0.5),"-",IFERROR('Tabel 2 S'!C117/'Tabel 1 S'!C117*100,"-")) -> 3.571428571 | D117: =IF(OR('Tabel 1 S'!C117<5,'Tabel 2 S'!D117<0.5),"-",IFERROR('Tabel 2 S'!D117/'Tabel 1 S'!C117*100,"-")) -> 1.587128334 | F117: =IF(OR('Tabel 1 S'!E117<5,'Tabel 2 S'!F117<0.5),"-",IFERROR('Tabel 2 S'!F117/'Tabel 1 S'!E117*100,"-")) -> 5.072463768 | G117: =IF(OR('Tabel 1 S'!E117<5,'Tabel 2 S'!G117<0.5),"-",IFERROR('Tabel 2 S'!G117/'Tabel 1 S'!E117*100,"-")) -> 4.684631426 | I117: =IF(OR('Tabel 1 S'!G117<5,'Tabel 2 S'!I117<0.5),"-",IFERROR('Tabel 2 S'!I117/'Tabel 1 S'!G117*100,"-")) -> 4.639175258 | J117: =IF(OR('Tabel 1 S'!G117<5,'Tabel 2 S'!J117<0.5),"-",IFERROR('Tabel 2 S'!J117/'Tabel 1 S'!G117*100,"-")) -> 3.790506822
A118: MA. Nat. | C118: =IF(OR('Tabel 1 S'!C118<5,'Tabel 2 S'!C118<0.5),"-",IFERROR('Tabel 2 S'!C118/'Tabel 1 S'!C118*100,"-")) -> 2.380952381 | D118: =IF(OR('Tabel 1 S'!C118<5,'Tabel 2 S'!D118<0.5),"-",IFERROR('Tabel 2 S'!D118/'Tabel 1 S'!C118*100,"-")) -> 1.611260109 | F118: =IF(OR('Tabel 1 S'!E118<5,'Tabel 2 S'!F118<0.5),"-",IFERROR('Tabel 2 S'!F118/'Tabel 1 S'!E118*100,"-")) -> 5.660377358 | G118: =IF(OR('Tabel 1 S'!E118<5,'Tabel 2 S'!G118<0.5),"-",IFERROR('Tabel 2 S'!G118/'Tabel 1 S'!E118*100,"-")) -> 5.353345517 | I118: =IF(OR('Tabel 1 S'!G118<5,'Tabel 2 S'!I118<0.5),"-",IFERROR('Tabel 2 S'!I118/'Tabel 1 S'!G118*100,"-")) -> 4.210526316 | J118: =IF(OR('Tabel 1 S'!G118<5,'Tabel 2 S'!J118<0.5),"-",IFERROR('Tabel 2 S'!J118/'Tabel 1 S'!G118*100,"-")) -> 3.698949863
A119: MA. Ph.d. | C119: =IF(OR('Tabel 1 S'!C119<5,'Tabel 2 S'!C119<0.5),"-",IFERROR('Tabel 2 S'!C119/'Tabel 1 S'!C119*100,"-")) -> - | D119: =IF(OR('Tabel 1 S'!C119<5,'Tabel 2 S'!D119<0.5),"-",IFERROR('Tabel 2 S'!D119/'Tabel 1 S'!C119*100,"-")) -> - | F119: =IF(OR('Tabel 1 S'!E119<5,'Tabel 2 S'!F119<0.5),"-",IFERROR('Tabel 2 S'!F119/'Tabel 1 S'!E119*100,"-")) -> - | G119: =IF(OR('Tabel 1 S'!E119<5,'Tabel 2 S'!G119<0.5),"-",IFERROR('Tabel 2 S'!G119/'Tabel 1 S'!E119*100,"-")) -> - | I119: =IF(OR('Tabel 1 S'!G119<5,'Tabel 2 S'!I119<0.5),"-",IFERROR('Tabel 2 S'!I119/'Tabel 1 S'!G119*100,"-")) -> - | J119: =IF(OR('Tabel 1 S'!G119<5,'Tabel 2 S'!J119<0.5),"-",IFERROR('Tabel 2 S'!J119/'Tabel 1 S'!G119*100,"-")) -> -
A120: MA. Samf. | C120: =IF(OR('Tabel 1 S'!C120<5,'Tabel 2 S'!C120<0.5),"-",IFERROR('Tabel 2 S'!C120/'Tabel 1 S'!C120*100,"-")) -> 14.28571429 | D120: =IF(OR('Tabel 1 S'!C120<5,'Tabel 2 S'!D120<0.5),"-",IFERROR('Tabel 2 S'!D120/'Tabel 1 S'!C120*100,"-")) -> 14.28304123 | F120: =IF(OR('Tabel 1 S'!E120<5,'Tabel 2 S'!F120<0.5),"-",IFERROR('Tabel 2 S'!F120/'Tabel 1 S'!E120*100,"-")) -> 19.23076923 | G120: =IF(OR('Tabel 1 S'!E120<5,'Tabel 2 S'!G120<0.5),"-",IFERROR('Tabel 2 S'!G120/'Tabel 1 S'!E120*100,"-")) -> 17.9845415 | I120: =IF(OR('Tabel 1 S'!G120<5,'Tabel 2 S'!I120<0.5),"-",IFERROR('Tabel 2 S'!I120/'Tabel 1 S'!G120*100,"-")) -> 18.18181818 | J120: =IF(OR('Tabel 1 S'!G120<5,'Tabel 2 S'!J120<0.5),"-",IFERROR('Tabel 2 S'!J120/'Tabel 1 S'!G120*100,"-")) -> 17.19937477
A121: Øvrige Mag. | C121: =IF(OR('Tabel 1 S'!C121<5,'Tabel 2 S'!C121<0.5),"-",IFERROR('Tabel 2 S'!C121/'Tabel 1 S'!C121*100,"-")) -> 12.5 | D121: =IF(OR('Tabel 1 S'!C121<5,'Tabel 2 S'!D121<0.5),"-",IFERROR('Tabel 2 S'!D121/'Tabel 1 S'!C121*100,"-")) -> 12.49766107 | F121: =IF(OR('Tabel 1 S'!E121<5,'Tabel 2 S'!F121<0.5),"-",IFERROR('Tabel 2 S'!F121/'Tabel 1 S'!E121*100,"-")) -> 23.07692308 | G121: =IF(OR('Tabel 1 S'!E121<5,'Tabel 2 S'!G121<0.5),"-",IFERROR('Tabel 2 S'!G121/'Tabel 1 S'!E121*100,"-")) -> 23.07260506 | I121: =IF(OR('Tabel 1 S'!G121<5,'Tabel 2 S'!I121<0.5),"-",IFERROR('Tabel 2 S'!I121/'Tabel 1 S'!G121*100,"-")) -> 19.04761905 | J121: =IF(OR('Tabel 1 S'!G121<5,'Tabel 2 S'!J121<0.5),"-",IFERROR('Tabel 2 S'!J121/'Tabel 1 S'!G121*100,"-")) -> 19.04405497
A122: Agronom | C122: =IF(OR('Tabel 1 S'!C122<5,'Tabel 2 S'!C122<0.5),"-",IFERROR('Tabel 2 S'!C122/'Tabel 1 S'!C122*100,"-")) -> - | D122: =IF(OR('Tabel 1 S'!C122<5,'Tabel 2 S'!D122<0.5),"-",IFERROR('Tabel 2 S'!D122/'Tabel 1 S'!C122*100,"-")) -> - | F122: =IF(OR('Tabel 1 S'!E122<5,'Tabel 2 S'!F122<0.5),"-",IFERROR('Tabel 2 S'!F122/'Tabel 1 S'!E122*100,"-")) -> 16.66666667 | G122: =IF(OR('Tabel 1 S'!E122<5,'Tabel 2 S'!G122<0.5),"-",IFERROR('Tabel 2 S'!G122/'Tabel 1 S'!E122*100,"-")) -> 12.94205701 | I122: =IF(OR('Tabel 1 S'!G122<5,'Tabel 2 S'!I122<0.5),"-",IFERROR('Tabel 2 S'!I122/'Tabel 1 S'!G122*100,"-")) -> 10.52631579 | J122: =IF(OR('Tabel 1 S'!G122<5,'Tabel 2 S'!J122<0.5),"-",IFERROR('Tabel 2 S'!J122/'Tabel 1 S'!G122*100,"-")) -> 8.173930742
A123: Landsk. Arkt. | C123: =IF(OR('Tabel 1 S'!C123<5,'Tabel 2 S'!C123<0.5),"-",IFERROR('Tabel 2 S'!C123/'Tabel 1 S'!C123*100,"-")) -> - | D123: =IF(OR('Tabel 1 S'!C123<5,'Tabel 2 S'!D123<0.5),"-",IFERROR('Tabel 2 S'!D123/'Tabel 1 S'!C123*100,"-")) -> - | F123: =IF(OR('Tabel 1 S'!E123<5,'Tabel 2 S'!F123<0.5),"-",IFERROR('Tabel 2 S'!F123/'Tabel 1 S'!E123*100,"-")) -> 25 | G123: =IF(OR('Tabel 1 S'!E123<5,'Tabel 2 S'!G123<0.5),"-",IFERROR('Tabel 2 S'!G123/'Tabel 1 S'!E123*100,"-")) -> 21.2530406 | I123: =IF(OR('Tabel 1 S'!G123<5,'Tabel 2 S'!I123<0.5),"-",IFERROR('Tabel 2 S'!I123/'Tabel 1 S'!G123*100,"-")) -> 25 | J123: =IF(OR('Tabel 1 S'!G123<5,'Tabel 2 S'!J123<0.5),"-",IFERROR('Tabel 2 S'!J123/'Tabel 1 S'!G123*100,"-")) -> 21.2530406
A124: Hortonom | C124: =IF(OR('Tabel 1 S'!C124<5,'Tabel 2 S'!C124<0.5),"-",IFERROR('Tabel 2 S'!C124/'Tabel 1 S'!C124*100,"-")) -> - | D124: =IF(OR('Tabel 1 S'!C124<5,'Tabel 2 S'!D124<0.5),"-",IFERROR('Tabel 2 S'!D124/'Tabel 1 S'!C124*100,"-")) -> - | F124: =IF(OR('Tabel 1 S'!E124<5,'Tabel 2 S'!F124<0.5),"-",IFERROR('Tabel 2 S'!F124/'Tabel 1 S'!E124*100,"-")) -> - | G124: =IF(OR('Tabel 1 S'!E124<5,'Tabel 2 S'!G124<0.5),"-",IFERROR('Tabel 2 S'!G124/'Tabel 1 S'!E124*100,"-")) -> - | I124: =IF(OR('Tabel 1 S'!G124<5,'Tabel 2 S'!I124<0.5),"-",IFERROR('Tabel 2 S'!I124/'Tabel 1 S'!G124*100,"-")) -> - | J124: =IF(OR('Tabel 1 S'!G124<5,'Tabel 2 S'!J124<0.5),"-",IFERROR('Tabel 2 S'!J124/'Tabel 1 S'!G124*100,"-")) -> -
A125: Forstkand. | C125: =IF(OR('Tabel 1 S'!C125<5,'Tabel 2 S'!C125<0.5),"-",IFERROR('Tabel 2 S'!C125/'Tabel 1 S'!C125*100,"-")) -> - | D125: =IF(OR('Tabel 1 S'!C125<5,'Tabel 2 S'!D125<0.5),"-",IFERROR('Tabel 2 S'!D125/'Tabel 1 S'!C125*100,"-")) -> - | F125: =IF(OR('Tabel 1 S'!E125<5,'Tabel 2 S'!F125<0.5),"-",IFERROR('Tabel 2 S'!F125/'Tabel 1 S'!E125*100,"-")) -> - | G125: =IF(OR('Tabel 1 S'!E125<5,'Tabel 2 S'!G125<0.5),"-",IFERROR('Tabel 2 S'!G125/'Tabel 1 S'!E125*100,"-")) -> - | I125: =IF(OR('Tabel 1 S'!G125<5,'Tabel 2 S'!I125<0.5),"-",IFERROR('Tabel 2 S'!I125/'Tabel 1 S'!G125*100,"-")) -> 20 | J125: =IF(OR('Tabel 1 S'!G125<5,'Tabel 2 S'!J125<0.5),"-",IFERROR('Tabel 2 S'!J125/'Tabel 1 S'!G125*100,"-")) -> -
A126: Jordbrugsakad. | C126: =IF(OR('Tabel 1 S'!C126<5,'Tabel 2 S'!C126<0.5),"-",IFERROR('Tabel 2 S'!C126/'Tabel 1 S'!C126*100,"-")) -> - | D126: =IF(OR('Tabel 1 S'!C126<5,'Tabel 2 S'!D126<0.5),"-",IFERROR('Tabel 2 S'!D126/'Tabel 1 S'!C126*100,"-")) -> - | F126: =IF(OR('Tabel 1 S'!E126<5,'Tabel 2 S'!F126<0.5),"-",IFERROR('Tabel 2 S'!F126/'Tabel 1 S'!E126*100,"-")) -> 18.42105263 | G126: =IF(OR('Tabel 1 S'!E126<5,'Tabel 2 S'!G126<0.5),"-",IFERROR('Tabel 2 S'!G126/'Tabel 1 S'!E126*100,"-")) -> 13.94328146 | I126: =IF(OR('Tabel 1 S'!G126<5,'Tabel 2 S'!I126<0.5),"-",IFERROR('Tabel 2 S'!I126/'Tabel 1 S'!G126*100,"-")) -> 12.06896552 | J126: =IF(OR('Tabel 1 S'!G126<5,'Tabel 2 S'!J126<0.5),"-",IFERROR('Tabel 2 S'!J126/'Tabel 1 S'!G126*100,"-")) -> 9.135253368
A127: Mejeriing. | C127: =IF(OR('Tabel 1 S'!C127<5,'Tabel 2 S'!C127<0.5),"-",IFERROR('Tabel 2 S'!C127/'Tabel 1 S'!C127*100,"-")) -> - | D127: =IF(OR('Tabel 1 S'!C127<5,'Tabel 2 S'!D127<0.5),"-",IFERROR('Tabel 2 S'!D127/'Tabel 1 S'!C127*100,"-")) -> - | F127: =IF(OR('Tabel 1 S'!E127<5,'Tabel 2 S'!F127<0.5),"-",IFERROR('Tabel 2 S'!F127/'Tabel 1 S'!E127*100,"-")) -> - | G127: =IF(OR('Tabel 1 S'!E127<5,'Tabel 2 S'!G127<0.5),"-",IFERROR('Tabel 2 S'!G127/'Tabel 1 S'!E127*100,"-")) -> - | I127: =IF(OR('Tabel 1 S'!G127<5,'Tabel 2 S'!I127<0.5),"-",IFERROR('Tabel 2 S'!I127/'Tabel 1 S'!G127*100,"-")) -> - | J127: =IF(OR('Tabel 1 S'!G127<5,'Tabel 2 S'!J127<0.5),"-",IFERROR('Tabel 2 S'!J127/'Tabel 1 S'!G127*100,"-")) -> -
A128: Levn.m.kand. | C128: =IF(OR('Tabel 1 S'!C128<5,'Tabel 2 S'!C128<0.5),"-",IFERROR('Tabel 2 S'!C128/'Tabel 1 S'!C128*100,"-")) -> - | D128: =IF(OR('Tabel 1 S'!C128<5,'Tabel 2 S'!D128<0.5),"-",IFERROR('Tabel 2 S'!D128/'Tabel 1 S'!C128*100,"-")) -> - | F128: =IF(OR('Tabel 1 S'!E128<5,'Tabel 2 S'!F128<0.5),"-",IFERROR('Tabel 2 S'!F128/'Tabel 1 S'!E128*100,"-")) -> - | G128: =IF(OR('Tabel 1 S'!E128<5,'Tabel 2 S'!G128<0.5),"-",IFERROR('Tabel 2 S'!G128/'Tabel 1 S'!E128*100,"-")) -> - | I128: =IF(OR('Tabel 1 S'!G128<5,'Tabel 2 S'!I128<0.5),"-",IFERROR('Tabel 2 S'!I128/'Tabel 1 S'!G128*100,"-")) -> - | J128: =IF(OR('Tabel 1 S'!G128<5,'Tabel 2 S'!J128<0.5),"-",IFERROR('Tabel 2 S'!J128/'Tabel 1 S'!G128*100,"-")) -> -
A129: Dyrlæge | C129: =IF(OR('Tabel 1 S'!C129<5,'Tabel 2 S'!C129<0.5),"-",IFERROR('Tabel 2 S'!C129/'Tabel 1 S'!C129*100,"-")) -> - | D129: =IF(OR('Tabel 1 S'!C129<5,'Tabel 2 S'!D129<0.5),"-",IFERROR('Tabel 2 S'!D129/'Tabel 1 S'!C129*100,"-")) -> - | F129: =IF(OR('Tabel 1 S'!E129<5,'Tabel 2 S'!F129<0.5),"-",IFERROR('Tabel 2 S'!F129/'Tabel 1 S'!E129*100,"-")) -> - | G129: =IF(OR('Tabel 1 S'!E129<5,'Tabel 2 S'!G129<0.5),"-",IFERROR('Tabel 2 S'!G129/'Tabel 1 S'!E129*100,"-")) -> - | I129: =IF(OR('Tabel 1 S'!G129<5,'Tabel 2 S'!I129<0.5),"-",IFERROR('Tabel 2 S'!I129/'Tabel 1 S'!G129*100,"-")) -> - | J129: =IF(OR('Tabel 1 S'!G129<5,'Tabel 2 S'!J129<0.5),"-",IFERROR('Tabel 2 S'!J129/'Tabel 1 S'!G129*100,"-")) -> -
A130: Farmaceut | C130: =IF(OR('Tabel 1 S'!C130<5,'Tabel 2 S'!C130<0.5),"-",IFERROR('Tabel 2 S'!C130/'Tabel 1 S'!C130*100,"-")) -> - | D130: =IF(OR('Tabel 1 S'!C130<5,'Tabel 2 S'!D130<0.5),"-",IFERROR('Tabel 2 S'!D130/'Tabel 1 S'!C130*100,"-")) -> - | F130: =IF(OR('Tabel 1 S'!E130<5,'Tabel 2 S'!F130<0.5),"-",IFERROR('Tabel 2 S'!F130/'Tabel 1 S'!E130*100,"-")) -> 5.263157895 | G130: =IF(OR('Tabel 1 S'!E130<5,'Tabel 2 S'!G130<0.5),"-",IFERROR('Tabel 2 S'!G130/'Tabel 1 S'!E130*100,"-")) -> 3.318812843 | I130: =IF(OR('Tabel 1 S'!G130<5,'Tabel 2 S'!I130<0.5),"-",IFERROR('Tabel 2 S'!I130/'Tabel 1 S'!G130*100,"-")) -> 4.347826087 | J130: =IF(OR('Tabel 1 S'!G130<5,'Tabel 2 S'!J130<0.5),"-",IFERROR('Tabel 2 S'!J130/'Tabel 1 S'!G130*100,"-")) -> 2.741628001
A131: Læge | C131: =IF(OR('Tabel 1 S'!C131<5,'Tabel 2 S'!C131<0.5),"-",IFERROR('Tabel 2 S'!C131/'Tabel 1 S'!C131*100,"-")) -> - | D131: =IF(OR('Tabel 1 S'!C131<5,'Tabel 2 S'!D131<0.5),"-",IFERROR('Tabel 2 S'!D131/'Tabel 1 S'!C131*100,"-")) -> - | F131: =IF(OR('Tabel 1 S'!E131<5,'Tabel 2 S'!F131<0.5),"-",IFERROR('Tabel 2 S'!F131/'Tabel 1 S'!E131*100,"-")) -> - | G131: =IF(OR('Tabel 1 S'!E131<5,'Tabel 2 S'!G131<0.5),"-",IFERROR('Tabel 2 S'!G131/'Tabel 1 S'!E131*100,"-")) -> - | I131: =IF(OR('Tabel 1 S'!G131<5,'Tabel 2 S'!I131<0.5),"-",IFERROR('Tabel 2 S'!I131/'Tabel 1 S'!G131*100,"-")) -> - | J131: =IF(OR('Tabel 1 S'!G131<5,'Tabel 2 S'!J131<0.5),"-",IFERROR('Tabel 2 S'!J131/'Tabel 1 S'!G131*100,"-")) -> -
A132: Tandlæge | C132: =IF(OR('Tabel 1 S'!C132<5,'Tabel 2 S'!C132<0.5),"-",IFERROR('Tabel 2 S'!C132/'Tabel 1 S'!C132*100,"-")) -> - | D132: =IF(OR('Tabel 1 S'!C132<5,'Tabel 2 S'!D132<0.5),"-",IFERROR('Tabel 2 S'!D132/'Tabel 1 S'!C132*100,"-")) -> - | F132: =IF(OR('Tabel 1 S'!E132<5,'Tabel 2 S'!F132<0.5),"-",IFERROR('Tabel 2 S'!F132/'Tabel 1 S'!E132*100,"-")) -> - | G132: =IF(OR('Tabel 1 S'!E132<5,'Tabel 2 S'!G132<0.5),"-",IFERROR('Tabel 2 S'!G132/'Tabel 1 S'!E132*100,"-")) -> - | I132: =IF(OR('Tabel 1 S'!G132<5,'Tabel 2 S'!I132<0.5),"-",IFERROR('Tabel 2 S'!I132/'Tabel 1 S'!G132*100,"-")) -> - | J132: =IF(OR('Tabel 1 S'!G132<5,'Tabel 2 S'!J132<0.5),"-",IFERROR('Tabel 2 S'!J132/'Tabel 1 S'!G132*100,"-")) -> -
A133: Arkitekt | C133: =IF(OR('Tabel 1 S'!C133<5,'Tabel 2 S'!C133<0.5),"-",IFERROR('Tabel 2 S'!C133/'Tabel 1 S'!C133*100,"-")) -> - | D133: =IF(OR('Tabel 1 S'!C133<5,'Tabel 2 S'!D133<0.5),"-",IFERROR('Tabel 2 S'!D133/'Tabel 1 S'!C133*100,"-")) -> - | F133: =IF(OR('Tabel 1 S'!E133<5,'Tabel 2 S'!F133<0.5),"-",IFERROR('Tabel 2 S'!F133/'Tabel 1 S'!E133*100,"-")) -> - | G133: =IF(OR('Tabel 1 S'!E133<5,'Tabel 2 S'!G133<0.5),"-",IFERROR('Tabel 2 S'!G133/'Tabel 1 S'!E133*100,"-")) -> - | I133: =IF(OR('Tabel 1 S'!G133<5,'Tabel 2 S'!I133<0.5),"-",IFERROR('Tabel 2 S'!I133/'Tabel 1 S'!G133*100,"-")) -> - | J133: =IF(OR('Tabel 1 S'!G133<5,'Tabel 2 S'!J133<0.5),"-",IFERROR('Tabel 2 S'!J133/'Tabel 1 S'!G133*100,"-")) -> -
A134: Landinspek. | C134: =IF(OR('Tabel 1 S'!C134<5,'Tabel 2 S'!C134<0.5),"-",IFERROR('Tabel 2 S'!C134/'Tabel 1 S'!C134*100,"-")) -> - | D134: =IF(OR('Tabel 1 S'!C134<5,'Tabel 2 S'!D134<0.5),"-",IFERROR('Tabel 2 S'!D134/'Tabel 1 S'!C134*100,"-")) -> - | F134: =IF(OR('Tabel 1 S'!E134<5,'Tabel 2 S'!F134<0.5),"-",IFERROR('Tabel 2 S'!F134/'Tabel 1 S'!E134*100,"-")) -> - | G134: =IF(OR('Tabel 1 S'!E134<5,'Tabel 2 S'!G134<0.5),"-",IFERROR('Tabel 2 S'!G134/'Tabel 1 S'!E134*100,"-")) -> - | I134: =IF(OR('Tabel 1 S'!G134<5,'Tabel 2 S'!I134<0.5),"-",IFERROR('Tabel 2 S'!I134/'Tabel 1 S'!G134*100,"-")) -> - | J134: =IF(OR('Tabel 1 S'!G134<5,'Tabel 2 S'!J134<0.5),"-",IFERROR('Tabel 2 S'!J134/'Tabel 1 S'!G134*100,"-")) -> -
A135: Bibliotekar | C135: =IF(OR('Tabel 1 S'!C135<5,'Tabel 2 S'!C135<0.5),"-",IFERROR('Tabel 2 S'!C135/'Tabel 1 S'!C135*100,"-")) -> - | D135: =IF(OR('Tabel 1 S'!C135<5,'Tabel 2 S'!D135<0.5),"-",IFERROR('Tabel 2 S'!D135/'Tabel 1 S'!C135*100,"-")) -> - | F135: =IF(OR('Tabel 1 S'!E135<5,'Tabel 2 S'!F135<0.5),"-",IFERROR('Tabel 2 S'!F135/'Tabel 1 S'!E135*100,"-")) -> 4 | G135: =IF(OR('Tabel 1 S'!E135<5,'Tabel 2 S'!G135<0.5),"-",IFERROR('Tabel 2 S'!G135/'Tabel 1 S'!E135*100,"-")) -> 3.076155429 | I135: =IF(OR('Tabel 1 S'!G135<5,'Tabel 2 S'!I135<0.5),"-",IFERROR('Tabel 2 S'!I135/'Tabel 1 S'!G135*100,"-")) -> 3.703703704 | J135: =IF(OR('Tabel 1 S'!G135<5,'Tabel 2 S'!J135<0.5),"-",IFERROR('Tabel 2 S'!J135/'Tabel 1 S'!G135*100,"-")) -> 2.848292064
A136: Musikudd. | C136: =IF(OR('Tabel 1 S'!C136<5,'Tabel 2 S'!C136<0.5),"-",IFERROR('Tabel 2 S'!C136/'Tabel 1 S'!C136*100,"-")) -> - | D136: =IF(OR('Tabel 1 S'!C136<5,'Tabel 2 S'!D136<0.5),"-",IFERROR('Tabel 2 S'!D136/'Tabel 1 S'!C136*100,"-")) -> - | F136: =IF(OR('Tabel 1 S'!E136<5,'Tabel 2 S'!F136<0.5),"-",IFERROR('Tabel 2 S'!F136/'Tabel 1 S'!E136*100,"-")) -> - | G136: =IF(OR('Tabel 1 S'!E136<5,'Tabel 2 S'!G136<0.5),"-",IFERROR('Tabel 2 S'!G136/'Tabel 1 S'!E136*100,"-")) -> - | I136: =IF(OR('Tabel 1 S'!G136<5,'Tabel 2 S'!I136<0.5),"-",IFERROR('Tabel 2 S'!I136/'Tabel 1 S'!G136*100,"-")) -> - | J136: =IF(OR('Tabel 1 S'!G136<5,'Tabel 2 S'!J136<0.5),"-",IFERROR('Tabel 2 S'!J136/'Tabel 1 S'!G136*100,"-")) -> -
A137: Teolog | C137: =IF(OR('Tabel 1 S'!C137<5,'Tabel 2 S'!C137<0.5),"-",IFERROR('Tabel 2 S'!C137/'Tabel 1 S'!C137*100,"-")) -> - | D137: =IF(OR('Tabel 1 S'!C137<5,'Tabel 2 S'!D137<0.5),"-",IFERROR('Tabel 2 S'!D137/'Tabel 1 S'!C137*100,"-")) -> - | F137: =IF(OR('Tabel 1 S'!E137<5,'Tabel 2 S'!F137<0.5),"-",IFERROR('Tabel 2 S'!F137/'Tabel 1 S'!E137*100,"-")) -> 16.66666667 | G137: =IF(OR('Tabel 1 S'!E137<5,'Tabel 2 S'!G137<0.5),"-",IFERROR('Tabel 2 S'!G137/'Tabel 1 S'!E137*100,"-")) -> 16.6635481 | I137: =IF(OR('Tabel 1 S'!G137<5,'Tabel 2 S'!I137<0.5),"-",IFERROR('Tabel 2 S'!I137/'Tabel 1 S'!G137*100,"-")) -> 10 | J137: =IF(OR('Tabel 1 S'!G137<5,'Tabel 2 S'!J137<0.5),"-",IFERROR('Tabel 2 S'!J137/'Tabel 1 S'!G137*100,"-")) -> 9.998128859
A138: Psykolog | C138: =IF(OR('Tabel 1 S'!C138<5,'Tabel 2 S'!C138<0.5),"-",IFERROR('Tabel 2 S'!C138/'Tabel 1 S'!C138*100,"-")) -> 20 | D138: =IF(OR('Tabel 1 S'!C138<5,'Tabel 2 S'!D138<0.5),"-",IFERROR('Tabel 2 S'!D138/'Tabel 1 S'!C138*100,"-")) -> - | F138: =IF(OR('Tabel 1 S'!E138<5,'Tabel 2 S'!F138<0.5),"-",IFERROR('Tabel 2 S'!F138/'Tabel 1 S'!E138*100,"-")) -> 4.545454545 | G138: =IF(OR('Tabel 1 S'!E138<5,'Tabel 2 S'!G138<0.5),"-",IFERROR('Tabel 2 S'!G138/'Tabel 1 S'!E138*100,"-")) -> 3.841508706 | I138: =IF(OR('Tabel 1 S'!G138<5,'Tabel 2 S'!I138<0.5),"-",IFERROR('Tabel 2 S'!I138/'Tabel 1 S'!G138*100,"-")) -> 6.12244898 | J138: =IF(OR('Tabel 1 S'!G138<5,'Tabel 2 S'!J138<0.5),"-",IFERROR('Tabel 2 S'!J138/'Tabel 1 S'!G138*100,"-")) -> 4.077050267
A139: Jurist | C139: =IF(OR('Tabel 1 S'!C139<5,'Tabel 2 S'!C139<0.5),"-",IFERROR('Tabel 2 S'!C139/'Tabel 1 S'!C139*100,"-")) -> 3.703703704 | D139: =IF(OR('Tabel 1 S'!C139<5,'Tabel 2 S'!D139<0.5),"-",IFERROR('Tabel 2 S'!D139/'Tabel 1 S'!C139*100,"-")) -> - | F139: =IF(OR('Tabel 1 S'!E139<5,'Tabel 2 S'!F139<0.5),"-",IFERROR('Tabel 2 S'!F139/'Tabel 1 S'!E139*100,"-")) -> 2.53164557 | G139: =IF(OR('Tabel 1 S'!E139<5,'Tabel 2 S'!G139<0.5),"-",IFERROR('Tabel 2 S'!G139/'Tabel 1 S'!E139*100,"-")) -> 2.531171863 | I139: =IF(OR('Tabel 1 S'!G139<5,'Tabel 2 S'!I139<0.5),"-",IFERROR('Tabel 2 S'!I139/'Tabel 1 S'!G139*100,"-")) -> 2.830188679 | J139: =IF(OR('Tabel 1 S'!G139<5,'Tabel 2 S'!J139<0.5),"-",IFERROR('Tabel 2 S'!J139/'Tabel 1 S'!G139*100,"-")) -> 2.176525068
A140: Økonom | C140: =IF(OR('Tabel 1 S'!C140<5,'Tabel 2 S'!C140<0.5),"-",IFERROR('Tabel 2 S'!C140/'Tabel 1 S'!C140*100,"-")) -> 2.702702703 | D140: =IF(OR('Tabel 1 S'!C140<5,'Tabel 2 S'!D140<0.5),"-",IFERROR('Tabel 2 S'!D140/'Tabel 1 S'!C140*100,"-")) -> 1.454769808 | F140: =IF(OR('Tabel 1 S'!E140<5,'Tabel 2 S'!F140<0.5),"-",IFERROR('Tabel 2 S'!F140/'Tabel 1 S'!E140*100,"-")) -> - | G140: =IF(OR('Tabel 1 S'!E140<5,'Tabel 2 S'!G140<0.5),"-",IFERROR('Tabel 2 S'!G140/'Tabel 1 S'!E140*100,"-")) -> - | I140: =IF(OR('Tabel 1 S'!G140<5,'Tabel 2 S'!I140<0.5),"-",IFERROR('Tabel 2 S'!I140/'Tabel 1 S'!G140*100,"-")) -> 1.5625 | J140: =IF(OR('Tabel 1 S'!G140<5,'Tabel 2 S'!J140<0.5),"-",IFERROR('Tabel 2 S'!J140/'Tabel 1 S'!G140*100,"-")) -> 0.841038795
A141: Samf. Adm. | C141: =IF(OR('Tabel 1 S'!C141<5,'Tabel 2 S'!C141<0.5),"-",IFERROR('Tabel 2 S'!C141/'Tabel 1 S'!C141*100,"-")) -> 5 | D141: =IF(OR('Tabel 1 S'!C141<5,'Tabel 2 S'!D141<0.5),"-",IFERROR('Tabel 2 S'!D141/'Tabel 1 S'!C141*100,"-")) -> 3.401318115 | F141: =IF(OR('Tabel 1 S'!E141<5,'Tabel 2 S'!F141<0.5),"-",IFERROR('Tabel 2 S'!F141/'Tabel 1 S'!E141*100,"-")) -> 10.71428571 | G141: =IF(OR('Tabel 1 S'!E141<5,'Tabel 2 S'!G141<0.5),"-",IFERROR('Tabel 2 S'!G141/'Tabel 1 S'!E141*100,"-")) -> 10.32765754 | I141: =IF(OR('Tabel 1 S'!G141<5,'Tabel 2 S'!I141<0.5),"-",IFERROR('Tabel 2 S'!I141/'Tabel 1 S'!G141*100,"-")) -> 8.333333333 | J141: =IF(OR('Tabel 1 S'!G141<5,'Tabel 2 S'!J141<0.5),"-",IFERROR('Tabel 2 S'!J141/'Tabel 1 S'!G141*100,"-")) -> 7.441682779
A142: Cand. Merc. | C142: =IF(OR('Tabel 1 S'!C142<5,'Tabel 2 S'!C142<0.5),"-",IFERROR('Tabel 2 S'!C142/'Tabel 1 S'!C142*100,"-")) -> 2.97029703 | D142: =IF(OR('Tabel 1 S'!C142<5,'Tabel 2 S'!D142<0.5),"-",IFERROR('Tabel 2 S'!D142/'Tabel 1 S'!C142*100,"-")) -> 2.284273834 | F142: =IF(OR('Tabel 1 S'!E142<5,'Tabel 2 S'!F142<0.5),"-",IFERROR('Tabel 2 S'!F142/'Tabel 1 S'!E142*100,"-")) -> 7.619047619 | G142: =IF(OR('Tabel 1 S'!E142<5,'Tabel 2 S'!G142<0.5),"-",IFERROR('Tabel 2 S'!G142/'Tabel 1 S'!E142*100,"-")) -> 6.13080759 | I142: =IF(OR('Tabel 1 S'!G142<5,'Tabel 2 S'!I142<0.5),"-",IFERROR('Tabel 2 S'!I142/'Tabel 1 S'!G142*100,"-")) -> 5.339805825 | J142: =IF(OR('Tabel 1 S'!G142<5,'Tabel 2 S'!J142<0.5),"-",IFERROR('Tabel 2 S'!J142/'Tabel 1 S'!G142*100,"-")) -> 4.2448857
A143: HA | C143: =IF(OR('Tabel 1 S'!C143<5,'Tabel 2 S'!C143<0.5),"-",IFERROR('Tabel 2 S'!C143/'Tabel 1 S'!C143*100,"-")) -> - | D143: =IF(OR('Tabel 1 S'!C143<5,'Tabel 2 S'!D143<0.5),"-",IFERROR('Tabel 2 S'!D143/'Tabel 1 S'!C143*100,"-")) -> - | F143: =IF(OR('Tabel 1 S'!E143<5,'Tabel 2 S'!F143<0.5),"-",IFERROR('Tabel 2 S'!F143/'Tabel 1 S'!E143*100,"-")) -> - | G143: =IF(OR('Tabel 1 S'!E143<5,'Tabel 2 S'!G143<0.5),"-",IFERROR('Tabel 2 S'!G143/'Tabel 1 S'!E143*100,"-")) -> - | I143: =IF(OR('Tabel 1 S'!G143<5,'Tabel 2 S'!I143<0.5),"-",IFERROR('Tabel 2 S'!I143/'Tabel 1 S'!G143*100,"-")) -> - | J143: =IF(OR('Tabel 1 S'!G143<5,'Tabel 2 S'!J143<0.5),"-",IFERROR('Tabel 2 S'!J143/'Tabel 1 S'!G143*100,"-")) -> -
A144: HD | C144: =IF(OR('Tabel 1 S'!C144<5,'Tabel 2 S'!C144<0.5),"-",IFERROR('Tabel 2 S'!C144/'Tabel 1 S'!C144*100,"-")) -> - | D144: =IF(OR('Tabel 1 S'!C144<5,'Tabel 2 S'!D144<0.5),"-",IFERROR('Tabel 2 S'!D144/'Tabel 1 S'!C144*100,"-")) -> - | F144: =IF(OR('Tabel 1 S'!E144<5,'Tabel 2 S'!F144<0.5),"-",IFERROR('Tabel 2 S'!F144/'Tabel 1 S'!E144*100,"-")) -> 9.090909091 | G144: =IF(OR('Tabel 1 S'!E144<5,'Tabel 2 S'!G144<0.5),"-",IFERROR('Tabel 2 S'!G144/'Tabel 1 S'!E144*100,"-")) -> 6.571673197 | I144: =IF(OR('Tabel 1 S'!G144<5,'Tabel 2 S'!I144<0.5),"-",IFERROR('Tabel 2 S'!I144/'Tabel 1 S'!G144*100,"-")) -> 4 | J144: =IF(OR('Tabel 1 S'!G144<5,'Tabel 2 S'!J144<0.5),"-",IFERROR('Tabel 2 S'!J144/'Tabel 1 S'!G144*100,"-")) -> 2.891536207
A145: Komm. og Sprog | C145: =IF(OR('Tabel 1 S'!C145<5,'Tabel 2 S'!C145<0.5),"-",IFERROR('Tabel 2 S'!C145/'Tabel 1 S'!C145*100,"-")) -> - | D145: =IF(OR('Tabel 1 S'!C145<5,'Tabel 2 S'!D145<0.5),"-",IFERROR('Tabel 2 S'!D145/'Tabel 1 S'!C145*100,"-")) -> - | F145: =IF(OR('Tabel 1 S'!E145<5,'Tabel 2 S'!F145<0.5),"-",IFERROR('Tabel 2 S'!F145/'Tabel 1 S'!E145*100,"-")) -> 7.142857143 | G145: =IF(OR('Tabel 1 S'!E145<5,'Tabel 2 S'!G145<0.5),"-",IFERROR('Tabel 2 S'!G145/'Tabel 1 S'!E145*100,"-")) -> 7.141520614 | I145: =IF(OR('Tabel 1 S'!G145<5,'Tabel 2 S'!I145<0.5),"-",IFERROR('Tabel 2 S'!I145/'Tabel 1 S'!G145*100,"-")) -> 6.349206349 | J145: =IF(OR('Tabel 1 S'!G145<5,'Tabel 2 S'!J145<0.5),"-",IFERROR('Tabel 2 S'!J145/'Tabel 1 S'!G145*100,"-")) -> 6.348018323
A146: Cand. IT. | C146: =IF(OR('Tabel 1 S'!C146<5,'Tabel 2 S'!C146<0.5),"-",IFERROR('Tabel 2 S'!C146/'Tabel 1 S'!C146*100,"-")) -> - | D146: =IF(OR('Tabel 1 S'!C146<5,'Tabel 2 S'!D146<0.5),"-",IFERROR('Tabel 2 S'!D146/'Tabel 1 S'!C146*100,"-")) -> - | F146: =IF(OR('Tabel 1 S'!E146<5,'Tabel 2 S'!F146<0.5),"-",IFERROR('Tabel 2 S'!F146/'Tabel 1 S'!E146*100,"-")) -> - | G146: =IF(OR('Tabel 1 S'!E146<5,'Tabel 2 S'!G146<0.5),"-",IFERROR('Tabel 2 S'!G146/'Tabel 1 S'!E146*100,"-")) -> - | I146: =IF(OR('Tabel 1 S'!G146<5,'Tabel 2 S'!I146<0.5),"-",IFERROR('Tabel 2 S'!I146/'Tabel 1 S'!G146*100,"-")) -> 6.666666667 | J146: =IF(OR('Tabel 1 S'!G146<5,'Tabel 2 S'!J146<0.5),"-",IFERROR('Tabel 2 S'!J146/'Tabel 1 S'!G146*100,"-")) -> 3.858708081
A147: Bac. Samf. | C147: =IF(OR('Tabel 1 S'!C147<5,'Tabel 2 S'!C147<0.5),"-",IFERROR('Tabel 2 S'!C147/'Tabel 1 S'!C147*100,"-")) -> - | D147: =IF(OR('Tabel 1 S'!C147<5,'Tabel 2 S'!D147<0.5),"-",IFERROR('Tabel 2 S'!D147/'Tabel 1 S'!C147*100,"-")) -> - | F147: =IF(OR('Tabel 1 S'!E147<5,'Tabel 2 S'!F147<0.5),"-",IFERROR('Tabel 2 S'!F147/'Tabel 1 S'!E147*100,"-")) -> - | G147: =IF(OR('Tabel 1 S'!E147<5,'Tabel 2 S'!G147<0.5),"-",IFERROR('Tabel 2 S'!G147/'Tabel 1 S'!E147*100,"-")) -> - | I147: =IF(OR('Tabel 1 S'!G147<5,'Tabel 2 S'!I147<0.5),"-",IFERROR('Tabel 2 S'!I147/'Tabel 1 S'!G147*100,"-")) -> 16.66666667 | J147: =IF(OR('Tabel 1 S'!G147<5,'Tabel 2 S'!J147<0.5),"-",IFERROR('Tabel 2 S'!J147/'Tabel 1 S'!G147*100,"-")) -> 16.6635481
A148: Bac. Hum. | C148: =IF(OR('Tabel 1 S'!C148<5,'Tabel 2 S'!C148<0.5),"-",IFERROR('Tabel 2 S'!C148/'Tabel 1 S'!C148*100,"-")) -> 20 | D148: =IF(OR('Tabel 1 S'!C148<5,'Tabel 2 S'!D148<0.5),"-",IFERROR('Tabel 2 S'!D148/'Tabel 1 S'!C148*100,"-")) -> 19.99625772 | F148: =IF(OR('Tabel 1 S'!E148<5,'Tabel 2 S'!F148<0.5),"-",IFERROR('Tabel 2 S'!F148/'Tabel 1 S'!E148*100,"-")) -> 5.555555556 | G148: =IF(OR('Tabel 1 S'!E148<5,'Tabel 2 S'!G148<0.5),"-",IFERROR('Tabel 2 S'!G148/'Tabel 1 S'!E148*100,"-")) -> 5.554516033 | I148: =IF(OR('Tabel 1 S'!G148<5,'Tabel 2 S'!I148<0.5),"-",IFERROR('Tabel 2 S'!I148/'Tabel 1 S'!G148*100,"-")) -> 8.695652174 | J148: =IF(OR('Tabel 1 S'!G148<5,'Tabel 2 S'!J148<0.5),"-",IFERROR('Tabel 2 S'!J148/'Tabel 1 S'!G148*100,"-")) -> 8.694025095
A149: Bac. Nat. | C149: =IF(OR('Tabel 1 S'!C149<5,'Tabel 2 S'!C149<0.5),"-",IFERROR('Tabel 2 S'!C149/'Tabel 1 S'!C149*100,"-")) -> - | D149: =IF(OR('Tabel 1 S'!C149<5,'Tabel 2 S'!D149<0.5),"-",IFERROR('Tabel 2 S'!D149/'Tabel 1 S'!C149*100,"-")) -> - | F149: =IF(OR('Tabel 1 S'!E149<5,'Tabel 2 S'!F149<0.5),"-",IFERROR('Tabel 2 S'!F149/'Tabel 1 S'!E149*100,"-")) -> - | G149: =IF(OR('Tabel 1 S'!E149<5,'Tabel 2 S'!G149<0.5),"-",IFERROR('Tabel 2 S'!G149/'Tabel 1 S'!E149*100,"-")) -> - | I149: =IF(OR('Tabel 1 S'!G149<5,'Tabel 2 S'!I149<0.5),"-",IFERROR('Tabel 2 S'!I149/'Tabel 1 S'!G149*100,"-")) -> - | J149: =IF(OR('Tabel 1 S'!G149<5,'Tabel 2 S'!J149<0.5),"-",IFERROR('Tabel 2 S'!J149/'Tabel 1 S'!G149*100,"-")) -> -
A150: Andre | C150: =IF(OR('Tabel 1 S'!C150<5,'Tabel 2 S'!C150<0.5),"-",IFERROR('Tabel 2 S'!C150/'Tabel 1 S'!C150*100,"-")) -> 2.631578947 | D150: =IF(OR('Tabel 1 S'!C150<5,'Tabel 2 S'!D150<0.5),"-",IFERROR('Tabel 2 S'!D150/'Tabel 1 S'!C150*100,"-")) -> 1.841596444 | F150: =IF(OR('Tabel 1 S'!E150<5,'Tabel 2 S'!F150<0.5),"-",IFERROR('Tabel 2 S'!F150/'Tabel 1 S'!E150*100,"-")) -> 13.43283582 | G150: =IF(OR('Tabel 1 S'!E150<5,'Tabel 2 S'!G150<0.5),"-",IFERROR('Tabel 2 S'!G150/'Tabel 1 S'!E150*100,"-")) -> 12.4854428 | I150: =IF(OR('Tabel 1 S'!G150<5,'Tabel 2 S'!I150<0.5),"-",IFERROR('Tabel 2 S'!I150/'Tabel 1 S'!G150*100,"-")) -> 7.692307692 | J150: =IF(OR('Tabel 1 S'!G150<5,'Tabel 2 S'!J150<0.5),"-",IFERROR('Tabel 2 S'!J150/'Tabel 1 S'!G150*100,"-")) -> 6.82857341
A152: Total | C152: =IF(OR('Tabel 1 S'!C152<5,'Tabel 2 S'!C152<0.5),"-",IFERROR('Tabel 2 S'!C152/'Tabel 1 S'!C152*100,"-")) -> 3.125 | D152: =IF(OR('Tabel 1 S'!C152<5,'Tabel 2 S'!D152<0.5),"-",IFERROR('Tabel 2 S'!D152/'Tabel 1 S'!C152*100,"-")) -> 2.42852573 | F152: =IF(OR('Tabel 1 S'!E152<5,'Tabel 2 S'!F152<0.5),"-",IFERROR('Tabel 2 S'!F152/'Tabel 1 S'!E152*100,"-")) -> 6.617647059 | G152: =IF(OR('Tabel 1 S'!E152<5,'Tabel 2 S'!G152<0.5),"-",IFERROR('Tabel 2 S'!G152/'Tabel 1 S'!E152*100,"-")) -> 5.864340918 | I152: =IF(OR('Tabel 1 S'!G152<5,'Tabel 2 S'!I152<0.5),"-",IFERROR('Tabel 2 S'!I152/'Tabel 1 S'!G152*100,"-")) -> 4.89738806 | J152: =IF(OR('Tabel 1 S'!G152<5,'Tabel 2 S'!J152<0.5),"-",IFERROR('Tabel 2 S'!J152/'Tabel 1 S'!G152*100,"-")) -> 4.172073736
A154: Ingeniører i alt | C154: =IF(OR('Tabel 1 S'!C154<5,'Tabel 2 S'!C154<0.5),"-",IFERROR('Tabel 2 S'!C154/'Tabel 1 S'!C154*100,"-")) -> 1.654846336 | D154: =IF(OR('Tabel 1 S'!C154<5,'Tabel 2 S'!D154<0.5),"-",IFERROR('Tabel 2 S'!D154/'Tabel 1 S'!C154*100,"-")) -> 1.302131139 | F154: =IF(OR('Tabel 1 S'!E154<5,'Tabel 2 S'!F154<0.5),"-",IFERROR('Tabel 2 S'!F154/'Tabel 1 S'!E154*100,"-")) -> 4.761904762 | G154: =IF(OR('Tabel 1 S'!E154<5,'Tabel 2 S'!G154<0.5),"-",IFERROR('Tabel 2 S'!G154/'Tabel 1 S'!E154*100,"-")) -> 4.101659375 | I154: =IF(OR('Tabel 1 S'!G154<5,'Tabel 2 S'!I154<0.5),"-",IFERROR('Tabel 2 S'!I154/'Tabel 1 S'!G154*100,"-")) -> 2.272727273 | J154: =IF(OR('Tabel 1 S'!G154<5,'Tabel 2 S'!J154<0.5),"-",IFERROR('Tabel 2 S'!J154/'Tabel 1 S'!G154*100,"-")) -> 1.858855504
A155: Magistre i alt | C155: =IF(OR('Tabel 1 S'!C155<5,'Tabel 2 S'!C155<0.5),"-",IFERROR('Tabel 2 S'!C155/'Tabel 1 S'!C155*100,"-")) -> 4.385964912 | D155: =IF(OR('Tabel 1 S'!C155<5,'Tabel 2 S'!D155<0.5),"-",IFERROR('Tabel 2 S'!D155/'Tabel 1 S'!C155*100,"-")) -> 3.127321829 | F155: =IF(OR('Tabel 1 S'!E155<5,'Tabel 2 S'!F155<0.5),"-",IFERROR('Tabel 2 S'!F155/'Tabel 1 S'!E155*100,"-")) -> 7.692307692 | G155: =IF(OR('Tabel 1 S'!E155<5,'Tabel 2 S'!G155<0.5),"-",IFERROR('Tabel 2 S'!G155/'Tabel 1 S'!E155*100,"-")) -> 7.255335017 | I155: =IF(OR('Tabel 1 S'!G155<5,'Tabel 2 S'!I155<0.5),"-",IFERROR('Tabel 2 S'!I155/'Tabel 1 S'!G155*100,"-")) -> 6.609195402 | J155: =IF(OR('Tabel 1 S'!G155<5,'Tabel 2 S'!J155<0.5),"-",IFERROR('Tabel 2 S'!J155/'Tabel 1 S'!G155*100,"-")) -> 5.903054834
A156: DJØF'ere i alt | C156: =IF(OR('Tabel 1 S'!C156<5,'Tabel 2 S'!C156<0.5),"-",IFERROR('Tabel 2 S'!C156/'Tabel 1 S'!C156*100,"-")) -> 3.212851406 | D156: =IF(OR('Tabel 1 S'!C156<5,'Tabel 2 S'!D156<0.5),"-",IFERROR('Tabel 2 S'!D156/'Tabel 1 S'!C156*100,"-")) -> 2.085808462 | F156: =IF(OR('Tabel 1 S'!E156<5,'Tabel 2 S'!F156<0.5),"-",IFERROR('Tabel 2 S'!F156/'Tabel 1 S'!E156*100,"-")) -> 6.031746032 | G156: =IF(OR('Tabel 1 S'!E156<5,'Tabel 2 S'!G156<0.5),"-",IFERROR('Tabel 2 S'!G156/'Tabel 1 S'!E156*100,"-")) -> 5.432446373 | I156: =IF(OR('Tabel 1 S'!G156<5,'Tabel 2 S'!I156<0.5),"-",IFERROR('Tabel 2 S'!I156/'Tabel 1 S'!G156*100,"-")) -> 4.787234043 | J156: =IF(OR('Tabel 1 S'!G156<5,'Tabel 2 S'!J156<0.5),"-",IFERROR('Tabel 2 S'!J156/'Tabel 1 S'!G156*100,"-")) -> 3.954941338
A161: ='Tabel 2 S'!A161 -> Roskilde
C163: Mænd | F163: Kvinder | I163: I alt
C164: Ledigheds- berørte | D164: Gns. brutto- ledighed | F164: Ledigheds- berørte | G164: Gns. brutto- ledighed | I164: Ledigheds- berørte | J164: Gns. brutto- ledighed
A167: Civ. ing. | C167: =IF(OR('Tabel 1 S'!C167<5,'Tabel 2 S'!C167<0.5),"-",IFERROR('Tabel 2 S'!C167/'Tabel 1 S'!C167*100,"-")) -> 1.004016064 | D167: =IF(OR('Tabel 1 S'!C167<5,'Tabel 2 S'!D167<0.5),"-",IFERROR('Tabel 2 S'!D167/'Tabel 1 S'!C167*100,"-")) -> 0.846271633 | F167: =IF(OR('Tabel 1 S'!E167<5,'Tabel 2 S'!F167<0.5),"-",IFERROR('Tabel 2 S'!F167/'Tabel 1 S'!E167*100,"-")) -> 2.747252747 | G167: =IF(OR('Tabel 1 S'!E167<5,'Tabel 2 S'!G167<0.5),"-",IFERROR('Tabel 2 S'!G167/'Tabel 1 S'!E167*100,"-")) -> 2.290262597 | I167: =IF(OR('Tabel 1 S'!G167<5,'Tabel 2 S'!I167<0.5),"-",IFERROR('Tabel 2 S'!I167/'Tabel 1 S'!G167*100,"-")) -> 1.470588235 | J167: =IF(OR('Tabel 1 S'!G167<5,'Tabel 2 S'!J167<0.5),"-",IFERROR('Tabel 2 S'!J167/'Tabel 1 S'!G167*100,"-")) -> 1.232751568
A168: Diplom ing. | C168: =IF(OR('Tabel 1 S'!C168<5,'Tabel 2 S'!C168<0.5),"-",IFERROR('Tabel 2 S'!C168/'Tabel 1 S'!C168*100,"-")) -> 2.083333333 | D168: =IF(OR('Tabel 1 S'!C168<5,'Tabel 2 S'!D168<0.5),"-",IFERROR('Tabel 2 S'!D168/'Tabel 1 S'!C168*100,"-")) -> 2.003879818 | F168: =IF(OR('Tabel 1 S'!E168<5,'Tabel 2 S'!F168<0.5),"-",IFERROR('Tabel 2 S'!F168/'Tabel 1 S'!E168*100,"-")) -> 2.547770701 | G168: =IF(OR('Tabel 1 S'!E168<5,'Tabel 2 S'!G168<0.5),"-",IFERROR('Tabel 2 S'!G168/'Tabel 1 S'!E168*100,"-")) -> 1.600202767 | I168: =IF(OR('Tabel 1 S'!G168<5,'Tabel 2 S'!I168<0.5),"-",IFERROR('Tabel 2 S'!I168/'Tabel 1 S'!G168*100,"-")) -> 2.176696543 | J168: =IF(OR('Tabel 1 S'!G168<5,'Tabel 2 S'!J168<0.5),"-",IFERROR('Tabel 2 S'!J168/'Tabel 1 S'!G168*100,"-")) -> 1.92273091
A169: Cand. Scient. Tek. | C169: =IF(OR('Tabel 1 S'!C169<5,'Tabel 2 S'!C169<0.5),"-",IFERROR('Tabel 2 S'!C169/'Tabel 1 S'!C169*100,"-")) -> 8.904109589 | D169: =IF(OR('Tabel 1 S'!C169<5,'Tabel 2 S'!D169<0.5),"-",IFERROR('Tabel 2 S'!D169/'Tabel 1 S'!C169*100,"-")) -> 8.334693257 | F169: =IF(OR('Tabel 1 S'!E169<5,'Tabel 2 S'!F169<0.5),"-",IFERROR('Tabel 2 S'!F169/'Tabel 1 S'!E169*100,"-")) -> 6.206896552 | G169: =IF(OR('Tabel 1 S'!E169<5,'Tabel 2 S'!G169<0.5),"-",IFERROR('Tabel 2 S'!G169/'Tabel 1 S'!E169*100,"-")) -> 4.325561288 | I169: =IF(OR('Tabel 1 S'!G169<5,'Tabel 2 S'!I169<0.5),"-",IFERROR('Tabel 2 S'!I169/'Tabel 1 S'!G169*100,"-")) -> 7.560137457 | J169: =IF(OR('Tabel 1 S'!G169<5,'Tabel 2 S'!J169<0.5),"-",IFERROR('Tabel 2 S'!J169/'Tabel 1 S'!G169*100,"-")) -> 6.337015816
A170: MA. Hum. | C170: =IF(OR('Tabel 1 S'!C170<5,'Tabel 2 S'!C170<0.5),"-",IFERROR('Tabel 2 S'!C170/'Tabel 1 S'!C170*100,"-")) -> 6.153846154 | D170: =IF(OR('Tabel 1 S'!C170<5,'Tabel 2 S'!D170<0.5),"-",IFERROR('Tabel 2 S'!D170/'Tabel 1 S'!C170*100,"-")) -> 5.560966404 | F170: =IF(OR('Tabel 1 S'!E170<5,'Tabel 2 S'!F170<0.5),"-",IFERROR('Tabel 2 S'!F170/'Tabel 1 S'!E170*100,"-")) -> 7.855626327 | G170: =IF(OR('Tabel 1 S'!E170<5,'Tabel 2 S'!G170<0.5),"-",IFERROR('Tabel 2 S'!G170/'Tabel 1 S'!E170*100,"-")) -> 6.889585347 | I170: =IF(OR('Tabel 1 S'!G170<5,'Tabel 2 S'!I170<0.5),"-",IFERROR('Tabel 2 S'!I170/'Tabel 1 S'!G170*100,"-")) -> 7.357357357 | J170: =IF(OR('Tabel 1 S'!G170<5,'Tabel 2 S'!J170<0.5),"-",IFERROR('Tabel 2 S'!J170/'Tabel 1 S'!G170*100,"-")) -> 6.500575296
A171: MA. Nat. | C171: =IF(OR('Tabel 1 S'!C171<5,'Tabel 2 S'!C171<0.5),"-",IFERROR('Tabel 2 S'!C171/'Tabel 1 S'!C171*100,"-")) -> 2.010050251 | D171: =IF(OR('Tabel 1 S'!C171<5,'Tabel 2 S'!D171<0.5),"-",IFERROR('Tabel 2 S'!D171/'Tabel 1 S'!C171*100,"-")) -> 1.957959197 | F171: =IF(OR('Tabel 1 S'!E171<5,'Tabel 2 S'!F171<0.5),"-",IFERROR('Tabel 2 S'!F171/'Tabel 1 S'!E171*100,"-")) -> 4.663212435 | G171: =IF(OR('Tabel 1 S'!E171<5,'Tabel 2 S'!G171<0.5),"-",IFERROR('Tabel 2 S'!G171/'Tabel 1 S'!E171*100,"-")) -> 4.407360596 | I171: =IF(OR('Tabel 1 S'!G171<5,'Tabel 2 S'!I171<0.5),"-",IFERROR('Tabel 2 S'!I171/'Tabel 1 S'!G171*100,"-")) -> 3.316326531 | J171: =IF(OR('Tabel 1 S'!G171<5,'Tabel 2 S'!J171<0.5),"-",IFERROR('Tabel 2 S'!J171/'Tabel 1 S'!G171*100,"-")) -> 3.163914477
A172: MA. Ph.d. | C172: =IF(OR('Tabel 1 S'!C172<5,'Tabel 2 S'!C172<0.5),"-",IFERROR('Tabel 2 S'!C172/'Tabel 1 S'!C172*100,"-")) -> 3.03030303 | D172: =IF(OR('Tabel 1 S'!C172<5,'Tabel 2 S'!D172<0.5),"-",IFERROR('Tabel 2 S'!D172/'Tabel 1 S'!C172*100,"-")) -> 1.93162209 | F172: =IF(OR('Tabel 1 S'!E172<5,'Tabel 2 S'!F172<0.5),"-",IFERROR('Tabel 2 S'!F172/'Tabel 1 S'!E172*100,"-")) -> 6.25 | G172: =IF(OR('Tabel 1 S'!E172<5,'Tabel 2 S'!G172<0.5),"-",IFERROR('Tabel 2 S'!G172/'Tabel 1 S'!E172*100,"-")) -> 5.960363001 | I172: =IF(OR('Tabel 1 S'!G172<5,'Tabel 2 S'!I172<0.5),"-",IFERROR('Tabel 2 S'!I172/'Tabel 1 S'!G172*100,"-")) -> 4.081632653 | J172: =IF(OR('Tabel 1 S'!G172<5,'Tabel 2 S'!J172<0.5),"-",IFERROR('Tabel 2 S'!J172/'Tabel 1 S'!G172*100,"-")) -> 3.247129326
A173: MA. Samf. | C173: =IF(OR('Tabel 1 S'!C173<5,'Tabel 2 S'!C173<0.5),"-",IFERROR('Tabel 2 S'!C173/'Tabel 1 S'!C173*100,"-")) -> 10.52631579 | D173: =IF(OR('Tabel 1 S'!C173<5,'Tabel 2 S'!D173<0.5),"-",IFERROR('Tabel 2 S'!D173/'Tabel 1 S'!C173*100,"-")) -> 8.702445942 | F173: =IF(OR('Tabel 1 S'!E173<5,'Tabel 2 S'!F173<0.5),"-",IFERROR('Tabel 2 S'!F173/'Tabel 1 S'!E173*100,"-")) -> 15.78947368 | G173: =IF(OR('Tabel 1 S'!E173<5,'Tabel 2 S'!G173<0.5),"-",IFERROR('Tabel 2 S'!G173/'Tabel 1 S'!E173*100,"-")) -> 14.1960496 | I173: =IF(OR('Tabel 1 S'!G173<5,'Tabel 2 S'!I173<0.5),"-",IFERROR('Tabel 2 S'!I173/'Tabel 1 S'!G173*100,"-")) -> 14.03508772 | J173: =IF(OR('Tabel 1 S'!G173<5,'Tabel 2 S'!J173<0.5),"-",IFERROR('Tabel 2 S'!J173/'Tabel 1 S'!G173*100,"-")) -> 12.36484838
A174: Øvrige Mag. | C174: =IF(OR('Tabel 1 S'!C174<5,'Tabel 2 S'!C174<0.5),"-",IFERROR('Tabel 2 S'!C174/'Tabel 1 S'!C174*100,"-")) -> 10 | D174: =IF(OR('Tabel 1 S'!C174<5,'Tabel 2 S'!D174<0.5),"-",IFERROR('Tabel 2 S'!D174/'Tabel 1 S'!C174*100,"-")) -> 9.998128859 | F174: =IF(OR('Tabel 1 S'!E174<5,'Tabel 2 S'!F174<0.5),"-",IFERROR('Tabel 2 S'!F174/'Tabel 1 S'!E174*100,"-")) -> 2.777777778 | G174: =IF(OR('Tabel 1 S'!E174<5,'Tabel 2 S'!G174<0.5),"-",IFERROR('Tabel 2 S'!G174/'Tabel 1 S'!E174*100,"-")) -> 2.649050223 | I174: =IF(OR('Tabel 1 S'!G174<5,'Tabel 2 S'!I174<0.5),"-",IFERROR('Tabel 2 S'!I174/'Tabel 1 S'!G174*100,"-")) -> 5.357142857 | J174: =IF(OR('Tabel 1 S'!G174<5,'Tabel 2 S'!J174<0.5),"-",IFERROR('Tabel 2 S'!J174/'Tabel 1 S'!G174*100,"-")) -> 5.273721164
A175: Agronom | C175: =IF(OR('Tabel 1 S'!C175<5,'Tabel 2 S'!C175<0.5),"-",IFERROR('Tabel 2 S'!C175/'Tabel 1 S'!C175*100,"-")) -> 2.702702703 | D175: =IF(OR('Tabel 1 S'!C175<5,'Tabel 2 S'!D175<0.5),"-",IFERROR('Tabel 2 S'!D175/'Tabel 1 S'!C175*100,"-")) -> 2.702196989 | F175: =IF(OR('Tabel 1 S'!E175<5,'Tabel 2 S'!F175<0.5),"-",IFERROR('Tabel 2 S'!F175/'Tabel 1 S'!E175*100,"-")) -> 4.761904762 | G175: =IF(OR('Tabel 1 S'!E175<5,'Tabel 2 S'!G175<0.5),"-",IFERROR('Tabel 2 S'!G175/'Tabel 1 S'!E175*100,"-")) -> 4.541228953 | I175: =IF(OR('Tabel 1 S'!G175<5,'Tabel 2 S'!I175<0.5),"-",IFERROR('Tabel 2 S'!I175/'Tabel 1 S'!G175*100,"-")) -> 3.797468354 | J175: =IF(OR('Tabel 1 S'!G175<5,'Tabel 2 S'!J175<0.5),"-",IFERROR('Tabel 2 S'!J175/'Tabel 1 S'!G175*100,"-")) -> 3.679910185
A176: Landsk. Arkt. | C176: =IF(OR('Tabel 1 S'!C176<5,'Tabel 2 S'!C176<0.5),"-",IFERROR('Tabel 2 S'!C176/'Tabel 1 S'!C176*100,"-")) -> - | D176: =IF(OR('Tabel 1 S'!C176<5,'Tabel 2 S'!D176<0.5),"-",IFERROR('Tabel 2 S'!D176/'Tabel 1 S'!C176*100,"-")) -> - | F176: =IF(OR('Tabel 1 S'!E176<5,'Tabel 2 S'!F176<0.5),"-",IFERROR('Tabel 2 S'!F176/'Tabel 1 S'!E176*100,"-")) -> 4.545454545 | G176: =IF(OR('Tabel 1 S'!E176<5,'Tabel 2 S'!G176<0.5),"-",IFERROR('Tabel 2 S'!G176/'Tabel 1 S'!E176*100,"-")) -> 4.312128961 | I176: =IF(OR('Tabel 1 S'!G176<5,'Tabel 2 S'!I176<0.5),"-",IFERROR('Tabel 2 S'!I176/'Tabel 1 S'!G176*100,"-")) -> 4 | J176: =IF(OR('Tabel 1 S'!G176<5,'Tabel 2 S'!J176<0.5),"-",IFERROR('Tabel 2 S'!J176/'Tabel 1 S'!G176*100,"-")) -> 3.794673486
A177: Hortonom | C177: =IF(OR('Tabel 1 S'!C177<5,'Tabel 2 S'!C177<0.5),"-",IFERROR('Tabel 2 S'!C177/'Tabel 1 S'!C177*100,"-")) -> - | D177: =IF(OR('Tabel 1 S'!C177<5,'Tabel 2 S'!D177<0.5),"-",IFERROR('Tabel 2 S'!D177/'Tabel 1 S'!C177*100,"-")) -> - | F177: =IF(OR('Tabel 1 S'!E177<5,'Tabel 2 S'!F177<0.5),"-",IFERROR('Tabel 2 S'!F177/'Tabel 1 S'!E177*100,"-")) -> - | G177: =IF(OR('Tabel 1 S'!E177<5,'Tabel 2 S'!G177<0.5),"-",IFERROR('Tabel 2 S'!G177/'Tabel 1 S'!E177*100,"-")) -> - | I177: =IF(OR('Tabel 1 S'!G177<5,'Tabel 2 S'!I177<0.5),"-",IFERROR('Tabel 2 S'!I177/'Tabel 1 S'!G177*100,"-")) -> - | J177: =IF(OR('Tabel 1 S'!G177<5,'Tabel 2 S'!J177<0.5),"-",IFERROR('Tabel 2 S'!J177/'Tabel 1 S'!G177*100,"-")) -> -
A178: Forstkand. | C178: =IF(OR('Tabel 1 S'!C178<5,'Tabel 2 S'!C178<0.5),"-",IFERROR('Tabel 2 S'!C178/'Tabel 1 S'!C178*100,"-")) -> - | D178: =IF(OR('Tabel 1 S'!C178<5,'Tabel 2 S'!D178<0.5),"-",IFERROR('Tabel 2 S'!D178/'Tabel 1 S'!C178*100,"-")) -> - | F178: =IF(OR('Tabel 1 S'!E178<5,'Tabel 2 S'!F178<0.5),"-",IFERROR('Tabel 2 S'!F178/'Tabel 1 S'!E178*100,"-")) -> - | G178: =IF(OR('Tabel 1 S'!E178<5,'Tabel 2 S'!G178<0.5),"-",IFERROR('Tabel 2 S'!G178/'Tabel 1 S'!E178*100,"-")) -> - | I178: =IF(OR('Tabel 1 S'!G178<5,'Tabel 2 S'!I178<0.5),"-",IFERROR('Tabel 2 S'!I178/'Tabel 1 S'!G178*100,"-")) -> - | J178: =IF(OR('Tabel 1 S'!G178<5,'Tabel 2 S'!J178<0.5),"-",IFERROR('Tabel 2 S'!J178/'Tabel 1 S'!G178*100,"-")) -> -
A179: Jordbrugsakad. | C179: =IF(OR('Tabel 1 S'!C179<5,'Tabel 2 S'!C179<0.5),"-",IFERROR('Tabel 2 S'!C179/'Tabel 1 S'!C179*100,"-")) -> 1.923076923 | D179: =IF(OR('Tabel 1 S'!C179<5,'Tabel 2 S'!D179<0.5),"-",IFERROR('Tabel 2 S'!D179/'Tabel 1 S'!C179*100,"-")) -> 1.922717088 | F179: =IF(OR('Tabel 1 S'!E179<5,'Tabel 2 S'!F179<0.5),"-",IFERROR('Tabel 2 S'!F179/'Tabel 1 S'!E179*100,"-")) -> 4.347826087 | G179: =IF(OR('Tabel 1 S'!E179<5,'Tabel 2 S'!G179<0.5),"-",IFERROR('Tabel 2 S'!G179/'Tabel 1 S'!E179*100,"-")) -> 4.139108017 | I179: =IF(OR('Tabel 1 S'!G179<5,'Tabel 2 S'!I179<0.5),"-",IFERROR('Tabel 2 S'!I179/'Tabel 1 S'!G179*100,"-")) -> 3.305785124 | J179: =IF(OR('Tabel 1 S'!G179<5,'Tabel 2 S'!J179<0.5),"-",IFERROR('Tabel 2 S'!J179/'Tabel 1 S'!G179*100,"-")) -> 3.186609436
A180: Mejeriing. | C180: =IF(OR('Tabel 1 S'!C180<5,'Tabel 2 S'!C180<0.5),"-",IFERROR('Tabel 2 S'!C180/'Tabel 1 S'!C180*100,"-")) -> - | D180: =IF(OR('Tabel 1 S'!C180<5,'Tabel 2 S'!D180<0.5),"-",IFERROR('Tabel 2 S'!D180/'Tabel 1 S'!C180*100,"-")) -> - | F180: =IF(OR('Tabel 1 S'!E180<5,'Tabel 2 S'!F180<0.5),"-",IFERROR('Tabel 2 S'!F180/'Tabel 1 S'!E180*100,"-")) -> - | G180: =IF(OR('Tabel 1 S'!E180<5,'Tabel 2 S'!G180<0.5),"-",IFERROR('Tabel 2 S'!G180/'Tabel 1 S'!E180*100,"-")) -> - | I180: =IF(OR('Tabel 1 S'!G180<5,'Tabel 2 S'!I180<0.5),"-",IFERROR('Tabel 2 S'!I180/'Tabel 1 S'!G180*100,"-")) -> - | J180: =IF(OR('Tabel 1 S'!G180<5,'Tabel 2 S'!J180<0.5),"-",IFERROR('Tabel 2 S'!J180/'Tabel 1 S'!G180*100,"-")) -> -
A181: Levn.m.kand. | C181: =IF(OR('Tabel 1 S'!C181<5,'Tabel 2 S'!C181<0.5),"-",IFERROR('Tabel 2 S'!C181/'Tabel 1 S'!C181*100,"-")) -> - | D181: =IF(OR('Tabel 1 S'!C181<5,'Tabel 2 S'!D181<0.5),"-",IFERROR('Tabel 2 S'!D181/'Tabel 1 S'!C181*100,"-")) -> - | F181: =IF(OR('Tabel 1 S'!E181<5,'Tabel 2 S'!F181<0.5),"-",IFERROR('Tabel 2 S'!F181/'Tabel 1 S'!E181*100,"-")) -> - | G181: =IF(OR('Tabel 1 S'!E181<5,'Tabel 2 S'!G181<0.5),"-",IFERROR('Tabel 2 S'!G181/'Tabel 1 S'!E181*100,"-")) -> - | I181: =IF(OR('Tabel 1 S'!G181<5,'Tabel 2 S'!I181<0.5),"-",IFERROR('Tabel 2 S'!I181/'Tabel 1 S'!G181*100,"-")) -> - | J181: =IF(OR('Tabel 1 S'!G181<5,'Tabel 2 S'!J181<0.5),"-",IFERROR('Tabel 2 S'!J181/'Tabel 1 S'!G181*100,"-")) -> -
A182: Dyrlæge | C182: =IF(OR('Tabel 1 S'!C182<5,'Tabel 2 S'!C182<0.5),"-",IFERROR('Tabel 2 S'!C182/'Tabel 1 S'!C182*100,"-")) -> - | D182: =IF(OR('Tabel 1 S'!C182<5,'Tabel 2 S'!D182<0.5),"-",IFERROR('Tabel 2 S'!D182/'Tabel 1 S'!C182*100,"-")) -> - | F182: =IF(OR('Tabel 1 S'!E182<5,'Tabel 2 S'!F182<0.5),"-",IFERROR('Tabel 2 S'!F182/'Tabel 1 S'!E182*100,"-")) -> 7.142857143 | G182: =IF(OR('Tabel 1 S'!E182<5,'Tabel 2 S'!G182<0.5),"-",IFERROR('Tabel 2 S'!G182/'Tabel 1 S'!E182*100,"-")) -> 5.533230569 | I182: =IF(OR('Tabel 1 S'!G182<5,'Tabel 2 S'!I182<0.5),"-",IFERROR('Tabel 2 S'!I182/'Tabel 1 S'!G182*100,"-")) -> 5.084745763 | J182: =IF(OR('Tabel 1 S'!G182<5,'Tabel 2 S'!J182<0.5),"-",IFERROR('Tabel 2 S'!J182/'Tabel 1 S'!G182*100,"-")) -> 3.938909897
A183: Farmaceut | C183: =IF(OR('Tabel 1 S'!C183<5,'Tabel 2 S'!C183<0.5),"-",IFERROR('Tabel 2 S'!C183/'Tabel 1 S'!C183*100,"-")) -> 5.263157895 | D183: =IF(OR('Tabel 1 S'!C183<5,'Tabel 2 S'!D183<0.5),"-",IFERROR('Tabel 2 S'!D183/'Tabel 1 S'!C183*100,"-")) -> 5.262173084 | F183: =IF(OR('Tabel 1 S'!E183<5,'Tabel 2 S'!F183<0.5),"-",IFERROR('Tabel 2 S'!F183/'Tabel 1 S'!E183*100,"-")) -> 1.62601626 | G183: =IF(OR('Tabel 1 S'!E183<5,'Tabel 2 S'!G183<0.5),"-",IFERROR('Tabel 2 S'!G183/'Tabel 1 S'!E183*100,"-")) -> 1.47561508 | I183: =IF(OR('Tabel 1 S'!G183<5,'Tabel 2 S'!I183<0.5),"-",IFERROR('Tabel 2 S'!I183/'Tabel 1 S'!G183*100,"-")) -> 2.48447205 | J183: =IF(OR('Tabel 1 S'!G183<5,'Tabel 2 S'!J183<0.5),"-",IFERROR('Tabel 2 S'!J183/'Tabel 1 S'!G183*100,"-")) -> 2.369336845
A184: Læge | C184: =IF(OR('Tabel 1 S'!C184<5,'Tabel 2 S'!C184<0.5),"-",IFERROR('Tabel 2 S'!C184/'Tabel 1 S'!C184*100,"-")) -> 1.408450704 | D184: =IF(OR('Tabel 1 S'!C184<5,'Tabel 2 S'!D184<0.5),"-",IFERROR('Tabel 2 S'!D184/'Tabel 1 S'!C184*100,"-")) -> 1.278173626 | F184: =IF(OR('Tabel 1 S'!E184<5,'Tabel 2 S'!F184<0.5),"-",IFERROR('Tabel 2 S'!F184/'Tabel 1 S'!E184*100,"-")) -> - | G184: =IF(OR('Tabel 1 S'!E184<5,'Tabel 2 S'!G184<0.5),"-",IFERROR('Tabel 2 S'!G184/'Tabel 1 S'!E184*100,"-")) -> - | I184: =IF(OR('Tabel 1 S'!G184<5,'Tabel 2 S'!I184<0.5),"-",IFERROR('Tabel 2 S'!I184/'Tabel 1 S'!G184*100,"-")) -> 0.4587155963 | J184: =IF(OR('Tabel 1 S'!G184<5,'Tabel 2 S'!J184<0.5),"-",IFERROR('Tabel 2 S'!J184/'Tabel 1 S'!G184*100,"-")) -> 0.4162859057
A185: Tandlæge | C185: =IF(OR('Tabel 1 S'!C185<5,'Tabel 2 S'!C185<0.5),"-",IFERROR('Tabel 2 S'!C185/'Tabel 1 S'!C185*100,"-")) -> - | D185: =IF(OR('Tabel 1 S'!C185<5,'Tabel 2 S'!D185<0.5),"-",IFERROR('Tabel 2 S'!D185/'Tabel 1 S'!C185*100,"-")) -> - | F185: =IF(OR('Tabel 1 S'!E185<5,'Tabel 2 S'!F185<0.5),"-",IFERROR('Tabel 2 S'!F185/'Tabel 1 S'!E185*100,"-")) -> - | G185: =IF(OR('Tabel 1 S'!E185<5,'Tabel 2 S'!G185<0.5),"-",IFERROR('Tabel 2 S'!G185/'Tabel 1 S'!E185*100,"-")) -> - | I185: =IF(OR('Tabel 1 S'!G185<5,'Tabel 2 S'!I185<0.5),"-",IFERROR('Tabel 2 S'!I185/'Tabel 1 S'!G185*100,"-")) -> - | J185: =IF(OR('Tabel 1 S'!G185<5,'Tabel 2 S'!J185<0.5),"-",IFERROR('Tabel 2 S'!J185/'Tabel 1 S'!G185*100,"-")) -> -
A186: Arkitekt | C186: =IF(OR('Tabel 1 S'!C186<5,'Tabel 2 S'!C186<0.5),"-",IFERROR('Tabel 2 S'!C186/'Tabel 1 S'!C186*100,"-")) -> 3.846153846 | D186: =IF(OR('Tabel 1 S'!C186<5,'Tabel 2 S'!D186<0.5),"-",IFERROR('Tabel 2 S'!D186/'Tabel 1 S'!C186*100,"-")) -> 3.845434177 | F186: =IF(OR('Tabel 1 S'!E186<5,'Tabel 2 S'!F186<0.5),"-",IFERROR('Tabel 2 S'!F186/'Tabel 1 S'!E186*100,"-")) -> 8.108108108 | G186: =IF(OR('Tabel 1 S'!E186<5,'Tabel 2 S'!G186<0.5),"-",IFERROR('Tabel 2 S'!G186/'Tabel 1 S'!E186*100,"-")) -> 4.740223289 | I186: =IF(OR('Tabel 1 S'!G186<5,'Tabel 2 S'!I186<0.5),"-",IFERROR('Tabel 2 S'!I186/'Tabel 1 S'!G186*100,"-")) -> 6.349206349 | J186: =IF(OR('Tabel 1 S'!G186<5,'Tabel 2 S'!J186<0.5),"-",IFERROR('Tabel 2 S'!J186/'Tabel 1 S'!G186*100,"-")) -> 4.370945243
A187: Landinspek. | C187: =IF(OR('Tabel 1 S'!C187<5,'Tabel 2 S'!C187<0.5),"-",IFERROR('Tabel 2 S'!C187/'Tabel 1 S'!C187*100,"-")) -> - | D187: =IF(OR('Tabel 1 S'!C187<5,'Tabel 2 S'!D187<0.5),"-",IFERROR('Tabel 2 S'!D187/'Tabel 1 S'!C187*100,"-")) -> - | F187: =IF(OR('Tabel 1 S'!E187<5,'Tabel 2 S'!F187<0.5),"-",IFERROR('Tabel 2 S'!F187/'Tabel 1 S'!E187*100,"-")) -> - | G187: =IF(OR('Tabel 1 S'!E187<5,'Tabel 2 S'!G187<0.5),"-",IFERROR('Tabel 2 S'!G187/'Tabel 1 S'!E187*100,"-")) -> - | I187: =IF(OR('Tabel 1 S'!G187<5,'Tabel 2 S'!I187<0.5),"-",IFERROR('Tabel 2 S'!I187/'Tabel 1 S'!G187*100,"-")) -> - | J187: =IF(OR('Tabel 1 S'!G187<5,'Tabel 2 S'!J187<0.5),"-",IFERROR('Tabel 2 S'!J187/'Tabel 1 S'!G187*100,"-")) -> -
A188: Bibliotekar | C188: =IF(OR('Tabel 1 S'!C188<5,'Tabel 2 S'!C188<0.5),"-",IFERROR('Tabel 2 S'!C188/'Tabel 1 S'!C188*100,"-")) -> - | D188: =IF(OR('Tabel 1 S'!C188<5,'Tabel 2 S'!D188<0.5),"-",IFERROR('Tabel 2 S'!D188/'Tabel 1 S'!C188*100,"-")) -> - | F188: =IF(OR('Tabel 1 S'!E188<5,'Tabel 2 S'!F188<0.5),"-",IFERROR('Tabel 2 S'!F188/'Tabel 1 S'!E188*100,"-")) -> 7.352941176 | G188: =IF(OR('Tabel 1 S'!E188<5,'Tabel 2 S'!G188<0.5),"-",IFERROR('Tabel 2 S'!G188/'Tabel 1 S'!E188*100,"-")) -> 6.123399899 | I188: =IF(OR('Tabel 1 S'!G188<5,'Tabel 2 S'!I188<0.5),"-",IFERROR('Tabel 2 S'!I188/'Tabel 1 S'!G188*100,"-")) -> 5.617977528 | J188: =IF(OR('Tabel 1 S'!G188<5,'Tabel 2 S'!J188<0.5),"-",IFERROR('Tabel 2 S'!J188/'Tabel 1 S'!G188*100,"-")) -> 4.678552732
A189: Musikudd. | C189: =IF(OR('Tabel 1 S'!C189<5,'Tabel 2 S'!C189<0.5),"-",IFERROR('Tabel 2 S'!C189/'Tabel 1 S'!C189*100,"-")) -> - | D189: =IF(OR('Tabel 1 S'!C189<5,'Tabel 2 S'!D189<0.5),"-",IFERROR('Tabel 2 S'!D189/'Tabel 1 S'!C189*100,"-")) -> - | F189: =IF(OR('Tabel 1 S'!E189<5,'Tabel 2 S'!F189<0.5),"-",IFERROR('Tabel 2 S'!F189/'Tabel 1 S'!E189*100,"-")) -> 8.333333333 | G189: =IF(OR('Tabel 1 S'!E189<5,'Tabel 2 S'!G189<0.5),"-",IFERROR('Tabel 2 S'!G189/'Tabel 1 S'!E189*100,"-")) -> - | I189: =IF(OR('Tabel 1 S'!G189<5,'Tabel 2 S'!I189<0.5),"-",IFERROR('Tabel 2 S'!I189/'Tabel 1 S'!G189*100,"-")) -> 5.882352941 | J189: =IF(OR('Tabel 1 S'!G189<5,'Tabel 2 S'!J189<0.5),"-",IFERROR('Tabel 2 S'!J189/'Tabel 1 S'!G189*100,"-")) -> -
A190: Teolog | C190: =IF(OR('Tabel 1 S'!C190<5,'Tabel 2 S'!C190<0.5),"-",IFERROR('Tabel 2 S'!C190/'Tabel 1 S'!C190*100,"-")) -> - | D190: =IF(OR('Tabel 1 S'!C190<5,'Tabel 2 S'!D190<0.5),"-",IFERROR('Tabel 2 S'!D190/'Tabel 1 S'!C190*100,"-")) -> - | F190: =IF(OR('Tabel 1 S'!E190<5,'Tabel 2 S'!F190<0.5),"-",IFERROR('Tabel 2 S'!F190/'Tabel 1 S'!E190*100,"-")) -> - | G190: =IF(OR('Tabel 1 S'!E190<5,'Tabel 2 S'!G190<0.5),"-",IFERROR('Tabel 2 S'!G190/'Tabel 1 S'!E190*100,"-")) -> - | I190: =IF(OR('Tabel 1 S'!G190<5,'Tabel 2 S'!I190<0.5),"-",IFERROR('Tabel 2 S'!I190/'Tabel 1 S'!G190*100,"-")) -> - | J190: =IF(OR('Tabel 1 S'!G190<5,'Tabel 2 S'!J190<0.5),"-",IFERROR('Tabel 2 S'!J190/'Tabel 1 S'!G190*100,"-")) -> -
A191: Psykolog | C191: =IF(OR('Tabel 1 S'!C191<5,'Tabel 2 S'!C191<0.5),"-",IFERROR('Tabel 2 S'!C191/'Tabel 1 S'!C191*100,"-")) -> 5.555555556 | D191: =IF(OR('Tabel 1 S'!C191<5,'Tabel 2 S'!D191<0.5),"-",IFERROR('Tabel 2 S'!D191/'Tabel 1 S'!C191*100,"-")) -> 5.554516033 | F191: =IF(OR('Tabel 1 S'!E191<5,'Tabel 2 S'!F191<0.5),"-",IFERROR('Tabel 2 S'!F191/'Tabel 1 S'!E191*100,"-")) -> 2.97029703 | G191: =IF(OR('Tabel 1 S'!E191<5,'Tabel 2 S'!G191<0.5),"-",IFERROR('Tabel 2 S'!G191/'Tabel 1 S'!E191*100,"-")) -> 1.845204167 | I191: =IF(OR('Tabel 1 S'!G191<5,'Tabel 2 S'!I191<0.5),"-",IFERROR('Tabel 2 S'!I191/'Tabel 1 S'!G191*100,"-")) -> 3.361344538 | J191: =IF(OR('Tabel 1 S'!G191<5,'Tabel 2 S'!J191<0.5),"-",IFERROR('Tabel 2 S'!J191/'Tabel 1 S'!G191*100,"-")) -> 2.40627655
A192: Jurist | C192: =IF(OR('Tabel 1 S'!C192<5,'Tabel 2 S'!C192<0.5),"-",IFERROR('Tabel 2 S'!C192/'Tabel 1 S'!C192*100,"-")) -> 1.388888889 | D192: =IF(OR('Tabel 1 S'!C192<5,'Tabel 2 S'!D192<0.5),"-",IFERROR('Tabel 2 S'!D192/'Tabel 1 S'!C192*100,"-")) -> 1.388629008 | F192: =IF(OR('Tabel 1 S'!E192<5,'Tabel 2 S'!F192<0.5),"-",IFERROR('Tabel 2 S'!F192/'Tabel 1 S'!E192*100,"-")) -> 0.6097560976 | G192: =IF(OR('Tabel 1 S'!E192<5,'Tabel 2 S'!G192<0.5),"-",IFERROR('Tabel 2 S'!G192/'Tabel 1 S'!E192*100,"-")) -> 0.6096420036 | I192: =IF(OR('Tabel 1 S'!G192<5,'Tabel 2 S'!I192<0.5),"-",IFERROR('Tabel 2 S'!I192/'Tabel 1 S'!G192*100,"-")) -> 0.8474576271 | J192: =IF(OR('Tabel 1 S'!G192<5,'Tabel 2 S'!J192<0.5),"-",IFERROR('Tabel 2 S'!J192/'Tabel 1 S'!G192*100,"-")) -> 0.8472990559
A193: Økonom | C193: =IF(OR('Tabel 1 S'!C193<5,'Tabel 2 S'!C193<0.5),"-",IFERROR('Tabel 2 S'!C193/'Tabel 1 S'!C193*100,"-")) -> 1.020408163 | D193: =IF(OR('Tabel 1 S'!C193<5,'Tabel 2 S'!D193<0.5),"-",IFERROR('Tabel 2 S'!D193/'Tabel 1 S'!C193*100,"-")) -> 1.020217231 | F193: =IF(OR('Tabel 1 S'!E193<5,'Tabel 2 S'!F193<0.5),"-",IFERROR('Tabel 2 S'!F193/'Tabel 1 S'!E193*100,"-")) -> 3.076923077 | G193: =IF(OR('Tabel 1 S'!E193<5,'Tabel 2 S'!G193<0.5),"-",IFERROR('Tabel 2 S'!G193/'Tabel 1 S'!E193*100,"-")) -> 2.036184984 | I193: =IF(OR('Tabel 1 S'!G193<5,'Tabel 2 S'!I193<0.5),"-",IFERROR('Tabel 2 S'!I193/'Tabel 1 S'!G193*100,"-")) -> 1.840490798 | J193: =IF(OR('Tabel 1 S'!G193<5,'Tabel 2 S'!J193<0.5),"-",IFERROR('Tabel 2 S'!J193/'Tabel 1 S'!G193*100,"-")) -> 1.425357746
A194: Samf. Adm. | C194: =IF(OR('Tabel 1 S'!C194<5,'Tabel 2 S'!C194<0.5),"-",IFERROR('Tabel 2 S'!C194/'Tabel 1 S'!C194*100,"-")) -> 3.886925795 | D194: =IF(OR('Tabel 1 S'!C194<5,'Tabel 2 S'!D194<0.5),"-",IFERROR('Tabel 2 S'!D194/'Tabel 1 S'!C194*100,"-")) -> 3.402214382 | F194: =IF(OR('Tabel 1 S'!E194<5,'Tabel 2 S'!F194<0.5),"-",IFERROR('Tabel 2 S'!F194/'Tabel 1 S'!E194*100,"-")) -> 6.609195402 | G194: =IF(OR('Tabel 1 S'!E194<5,'Tabel 2 S'!G194<0.5),"-",IFERROR('Tabel 2 S'!G194/'Tabel 1 S'!E194*100,"-")) -> 6.008440924 | I194: =IF(OR('Tabel 1 S'!G194<5,'Tabel 2 S'!I194<0.5),"-",IFERROR('Tabel 2 S'!I194/'Tabel 1 S'!G194*100,"-")) -> 5.388272583 | J194: =IF(OR('Tabel 1 S'!G194<5,'Tabel 2 S'!J194<0.5),"-",IFERROR('Tabel 2 S'!J194/'Tabel 1 S'!G194*100,"-")) -> 4.839562776
A195: Cand. Merc. | C195: =IF(OR('Tabel 1 S'!C195<5,'Tabel 2 S'!C195<0.5),"-",IFERROR('Tabel 2 S'!C195/'Tabel 1 S'!C195*100,"-")) -> 3.212851406 | D195: =IF(OR('Tabel 1 S'!C195<5,'Tabel 2 S'!D195<0.5),"-",IFERROR('Tabel 2 S'!D195/'Tabel 1 S'!C195*100,"-")) -> 2.842280367 | F195: =IF(OR('Tabel 1 S'!E195<5,'Tabel 2 S'!F195<0.5),"-",IFERROR('Tabel 2 S'!F195/'Tabel 1 S'!E195*100,"-")) -> 3.759398496 | G195: =IF(OR('Tabel 1 S'!E195<5,'Tabel 2 S'!G195<0.5),"-",IFERROR('Tabel 2 S'!G195/'Tabel 1 S'!E195*100,"-")) -> 2.936143452 | I195: =IF(OR('Tabel 1 S'!G195<5,'Tabel 2 S'!I195<0.5),"-",IFERROR('Tabel 2 S'!I195/'Tabel 1 S'!G195*100,"-")) -> 3.495145631 | J195: =IF(OR('Tabel 1 S'!G195<5,'Tabel 2 S'!J195<0.5),"-",IFERROR('Tabel 2 S'!J195/'Tabel 1 S'!G195*100,"-")) -> 2.890761106
A196: HA | C196: =IF(OR('Tabel 1 S'!C196<5,'Tabel 2 S'!C196<0.5),"-",IFERROR('Tabel 2 S'!C196/'Tabel 1 S'!C196*100,"-")) -> 3.921568627 | D196: =IF(OR('Tabel 1 S'!C196<5,'Tabel 2 S'!D196<0.5),"-",IFERROR('Tabel 2 S'!D196/'Tabel 1 S'!C196*100,"-")) -> 3.920834847 | F196: =IF(OR('Tabel 1 S'!E196<5,'Tabel 2 S'!F196<0.5),"-",IFERROR('Tabel 2 S'!F196/'Tabel 1 S'!E196*100,"-")) -> 1.818181818 | G196: =IF(OR('Tabel 1 S'!E196<5,'Tabel 2 S'!G196<0.5),"-",IFERROR('Tabel 2 S'!G196/'Tabel 1 S'!E196*100,"-")) -> 1.817841611 | I196: =IF(OR('Tabel 1 S'!G196<5,'Tabel 2 S'!I196<0.5),"-",IFERROR('Tabel 2 S'!I196/'Tabel 1 S'!G196*100,"-")) -> 2.830188679 | J196: =IF(OR('Tabel 1 S'!G196<5,'Tabel 2 S'!J196<0.5),"-",IFERROR('Tabel 2 S'!J196/'Tabel 1 S'!G196*100,"-")) -> 2.829659111
A197: HD | C197: =IF(OR('Tabel 1 S'!C197<5,'Tabel 2 S'!C197<0.5),"-",IFERROR('Tabel 2 S'!C197/'Tabel 1 S'!C197*100,"-")) -> 5.769230769 | D197: =IF(OR('Tabel 1 S'!C197<5,'Tabel 2 S'!D197<0.5),"-",IFERROR('Tabel 2 S'!D197/'Tabel 1 S'!C197*100,"-")) -> 5.458693368 | F197: =IF(OR('Tabel 1 S'!E197<5,'Tabel 2 S'!F197<0.5),"-",IFERROR('Tabel 2 S'!F197/'Tabel 1 S'!E197*100,"-")) -> 6.666666667 | G197: =IF(OR('Tabel 1 S'!E197<5,'Tabel 2 S'!G197<0.5),"-",IFERROR('Tabel 2 S'!G197/'Tabel 1 S'!E197*100,"-")) -> 5.717374582 | I197: =IF(OR('Tabel 1 S'!G197<5,'Tabel 2 S'!I197<0.5),"-",IFERROR('Tabel 2 S'!I197/'Tabel 1 S'!G197*100,"-")) -> 6.18556701 | J197: =IF(OR('Tabel 1 S'!G197<5,'Tabel 2 S'!J197<0.5),"-",IFERROR('Tabel 2 S'!J197/'Tabel 1 S'!G197*100,"-")) -> 5.578700117
A198: Komm. og Sprog | C198: =IF(OR('Tabel 1 S'!C198<5,'Tabel 2 S'!C198<0.5),"-",IFERROR('Tabel 2 S'!C198/'Tabel 1 S'!C198*100,"-")) -> - | D198: =IF(OR('Tabel 1 S'!C198<5,'Tabel 2 S'!D198<0.5),"-",IFERROR('Tabel 2 S'!D198/'Tabel 1 S'!C198*100,"-")) -> - | F198: =IF(OR('Tabel 1 S'!E198<5,'Tabel 2 S'!F198<0.5),"-",IFERROR('Tabel 2 S'!F198/'Tabel 1 S'!E198*100,"-")) -> 5.940594059 | G198: =IF(OR('Tabel 1 S'!E198<5,'Tabel 2 S'!G198<0.5),"-",IFERROR('Tabel 2 S'!G198/'Tabel 1 S'!E198*100,"-")) -> 5.356526422 | I198: =IF(OR('Tabel 1 S'!G198<5,'Tabel 2 S'!I198<0.5),"-",IFERROR('Tabel 2 S'!I198/'Tabel 1 S'!G198*100,"-")) -> 5.357142857 | J198: =IF(OR('Tabel 1 S'!G198<5,'Tabel 2 S'!J198<0.5),"-",IFERROR('Tabel 2 S'!J198/'Tabel 1 S'!G198*100,"-")) -> 4.830439005
A199: Cand. IT. | C199: =IF(OR('Tabel 1 S'!C199<5,'Tabel 2 S'!C199<0.5),"-",IFERROR('Tabel 2 S'!C199/'Tabel 1 S'!C199*100,"-")) -> 4 | D199: =IF(OR('Tabel 1 S'!C199<5,'Tabel 2 S'!D199<0.5),"-",IFERROR('Tabel 2 S'!D199/'Tabel 1 S'!C199*100,"-")) -> 3.999251544 | F199: =IF(OR('Tabel 1 S'!E199<5,'Tabel 2 S'!F199<0.5),"-",IFERROR('Tabel 2 S'!F199/'Tabel 1 S'!E199*100,"-")) -> 8.695652174 | G199: =IF(OR('Tabel 1 S'!E199<5,'Tabel 2 S'!G199<0.5),"-",IFERROR('Tabel 2 S'!G199/'Tabel 1 S'!E199*100,"-")) -> 8.694025095 | I199: =IF(OR('Tabel 1 S'!G199<5,'Tabel 2 S'!I199<0.5),"-",IFERROR('Tabel 2 S'!I199/'Tabel 1 S'!G199*100,"-")) -> 6.25 | J199: =IF(OR('Tabel 1 S'!G199<5,'Tabel 2 S'!J199<0.5),"-",IFERROR('Tabel 2 S'!J199/'Tabel 1 S'!G199*100,"-")) -> 6.248830537
A200: Bac. Samf. | C200: =IF(OR('Tabel 1 S'!C200<5,'Tabel 2 S'!C200<0.5),"-",IFERROR('Tabel 2 S'!C200/'Tabel 1 S'!C200*100,"-")) -> - | D200: =IF(OR('Tabel 1 S'!C200<5,'Tabel 2 S'!D200<0.5),"-",IFERROR('Tabel 2 S'!D200/'Tabel 1 S'!C200*100,"-")) -> - | F200: =IF(OR('Tabel 1 S'!E200<5,'Tabel 2 S'!F200<0.5),"-",IFERROR('Tabel 2 S'!F200/'Tabel 1 S'!E200*100,"-")) -> - | G200: =IF(OR('Tabel 1 S'!E200<5,'Tabel 2 S'!G200<0.5),"-",IFERROR('Tabel 2 S'!G200/'Tabel 1 S'!E200*100,"-")) -> - | I200: =IF(OR('Tabel 1 S'!G200<5,'Tabel 2 S'!I200<0.5),"-",IFERROR('Tabel 2 S'!I200/'Tabel 1 S'!G200*100,"-")) -> - | J200: =IF(OR('Tabel 1 S'!G200<5,'Tabel 2 S'!J200<0.5),"-",IFERROR('Tabel 2 S'!J200/'Tabel 1 S'!G200*100,"-")) -> -
A201: Bac. Hum. | C201: =IF(OR('Tabel 1 S'!C201<5,'Tabel 2 S'!C201<0.5),"-",IFERROR('Tabel 2 S'!C201/'Tabel 1 S'!C201*100,"-")) -> 6.896551724 | D201: =IF(OR('Tabel 1 S'!C201<5,'Tabel 2 S'!D201<0.5),"-",IFERROR('Tabel 2 S'!D201/'Tabel 1 S'!C201*100,"-")) -> 5.312319204 | F201: =IF(OR('Tabel 1 S'!E201<5,'Tabel 2 S'!F201<0.5),"-",IFERROR('Tabel 2 S'!F201/'Tabel 1 S'!E201*100,"-")) -> 19.35483871 | G201: =IF(OR('Tabel 1 S'!E201<5,'Tabel 2 S'!G201<0.5),"-",IFERROR('Tabel 2 S'!G201/'Tabel 1 S'!E201*100,"-")) -> 18.86029419 | I201: =IF(OR('Tabel 1 S'!G201<5,'Tabel 2 S'!I201<0.5),"-",IFERROR('Tabel 2 S'!I201/'Tabel 1 S'!G201*100,"-")) -> 13.33333333 | J201: =IF(OR('Tabel 1 S'!G201<5,'Tabel 2 S'!J201<0.5),"-",IFERROR('Tabel 2 S'!J201/'Tabel 1 S'!G201*100,"-")) -> 12.31210628
A202: Bac. Nat. | C202: =IF(OR('Tabel 1 S'!C202<5,'Tabel 2 S'!C202<0.5),"-",IFERROR('Tabel 2 S'!C202/'Tabel 1 S'!C202*100,"-")) -> 11.11111111 | D202: =IF(OR('Tabel 1 S'!C202<5,'Tabel 2 S'!D202<0.5),"-",IFERROR('Tabel 2 S'!D202/'Tabel 1 S'!C202*100,"-")) -> 11.10903207 | F202: =IF(OR('Tabel 1 S'!E202<5,'Tabel 2 S'!F202<0.5),"-",IFERROR('Tabel 2 S'!F202/'Tabel 1 S'!E202*100,"-")) -> 11.11111111 | G202: =IF(OR('Tabel 1 S'!E202<5,'Tabel 2 S'!G202<0.5),"-",IFERROR('Tabel 2 S'!G202/'Tabel 1 S'!E202*100,"-")) -> 10.08336972 | I202: =IF(OR('Tabel 1 S'!G202<5,'Tabel 2 S'!I202<0.5),"-",IFERROR('Tabel 2 S'!I202/'Tabel 1 S'!G202*100,"-")) -> 11.11111111 | J202: =IF(OR('Tabel 1 S'!G202<5,'Tabel 2 S'!J202<0.5),"-",IFERROR('Tabel 2 S'!J202/'Tabel 1 S'!G202*100,"-")) -> 10.76714462
A203: Andre | C203: =IF(OR('Tabel 1 S'!C203<5,'Tabel 2 S'!C203<0.5),"-",IFERROR('Tabel 2 S'!C203/'Tabel 1 S'!C203*100,"-")) -> 6.081081081 | D203: =IF(OR('Tabel 1 S'!C203<5,'Tabel 2 S'!D203<0.5),"-",IFERROR('Tabel 2 S'!D203/'Tabel 1 S'!C203*100,"-")) -> 5.681693669 | F203: =IF(OR('Tabel 1 S'!E203<5,'Tabel 2 S'!F203<0.5),"-",IFERROR('Tabel 2 S'!F203/'Tabel 1 S'!E203*100,"-")) -> 6.666666667 | G203: =IF(OR('Tabel 1 S'!E203<5,'Tabel 2 S'!G203<0.5),"-",IFERROR('Tabel 2 S'!G203/'Tabel 1 S'!E203*100,"-")) -> 5.713216491 | I203: =IF(OR('Tabel 1 S'!G203<5,'Tabel 2 S'!I203<0.5),"-",IFERROR('Tabel 2 S'!I203/'Tabel 1 S'!G203*100,"-")) -> 6.402439024 | J203: =IF(OR('Tabel 1 S'!G203<5,'Tabel 2 S'!J203<0.5),"-",IFERROR('Tabel 2 S'!J203/'Tabel 1 S'!G203*100,"-")) -> 5.698992779
A205: Total | C205: =IF(OR('Tabel 1 S'!C205<5,'Tabel 2 S'!C205<0.5),"-",IFERROR('Tabel 2 S'!C205/'Tabel 1 S'!C205*100,"-")) -> 3.238341969 | D205: =IF(OR('Tabel 1 S'!C205<5,'Tabel 2 S'!D205<0.5),"-",IFERROR('Tabel 2 S'!D205/'Tabel 1 S'!C205*100,"-")) -> 2.978313188 | F205: =IF(OR('Tabel 1 S'!E205<5,'Tabel 2 S'!F205<0.5),"-",IFERROR('Tabel 2 S'!F205/'Tabel 1 S'!E205*100,"-")) -> 5.09573811 | G205: =IF(OR('Tabel 1 S'!E205<5,'Tabel 2 S'!G205<0.5),"-",IFERROR('Tabel 2 S'!G205/'Tabel 1 S'!E205*100,"-")) -> 4.352588567 | I205: =IF(OR('Tabel 1 S'!G205<5,'Tabel 2 S'!I205<0.5),"-",IFERROR('Tabel 2 S'!I205/'Tabel 1 S'!G205*100,"-")) -> 4.189061018 | J205: =IF(OR('Tabel 1 S'!G205<5,'Tabel 2 S'!J205<0.5),"-",IFERROR('Tabel 2 S'!J205/'Tabel 1 S'!G205*100,"-")) -> 3.681744057
A207: Ingeniører i alt | C207: =IF(OR('Tabel 1 S'!C207<5,'Tabel 2 S'!C207<0.5),"-",IFERROR('Tabel 2 S'!C207/'Tabel 1 S'!C207*100,"-")) -> 1.604278075 | D207: =IF(OR('Tabel 1 S'!C207<5,'Tabel 2 S'!D207<0.5),"-",IFERROR('Tabel 2 S'!D207/'Tabel 1 S'!C207*100,"-")) -> 1.490075116 | F207: =IF(OR('Tabel 1 S'!E207<5,'Tabel 2 S'!F207<0.5),"-",IFERROR('Tabel 2 S'!F207/'Tabel 1 S'!E207*100,"-")) -> 2.654867257 | G207: =IF(OR('Tabel 1 S'!E207<5,'Tabel 2 S'!G207<0.5),"-",IFERROR('Tabel 2 S'!G207/'Tabel 1 S'!E207*100,"-")) -> 1.970677366 | I207: =IF(OR('Tabel 1 S'!G207<5,'Tabel 2 S'!I207<0.5),"-",IFERROR('Tabel 2 S'!I207/'Tabel 1 S'!G207*100,"-")) -> 1.848049281 | J207: =IF(OR('Tabel 1 S'!G207<5,'Tabel 2 S'!J207<0.5),"-",IFERROR('Tabel 2 S'!J207/'Tabel 1 S'!G207*100,"-")) -> 1.601590628
A208: Magistre i alt | C208: =IF(OR('Tabel 1 S'!C208<5,'Tabel 2 S'!C208<0.5),"-",IFERROR('Tabel 2 S'!C208/'Tabel 1 S'!C208*100,"-")) -> 4.742268041 | D208: =IF(OR('Tabel 1 S'!C208<5,'Tabel 2 S'!D208<0.5),"-",IFERROR('Tabel 2 S'!D208/'Tabel 1 S'!C208*100,"-")) -> 4.264786352 | F208: =IF(OR('Tabel 1 S'!E208<5,'Tabel 2 S'!F208<0.5),"-",IFERROR('Tabel 2 S'!F208/'Tabel 1 S'!E208*100,"-")) -> 7.575757576 | G208: =IF(OR('Tabel 1 S'!E208<5,'Tabel 2 S'!G208<0.5),"-",IFERROR('Tabel 2 S'!G208/'Tabel 1 S'!E208*100,"-")) -> 6.774301362 | I208: =IF(OR('Tabel 1 S'!G208<5,'Tabel 2 S'!I208<0.5),"-",IFERROR('Tabel 2 S'!I208/'Tabel 1 S'!G208*100,"-")) -> 6.499608457 | J208: =IF(OR('Tabel 1 S'!G208<5,'Tabel 2 S'!J208<0.5),"-",IFERROR('Tabel 2 S'!J208/'Tabel 1 S'!G208*100,"-")) -> 5.821196601
A209: DJØF'ere i alt | C209: =IF(OR('Tabel 1 S'!C209<5,'Tabel 2 S'!C209<0.5),"-",IFERROR('Tabel 2 S'!C209/'Tabel 1 S'!C209*100,"-")) -> 3.054448871 | D209: =IF(OR('Tabel 1 S'!C209<5,'Tabel 2 S'!D209<0.5),"-",IFERROR('Tabel 2 S'!D209/'Tabel 1 S'!C209*100,"-")) -> 2.749640951 | F209: =IF(OR('Tabel 1 S'!E209<5,'Tabel 2 S'!F209<0.5),"-",IFERROR('Tabel 2 S'!F209/'Tabel 1 S'!E209*100,"-")) -> 4.120267261 | G209: =IF(OR('Tabel 1 S'!E209<5,'Tabel 2 S'!G209<0.5),"-",IFERROR('Tabel 2 S'!G209/'Tabel 1 S'!E209*100,"-")) -> 3.568225168 | I209: =IF(OR('Tabel 1 S'!G209<5,'Tabel 2 S'!I209<0.5),"-",IFERROR('Tabel 2 S'!I209/'Tabel 1 S'!G209*100,"-")) -> 3.634161114 | J209: =IF(OR('Tabel 1 S'!G209<5,'Tabel 2 S'!J209<0.5),"-",IFERROR('Tabel 2 S'!J209/'Tabel 1 S'!G209*100,"-")) -> 3.194879368
A214: ='Tabel 2 S'!A214 -> Solrød
C216: Mænd | F216: Kvinder | I216: I alt
C217: Ledigheds- berørte | D217: Gns. brutto- ledighed | F217: Ledigheds- berørte | G217: Gns. brutto- ledighed | I217: Ledigheds- berørte | J217: Gns. brutto- ledighed
A220: Civ. ing. | C220: =IF(OR('Tabel 1 S'!C220<5,'Tabel 2 S'!C220<0.5),"-",IFERROR('Tabel 2 S'!C220/'Tabel 1 S'!C220*100,"-")) -> 1.123595506 | D220: =IF(OR('Tabel 1 S'!C220<5,'Tabel 2 S'!D220<0.5),"-",IFERROR('Tabel 2 S'!D220/'Tabel 1 S'!C220*100,"-")) -> 0.8122292715 | F220: =IF(OR('Tabel 1 S'!E220<5,'Tabel 2 S'!F220<0.5),"-",IFERROR('Tabel 2 S'!F220/'Tabel 1 S'!E220*100,"-")) -> 3.03030303 | G220: =IF(OR('Tabel 1 S'!E220<5,'Tabel 2 S'!G220<0.5),"-",IFERROR('Tabel 2 S'!G220/'Tabel 1 S'!E220*100,"-")) -> 3.029736018 | I220: =IF(OR('Tabel 1 S'!G220<5,'Tabel 2 S'!I220<0.5),"-",IFERROR('Tabel 2 S'!I220/'Tabel 1 S'!G220*100,"-")) -> 1.639344262 | J220: =IF(OR('Tabel 1 S'!G220<5,'Tabel 2 S'!J220<0.5),"-",IFERROR('Tabel 2 S'!J220/'Tabel 1 S'!G220*100,"-")) -> 1.41204667
A221: Diplom ing. | C221: =IF(OR('Tabel 1 S'!C221<5,'Tabel 2 S'!C221<0.5),"-",IFERROR('Tabel 2 S'!C221/'Tabel 1 S'!C221*100,"-")) -> - | D221: =IF(OR('Tabel 1 S'!C221<5,'Tabel 2 S'!D221<0.5),"-",IFERROR('Tabel 2 S'!D221/'Tabel 1 S'!C221*100,"-")) -> - | F221: =IF(OR('Tabel 1 S'!E221<5,'Tabel 2 S'!F221<0.5),"-",IFERROR('Tabel 2 S'!F221/'Tabel 1 S'!E221*100,"-")) -> 6.666666667 | G221: =IF(OR('Tabel 1 S'!E221<5,'Tabel 2 S'!G221<0.5),"-",IFERROR('Tabel 2 S'!G221/'Tabel 1 S'!E221*100,"-")) -> 5.896172478 | I221: =IF(OR('Tabel 1 S'!G221<5,'Tabel 2 S'!I221<0.5),"-",IFERROR('Tabel 2 S'!I221/'Tabel 1 S'!G221*100,"-")) -> 1.123595506 | J221: =IF(OR('Tabel 1 S'!G221<5,'Tabel 2 S'!J221<0.5),"-",IFERROR('Tabel 2 S'!J221/'Tabel 1 S'!G221*100,"-")) -> 0.9937369344
A222: Cand. Scient. Tek. | C222: =IF(OR('Tabel 1 S'!C222<5,'Tabel 2 S'!C222<0.5),"-",IFERROR('Tabel 2 S'!C222/'Tabel 1 S'!C222*100,"-")) -> 15.38461538 | D222: =IF(OR('Tabel 1 S'!C222<5,'Tabel 2 S'!D222<0.5),"-",IFERROR('Tabel 2 S'!D222/'Tabel 1 S'!C222*100,"-")) -> 15.38173671 | F222: =IF(OR('Tabel 1 S'!E222<5,'Tabel 2 S'!F222<0.5),"-",IFERROR('Tabel 2 S'!F222/'Tabel 1 S'!E222*100,"-")) -> - | G222: =IF(OR('Tabel 1 S'!E222<5,'Tabel 2 S'!G222<0.5),"-",IFERROR('Tabel 2 S'!G222/'Tabel 1 S'!E222*100,"-")) -> - | I222: =IF(OR('Tabel 1 S'!G222<5,'Tabel 2 S'!I222<0.5),"-",IFERROR('Tabel 2 S'!I222/'Tabel 1 S'!G222*100,"-")) -> 5.882352941 | J222: =IF(OR('Tabel 1 S'!G222<5,'Tabel 2 S'!J222<0.5),"-",IFERROR('Tabel 2 S'!J222/'Tabel 1 S'!G222*100,"-")) -> 5.88125227
A223: MA. Hum. | C223: =IF(OR('Tabel 1 S'!C223<5,'Tabel 2 S'!C223<0.5),"-",IFERROR('Tabel 2 S'!C223/'Tabel 1 S'!C223*100,"-")) -> 5.263157895 | D223: =IF(OR('Tabel 1 S'!C223<5,'Tabel 2 S'!D223<0.5),"-",IFERROR('Tabel 2 S'!D223/'Tabel 1 S'!C223*100,"-")) -> 4.175598355 | F223: =IF(OR('Tabel 1 S'!E223<5,'Tabel 2 S'!F223<0.5),"-",IFERROR('Tabel 2 S'!F223/'Tabel 1 S'!E223*100,"-")) -> 5 | G223: =IF(OR('Tabel 1 S'!E223<5,'Tabel 2 S'!G223<0.5),"-",IFERROR('Tabel 2 S'!G223/'Tabel 1 S'!E223*100,"-")) -> 3.486558972 | I223: =IF(OR('Tabel 1 S'!G223<5,'Tabel 2 S'!I223<0.5),"-",IFERROR('Tabel 2 S'!I223/'Tabel 1 S'!G223*100,"-")) -> 5.063291139 | J223: =IF(OR('Tabel 1 S'!G223<5,'Tabel 2 S'!J223<0.5),"-",IFERROR('Tabel 2 S'!J223/'Tabel 1 S'!G223*100,"-")) -> 3.652277305
A224: MA. Nat. | C224: =IF(OR('Tabel 1 S'!C224<5,'Tabel 2 S'!C224<0.5),"-",IFERROR('Tabel 2 S'!C224/'Tabel 1 S'!C224*100,"-")) -> - | D224: =IF(OR('Tabel 1 S'!C224<5,'Tabel 2 S'!D224<0.5),"-",IFERROR('Tabel 2 S'!D224/'Tabel 1 S'!C224*100,"-")) -> - | F224: =IF(OR('Tabel 1 S'!E224<5,'Tabel 2 S'!F224<0.5),"-",IFERROR('Tabel 2 S'!F224/'Tabel 1 S'!E224*100,"-")) -> - | G224: =IF(OR('Tabel 1 S'!E224<5,'Tabel 2 S'!G224<0.5),"-",IFERROR('Tabel 2 S'!G224/'Tabel 1 S'!E224*100,"-")) -> - | I224: =IF(OR('Tabel 1 S'!G224<5,'Tabel 2 S'!I224<0.5),"-",IFERROR('Tabel 2 S'!I224/'Tabel 1 S'!G224*100,"-")) -> - | J224: =IF(OR('Tabel 1 S'!G224<5,'Tabel 2 S'!J224<0.5),"-",IFERROR('Tabel 2 S'!J224/'Tabel 1 S'!G224*100,"-")) -> -
A225: MA. Ph.d. | C225: =IF(OR('Tabel 1 S'!C225<5,'Tabel 2 S'!C225<0.5),"-",IFERROR('Tabel 2 S'!C225/'Tabel 1 S'!C225*100,"-")) -> - | D225: =IF(OR('Tabel 1 S'!C225<5,'Tabel 2 S'!D225<0.5),"-",IFERROR('Tabel 2 S'!D225/'Tabel 1 S'!C225*100,"-")) -> - | F225: =IF(OR('Tabel 1 S'!E225<5,'Tabel 2 S'!F225<0.5),"-",IFERROR('Tabel 2 S'!F225/'Tabel 1 S'!E225*100,"-")) -> - | G225: =IF(OR('Tabel 1 S'!E225<5,'Tabel 2 S'!G225<0.5),"-",IFERROR('Tabel 2 S'!G225/'Tabel 1 S'!E225*100,"-")) -> - | I225: =IF(OR('Tabel 1 S'!G225<5,'Tabel 2 S'!I225<0.5),"-",IFERROR('Tabel 2 S'!I225/'Tabel 1 S'!G225*100,"-")) -> - | J225: =IF(OR('Tabel 1 S'!G225<5,'Tabel 2 S'!J225<0.5),"-",IFERROR('Tabel 2 S'!J225/'Tabel 1 S'!G225*100,"-")) -> -
A226: MA. Samf. | C226: =IF(OR('Tabel 1 S'!C226<5,'Tabel 2 S'!C226<0.5),"-",IFERROR('Tabel 2 S'!C226/'Tabel 1 S'!C226*100,"-")) -> - | D226: =IF(OR('Tabel 1 S'!C226<5,'Tabel 2 S'!D226<0.5),"-",IFERROR('Tabel 2 S'!D226/'Tabel 1 S'!C226*100,"-")) -> - | F226: =IF(OR('Tabel 1 S'!E226<5,'Tabel 2 S'!F226<0.5),"-",IFERROR('Tabel 2 S'!F226/'Tabel 1 S'!E226*100,"-")) -> 9.090909091 | G226: =IF(OR('Tabel 1 S'!E226<5,'Tabel 2 S'!G226<0.5),"-",IFERROR('Tabel 2 S'!G226/'Tabel 1 S'!E226*100,"-")) -> 7.371160618 | I226: =IF(OR('Tabel 1 S'!G226<5,'Tabel 2 S'!I226<0.5),"-",IFERROR('Tabel 2 S'!I226/'Tabel 1 S'!G226*100,"-")) -> 7.142857143 | J226: =IF(OR('Tabel 1 S'!G226<5,'Tabel 2 S'!J226<0.5),"-",IFERROR('Tabel 2 S'!J226/'Tabel 1 S'!G226*100,"-")) -> 5.7916262
A227: Øvrige Mag. | C227: =IF(OR('Tabel 1 S'!C227<5,'Tabel 2 S'!C227<0.5),"-",IFERROR('Tabel 2 S'!C227/'Tabel 1 S'!C227*100,"-")) -> - | D227: =IF(OR('Tabel 1 S'!C227<5,'Tabel 2 S'!D227<0.5),"-",IFERROR('Tabel 2 S'!D227/'Tabel 1 S'!C227*100,"-")) -> - | F227: =IF(OR('Tabel 1 S'!E227<5,'Tabel 2 S'!F227<0.5),"-",IFERROR('Tabel 2 S'!F227/'Tabel 1 S'!E227*100,"-")) -> - | G227: =IF(OR('Tabel 1 S'!E227<5,'Tabel 2 S'!G227<0.5),"-",IFERROR('Tabel 2 S'!G227/'Tabel 1 S'!E227*100,"-")) -> - | I227: =IF(OR('Tabel 1 S'!G227<5,'Tabel 2 S'!I227<0.5),"-",IFERROR('Tabel 2 S'!I227/'Tabel 1 S'!G227*100,"-")) -> - | J227: =IF(OR('Tabel 1 S'!G227<5,'Tabel 2 S'!J227<0.5),"-",IFERROR('Tabel 2 S'!J227/'Tabel 1 S'!G227*100,"-")) -> -
A228: Agronom | C228: =IF(OR('Tabel 1 S'!C228<5,'Tabel 2 S'!C228<0.5),"-",IFERROR('Tabel 2 S'!C228/'Tabel 1 S'!C228*100,"-")) -> - | D228: =IF(OR('Tabel 1 S'!C228<5,'Tabel 2 S'!D228<0.5),"-",IFERROR('Tabel 2 S'!D228/'Tabel 1 S'!C228*100,"-")) -> - | F228: =IF(OR('Tabel 1 S'!E228<5,'Tabel 2 S'!F228<0.5),"-",IFERROR('Tabel 2 S'!F228/'Tabel 1 S'!E228*100,"-")) -> - | G228: =IF(OR('Tabel 1 S'!E228<5,'Tabel 2 S'!G228<0.5),"-",IFERROR('Tabel 2 S'!G228/'Tabel 1 S'!E228*100,"-")) -> - | I228: =IF(OR('Tabel 1 S'!G228<5,'Tabel 2 S'!I228<0.5),"-",IFERROR('Tabel 2 S'!I228/'Tabel 1 S'!G228*100,"-")) -> - | J228: =IF(OR('Tabel 1 S'!G228<5,'Tabel 2 S'!J228<0.5),"-",IFERROR('Tabel 2 S'!J228/'Tabel 1 S'!G228*100,"-")) -> -
A229: Landsk. Arkt. | C229: =IF(OR('Tabel 1 S'!C229<5,'Tabel 2 S'!C229<0.5),"-",IFERROR('Tabel 2 S'!C229/'Tabel 1 S'!C229*100,"-")) -> - | D229: =IF(OR('Tabel 1 S'!C229<5,'Tabel 2 S'!D229<0.5),"-",IFERROR('Tabel 2 S'!D229/'Tabel 1 S'!C229*100,"-")) -> - | F229: =IF(OR('Tabel 1 S'!E229<5,'Tabel 2 S'!F229<0.5),"-",IFERROR('Tabel 2 S'!F229/'Tabel 1 S'!E229*100,"-")) -> - | G229: =IF(OR('Tabel 1 S'!E229<5,'Tabel 2 S'!G229<0.5),"-",IFERROR('Tabel 2 S'!G229/'Tabel 1 S'!E229*100,"-")) -> - | I229: =IF(OR('Tabel 1 S'!G229<5,'Tabel 2 S'!I229<0.5),"-",IFERROR('Tabel 2 S'!I229/'Tabel 1 S'!G229*100,"-")) -> - | J229: =IF(OR('Tabel 1 S'!G229<5,'Tabel 2 S'!J229<0.5),"-",IFERROR('Tabel 2 S'!J229/'Tabel 1 S'!G229*100,"-")) -> -
A230: Hortonom | C230: =IF(OR('Tabel 1 S'!C230<5,'Tabel 2 S'!C230<0.5),"-",IFERROR('Tabel 2 S'!C230/'Tabel 1 S'!C230*100,"-")) -> - | D230: =IF(OR('Tabel 1 S'!C230<5,'Tabel 2 S'!D230<0.5),"-",IFERROR('Tabel 2 S'!D230/'Tabel 1 S'!C230*100,"-")) -> - | F230: =IF(OR('Tabel 1 S'!E230<5,'Tabel 2 S'!F230<0.5),"-",IFERROR('Tabel 2 S'!F230/'Tabel 1 S'!E230*100,"-")) -> - | G230: =IF(OR('Tabel 1 S'!E230<5,'Tabel 2 S'!G230<0.5),"-",IFERROR('Tabel 2 S'!G230/'Tabel 1 S'!E230*100,"-")) -> - | I230: =IF(OR('Tabel 1 S'!G230<5,'Tabel 2 S'!I230<0.5),"-",IFERROR('Tabel 2 S'!I230/'Tabel 1 S'!G230*100,"-")) -> - | J230: =IF(OR('Tabel 1 S'!G230<5,'Tabel 2 S'!J230<0.5),"-",IFERROR('Tabel 2 S'!J230/'Tabel 1 S'!G230*100,"-")) -> -
A231: Forstkand. | C231: =IF(OR('Tabel 1 S'!C231<5,'Tabel 2 S'!C231<0.5),"-",IFERROR('Tabel 2 S'!C231/'Tabel 1 S'!C231*100,"-")) -> - | D231: =IF(OR('Tabel 1 S'!C231<5,'Tabel 2 S'!D231<0.5),"-",IFERROR('Tabel 2 S'!D231/'Tabel 1 S'!C231*100,"-")) -> - | F231: =IF(OR('Tabel 1 S'!E231<5,'Tabel 2 S'!F231<0.5),"-",IFERROR('Tabel 2 S'!F231/'Tabel 1 S'!E231*100,"-")) -> - | G231: =IF(OR('Tabel 1 S'!E231<5,'Tabel 2 S'!G231<0.5),"-",IFERROR('Tabel 2 S'!G231/'Tabel 1 S'!E231*100,"-")) -> - | I231: =IF(OR('Tabel 1 S'!G231<5,'Tabel 2 S'!I231<0.5),"-",IFERROR('Tabel 2 S'!I231/'Tabel 1 S'!G231*100,"-")) -> - | J231: =IF(OR('Tabel 1 S'!G231<5,'Tabel 2 S'!J231<0.5),"-",IFERROR('Tabel 2 S'!J231/'Tabel 1 S'!G231*100,"-")) -> -
A232: Jordbrugsakad. | C232: =IF(OR('Tabel 1 S'!C232<5,'Tabel 2 S'!C232<0.5),"-",IFERROR('Tabel 2 S'!C232/'Tabel 1 S'!C232*100,"-")) -> - | D232: =IF(OR('Tabel 1 S'!C232<5,'Tabel 2 S'!D232<0.5),"-",IFERROR('Tabel 2 S'!D232/'Tabel 1 S'!C232*100,"-")) -> - | F232: =IF(OR('Tabel 1 S'!E232<5,'Tabel 2 S'!F232<0.5),"-",IFERROR('Tabel 2 S'!F232/'Tabel 1 S'!E232*100,"-")) -> - | G232: =IF(OR('Tabel 1 S'!E232<5,'Tabel 2 S'!G232<0.5),"-",IFERROR('Tabel 2 S'!G232/'Tabel 1 S'!E232*100,"-")) -> - | I232: =IF(OR('Tabel 1 S'!G232<5,'Tabel 2 S'!I232<0.5),"-",IFERROR('Tabel 2 S'!I232/'Tabel 1 S'!G232*100,"-")) -> - | J232: =IF(OR('Tabel 1 S'!G232<5,'Tabel 2 S'!J232<0.5),"-",IFERROR('Tabel 2 S'!J232/'Tabel 1 S'!G232*100,"-")) -> -
A233: Mejeriing. | C233: =IF(OR('Tabel 1 S'!C233<5,'Tabel 2 S'!C233<0.5),"-",IFERROR('Tabel 2 S'!C233/'Tabel 1 S'!C233*100,"-")) -> - | D233: =IF(OR('Tabel 1 S'!C233<5,'Tabel 2 S'!D233<0.5),"-",IFERROR('Tabel 2 S'!D233/'Tabel 1 S'!C233*100,"-")) -> - | F233: =IF(OR('Tabel 1 S'!E233<5,'Tabel 2 S'!F233<0.5),"-",IFERROR('Tabel 2 S'!F233/'Tabel 1 S'!E233*100,"-")) -> - | G233: =IF(OR('Tabel 1 S'!E233<5,'Tabel 2 S'!G233<0.5),"-",IFERROR('Tabel 2 S'!G233/'Tabel 1 S'!E233*100,"-")) -> - | I233: =IF(OR('Tabel 1 S'!G233<5,'Tabel 2 S'!I233<0.5),"-",IFERROR('Tabel 2 S'!I233/'Tabel 1 S'!G233*100,"-")) -> - | J233: =IF(OR('Tabel 1 S'!G233<5,'Tabel 2 S'!J233<0.5),"-",IFERROR('Tabel 2 S'!J233/'Tabel 1 S'!G233*100,"-")) -> -
A234: Levn.m.kand. | C234: =IF(OR('Tabel 1 S'!C234<5,'Tabel 2 S'!C234<0.5),"-",IFERROR('Tabel 2 S'!C234/'Tabel 1 S'!C234*100,"-")) -> - | D234: =IF(OR('Tabel 1 S'!C234<5,'Tabel 2 S'!D234<0.5),"-",IFERROR('Tabel 2 S'!D234/'Tabel 1 S'!C234*100,"-")) -> - | F234: =IF(OR('Tabel 1 S'!E234<5,'Tabel 2 S'!F234<0.5),"-",IFERROR('Tabel 2 S'!F234/'Tabel 1 S'!E234*100,"-")) -> - | G234: =IF(OR('Tabel 1 S'!E234<5,'Tabel 2 S'!G234<0.5),"-",IFERROR('Tabel 2 S'!G234/'Tabel 1 S'!E234*100,"-")) -> - | I234: =IF(OR('Tabel 1 S'!G234<5,'Tabel 2 S'!I234<0.5),"-",IFERROR('Tabel 2 S'!I234/'Tabel 1 S'!G234*100,"-")) -> - | J234: =IF(OR('Tabel 1 S'!G234<5,'Tabel 2 S'!J234<0.5),"-",IFERROR('Tabel 2 S'!J234/'Tabel 1 S'!G234*100,"-")) -> -
A235: Dyrlæge | C235: =IF(OR('Tabel 1 S'!C235<5,'Tabel 2 S'!C235<0.5),"-",IFERROR('Tabel 2 S'!C235/'Tabel 1 S'!C235*100,"-")) -> - | D235: =IF(OR('Tabel 1 S'!C235<5,'Tabel 2 S'!D235<0.5),"-",IFERROR('Tabel 2 S'!D235/'Tabel 1 S'!C235*100,"-")) -> - | F235: =IF(OR('Tabel 1 S'!E235<5,'Tabel 2 S'!F235<0.5),"-",IFERROR('Tabel 2 S'!F235/'Tabel 1 S'!E235*100,"-")) -> - | G235: =IF(OR('Tabel 1 S'!E235<5,'Tabel 2 S'!G235<0.5),"-",IFERROR('Tabel 2 S'!G235/'Tabel 1 S'!E235*100,"-")) -> - | I235: =IF(OR('Tabel 1 S'!G235<5,'Tabel 2 S'!I235<0.5),"-",IFERROR('Tabel 2 S'!I235/'Tabel 1 S'!G235*100,"-")) -> - | J235: =IF(OR('Tabel 1 S'!G235<5,'Tabel 2 S'!J235<0.5),"-",IFERROR('Tabel 2 S'!J235/'Tabel 1 S'!G235*100,"-")) -> -
A236: Farmaceut | C236: =IF(OR('Tabel 1 S'!C236<5,'Tabel 2 S'!C236<0.5),"-",IFERROR('Tabel 2 S'!C236/'Tabel 1 S'!C236*100,"-")) -> - | D236: =IF(OR('Tabel 1 S'!C236<5,'Tabel 2 S'!D236<0.5),"-",IFERROR('Tabel 2 S'!D236/'Tabel 1 S'!C236*100,"-")) -> - | F236: =IF(OR('Tabel 1 S'!E236<5,'Tabel 2 S'!F236<0.5),"-",IFERROR('Tabel 2 S'!F236/'Tabel 1 S'!E236*100,"-")) -> 5.882352941 | G236: =IF(OR('Tabel 1 S'!E236<5,'Tabel 2 S'!G236<0.5),"-",IFERROR('Tabel 2 S'!G236/'Tabel 1 S'!E236*100,"-")) -> 3.166263699 | I236: =IF(OR('Tabel 1 S'!G236<5,'Tabel 2 S'!I236<0.5),"-",IFERROR('Tabel 2 S'!I236/'Tabel 1 S'!G236*100,"-")) -> 4.347826087 | J236: =IF(OR('Tabel 1 S'!G236<5,'Tabel 2 S'!J236<0.5),"-",IFERROR('Tabel 2 S'!J236/'Tabel 1 S'!G236*100,"-")) -> 2.340281864
A237: Læge | C237: =IF(OR('Tabel 1 S'!C237<5,'Tabel 2 S'!C237<0.5),"-",IFERROR('Tabel 2 S'!C237/'Tabel 1 S'!C237*100,"-")) -> - | D237: =IF(OR('Tabel 1 S'!C237<5,'Tabel 2 S'!D237<0.5),"-",IFERROR('Tabel 2 S'!D237/'Tabel 1 S'!C237*100,"-")) -> - | F237: =IF(OR('Tabel 1 S'!E237<5,'Tabel 2 S'!F237<0.5),"-",IFERROR('Tabel 2 S'!F237/'Tabel 1 S'!E237*100,"-")) -> - | G237: =IF(OR('Tabel 1 S'!E237<5,'Tabel 2 S'!G237<0.5),"-",IFERROR('Tabel 2 S'!G237/'Tabel 1 S'!E237*100,"-")) -> - | I237: =IF(OR('Tabel 1 S'!G237<5,'Tabel 2 S'!I237<0.5),"-",IFERROR('Tabel 2 S'!I237/'Tabel 1 S'!G237*100,"-")) -> - | J237: =IF(OR('Tabel 1 S'!G237<5,'Tabel 2 S'!J237<0.5),"-",IFERROR('Tabel 2 S'!J237/'Tabel 1 S'!G237*100,"-")) -> -
A238: Tandlæge | C238: =IF(OR('Tabel 1 S'!C238<5,'Tabel 2 S'!C238<0.5),"-",IFERROR('Tabel 2 S'!C238/'Tabel 1 S'!C238*100,"-")) -> - | D238: =IF(OR('Tabel 1 S'!C238<5,'Tabel 2 S'!D238<0.5),"-",IFERROR('Tabel 2 S'!D238/'Tabel 1 S'!C238*100,"-")) -> - | F238: =IF(OR('Tabel 1 S'!E238<5,'Tabel 2 S'!F238<0.5),"-",IFERROR('Tabel 2 S'!F238/'Tabel 1 S'!E238*100,"-")) -> - | G238: =IF(OR('Tabel 1 S'!E238<5,'Tabel 2 S'!G238<0.5),"-",IFERROR('Tabel 2 S'!G238/'Tabel 1 S'!E238*100,"-")) -> - | I238: =IF(OR('Tabel 1 S'!G238<5,'Tabel 2 S'!I238<0.5),"-",IFERROR('Tabel 2 S'!I238/'Tabel 1 S'!G238*100,"-")) -> - | J238: =IF(OR('Tabel 1 S'!G238<5,'Tabel 2 S'!J238<0.5),"-",IFERROR('Tabel 2 S'!J238/'Tabel 1 S'!G238*100,"-")) -> -
A239: Arkitekt | C239: =IF(OR('Tabel 1 S'!C239<5,'Tabel 2 S'!C239<0.5),"-",IFERROR('Tabel 2 S'!C239/'Tabel 1 S'!C239*100,"-")) -> - | D239: =IF(OR('Tabel 1 S'!C239<5,'Tabel 2 S'!D239<0.5),"-",IFERROR('Tabel 2 S'!D239/'Tabel 1 S'!C239*100,"-")) -> - | F239: =IF(OR('Tabel 1 S'!E239<5,'Tabel 2 S'!F239<0.5),"-",IFERROR('Tabel 2 S'!F239/'Tabel 1 S'!E239*100,"-")) -> - | G239: =IF(OR('Tabel 1 S'!E239<5,'Tabel 2 S'!G239<0.5),"-",IFERROR('Tabel 2 S'!G239/'Tabel 1 S'!E239*100,"-")) -> - | I239: =IF(OR('Tabel 1 S'!G239<5,'Tabel 2 S'!I239<0.5),"-",IFERROR('Tabel 2 S'!I239/'Tabel 1 S'!G239*100,"-")) -> - | J239: =IF(OR('Tabel 1 S'!G239<5,'Tabel 2 S'!J239<0.5),"-",IFERROR('Tabel 2 S'!J239/'Tabel 1 S'!G239*100,"-")) -> -
... 593 more rows

Sheet Tabel 4F S
A1: Tabel 4. Antal forsikrede - aldersfordelt
A3: Sjælland
C5: Under 30 år | D5: 30 - 39 år | E5: 40 - 49 år | F5: 50 - 59 år | G5: Over 60 år | I5: I alt
A7: Civ. ing. | C7: 149 | D7: 523 | E7: 636 | F7: 670 | G7: 171 | I7: 2149
A8: Diplom ing. | C8: 194 | D8: 527 | E8: 1146 | F8: 1512 | G8: 398 | I8: 3777
A9: Cand. Scient. Tek. | C9: 232 | D9: 490 | E9: 225 | F9: 88 | G9: 21 | I9: 1056
A10: MA. Hum. | C10: 234 | D10: 839 | E10: 1052 | F10: 444 | G10: 240 | I10: 2809
A11: MA. Nat. | C11: 44 | D11: 276 | E11: 550 | F11: 393 | G11: 168 | I11: 1431
A12: MA. Ph.d. | C12: 2 | D12: 39 | E12: 46 | F12: 40 | G12: 12 | I12: 139
A13: MA. Samf. | C13: 66 | D13: 136 | E13: 80 | F13: 39 | G13: 19 | I13: 340
A14: Øvrige Mag. | C14: 13 | D14: 33 | E14: 84 | F14: 86 | G14: 33 | I14: 249
A15: Agronom | C15: 11 | D15: 59 | E15: 139 | F15: 177 | G15: 75 | I15: 461
A16: Landsk. Arkt. | C16: 5 | D16: 24 | E16: 36 | F16: 24 | G16: 10 | I16: 99
A17: Hortonom | C17: 2 | D17: 4 | E17: 17 | F17: 24 | G17: 12 | I17: 59
A18: Forstkand. | C18: 3 | D18: 13 | E18: 31 | F18: 16 | G18: 12 | I18: 75
A19: Jordbrugsakad. | C19: 21 | D19: 100 | E19: 223 | F19: 241 | G19: 109 | I19: 694
A20: Mejeriing. | C20: 1 | D20: 7 | E20: 8 | F20: 15 | G20: 5 | I20: 36
A21: Levn.m.kand. | C21: 3 | D21: 26 | E21: 10 | F21: 6 | G21: 0 | I21: 45
A22: Dyrlæge | C22: 30 | D22: 120 | E22: 115 | F22: 95 | G22: 35 | I22: 395
A23: Farmaceut | C23: 63 | D23: 147 | E23: 171 | F23: 128 | G23: 37 | I23: 546
A24: Læge | C24: 79 | D24: 244 | E24: 159 | F24: 138 | G24: 66 | I24: 686
A25: Tandlæge | C25: 28 | D25: 41 | E25: 50 | F25: 40 | G25: 15 | I25: 174
A26: Arkitekt | C26: 11 | D26: 60 | E26: 72 | F26: 71 | G26: 41 | I26: 255
A27: Landinspek. | C27: 5 | D27: 20 | E27: 19 | F27: 21 | G27: 12 | I27: 77
A28: Bibliotekar | C28: 8 | D28: 67 | E28: 133 | F28: 113 | G28: 85 | I28: 406
A29: Musikudd. | C29: 1 | D29: 12 | E29: 31 | F29: 34 | G29: 32 | I29: 110
A30: Teolog | C30: 2 | D30: 29 | E30: 67 | F30: 92 | G30: 40 | I30: 230
A31: Psykolog | C31: 73 | D31: 148 | E31: 156 | F31: 105 | G31: 46 | I31: 528
A32: Jurist | C32: 97 | D32: 287 | E32: 314 | F32: 269 | G32: 72 | I32: 1039
A33: Økonom | C33: 51 | D33: 88 | E33: 185 | F33: 210 | G33: 43 | I33: 577
A34: Samf. Adm. | C34: 172 | D34: 572 | E34: 609 | F34: 381 | G34: 104 | I34: 1838
A35: Cand. Merc. | C35: 239 | D35: 588 | E35: 666 | F35: 436 | G35: 68 | I35: 1997
A36: HA | C36: 43 | D36: 53 | E36: 198 | F36: 214 | G36: 50 | I36: 558
A37: HD | C37: 30 | D37: 43 | E37: 124 | F37: 261 | G37: 69 | I37: 527
A38: Komm. og Sprog | C38: 43 | D38: 134 | E38: 173 | F38: 168 | G38: 89 | I38: 607
A39: Cand. IT. | C39: 33 | D39: 75 | E39: 54 | F39: 8 | G39: 0 | I39: 170
A40: Bac. Samf. | C40: 12 | D40: 23 | E40: 26 | F40: 28 | G40: 2 | I40: 91
A41: Bac. Hum. | C41: 65 | D41: 48 | E41: 70 | F41: 71 | G41: 16 | I41: 270
A42: Bac. Nat. | C42: 34 | D42: 60 | E42: 34 | F42: 25 | G42: 10 | I42: 163
A43: Andre | C43: 133 | D43: 443 | E43: 484 | F43: 395 | G43: 178 | I43: 1633
A45: Total | C45: 2211 | D45: 6298 | E45: 7970 | F45: 6837 | G45: 2286 | I45: 25602
A47: Ingeniører i alt | C47: 343 | D47: 1050 | E47: 1782 | F47: 2182 | G47: 569 | I47: 5926
A48: Magistre i alt | C48: 359 | D48: 1323 | E48: 1812 | F48: 1002 | G48: 472 | I48: 4968
A49: DJØF'ere i alt | C49: 602 | D49: 1588 | E49: 1972 | F49: 1510 | G49: 337 | I49: 6009
A56: Greve
C58: Under 30 år | D58: 30 - 39 år | E58: 40 - 49 år | F58: 50 - 59 år | G58: Over 60 år | I58: I alt
A60: Civ. ing. | C60: 10 | D60: 54 | E60: 51 | F60: 50 | G60: 12 | I60: 177
A61: Diplom ing. | C61: 19 | D61: 42 | E61: 110 | F61: 138 | G61: 30 | I61: 339
A62: Cand. Scient. Tek. | C62: 17 | D62: 32 | E62: 25 | F62: 9 | G62: 3 | I62: 86
A63: MA. Hum. | C63: 8 | D63: 44 | E63: 53 | F63: 12 | G63: 11 | I63: 128
A64: MA. Nat. | C64: 4 | D64: 19 | E64: 26 | F64: 28 | G64: 11 | I64: 88
A65: MA. Ph.d. | C65: 1 | D65: 3 | E65: 2 | F65: 0 | G65: 1 | I65: 7
A66: MA. Samf. | C66: 4 | D66: 4 | E66: 2 | F66: 1 | G66: 2 | I66: 13
A67: Øvrige Mag. | C67: 0 | D67: 4 | E67: 4 | F67: 6 | G67: 1 | I67: 15
A68: Agronom | C68: 1 | D68: 3 | E68: 5 | F68: 5 | G68: 1 | I68: 15
A69: Landsk. Arkt. | C69: 0 | D69: 2 | E69: 2 | F69: 0 | G69: 0 | I69: 4
A70: Hortonom | C70: 0 | D70: 0 | E70: 2 | F70: 0 | G70: 0 | I70: 2
A71: Forstkand. | C71: 0 | D71: 0 | E71: 0 | F71: 0 | G71: 1 | I71: 1
A72: Jordbrugsakad. | C72: 1 | D72: 5 | E72: 9 | F72: 5 | G72: 2 | I72: 22
A73: Mejeriing. | C73: 0 | D73: 0 | E73: 0 | F73: 2 | G73: 0 | I73: 2
A74: Levn.m.kand. | C74: 0 | D74: 1 | E74: 1 | F74: 0 | G74: 0 | I74: 2
A75: Dyrlæge | C75: 3 | D75: 4 | E75: 3 | F75: 4 | G75: 0 | I75: 14
A76: Farmaceut | C76: 9 | D76: 17 | E76: 21 | F76: 15 | G76: 3 | I76: 65
A77: Læge | C77: 7 | D77: 10 | E77: 8 | F77: 12 | G77: 10 | I77: 47
A78: Tandlæge | C78: 4 | D78: 4 | E78: 4 | F78: 6 | G78: 1 | I78: 19
A79: Arkitekt | C79: 2 | D79: 3 | E79: 4 | F79: 2 | G79: 3 | I79: 14
A80: Landinspek. | C80: 0 | D80: 1 | E80: 2 | F80: 2 | G80: 0 | I80: 5
A81: Bibliotekar | C81: 0 | D81: 1 | E81: 6 | F81: 6 | G81: 5 | I81: 18
A82: Musikudd. | C82: 0 | D82: 1 | E82: 2 | F82: 1 | G82: 2 | I82: 6
A83: Teolog | C83: 0 | D83: 3 | E83: 1 | F83: 9 | G83: 3 | I83: 16
A84: Psykolog | C84: 3 | D84: 10 | E84: 8 | F84: 1 | G84: 0 | I84: 22
A85: Jurist | C85: 9 | D85: 24 | E85: 37 | F85: 33 | G85: 7 | I85: 110
A86: Økonom | C86: 8 | D86: 11 | E86: 19 | F86: 18 | G86: 1 | I86: 57
A87: Samf. Adm. | C87: 16 | D87: 48 | E87: 34 | F87: 19 | G87: 4 | I87: 121
A88: Cand. Merc. | C88: 36 | D88: 75 | E88: 101 | F88: 54 | G88: 9 | I88: 275
A89: HA | C89: 6 | D89: 12 | E89: 24 | F89: 23 | G89: 7 | I89: 72
A90: HD | C90: 1 | D90: 8 | E90: 20 | F90: 38 | G90: 8 | I90: 75
A91: Komm. og Sprog | C91: 0 | D91: 14 | E91: 21 | F91: 15 | G91: 10 | I91: 60
A92: Cand. IT. | C92: 5 | D92: 10 | E92: 8 | F92: 0 | G92: 0 | I92: 23
A93: Bac. Samf. | C93: 2 | D93: 1 | E93: 1 | F93: 5 | G93: 0 | I93: 9
A94: Bac. Hum. | C94: 1 | D94: 3 | E94: 6 | F94: 4 | G94: 1 | I94: 15
A95: Bac. Nat. | C95: 3 | D95: 7 | E95: 2 | F95: 1 | G95: 1 | I95: 14
A96: Andre | C96: 8 | D96: 50 | E96: 46 | F96: 32 | G96: 6 | I96: 142
A98: Total | C98: 187 | D98: 525 | E98: 661 | F98: 551 | G98: 154 | I98: 2078
A100: Ingeniører i alt | C100: 29 | D100: 96 | E100: 161 | F100: 188 | G100: 42 | I100: 516
A101: Magistre i alt | C101: 17 | D101: 74 | E101: 87 | F101: 47 | G101: 26 | I101: 251
A102: DJØF'ere i alt | C102: 75 | D102: 170 | E102: 215 | F102: 147 | G102: 28 | I102: 635
A109: Køge
C111: Under 30 år | D111: 30 - 39 år | E111: 40 - 49 år | F111: 50 - 59 år | G111: Over 60 år | I111: I alt
A113: Civ. ing. | C113: 23 | D113: 41 | E113: 48 | F113: 63 | G113: 10 | I113: 185
A114: Diplom ing. | C114: 17 | D114: 55 | E114: 98 | F114: 146 | G114: 27 | I114: 343
A115: Cand. Scient. Tek. | C115: 14 | D115: 32 | E115: 15 | F115: 6 | G115: 0 | I115: 67
A116: MA. Hum. | C116: 13 | D116: 70 | E116: 73 | F116: 23 | G116: 15 | I116: 194
A117: MA. Nat. | C117: 9 | D117: 18 | E117: 29 | F117: 32 | G117: 7 | I117: 95
A118: MA. Ph.d. | C118: 0 | D118: 1 | E118: 1 | F118: 3 | G118: 0 | I118: 5
A119: MA. Samf. | C119: 11 | D119: 11 | E119: 7 | F119: 3 | G119: 1 | I119: 33
A120: Øvrige Mag. | C120: 1 | D120: 4 | E120: 7 | F120: 6 | G120: 3 | I120: 21
A121: Agronom | C121: 1 | D121: 6 | E121: 13 | F121: 10 | G121: 8 | I121: 38
A122: Landsk. Arkt. | C122: 1 | D122: 1 | E122: 2 | F122: 3 | G122: 1 | I122: 8
A123: Hortonom | C123: 0 | D123: 0 | E123: 3 | F123: 2 | G123: 2 | I123: 7
A124: Forstkand. | C124: 1 | D124: 1 | E124: 2 | F124: 0 | G124: 1 | I124: 5
A125: Jordbrugsakad. | C125: 3 | D125: 8 | E125: 20 | F125: 15 | G125: 12 | I125: 58
A126: Mejeriing. | C126: 0 | D126: 0 | E126: 0 | F126: 0 | G126: 0 | I126: 0
A127: Levn.m.kand. | C127: 1 | D127: 2 | E127: 1 | F127: 1 | G127: 0 | I127: 5
A128: Dyrlæge | C128: 2 | D128: 8 | E128: 10 | F128: 9 | G128: 2 | I128: 31
A129: Farmaceut | C129: 4 | D129: 15 | E129: 18 | F129: 8 | G129: 1 | I129: 46
A130: Læge | C130: 5 | D130: 16 | E130: 16 | F130: 11 | G130: 3 | I130: 51
A131: Tandlæge | C131: 1 | D131: 2 | E131: 9 | F131: 3 | G131: 0 | I131: 15
A132: Arkitekt | C132: 2 | D132: 9 | E132: 3 | F132: 3 | G132: 4 | I132: 21
A133: Landinspek. | C133: 0 | D133: 1 | E133: 1 | F133: 3 | G133: 3 | I133: 8
A134: Bibliotekar | C134: 0 | D134: 2 | E134: 10 | F134: 8 | G134: 7 | I134: 27
A135: Musikudd. | C135: 0 | D135: 0 | E135: 3 | F135: 2 | G135: 2 | I135: 7
A136: Teolog | C136: 0 | D136: 3 | E136: 4 | F136: 3 | G136: 0 | I136: 10
A137: Psykolog | C137: 9 | D137: 17 | E137: 11 | F137: 8 | G137: 4 | I137: 49
A138: Jurist | C138: 16 | D138: 35 | E138: 38 | F138: 17 | G138: 0 | I138: 106
A139: Økonom | C139: 6 | D139: 9 | E139: 26 | F139: 19 | G139: 4 | I139: 64
A140: Samf. Adm. | C140: 16 | D140: 57 | E140: 38 | F140: 26 | G140: 7 | I140: 144
A141: Cand. Merc. | C141: 26 | D141: 60 | E141: 79 | F141: 35 | G141: 6 | I141: 206
A142: HA | C142: 6 | D142: 2 | E142: 16 | F142: 15 | G142: 5 | I142: 44
A143: HD | C143: 4 | D143: 5 | E143: 14 | F143: 24 | G143: 3 | I143: 50
A144: Komm. og Sprog | C144: 4 | D144: 16 | E144: 11 | F144: 19 | G144: 13 | I144: 63
A145: Cand. IT. | C145: 4 | D145: 6 | E145: 5 | F145: 0 | G145: 0 | I145: 15
A146: Bac. Samf. | C146: 1 | D146: 2 | E146: 2 | F146: 0 | G146: 1 | I146: 6
A147: Bac. Hum. | C147: 3 | D147: 2 | E147: 12 | F147: 5 | G147: 1 | I147: 23
A148: Bac. Nat. | C148: 0 | D148: 1 | E148: 5 | F148: 2 | G148: 1 | I148: 9
A149: Andre | C149: 14 | D149: 44 | E149: 41 | F149: 35 | G149: 9 | I149: 143
A151: Total | C151: 215 | D151: 554 | E151: 671 | F151: 553 | G151: 151 | I151: 2144
A153: Ingeniører i alt | C153: 40 | D153: 96 | E153: 146 | F153: 209 | G153: 37 | I153: 528
A154: Magistre i alt | C154: 34 | D154: 104 | E154: 117 | F154: 67 | G154: 26 | I154: 348
A155: DJØF'ere i alt | C155: 70 | D155: 163 | E155: 197 | F155: 112 | G155: 22 | I155: 564
A162: Roskilde
C164: Under 30 år | D164: 30 - 39 år | E164: 40 - 49 år | F164: 50 - 59 år | G164: Over 60 år | I164: I alt
A166: Civ. ing. | C166: 34 | D166: 165 | E166: 205 | F166: 214 | G166: 62 | I166: 680
A167: Diplom ing. | C167: 37 | D167: 108 | E167: 241 | F167: 318 | G167: 77 | I167: 781
A168: Cand. Scient. Tek. | C168: 56 | D168: 131 | E168: 70 | F168: 26 | G168: 8 | I168: 291
A169: MA. Hum. | C169: 56 | D169: 190 | E169: 259 | F169: 116 | G169: 45 | I169: 666
A170: MA. Nat. | C170: 11 | D170: 58 | E170: 173 | F170: 106 | G170: 44 | I170: 392
A171: MA. Ph.d. | C171: 0 | D171: 8 | E171: 20 | F171: 19 | G171: 2 | I171: 49
A172: MA. Samf. | C172: 21 | D172: 40 | E172: 29 | F172: 16 | G172: 8 | I172: 114
A173: Øvrige Mag. | C173: 3 | D173: 5 | E173: 17 | F173: 23 | G173: 8 | I173: 56
A174: Agronom | C174: 1 | D174: 10 | E174: 26 | F174: 29 | G174: 13 | I174: 79
A175: Landsk. Arkt. | C175: 1 | D175: 7 | E175: 9 | F175: 7 | G175: 1 | I175: 25
A176: Hortonom | C176: 0 | D176: 0 | E176: 2 | F176: 1 | G176: 1 | I176: 4
A177: Forstkand. | C177: 0 | D177: 4 | E177: 6 | F177: 1 | G177: 2 | I177: 13
A178: Jordbrugsakad. | C178: 2 | D178: 21 | E178: 43 | F178: 38 | G178: 17 | I178: 121
A179: Mejeriing. | C179: 0 | D179: 1 | E179: 1 | F179: 1 | G179: 0 | I179: 3
A180: Levn.m.kand. | C180: 0 | D180: 8 | E180: 4 | F180: 0 | G180: 0 | I180: 12
A181: Dyrlæge | C181: 4 | D181: 14 | E181: 13 | F181: 19 | G181: 9 | I181: 59
A182: Farmaceut | C182: 7 | D182: 40 | E182: 56 | F182: 45 | G182: 13 | I182: 161
A183: Læge | C183: 15 | D183: 92 | E183: 56 | F183: 34 | G183: 21 | I183: 218
A184: Tandlæge | C184: 10 | D184: 11 | E184: 7 | F184: 10 | G184: 3 | I184: 41
A185: Arkitekt | C185: 1 | D185: 14 | E185: 25 | F185: 19 | G185: 4 | I185: 63
A186: Landinspek. | C186: 0 | D186: 3 | E186: 4 | F186: 6 | G186: 4 | I186: 17
A187: Bibliotekar | C187: 2 | D187: 15 | E187: 23 | F187: 31 | G187: 18 | I187: 89
A188: Musikudd. | C188: 0 | D188: 4 | E188: 5 | F188: 5 | G188: 3 | I188: 17
A189: Teolog | C189: 0 | D189: 1 | E189: 13 | F189: 14 | G189: 4 | I189: 32
A190: Psykolog | C190: 11 | D190: 29 | E190: 47 | F190: 22 | G190: 10 | I190: 119
A191: Jurist | C191: 14 | D191: 70 | E191: 72 | F191: 62 | G191: 18 | I191: 236
A192: Økonom | C192: 10 | D192: 23 | E192: 58 | F192: 62 | G192: 10 | I192: 163
A193: Samf. Adm. | C193: 46 | D193: 166 | E193: 231 | F193: 152 | G193: 36 | I193: 631
A194: Cand. Merc. | C194: 44 | D194: 157 | E194: 172 | F194: 119 | G194: 23 | I194: 515
A195: HA | C195: 9 | D195: 6 | E195: 35 | F195: 48 | G195: 8 | I195: 106
A196: HD | C196: 2 | D196: 7 | E196: 30 | F196: 48 | G196: 10 | I196: 97
A197: Komm. og Sprog | C197: 8 | D197: 21 | E197: 33 | F197: 36 | G197: 14 | I197: 112
A198: Cand. IT. | C198: 6 | D198: 20 | E198: 19 | F198: 3 | G198: 0 | I198: 48
A199: Bac. Samf. | C199: 0 | D199: 8 | E199: 6 | F199: 8 | G199: 0 | I199: 22
A200: Bac. Hum. | C200: 16 | D200: 12 | E200: 13 | F200: 16 | G200: 3 | I200: 60
A201: Bac. Nat. | C201: 5 | D201: 8 | E201: 6 | F201: 5 | G201: 3 | I201: 27
A202: Andre | C202: 23 | D202: 106 | E202: 103 | F202: 74 | G202: 22 | I202: 328
A204: Total | C204: 453 | D204: 1562 | E204: 2089 | F204: 1715 | G204: 507 | I204: 6326
A206: Ingeniører i alt | C206: 71 | D206: 273 | E206: 446 | F206: 532 | G206: 139 | I206: 1461
A207: Magistre i alt | C207: 91 | D207: 301 | E207: 498 | F207: 280 | G207: 107 | I207: 1277
A208: DJØF'ere i alt | C208: 123 | D208: 422 | E208: 568 | F208: 443 | G208: 95 | I208: 1651
A215: Solrød
C217: Under 30 år | D217: 30 - 39 år | E217: 40 - 49 år | F217: 50 - 59 år | G217: Over 60 år | I217: I alt
A219: Civ. ing. | C219: 5 | D219: 32 | E219: 42 | F219: 38 | G219: 5 | I219: 122
A220: Diplom ing. | C220: 6 | D220: 32 | E220: 50 | F220: 66 | G220: 24 | I220: 178
A221: Cand. Scient. Tek. | C221: 7 | D221: 16 | E221: 7 | F221: 4 | G221: 0 | I221: 34
A222: MA. Hum. | C222: 5 | D222: 24 | E222: 38 | F222: 10 | G222: 2 | I222: 79
A223: MA. Nat. | C223: 3 | D223: 7 | E223: 10 | F223: 9 | G223: 2 | I223: 31
A224: MA. Ph.d. | C224: 0 | D224: 0 | E224: 2 | F224: 1 | G224: 0 | I224: 3
A225: MA. Samf. | C225: 3 | D225: 6 | E225: 4 | F225: 1 | G225: 0 | I225: 14
A226: Øvrige Mag. | C226: 1 | D226: 2 | E226: 5 | F226: 2 | G226: 0 | I226: 10
A227: Agronom | C227: 1 | D227: 0 | E227: 2 | F227: 1 | G227: 0 | I227: 4
A228: Landsk. Arkt. | C228: 0 | D228: 0 | E228: 1 | F228: 0 | G228: 0 | I228: 1
A229: Hortonom | C229: 0 | D229: 0 | E229: 0 | F229: 1 | G229: 0 | I229: 1
A230: Forstkand. | C230: 0 | D230: 0 | E230: 1 | F230: 0 | G230: 0 | I230: 1
A231: Jordbrugsakad. | C231: 1 | D231: 0 | E231: 4 | F231: 2 | G231: 0 | I231: 7
A232: Mejeriing. | C232: 0 | D232: 0 | E232: 1 | F232: 1 | G232: 0 | I232: 2
A233: Levn.m.kand. | C233: 0 | D233: 2 | E233: 0 | F233: 1 | G233: 0 | I233: 3
A234: Dyrlæge | C234: 2 | D234: 5 | E234: 2 | F234: 2 | G234: 0 | I234: 11
A235: Farmaceut | C235: 3 | D235: 4 | E235: 7 | F235: 4 | G235: 5 | I235: 23
A236: Læge | C236: 4 | D236: 13 | E236: 8 | F236: 2 | G236: 0 | I236: 27
A237: Tandlæge | C237: 1 | D237: 1 | E237: 0 | F237: 3 | G237: 2 | I237: 7
A238: Arkitekt | C238: 0 | D238: 1 | E238: 2 | F238: 2 | G238: 2 | I238: 7
A239: Landinspek. | C239: 0 | D239: 2 | E239: 0 | F239: 0 | G239: 0 | I239: 2
A240: Bibliotekar | C240: 0 | D240: 2 | E240: 4 | F240: 4 | G240: 2 | I240: 12
A241: Musikudd. | C241: 0 | D241: 0 | E241: 1 | F241: 0 | G241: 1 | I241: 2
A242: Teolog | C242: 0 | D242: 1 | E242: 3 | F242: 3 | G242: 1 | I242: 8
A243: Psykolog | C243: 2 | D243: 9 | E243: 7 | F243: 1 | G243: 2 | I243: 21
... 575 more rows

Sheet Tabel 4 S
A1: Tabel 4. Ledighedsberørte - aldersfordelt
A3: Sjælland
C5: Under 30 år | D5: 30 - 39 år | E5: 40 - 49 år | F5: 50 - 59 år | G5: Over 60 år | I5: I alt
A7: Civ. ing. | C7: 15.01 | D7: 10 | E7: 9 | F7: 9 | G7: 4 | I7: 47.01
A8: Diplom ing. | C8: 11.01 | D8: 13 | E8: 17 | F8: 26 | G8: 13 | I8: 80.01
A9: Cand. Scient. Tek | C9: 46.01 | D9: 30 | E9: 5 | F9: 0 | G9: 2 | I9: 83.01
A10: MA. Hum. | C10: 60.01 | D10: 77 | E10: 43 | F10: 16 | G10: 11 | I10: 207.01
A11: MA. Nat. | C11: 5.01 | D11: 16 | E11: 12 | F11: 9 | G11: 2 | I11: 44.01
A12: MA. Ph.d. | C12: 1.01 | D12: 1 | E12: 1 | F12: 1 | G12: 1 | I12: 5.01
A13: MA. Samf. | C13: 24.01 | D13: 12 | E13: 1 | F13: 3 | G13: 2 | I13: 42.01
A14: Øvrige Mag. | C14: 1.01 | D14: 3 | E14: 6 | F14: 4 | G14: 0 | I14: 14.01
A15: Agronom | C15: 2.01 | D15: 6 | E15: 3 | F15: 2 | G15: 4 | I15: 17.01
A16: Landsk. Arkt. | C16: 0.01 | D16: 4 | E16: 1 | F16: 1 | G16: 1 | I16: 7.01
A17: Hortonom | C17: 0.01 | D17: 0 | E17: 0 | F17: 0 | G17: 0 | I17: 0.01
A18: Forstkand. | C18: 1.01 | D18: 0 | E18: 0 | F18: 0 | G18: 0 | I18: 1.01
A19: Jordbrugsakad. | C19: 3.04 | D19: 10 | E19: 4 | F19: 3 | G19: 5 | I19: 25.04
A20: Mejeriing. | C20: 0.01 | D20: 0 | E20: 0 | F20: 0 | G20: 0 | I20: 0.01
A21: Levn.m.kand. | C21: 0.01 | D21: 1 | E21: 0 | F21: 2 | G21: 0 | I21: 3.01
A22: Dyrlæge | C22: 2.01 | D22: 7 | E22: 1 | F22: 1 | G22: 0 | I22: 11.01
A23: Farmaceut | C23: 5.01 | D23: 2 | E23: 1 | F23: 1 | G23: 1 | I23: 10.01
A24: Læge | C24: 3.01 | D24: 1 | E24: 3 | F24: 0 | G24: 1 | I24: 8.01
A25: Tandlæge | C25: 0.01 | D25: 0 | E25: 0 | F25: 1 | G25: 0 | I25: 1.01
A26: Arkitekt | C26: 3.01 | D26: 4 | E26: 3 | F26: 3 | G26: 1 | I26: 14.01
A27: Landinspek. | C27: 0.01 | D27: 0 | E27: 1 | F27: 0 | G27: 0 | I27: 1.01
A28: Bibliotekar | C28: 3.01 | D28: 5 | E28: 5 | F28: 3 | G28: 2 | I28: 18.01
A29: Musikudd. | C29: 0.01 | D29: 0 | E29: 0 | F29: 0 | G29: 1 | I29: 1.01
A30: Teolog | C30: 0.01 | D30: 2 | E30: 0 | F30: 4 | G30: 0 | I30: 6.01
A31: Psykolog | C31: 16.01 | D31: 7 | E31: 1 | F31: 2 | G31: 0 | I31: 26.01
A32: Jurist | C32: 5.01 | D32: 5 | E32: 3 | F32: 4 | G32: 1 | I32: 18.01
A33: Økonom | C33: 3.01 | D33: 0 | E33: 3 | F33: 6 | G33: 2 | I33: 14.01
A34: Samf. Adm. | C34: 51.01 | D34: 31 | E34: 18 | F34: 14 | G34: 6 | I34: 120.01
A35: Cand. Merc. | C35: 41.01 | D35: 17 | E35: 20 | F35: 17 | G35: 7 | I35: 102.01
A36: HA | C36: 5.01 | D36: 2 | E36: 0 | F36: 9 | G36: 2 | I36: 18.01
A37: HD | C37: 9.01 | D37: 1 | E37: 3 | F37: 9 | G37: 5 | I37: 27.01
A38: Komm. og Sprog | C38: 7.01 | D38: 10 | E38: 1 | F38: 8 | G38: 9 | I38: 35.01
A39: Cand. IT. | C39: 7.01 | D39: 2 | E39: 1 | F39: 1 | G39: 0 | I39: 11.01
A40: Bac. Samf. | C40: 4.01 | D40: 0 | E40: 0 | F40: 3 | G40: 0 | I40: 7.01
A41: Bac. Hum. | C41: 12.01 | D41: 3 | E41: 2 | F41: 4 | G41: 4 | I41: 25.01
A42: Bac. Nat. | C42: 4.01 | D42: 3 | E42: 1 | F42: 0 | G42: 0 | I42: 8.01
A43: Andre | C43: 18.01 | D43: 25 | E43: 17 | F43: 25 | G43: 13 | I43: 98.01
A45: Total | C45: 364.36 | D45: 300 | E45: 182 | F45: 188 | G45: 95 | I45: 1129.36
A47: Ingeniører i alt | C47: 26.02 | D47: 23 | E47: 26 | F47: 35 | G47: 17 | I47: 127.02
A48: Magistre i alt | C48: 91.05 | D48: 109 | E48: 63 | F48: 33 | G48: 16 | I48: 312.05
A49: DJØF'ere i alt | C49: 105.05 | D49: 55 | E49: 44 | F49: 50 | G49: 18 | I49: 272.05
A56: Greve
C58: Under 30 år | D58: 30 - 39 år | E58: 40 - 49 år | F58: 50 - 59 år | G58: Over 60 år | I58: I alt
A60: Civ. ing. | C60: 2 | D60: 0 | E60: 1 | F60: 0 | G60: 0 | I60: 3
A61: Diplom ing. | C61: 1 | D61: 2 | E61: 0 | F61: 3 | G61: 2 | I61: 8
A62: Cand. Scient. Tek | C62: 3 | D62: 2 | E62: 0 | F62: 0 | G62: 1 | I62: 6
A63: MA. Hum. | C63: 2 | D63: 3 | E63: 1 | F63: 2 | G63: 1 | I63: 9
A64: MA. Nat. | C64: 0 | D64: 0 | E64: 0 | F64: 0 | G64: 1 | I64: 1
A65: MA. Ph.d. | C65: 1 | D65: 0 | E65: 0 | F65: 0 | G65: 0 | I65: 1
A66: MA. Samf. | C66: 2 | D66: 0 | E66: 1 | F66: 0 | G66: 1 | I66: 4
A67: Øvrige Mag. | C67: 0 | D67: 0 | E67: 1 | F67: 1 | G67: 0 | I67: 2
A68: Agronom | C68: 0 | D68: 0 | E68: 0 | F68: 0 | G68: 0 | I68: 0
A69: Landsk. Arkt. | C69: 0 | D69: 0 | E69: 0 | F69: 0 | G69: 0 | I69: 0
A70: Hortonom | C70: 0 | D70: 0 | E70: 0 | F70: 0 | G70: 0 | I70: 0
A71: Forstkand. | C71: 0 | D71: 0 | E71: 0 | F71: 0 | G71: 0 | I71: 0
A72: Jordbrugsakad. | C72: 0 | D72: 0 | E72: 0 | F72: 0 | G72: 0 | I72: 0
A73: Mejeriing. | C73: 0 | D73: 0 | E73: 0 | F73: 0 | G73: 0 | I73: 0
A74: Levn.m.kand. | C74: 0 | D74: 0 | E74: 0 | F74: 0 | G74: 0 | I74: 0
A75: Dyrlæge | C75: 1 | D75: 0 | E75: 0 | F75: 0 | G75: 0 | I75: 1
A76: Farmaceut | C76: 0 | D76: 0 | E76: 0 | F76: 0 | G76: 0 | I76: 0
A77: Læge | C77: 1 | D77: 0 | E77: 1 | F77: 0 | G77: 1 | I77: 3
A78: Tandlæge | C78: 0 | D78: 0 | E78: 0 | F78: 1 | G78: 0 | I78: 1
A79: Arkitekt | C79: 2 | D79: 0 | E79: 0 | F79: 0 | G79: 0 | I79: 2
A80: Landinspek. | C80: 0 | D80: 0 | E80: 0 | F80: 0 | G80: 0 | I80: 0
A81: Bibliotekar | C81: 0 | D81: 1 | E81: 0 | F81: 0 | G81: 0 | I81: 1
A82: Musikudd. | C82: 0 | D82: 0 | E82: 0 | F82: 0 | G82: 0 | I82: 0
A83: Teolog | C83: 0 | D83: 0 | E83: 0 | F83: 0 | G83: 0 | I83: 0
A84: Psykolog | C84: 1 | D84: 0 | E84: 0 | F84: 0 | G84: 0 | I84: 1
A85: Jurist | C85: 0 | D85: 0 | E85: 0 | F85: 0 | G85: 0 | I85: 0
A86: Økonom | C86: 0 | D86: 0 | E86: 0 | F86: 0 | G86: 0 | I86: 0
A87: Samf. Adm. | C87: 5 | D87: 5 | E87: 3 | F87: 0 | G87: 0 | I87: 13
A88: Cand. Merc. | C88: 8 | D88: 3 | E88: 1 | F88: 1 | G88: 1 | I88: 14
A89: HA | C89: 0 | D89: 0 | E89: 0 | F89: 3 | G89: 0 | I89: 3
A90: HD | C90: 1 | D90: 0 | E90: 0 | F90: 1 | G90: 0 | I90: 2
A91: Komm. og Sprog | C91: 0 | D91: 0 | E91: 0 | F91: 1 | G91: 2 | I91: 3
A92: Cand. IT. | C92: 1 | D92: 0 | E92: 0 | F92: 0 | G92: 0 | I92: 1
A93: Bac. Samf. | C93: 0 | D93: 0 | E93: 0 | F93: 0 | G93: 0 | I93: 0
A94: Bac. Hum. | C94: 0 | D94: 0 | E94: 0 | F94: 0 | G94: 1 | I94: 1
A95: Bac. Nat. | C95: 1 | D95: 0 | E95: 1 | F95: 0 | G95: 0 | I95: 2
A96: Andre | C96: 2 | D96: 1 | E96: 1 | F96: 1 | G96: 0 | I96: 5
A98: Total | C98: 34 | D98: 17 | E98: 11 | F98: 14 | G98: 11 | I98: 87
A100: Ingeniører i alt | C100: 3 | D100: 2 | E100: 1 | F100: 3 | G100: 2 | I100: 11
A101: Magistre i alt | C101: 5 | D101: 3 | E101: 3 | F101: 3 | G101: 3 | I101: 17
A102: DJØF'ere i alt | C102: 13 | D102: 8 | E102: 4 | F102: 4 | G102: 1 | I102: 30
A109: Køge
C111: Under 30 år | D111: 30 - 39 år | E111: 40 - 49 år | F111: 50 - 59 år | G111: Over 60 år | I111: I alt
A113: Civ. ing. | C113: 3 | D113: 1 | E113: 2 | F113: 0 | G113: 0 | I113: 6
A114: Diplom ing. | C114: 0 | D114: 2 | E114: 1 | F114: 2 | G114: 1 | I114: 6
A115: Cand. Scient. Tek | C115: 4 | D115: 3 | E115: 1 | F115: 0 | G115: 0 | I115: 8
A116: MA. Hum. | C116: 4 | D116: 2 | E116: 3 | F116: 0 | G116: 0 | I116: 9
A117: MA. Nat. | C117: 0 | D117: 2 | E117: 1 | F117: 1 | G117: 0 | I117: 4
A118: MA. Ph.d. | C118: 0 | D118: 0 | E118: 0 | F118: 0 | G118: 0 | I118: 0
A119: MA. Samf. | C119: 5 | D119: 1 | E119: 0 | F119: 0 | G119: 0 | I119: 6
A120: Øvrige Mag. | C120: 0 | D120: 2 | E120: 1 | F120: 1 | G120: 0 | I120: 4
A121: Agronom | C121: 1 | D121: 2 | E121: 0 | F121: 0 | G121: 1 | I121: 4
A122: Landsk. Arkt. | C122: 0 | D122: 1 | E122: 0 | F122: 0 | G122: 1 | I122: 2
A123: Hortonom | C123: 0 | D123: 0 | E123: 0 | F123: 0 | G123: 0 | I123: 0
A124: Forstkand. | C124: 1 | D124: 0 | E124: 0 | F124: 0 | G124: 0 | I124: 1
A125: Jordbrugsakad. | C125: 2 | D125: 3 | E125: 0 | F125: 0 | G125: 2 | I125: 7
A126: Mejeriing. | C126: 0 | D126: 0 | E126: 0 | F126: 0 | G126: 0 | I126: 0
A127: Levn.m.kand. | C127: 0 | D127: 0 | E127: 0 | F127: 0 | G127: 0 | I127: 0
A128: Dyrlæge | C128: 0 | D128: 0 | E128: 0 | F128: 0 | G128: 0 | I128: 0
A129: Farmaceut | C129: 1 | D129: 1 | E129: 0 | F129: 0 | G129: 0 | I129: 2
A130: Læge | C130: 0 | D130: 0 | E130: 0 | F130: 0 | G130: 0 | I130: 0
A131: Tandlæge | C131: 0 | D131: 0 | E131: 0 | F131: 0 | G131: 0 | I131: 0
A132: Arkitekt | C132: 0 | D132: 0 | E132: 0 | F132: 0 | G132: 0 | I132: 0
A133: Landinspek. | C133: 0 | D133: 0 | E133: 0 | F133: 0 | G133: 0 | I133: 0
A134: Bibliotekar | C134: 0 | D134: 0 | E134: 0 | F134: 0 | G134: 1 | I134: 1
A135: Musikudd. | C135: 0 | D135: 0 | E135: 0 | F135: 0 | G135: 0 | I135: 0
A136: Teolog | C136: 0 | D136: 1 | E136: 0 | F136: 0 | G136: 0 | I136: 1
A137: Psykolog | C137: 1 | D137: 2 | E137: 0 | F137: 0 | G137: 0 | I137: 3
A138: Jurist | C138: 0 | D138: 2 | E138: 0 | F138: 1 | G138: 0 | I138: 3
A139: Økonom | C139: 1 | D139: 0 | E139: 0 | F139: 0 | G139: 0 | I139: 1
A140: Samf. Adm. | C140: 4 | D140: 4 | E140: 0 | F140: 3 | G140: 1 | I140: 12
A141: Cand. Merc. | C141: 2 | D141: 4 | E141: 2 | F141: 2 | G141: 1 | I141: 11
A142: HA | C142: 0 | D142: 0 | E142: 0 | F142: 0 | G142: 0 | I142: 0
A143: HD | C143: 2 | D143: 0 | E143: 0 | F143: 0 | G143: 0 | I143: 2
A144: Komm. og Sprog | C144: 0 | D144: 2 | E144: 0 | F144: 1 | G144: 1 | I144: 4
A145: Cand. IT. | C145: 1 | D145: 0 | E145: 0 | F145: 0 | G145: 0 | I145: 1
A146: Bac. Samf. | C146: 1 | D146: 0 | E146: 0 | F146: 0 | G146: 0 | I146: 1
A147: Bac. Hum. | C147: 2 | D147: 0 | E147: 0 | F147: 0 | G147: 0 | I147: 2
A148: Bac. Nat. | C148: 0 | D148: 0 | E148: 0 | F148: 0 | G148: 0 | I148: 0
A149: Andre | C149: 2 | D149: 2 | E149: 1 | F149: 6 | G149: 0 | I149: 11
A151: Total | C151: 35 | D151: 34 | E151: 12 | F151: 17 | G151: 7 | I151: 105
A153: Ingeniører i alt | C153: 3 | D153: 3 | E153: 3 | F153: 2 | G153: 1 | I153: 12
A154: Magistre i alt | C154: 9 | D154: 7 | E154: 5 | F154: 2 | G154: 0 | I154: 23
A155: DJØF'ere i alt | C155: 7 | D155: 10 | E155: 2 | F155: 6 | G155: 2 | I155: 27
A162: Roskilde
C164: Under 30 år | D164: 30 - 39 år | E164: 40 - 49 år | F164: 50 - 59 år | G164: Over 60 år | I164: I alt
A166: Civ. ing. | C166: 3 | D166: 1 | E166: 3 | F166: 1 | G166: 2 | I166: 10
A167: Diplom ing. | C167: 3 | D167: 2 | E167: 4 | F167: 3 | G167: 5 | I167: 17
A168: Cand. Scient. Tek | C168: 12 | D168: 8 | E168: 2 | F168: 0 | G168: 0 | I168: 22
A169: MA. Hum. | C169: 13 | D169: 18 | E169: 13 | F169: 3 | G169: 2 | I169: 49
A170: MA. Nat. | C170: 4 | D170: 3 | E170: 3 | F170: 3 | G170: 0 | I170: 13
A171: MA. Ph.d. | C171: 0 | D171: 0 | E171: 0 | F171: 1 | G171: 1 | I171: 2
A172: MA. Samf. | C172: 11 | D172: 4 | E172: 0 | F172: 1 | G172: 0 | I172: 16
A173: Øvrige Mag. | C173: 0 | D173: 0 | E173: 2 | F173: 1 | G173: 0 | I173: 3
A174: Agronom | C174: 1 | D174: 1 | E174: 0 | F174: 1 | G174: 0 | I174: 3
A175: Landsk. Arkt. | C175: 0 | D175: 1 | E175: 0 | F175: 0 | G175: 0 | I175: 1
A176: Hortonom | C176: 0 | D176: 0 | E176: 0 | F176: 0 | G176: 0 | I176: 0
A177: Forstkand. | C177: 0 | D177: 0 | E177: 0 | F177: 0 | G177: 0 | I177: 0
A178: Jordbrugsakad. | C178: 1 | D178: 2 | E178: 0 | F178: 1 | G178: 0 | I178: 4
A179: Mejeriing. | C179: 0 | D179: 0 | E179: 0 | F179: 0 | G179: 0 | I179: 0
A180: Levn.m.kand. | C180: 0 | D180: 0 | E180: 0 | F180: 0 | G180: 0 | I180: 0
A181: Dyrlæge | C181: 0 | D181: 2 | E181: 1 | F181: 0 | G181: 0 | I181: 3
A182: Farmaceut | C182: 2 | D182: 1 | E182: 0 | F182: 0 | G182: 1 | I182: 4
A183: Læge | C183: 0 | D183: 0 | E183: 1 | F183: 0 | G183: 0 | I183: 1
A184: Tandlæge | C184: 0 | D184: 0 | E184: 0 | F184: 0 | G184: 0 | I184: 0
A185: Arkitekt | C185: 1 | D185: 0 | E185: 1 | F185: 2 | G185: 0 | I185: 4
A186: Landinspek. | C186: 0 | D186: 0 | E186: 0 | F186: 0 | G186: 0 | I186: 0
A187: Bibliotekar | C187: 2 | D187: 1 | E187: 1 | F187: 1 | G187: 0 | I187: 5
A188: Musikudd. | C188: 0 | D188: 0 | E188: 0 | F188: 0 | G188: 1 | I188: 1
A189: Teolog | C189: 0 | D189: 0 | E189: 0 | F189: 0 | G189: 0 | I189: 0
A190: Psykolog | C190: 3 | D190: 1 | E190: 0 | F190: 0 | G190: 0 | I190: 4
A191: Jurist | C191: 2 | D191: 0 | E191: 0 | F191: 0 | G191: 0 | I191: 2
A192: Økonom | C192: 0 | D192: 0 | E192: 1 | F192: 2 | G192: 0 | I192: 3
A193: Samf. Adm. | C193: 15 | D193: 9 | E193: 5 | F193: 4 | G193: 1 | I193: 34
A194: Cand. Merc. | C194: 5 | D194: 1 | E194: 5 | F194: 5 | G194: 2 | I194: 18
A195: HA | C195: 1 | D195: 0 | E195: 0 | F195: 1 | G195: 1 | I195: 3
A196: HD | C196: 1 | D196: 1 | E196: 0 | F196: 3 | G196: 1 | I196: 6
A197: Komm. og Sprog | C197: 3 | D197: 0 | E197: 0 | F197: 1 | G197: 2 | I197: 6
A198: Cand. IT. | C198: 2 | D198: 1 | E198: 0 | F198: 0 | G198: 0 | I198: 3
A199: Bac. Samf. | C199: 0 | D199: 0 | E199: 0 | F199: 0 | G199: 0 | I199: 0
A200: Bac. Hum. | C200: 4 | D200: 2 | E200: 1 | F200: 0 | G200: 1 | I200: 8
A201: Bac. Nat. | C201: 2 | D201: 1 | E201: 0 | F201: 0 | G201: 0 | I201: 3
A202: Andre | C202: 4 | D202: 8 | E202: 5 | F202: 4 | G202: 0 | I202: 21
A204: Total | C204: 94 | D204: 66 | E204: 48 | F204: 37 | G204: 20 | I204: 265
A206: Ingeniører i alt | C206: 6 | D206: 3 | E206: 7 | F206: 4 | G206: 7 | I206: 27
A207: Magistre i alt | C207: 28 | D207: 25 | E207: 18 | F207: 9 | G207: 3 | I207: 83
A208: DJØF'ere i alt | C208: 23 | D208: 10 | E208: 11 | F208: 12 | G208: 4 | I208: 60
A215: Solrød
C217: Under 30 år | D217: 30 - 39 år | E217: 40 - 49 år | F217: 50 - 59 år | G217: Over 60 år | I217: I alt
A219: Civ. ing. | C219: 1 | D219: 1 | E219: 0 | F219: 0 | G219: 0 | I219: 2
A220: Diplom ing. | C220: 0 | D220: 0 | E220: 1 | F220: 0 | G220: 1 | I220: 2
A221: Cand. Scient. Tek | C221: 1 | D221: 1 | E221: 0 | F221: 0 | G221: 0 | I221: 2
A222: MA. Hum. | C222: 1 | D222: 3 | E222: 0 | F222: 0 | G222: 0 | I222: 4
A223: MA. Nat. | C223: 0 | D223: 0 | E223: 0 | F223: 0 | G223: 0 | I223: 0
A224: MA. Ph.d. | C224: 0 | D224: 0 | E224: 0 | F224: 0 | G224: 0 | I224: 0
A225: MA. Samf. | C225: 1 | D225: 0 | E225: 0 | F225: 0 | G225: 0 | I225: 1
A226: Øvrige Mag. | C226: 0 | D226: 0 | E226: 0 | F226: 0 | G226: 0 | I226: 0
A227: Agronom | C227: 0 | D227: 0 | E227: 0 | F227: 0 | G227: 0 | I227: 0
A228: Landsk. Arkt. | C228: 0 | D228: 0 | E228: 0 | F228: 0 | G228: 0 | I228: 0
A229: Hortonom | C229: 0 | D229: 0 | E229: 0 | F229: 0 | G229: 0 | I229: 0
A230: Forstkand. | C230: 0 | D230: 0 | E230: 0 | F230: 0 | G230: 0 | I230: 0
A231: Jordbrugsakad. | C231: 0 | D231: 0 | E231: 0 | F231: 0 | G231: 0 | I231: 0
A232: Mejeriing. | C232: 0 | D232: 0 | E232: 0 | F232: 0 | G232: 0 | I232: 0
A233: Levn.m.kand. | C233: 0 | D233: 0 | E233: 0 | F233: 1 | G233: 0 | I233: 1
A234: Dyrlæge | C234: 0 | D234: 0 | E234: 0 | F234: 0 | G234: 0 | I234: 0
A235: Farmaceut | C235: 1 | D235: 0 | E235: 0 | F235: 0 | G235: 0 | I235: 1
A236: Læge | C236: 0 | D236: 0 | E236: 0 | F236: 0 | G236: 0 | I236: 0
A237: Tandlæge | C237: 0 | D237: 0 | E237: 0 | F237: 0 | G237: 0 | I237: 0
A238: Arkitekt | C238: 0 | D238: 0 | E238: 0 | F238: 0 | G238: 0 | I238: 0
A239: Landinspek. | C239: 0 | D239: 0 | E239: 0 | F239: 0 | G239: 0 | I239: 0
A240: Bibliotekar | C240: 0 | D240: 0 | E240: 0 | F240: 1 | G240: 0 | I240: 1
A241: Musikudd. | C241: 0 | D241: 0 | E241: 0 | F241: 0 | G241: 0 | I241: 0
A242: Teolog | C242: 0 | D242: 0 | E242: 0 | F242: 0 | G242: 0 | I242: 0
A243: Psykolog | C243: 1 | D243: 0 | E243: 0 | F243: 0 | G243: 0 | I243: 1
... 575 more rows

Sheet Tabel 4(Br) S
A1: Tabel 4. Ledighedsberørte - aldersfordelt
A3: Sjælland
C5: Under 30 år | D5: 30 - 39 år | E5: 40 - 49 år | F5: 50 - 59 år | G5: Over 60 år | I5: I alt
A7: Civ. ing. | C7: 12.25347721 | D7: 8.729495416 | E7: 8.678974615 | F7: 7.640491486 | G7: 3.583858292 | I7: 40.88629702
A8: Diplom ing. | C8: 9.333250182 | D8: 11.07590594 | E8: 13.01627892 | F8: 22.08257968 | G8: 11.02413772 | I8: 66.53215245
A9: Cand. Scient. Tek | C9: 38.12636438 | D9: 25.9340111 | E9: 4.96787875 | F9: 0 | G9: 1.538077715 | I9: 70.56633195
A10: MA. Hum. | C10: 51.37528848 | D10: 69.46734859 | E10: 37.6822803 | F10: 13.67803904 | G10: 9.542194224 | I10: 181.7451506
A11: MA. Nat. | C11: 4.896151697 | D11: 13.27013036 | E11: 10.31747022 | F11: 8.436350028 | G11: 1.90731616 | I11: 38.82741846
A12: MA. Ph.d. | C12: 0.9998128959 | D12: 0.9998128859 | E12: 0.9998128859 | F12: 0.9536580802 | G12: 0.6374352897 | I12: 4.590532038
A13: MA. Samf. | C13: 21.95159984 | D13: 9.953221481 | E13: 0.9998128859 | F13: 1.849310796 | G13: 1.999625772 | I13: 36.75357077
A14: Øvrige Mag. | C14: 0.7690388674 | D14: 2.338302252 | E14: 5.280982973 | F14: 3.693631884 | G14: 0 | I14: 12.08195598
A15: Agronom | C15: 1.999625782 | D15: 5.151874259 | E15: 2.441838708 | F15: 1.90731616 | G15: 3.168465041 | I15: 14.66911995
A16: Landsk. Arkt. | C16: 1e-08 | D16: 3.948107029 | E16: 0.9998128859 | F16: 0.3074908002 | G16: 0.7004303624 | I16: 5.955841088
A17: Hortonom | C17: 1e-08 | D17: 0 | E17: 0 | F17: 0 | G17: 0 | I17: 1e-08
A18: Forstkand. | C18: 0.4921100331 | D18: 0 | E18: 0 | F18: 0 | G18: 0 | I18: 0.4921100331
A19: Jordbrugsakad. | C19: 2.491735835 | D19: 9.099981289 | E19: 3.441651594 | F19: 2.214806961 | G19: 3.868895403 | I19: 21.11707108
A20: Mejeriing. | C20: 1e-08 | D20: 0 | E20: 0 | F20: 0 | G20: 0 | I20: 1e-08
A21: Levn.m.kand. | C21: 1e-08 | D21: 0.9536580802 | E21: 0 | F21: 1.999625772 | G21: 0 | I21: 2.953283862
A22: Dyrlæge | C22: 1.458242385 | D22: 5.577870642 | E22: 0.8151936631 | F22: 0.9998128859 | G22: 0 | I22: 8.851119576
A23: Farmaceut | C23: 3.693008181 | D23: 1.722696938 | E23: 0.9998128859 | F23: 0.9998128859 | G23: 0.9998128859 | I23: 8.415143776
A24: Læge | C24: 2.214806971 | D24: 0.9873386141 | E24: 2.491735795 | F24: 0 | G24: 0.9998128859 | I24: 6.693694266
A25: Tandlæge | C25: 1e-08 | D25: 0 | E25: 0 | F25: 0.9998128859 | G25: 0 | I25: 0.9998128959
A26: Arkitekt | C26: 2.999438668 | D26: 2.937691012 | E26: 2.999438658 | F26: 1.753882617 | G26: 0.9998128859 | I26: 11.69026384
A27: Landinspek. | C27: 1e-08 | D27: 0 | E27: 0.4459552174 | F27: 0 | G27: 0 | I27: 0.4459552274
A28: Bibliotekar | C28: 2.907129056 | D28: 4.99906443 | E28: 4.7177696 | F28: 2.445580989 | G28: 1.768851743 | I28: 16.83839582
A29: Musikudd. | C29: 1e-08 | D29: 0 | E29: 0 | F29: 0 | G29: 0.4921100231 | I29: 0.4921100331
A30: Teolog | C30: 1e-08 | D30: 1.581737666 | E30: 0 | F30: 1.436412399 | G30: 0 | I30: 3.018150075
A31: Psykolog | C31: 12.8035926 | D31: 5.682030811 | E31: 0.9998128859 | F31: 1.214994075 | G31: 0 | I31: 20.70043037
A32: Jurist | C32: 4.99906444 | D32: 3.568265453 | E32: 2.953283852 | F32: 3.722322709 | G32: 0.5382648288 | I32: 15.78120128
A33: Økonom | C33: 1.977172093 | D33: 0 | E33: 2.999438658 | F33: 4.722759309 | G33: 1.241813759 | I33: 10.94118382
A34: Samf. Adm. | C34: 43.72793614 | D34: 24.87744028 | E34: 17.63799663 | F34: 12.35638995 | G34: 3.527100356 | I34: 102.1268634
A35: Cand. Merc. | C35: 35.38077716 | D35: 15.5759995 | E35: 16.16166656 | F35: 15.12692572 | G35: 5.924031685 | I35: 88.16940062
A36: HA | C36: 4.699681916 | D36: 1.888604753 | E36: 0 | F36: 7.75400736 | G36: 1.999625772 | I36: 16.3419198
A37: HD | C37: 7.890600646 | D37: 0.8501216242 | E37: 2.999438658 | F37: 7.737790806 | G37: 3.106717395 | I37: 22.58466913
A38: Komm. og Sprog | C38: 6.302625844 | D38: 8.408282916 | E38: 0.9062558473 | F38: 6.68932826 | G38: 6.552111271 | I38: 28.85860414
A39: Cand. IT. | C39: 6.485373926 | D39: 1.999625772 | E39: 0.9998128859 | F39: 0.6255847315 | G39: 0 | I39: 10.11039732
A40: Bac. Samf. | C40: 2.26158549 | D40: 0 | E40: 0 | F40: 2.202332689 | G40: 0 | I40: 4.463918179
A41: Bac. Hum. | C41: 10.43285724 | D41: 2.540385455 | E41: 1.550551987 | F41: 3.953096738 | G41: 3.768477515 | I41: 22.24536894
A42: Bac. Nat. | C42: 3.906941942 | D42: 2.633942494 | E42: 0.9536580802 | F42: 0 | G42: 0 | I42: 7.494542516
A43: Andre | C43: 15.07827607 | D43: 19.63138527 | E43: 15.30218923 | F43: 20.82517308 | G43: 10.89003929 | I43: 81.72706294
A45: Total | C45: 311.4158302 | D45: 257.284351 | E45: 161.3191542 | F45: 158.1145138 | G45: 76.91012287 | I45: 965.0439722
A47: Ingeniører i alt | C47: 21.58672739 | D47: 19.80540136 | E47: 21.69525354 | F47: 29.72307117 | G47: 14.60799601 | I47: 107.4184495
A48: Magistre i alt | C48: 79.99189177 | D48: 96.02881557 | E48: 55.28035926 | F48: 28.61098983 | G48: 14.08657145 | I48: 273.9986279
A49: DJØF'ere i alt | C49: 90.78463175 | D49: 45.91030999 | E49: 39.7523857 | F49: 43.68240504 | G49: 13.2308364 | I49: 233.3605689
A56: Greve
C58: Under 30 år | D58: 30 - 39 år | E58: 40 - 49 år | F58: 50 - 59 år | G58: Over 60 år | I58: I alt
A60: Civ. ing. | C60: 1.441402108 | D60: 0 | E60: 0.9998128859 | F60: 0 | G60: 0 | I60: 2.441214994
A61: Diplom ing. | C61: 0.9998128859 | D61: 1.999625772 | E61: 0 | F61: 2.722509823 | G61: 1.491922909 | I61: 7.21387139
A62: Cand. Scient. Tek | C62: 2.999438658 | D62: 1.722696938 | E62: 0 | F62: 0 | G62: 0.5382648288 | I62: 5.260400424
A63: MA. Hum. | C63: 1.999625772 | D63: 2.030187738 | E63: 0.9998128859 | F63: 1.676542132 | G63: 0.9998128859 | I63: 7.705981413
A64: MA. Nat. | C64: 0 | D64: 0 | E64: 0 | F64: 0 | G64: 0.9075032745 | I64: 0.9075032745
A65: MA. Ph.d. | C65: 0.9998128859 | D65: 0 | E65: 0 | F65: 0 | G65: 0 | I65: 0.9998128859
A66: MA. Samf. | C66: 1.722696938 | D66: 0 | E66: 0.9998128859 | F66: 0 | G66: 0.9998128859 | I66: 3.722322709
A67: Øvrige Mag. | C67: 0 | D67: 0 | E67: 0.7752759933 | F67: 0.924967255 | G67: 0 | I67: 1.700243248
A68: Agronom | C68: 0 | D68: 0 | E68: 0 | F68: 0 | G68: 0 | I68: 0
A69: Landsk. Arkt. | C69: 0 | D69: 0 | E69: 0 | F69: 0 | G69: 0 | I69: 0
A70: Hortonom | C70: 0 | D70: 0 | E70: 0 | F70: 0 | G70: 0 | I70: 0
A71: Forstkand. | C71: 0 | D71: 0 | E71: 0 | F71: 0 | G71: 0 | I71: 0
A72: Jordbrugsakad. | C72: 0 | D72: 0 | E72: 0 | F72: 0 | G72: 0 | I72: 0
A73: Mejeriing. | C73: 0 | D73: 0 | E73: 0 | F73: 0 | G73: 0 | I73: 0
A74: Levn.m.kand. | C74: 0 | D74: 0 | E74: 0 | F74: 0 | G74: 0 | I74: 0
A75: Dyrlæge | C75: 0.4584294892 | D75: 0 | E75: 0 | F75: 0 | G75: 0 | I75: 0.4584294892
A76: Farmaceut | C76: 0 | D76: 0 | E76: 0 | F76: 0 | G76: 0 | I76: 0
A77: Læge | C77: 0.6767292459 | D77: 0 | E77: 0.9998128859 | F77: 0 | G77: 0.9998128859 | I77: 2.676355018
A78: Tandlæge | C78: 0 | D78: 0 | E78: 0 | F78: 0.9998128859 | G78: 0 | I78: 0.9998128859
A79: Arkitekt | C79: 1.999625772 | D79: 0 | E79: 0 | F79: 0 | G79: 0 | I79: 1.999625772
A80: Landinspek. | C80: 0 | D80: 0 | E80: 0 | F80: 0 | G80: 0 | I80: 0
A81: Bibliotekar | C81: 0 | D81: 0.9998128859 | E81: 0 | F81: 0 | G81: 0 | I81: 0.9998128859
A82: Musikudd. | C82: 0 | D82: 0 | E82: 0 | F82: 0 | G82: 0 | I82: 0
A83: Teolog | C83: 0 | D83: 0 | E83: 0 | F83: 0 | G83: 0 | I83: 0
A84: Psykolog | C84: 0.9998128859 | D84: 0 | E84: 0 | F84: 0 | G84: 0 | I84: 0.9998128859
A85: Jurist | C85: 0 | D85: 0 | E85: 0 | F85: 0 | G85: 0 | I85: 0
A86: Økonom | C86: 0 | D86: 0 | E86: 0 | F86: 0 | G86: 0 | I86: 0
A87: Samf. Adm. | C87: 4.103411713 | D87: 4.710908751 | E87: 2.98072725 | F87: 0 | G87: 0 | I87: 11.79504771
A88: Cand. Merc. | C88: 7.370423502 | D88: 2.890912493 | E88: 0.3299444895 | F88: 0.9075032745 | G88: 0.9998128859 | I88: 12.49859664
A89: HA | C89: 0 | D89: 0 | E89: 0 | F89: 2.753695503 | G89: 0 | I89: 2.753695503
A90: HD | C90: 0.9998128859 | D90: 0 | E90: 0 | F90: 0.9998128859 | G90: 0 | I90: 1.999625772
A91: Komm. og Sprog | C91: 0 | D91: 0 | E91: 0 | F91: 0.6006361879 | G91: 1.168839269 | I91: 1.769475457
A92: Cand. IT. | C92: 0.9998128859 | D92: 0 | E92: 0 | F92: 0 | G92: 0 | I92: 0.9998128859
A93: Bac. Samf. | C93: 0 | D93: 0 | E93: 0 | F93: 0 | G93: 0 | I93: 0
A94: Bac. Hum. | C94: 0 | D94: 0 | E94: 0 | F94: 0 | G94: 0.7690388574 | I94: 0.7690388574
A95: Bac. Nat. | C95: 0.9998128859 | D95: 0 | E95: 0.9536580802 | F95: 0 | G95: 0 | I95: 1.953470966
A96: Andre | C96: 1.861161355 | D96: 0.9998128859 | E96: 0.9998128859 | F96: 0.5382648288 | G96: 0 | I96: 4.399051955
A98: Total | C98: 30.63182187 | D98: 15.35395746 | E98: 10.03867024 | F98: 12.12374478 | G98: 8.874820682 | I98: 77.02301503
A100: Ingeniører i alt | C100: 2.441214994 | D100: 1.999625772 | E100: 0.9998128859 | F100: 2.722509823 | G100: 1.491922909 | I100: 9.655086384
A101: Magistre i alt | C101: 4.722135595 | D101: 2.030187738 | E101: 2.774901765 | F101: 2.601509387 | G101: 2.907129046 | I101: 15.03586353
A102: DJØF'ere i alt | C102: 11.47383521 | D102: 7.601821244 | E102: 3.31067174 | F102: 3.661198778 | G102: 0.9998128859 | I102: 27.04733986
A109: Køge
C111: Under 30 år | D111: 30 - 39 år | E111: 40 - 49 år | F111: 50 - 59 år | G111: Over 60 år | I111: I alt
A113: Civ. ing. | C113: 2.201085262 | D113: 0.9998128859 | E113: 1.818748831 | F113: 0 | G113: 0 | I113: 5.019646978
A114: Diplom ing. | C114: 0 | D114: 1.952847253 | E114: 0.3074908002 | F114: 1.534959147 | G114: 0.9998128859 | I114: 4.795110085
A115: Cand. Scient. Tek | C115: 3.672425622 | D115: 2.999438658 | E115: 0.9998128859 | F115: 0 | G115: 0 | I115: 7.671677166
A116: MA. Hum. | C116: 3.374914239 | D116: 1.652217302 | E116: 2.326451693 | F116: 0 | G116: 0 | I116: 7.353583235
A117: MA. Nat. | C117: 0 | D117: 1.676542132 | E117: 0.9998128859 | F117: 0.8376473523 | G117: 0 | I117: 3.51400237
A118: MA. Ph.d. | C118: 0 | D118: 0 | E118: 0 | F118: 0 | G118: 0 | I118: 0
A119: MA. Samf. | C119: 4.99906443 | D119: 0.6767292459 | E119: 0 | F119: 0 | G119: 0 | I119: 5.675793676
A120: Øvrige Mag. | C120: 0 | D120: 1.999625772 | E120: 0.9998128859 | F120: 0.9998128859 | G120: 0 | I120: 3.999251544
A121: Agronom | C121: 0.9998128859 | D121: 1.244932327 | E121: 0 | F121: 0 | G121: 0.8613484688 | I121: 3.106093682
A122: Landsk. Arkt. | C122: 0 | D122: 0.9998128859 | E122: 0 | F122: 0 | G122: 0.7004303624 | I122: 1.700243248
A123: Hortonom | C123: 0 | D123: 0 | E123: 0 | F123: 0 | G123: 0 | I123: 0
A124: Forstkand. | C124: 0.4921100231 | D124: 0 | E124: 0 | F124: 0 | G124: 0 | I124: 0.4921100231
A125: Jordbrugsakad. | C125: 1.491922909 | D125: 2.244745213 | E125: 0 | F125: 0 | G125: 1.561778831 | I125: 5.298446953
A126: Mejeriing. | C126: 0 | D126: 0 | E126: 0 | F126: 0 | G126: 0 | I126: 0
A127: Levn.m.kand. | C127: 0 | D127: 0 | E127: 0 | F127: 0 | G127: 0 | I127: 0
A128: Dyrlæge | C128: 0 | D128: 0 | E128: 0 | F128: 0 | G128: 0 | I128: 0
A129: Farmaceut | C129: 0.3536456059 | D129: 0.9075032745 | E129: 0 | F129: 0 | G129: 0 | I129: 1.26114888
A130: Læge | C130: 0 | D130: 0 | E130: 0 | F130: 0 | G130: 0 | I130: 0
A131: Tandlæge | C131: 0 | D131: 0 | E131: 0 | F131: 0 | G131: 0 | I131: 0
A132: Arkitekt | C132: 0 | D132: 0 | E132: 0 | F132: 0 | G132: 0 | I132: 0
A133: Landinspek. | C133: 0 | D133: 0 | E133: 0 | F133: 0 | G133: 0 | I133: 0
A134: Bibliotekar | C134: 0 | D134: 0 | E134: 0 | F134: 0 | G134: 0.7690388574 | I134: 0.7690388574
A135: Musikudd. | C135: 0 | D135: 0 | E135: 0 | F135: 0 | G135: 0 | I135: 0
A136: Teolog | C136: 0 | D136: 0.9998128859 | E136: 0 | F136: 0 | G136: 0 | I136: 0.9998128859
A137: Psykolog | C137: 0.3074908002 | D137: 1.690263831 | E137: 0 | F137: 0 | G137: 0 | I137: 1.997754631
A138: Jurist | C138: 0 | D138: 1.307303686 | E138: 0 | F138: 0.9998128859 | G138: 0 | I138: 2.307116572
A139: Økonom | C139: 0.5382648288 | D139: 0 | E139: 0 | F139: 0 | G139: 0 | I139: 0.5382648288
A140: Samf. Adm. | C140: 3.692384457 | D140: 3.722322709 | E140: 0 | F140: 2.953283852 | G140: 0.3480321836 | I140: 10.7160232
A141: Cand. Merc. | C141: 1.248050895 | D141: 3.281980914 | E141: 1.214994075 | F141: 1.999625772 | G141: 0.9998128859 | I141: 8.744464542
A142: HA | C142: 0 | D142: 0 | E142: 0 | F142: 0 | G142: 0 | I142: 0
A143: HD | C143: 1.445768103 | D143: 0 | E143: 0 | F143: 0 | G143: 0 | I143: 1.445768103
A144: Komm. og Sprog | C144: 0 | D144: 1.999625772 | E144: 0 | F144: 0.9998128859 | G144: 0.9998128859 | I144: 3.999251544
A145: Cand. IT. | C145: 0.5788062122 | D145: 0 | E145: 0 | F145: 0 | G145: 0 | I145: 0.5788062122
A146: Bac. Samf. | C146: 0.9998128859 | D146: 0 | E146: 0 | F146: 0 | G146: 0 | I146: 0.9998128859
A147: Bac. Hum. | C147: 1.999625772 | D147: 0 | E147: 0 | F147: 0 | G147: 0 | I147: 1.999625772
A148: Bac. Nat. | C148: 0 | D148: 0 | E148: 0 | F148: 0 | G148: 0 | I148: 0
A149: Andre | C149: 1.999625772 | D149: 1.90731616 | E149: 0.4921100231 | F149: 5.365808021 | G149: 0 | I149: 9.764859976
A151: Total | C151: 28.90288779 | D151: 30.01808769 | E151: 9.15923408 | F151: 15.6907628 | G151: 5.67828853 | I151: 89.4492609
A153: Ingeniører i alt | C153: 2.201085262 | D153: 2.952660138 | E153: 2.126239631 | F153: 1.534959147 | G153: 0.9998128859 | I153: 9.814757064
A154: Magistre i alt | C154: 8.373978669 | D154: 6.005114451 | E154: 4.326077465 | F154: 1.837460238 | G154: 0 | I154: 20.54263082
A155: DJØF'ere i alt | C155: 5.478700181 | D155: 8.31160731 | E155: 1.214994075 | F155: 5.95272251 | G155: 1.34784507 | I155: 22.30586914
A162: Roskilde
C164: Under 30 år | D164: 30 - 39 år | E164: 40 - 49 år | F164: 50 - 59 år | G164: Over 60 år | I164: I alt
A166: Civ. ing. | C166: 2.445580989 | D166: 0.1690263831 | E166: 2.999438658 | F166: 0.9998128859 | G166: 1.768851743 | I166: 8.382710659
A167: Diplom ing. | C167: 2.136842762 | D167: 1.722696938 | E167: 3.435414458 | F167: 2.722509823 | G167: 4.99906443 | I167: 15.01652841
A168: Cand. Scient. Tek | C168: 9.784195098 | D168: 6.656895154 | E168: 1.999625772 | F168: 0 | G168: 0 | I168: 18.44071602
A169: MA. Hum. | C169: 10.13721699 | D169: 15.86166033 | E169: 12.98821181 | F169: 2.307116572 | G169: 1.999625772 | I169: 43.29383147
A170: MA. Nat. | C170: 3.896338801 | D170: 2.999438658 | E170: 2.907129046 | F170: 2.599638246 | G170: 0 | I170: 12.40254475
A171: MA. Ph.d. | C171: 0 | D171: 0 | E171: 0 | F171: 0.9536580802 | G171: 0.6374352897 | I171: 1.59109337
A172: MA. Samf. | C172: 9.419946361 | D172: 3.722322709 | E172: 0 | F172: 0.9536580802 | G172: 0 | I172: 14.09592715
A173: Øvrige Mag. | C173: 0 | D173: 0 | E173: 1.953470966 | F173: 0.9998128859 | G173: 0 | I173: 2.953283852
A174: Agronom | C174: 0.9998128859 | D174: 0.9075032745 | E174: 0 | F174: 0.9998128859 | G174: 0 | I174: 2.907129046
A175: Landsk. Arkt. | C175: 0 | D175: 0.9486683715 | E175: 0 | F175: 0 | G175: 0 | I175: 0.9486683715
A176: Hortonom | C176: 0 | D176: 0 | E176: 0 | F176: 0 | G176: 0 | I176: 0
A177: Forstkand. | C177: 0 | D177: 0 | E177: 0 | F177: 0 | G177: 0 | I177: 0
A178: Jordbrugsakad. | C178: 0.9998128859 | D178: 1.856171646 | E178: 0 | F178: 0.9998128859 | G178: 0 | I178: 3.855797418
A179: Mejeriing. | C179: 0 | D179: 0 | E179: 0 | F179: 0 | G179: 0 | I179: 0
A180: Levn.m.kand. | C180: 0 | D180: 0 | E180: 0 | F180: 0 | G180: 0 | I180: 0
A181: Dyrlæge | C181: 0 | D181: 1.508763176 | E181: 0.8151936631 | F181: 0 | G181: 0 | I181: 2.323956839
A182: Farmaceut | C182: 1.999625772 | D182: 0.8151936631 | E182: 0 | F182: 0 | G182: 0.9998128859 | I182: 3.814632321
A183: Læge | C183: 0 | D183: 0 | E183: 0.9075032745 | F183: 0 | G183: 0 | I183: 0.9075032745
A184: Tandlæge | C184: 0 | D184: 0 | E184: 0 | F184: 0 | G184: 0 | I184: 0
A185: Arkitekt | C185: 0.9998128859 | D185: 0 | E185: 0.9998128859 | F185: 0.7540697312 | G185: 0 | I185: 2.753695503
A186: Landinspek. | C186: 0 | D186: 0 | E186: 0 | F186: 0 | G186: 0 | I186: 0
A187: Bibliotekar | C187: 1.90731616 | D187: 0.9998128859 | E187: 0.8108276679 | F187: 0.4459552174 | G187: 0 | I187: 4.163911932
A188: Musikudd. | C188: 0 | D188: 0 | E188: 0 | F188: 0 | G188: 0.4921100231 | I188: 0.4921100231
A189: Teolog | C189: 0 | D189: 0 | E189: 0 | F189: 0 | G189: 0 | I189: 0
A190: Psykolog | C190: 2.368240504 | D190: 0.495228591 | E190: 0 | F190: 0 | G190: 0 | I190: 2.863469095
A191: Jurist | C191: 1.999625772 | D191: 0 | E191: 0 | F191: 0 | G191: 0 | I191: 1.999625772
A192: Økonom | C192: 0 | D192: 0 | E192: 0.9998128859 | F192: 1.32352024 | G192: 0 | I192: 2.323333125
A193: Samf. Adm. | C193: 12.85161854 | D193: 8.193101728 | E193: 4.99906443 | F193: 3.999251544 | G193: 0.4946048774 | I193: 30.53764112
A194: Cand. Merc. | C194: 4.026071228 | D194: 0.9998128859 | E194: 3.983658704 | F194: 4.860600012 | G194: 1.017276866 | I194: 14.8874197
A195: HA | C195: 0.9998128859 | D195: 0 | E195: 0 | F195: 0.9998128859 | G195: 0.9998128859 | I195: 2.999438658
A196: HD | C196: 0.9536580802 | D196: 0.8501216242 | E196: 0 | F196: 2.838520551 | G196: 0.7690388574 | I196: 5.411339113
A197: Komm. og Sprog | C197: 2.584045406 | D197: 0 | E197: 0 | F197: 0.9187301191 | G197: 1.90731616 | I197: 5.410091686
A198: Cand. IT. | C198: 1.999625772 | D198: 0.9998128859 | E198: 0 | F198: 0 | G198: 0 | I198: 2.999438658
A199: Bac. Samf. | C199: 0 | D199: 0 | E199: 0 | F199: 0 | G199: 0 | I199: 0
A200: Bac. Hum. | C200: 3.847065428 | D200: 1.540572569 | E200: 0.9998128859 | F200: 0 | G200: 0.9998128859 | I200: 7.387263768
A201: Bac. Nat. | C201: 1.90731616 | D201: 0.9998128859 | E201: 0 | F201: 0 | G201: 0 | I201: 2.907129046
A202: Andre | C202: 3.548306618 | D202: 6.688704547 | E202: 4.456433606 | F202: 3.999251544 | G202: 0 | I202: 18.69269631
A204: Total | C204: 80.8120751 | D204: 57.07914925 | E204: 45.25541072 | F204: 32.6757313 | G204: 17.08476268 | I204: 232.907129
A206: Ingeniører i alt | C206: 4.582423751 | D206: 1.891723321 | E206: 6.434853115 | F206: 3.722322709 | G206: 6.767916173 | I206: 23.39923907
A207: Magistre i alt | C207: 23.45350215 | D207: 22.58342169 | E207: 17.84881183 | F207: 7.813883865 | G207: 2.637061062 | I207: 74.3366806
A208: DJØF'ere i alt | C208: 19.87712842 | D208: 9.192914614 | E208: 9.982536019 | F208: 11.18318468 | G208: 2.51169463 | I208: 52.74745837
A215: Solrød
C217: Under 30 år | D217: 30 - 39 år | E217: 40 - 49 år | F217: 50 - 59 år | G217: Over 60 år | I217: I alt
A219: Civ. ing. | C219: 0.7228840516 | D219: 0.9998128859 | E219: 0 | F219: 0 | G219: 0 | I219: 1.722696938
A220: Diplom ing. | C220: 0 | D220: 0 | E220: 0.9998128859 | F220: 0 | G220: 0.7690388574 | I220: 1.768851743
A221: Cand. Scient. Tek | C221: 0.9998128859 | D221: 0.9998128859 | E221: 0 | F221: 0 | G221: 0 | I221: 1.999625772
A222: MA. Hum. | C222: 0.2613359945 | D222: 2.623963076 | E222: 0 | F222: 0 | G222: 0 | I222: 2.885299071
A223: MA. Nat. | C223: 0 | D223: 0 | E223: 0 | F223: 0 | G223: 0 | I223: 0
A224: MA. Ph.d. | C224: 0 | D224: 0 | E224: 0 | F224: 0 | G224: 0 | I224: 0
A225: MA. Samf. | C225: 0.8108276679 | D225: 0 | E225: 0 | F225: 0 | G225: 0 | I225: 0.8108276679
A226: Øvrige Mag. | C226: 0 | D226: 0 | E226: 0 | F226: 0 | G226: 0 | I226: 0
A227: Agronom | C227: 0 | D227: 0 | E227: 0 | F227: 0 | G227: 0 | I227: 0
A228: Landsk. Arkt. | C228: 0 | D228: 0 | E228: 0 | F228: 0 | G228: 0 | I228: 0
A229: Hortonom | C229: 0 | D229: 0 | E229: 0 | F229: 0 | G229: 0 | I229: 0
A230: Forstkand. | C230: 0 | D230: 0 | E230: 0 | F230: 0 | G230: 0 | I230: 0
A231: Jordbrugsakad. | C231: 0 | D231: 0 | E231: 0 | F231: 0 | G231: 0 | I231: 0
A232: Mejeriing. | C232: 0 | D232: 0 | E232: 0 | F232: 0 | G232: 0 | I232: 0
A233: Levn.m.kand. | C233: 0 | D233: 0 | E233: 0 | F233: 0.9998128859 | G233: 0 | I233: 0.9998128859
A234: Dyrlæge | C234: 0 | D234: 0 | E234: 0 | F234: 0 | G234: 0 | I234: 0
A235: Farmaceut | C235: 0.5382648288 | D235: 0 | E235: 0 | F235: 0 | G235: 0 | I235: 0.5382648288
A236: Læge | C236: 0 | D236: 0 | E236: 0 | F236: 0 | G236: 0 | I236: 0
A237: Tandlæge | C237: 0 | D237: 0 | E237: 0 | F237: 0 | G237: 0 | I237: 0
A238: Arkitekt | C238: 0 | D238: 0 | E238: 0 | F238: 0 | G238: 0 | I238: 0
A239: Landinspek. | C239: 0 | D239: 0 | E239: 0 | F239: 0 | G239: 0 | I239: 0
A240: Bibliotekar | C240: 0 | D240: 0 | E240: 0 | F240: 0.9998128859 | G240: 0 | I240: 0.9998128859
A241: Musikudd. | C241: 0 | D241: 0 | E241: 0 | F241: 0 | G241: 0 | I241: 0
A242: Teolog | C242: 0 | D242: 0 | E242: 0 | F242: 0 | G242: 0 | I242: 0
A243: Psykolog | C243: 0.9998128859 | D243: 0 | E243: 0 | F243: 0 | G243: 0 | I243: 0.9998128859
... 575 more rows

Sheet Tabel 4P S
A1: Tabel 4. Ledighedsberørte - aldersfordelt
A3: Sjælland
C5: Under 30 år | D5: 30 - 39 år | E5: 40 - 49 år | F5: 50 - 59 år | G5: Over 60 år | I5: I alt
A7: Civ. ing. | C7: =IF(OR('Tabel 4F S'!C7<5,'Tabel 4 S'!C7<0.5),"-",IFERROR('Tabel 4 S'!C7/'Tabel 4F S'!C7*100,"-")) -> 10.0738255 | D7: =IF(OR('Tabel 4F S'!D7<5,'Tabel 4 S'!D7<0.5),"-",IFERROR('Tabel 4 S'!D7/'Tabel 4F S'!D7*100,"-")) -> 1.912045889 | E7: =IF(OR('Tabel 4F S'!E7<5,'Tabel 4 S'!E7<0.5),"-",IFERROR('Tabel 4 S'!E7/'Tabel 4F S'!E7*100,"-")) -> 1.41509434 | F7: =IF(OR('Tabel 4F S'!F7<5,'Tabel 4 S'!F7<0.5),"-",IFERROR('Tabel 4 S'!F7/'Tabel 4F S'!F7*100,"-")) -> 1.343283582 | G7: =IF(OR('Tabel 4F S'!G7<5,'Tabel 4 S'!G7<0.5),"-",IFERROR('Tabel 4 S'!G7/'Tabel 4F S'!G7*100,"-")) -> 2.339181287 | I7: =IF(OR('Tabel 4F S'!I7<5,'Tabel 4 S'!I7<0.5),"-",IFERROR('Tabel 4 S'!I7/'Tabel 4F S'!I7*100,"-")) -> 2.187529083
A8: Diplom ing. | C8: =IF(OR('Tabel 4F S'!C8<5,'Tabel 4 S'!C8<0.5),"-",IFERROR('Tabel 4 S'!C8/'Tabel 4F S'!C8*100,"-")) -> 5.675257732 | D8: =IF(OR('Tabel 4F S'!D8<5,'Tabel 4 S'!D8<0.5),"-",IFERROR('Tabel 4 S'!D8/'Tabel 4F S'!D8*100,"-")) -> 2.466793169 | E8: =IF(OR('Tabel 4F S'!E8<5,'Tabel 4 S'!E8<0.5),"-",IFERROR('Tabel 4 S'!E8/'Tabel 4F S'!E8*100,"-")) -> 1.483420593 | F8: =IF(OR('Tabel 4F S'!F8<5,'Tabel 4 S'!F8<0.5),"-",IFERROR('Tabel 4 S'!F8/'Tabel 4F S'!F8*100,"-")) -> 1.71957672 | G8: =IF(OR('Tabel 4F S'!G8<5,'Tabel 4 S'!G8<0.5),"-",IFERROR('Tabel 4 S'!G8/'Tabel 4F S'!G8*100,"-")) -> 3.266331658 | I8: =IF(OR('Tabel 4F S'!I8<5,'Tabel 4 S'!I8<0.5),"-",IFERROR('Tabel 4 S'!I8/'Tabel 4F S'!I8*100,"-")) -> 2.118347895
A9: Cand. Scient. Tek | C9: =IF(OR('Tabel 4F S'!C9<5,'Tabel 4 S'!C9<0.5),"-",IFERROR('Tabel 4 S'!C9/'Tabel 4F S'!C9*100,"-")) -> 19.83189655 | D9: =IF(OR('Tabel 4F S'!D9<5,'Tabel 4 S'!D9<0.5),"-",IFERROR('Tabel 4 S'!D9/'Tabel 4F S'!D9*100,"-")) -> 6.12244898 | E9: =IF(OR('Tabel 4F S'!E9<5,'Tabel 4 S'!E9<0.5),"-",IFERROR('Tabel 4 S'!E9/'Tabel 4F S'!E9*100,"-")) -> 2.222222222 | F9: =IF(OR('Tabel 4F S'!F9<5,'Tabel 4 S'!F9<0.5),"-",IFERROR('Tabel 4 S'!F9/'Tabel 4F S'!F9*100,"-")) -> - | G9: =IF(OR('Tabel 4F S'!G9<5,'Tabel 4 S'!G9<0.5),"-",IFERROR('Tabel 4 S'!G9/'Tabel 4F S'!G9*100,"-")) -> 9.523809524 | I9: =IF(OR('Tabel 4F S'!I9<5,'Tabel 4 S'!I9<0.5),"-",IFERROR('Tabel 4 S'!I9/'Tabel 4F S'!I9*100,"-")) -> 7.860795455
A10: MA. Hum. | C10: =IF(OR('Tabel 4F S'!C10<5,'Tabel 4 S'!C10<0.5),"-",IFERROR('Tabel 4 S'!C10/'Tabel 4F S'!C10*100,"-")) -> 25.64529915 | D10: =IF(OR('Tabel 4F S'!D10<5,'Tabel 4 S'!D10<0.5),"-",IFERROR('Tabel 4 S'!D10/'Tabel 4F S'!D10*100,"-")) -> 9.177592372 | E10: =IF(OR('Tabel 4F S'!E10<5,'Tabel 4 S'!E10<0.5),"-",IFERROR('Tabel 4 S'!E10/'Tabel 4F S'!E10*100,"-")) -> 4.087452471 | F10: =IF(OR('Tabel 4F S'!F10<5,'Tabel 4 S'!F10<0.5),"-",IFERROR('Tabel 4 S'!F10/'Tabel 4F S'!F10*100,"-")) -> 3.603603604 | G10: =IF(OR('Tabel 4F S'!G10<5,'Tabel 4 S'!G10<0.5),"-",IFERROR('Tabel 4 S'!G10/'Tabel 4F S'!G10*100,"-")) -> 4.583333333 | I10: =IF(OR('Tabel 4F S'!I10<5,'Tabel 4 S'!I10<0.5),"-",IFERROR('Tabel 4 S'!I10/'Tabel 4F S'!I10*100,"-")) -> 7.369526522
A11: MA. Nat. | C11: =IF(OR('Tabel 4F S'!C11<5,'Tabel 4 S'!C11<0.5),"-",IFERROR('Tabel 4 S'!C11/'Tabel 4F S'!C11*100,"-")) -> 11.38636364 | D11: =IF(OR('Tabel 4F S'!D11<5,'Tabel 4 S'!D11<0.5),"-",IFERROR('Tabel 4 S'!D11/'Tabel 4F S'!D11*100,"-")) -> 5.797101449 | E11: =IF(OR('Tabel 4F S'!E11<5,'Tabel 4 S'!E11<0.5),"-",IFERROR('Tabel 4 S'!E11/'Tabel 4F S'!E11*100,"-")) -> 2.181818182 | F11: =IF(OR('Tabel 4F S'!F11<5,'Tabel 4 S'!F11<0.5),"-",IFERROR('Tabel 4 S'!F11/'Tabel 4F S'!F11*100,"-")) -> 2.290076336 | G11: =IF(OR('Tabel 4F S'!G11<5,'Tabel 4 S'!G11<0.5),"-",IFERROR('Tabel 4 S'!G11/'Tabel 4F S'!G11*100,"-")) -> 1.19047619 | I11: =IF(OR('Tabel 4F S'!I11<5,'Tabel 4 S'!I11<0.5),"-",IFERROR('Tabel 4 S'!I11/'Tabel 4F S'!I11*100,"-")) -> 3.075471698
A12: MA. Ph.d. | C12: =IF(OR('Tabel 4F S'!C12<5,'Tabel 4 S'!C12<0.5),"-",IFERROR('Tabel 4 S'!C12/'Tabel 4F S'!C12*100,"-")) -> - | D12: =IF(OR('Tabel 4F S'!D12<5,'Tabel 4 S'!D12<0.5),"-",IFERROR('Tabel 4 S'!D12/'Tabel 4F S'!D12*100,"-")) -> 2.564102564 | E12: =IF(OR('Tabel 4F S'!E12<5,'Tabel 4 S'!E12<0.5),"-",IFERROR('Tabel 4 S'!E12/'Tabel 4F S'!E12*100,"-")) -> 2.173913043 | F12: =IF(OR('Tabel 4F S'!F12<5,'Tabel 4 S'!F12<0.5),"-",IFERROR('Tabel 4 S'!F12/'Tabel 4F S'!F12*100,"-")) -> 2.5 | G12: =IF(OR('Tabel 4F S'!G12<5,'Tabel 4 S'!G12<0.5),"-",IFERROR('Tabel 4 S'!G12/'Tabel 4F S'!G12*100,"-")) -> 8.333333333 | I12: =IF(OR('Tabel 4F S'!I12<5,'Tabel 4 S'!I12<0.5),"-",IFERROR('Tabel 4 S'!I12/'Tabel 4F S'!I12*100,"-")) -> 3.604316547
A13: MA. Samf. | C13: =IF(OR('Tabel 4F S'!C13<5,'Tabel 4 S'!C13<0.5),"-",IFERROR('Tabel 4 S'!C13/'Tabel 4F S'!C13*100,"-")) -> 36.37878788 | D13: =IF(OR('Tabel 4F S'!D13<5,'Tabel 4 S'!D13<0.5),"-",IFERROR('Tabel 4 S'!D13/'Tabel 4F S'!D13*100,"-")) -> 8.823529412 | E13: =IF(OR('Tabel 4F S'!E13<5,'Tabel 4 S'!E13<0.5),"-",IFERROR('Tabel 4 S'!E13/'Tabel 4F S'!E13*100,"-")) -> 1.25 | F13: =IF(OR('Tabel 4F S'!F13<5,'Tabel 4 S'!F13<0.5),"-",IFERROR('Tabel 4 S'!F13/'Tabel 4F S'!F13*100,"-")) -> 7.692307692 | G13: =IF(OR('Tabel 4F S'!G13<5,'Tabel 4 S'!G13<0.5),"-",IFERROR('Tabel 4 S'!G13/'Tabel 4F S'!G13*100,"-")) -> 10.52631579 | I13: =IF(OR('Tabel 4F S'!I13<5,'Tabel 4 S'!I13<0.5),"-",IFERROR('Tabel 4 S'!I13/'Tabel 4F S'!I13*100,"-")) -> 12.35588235
A14: Øvrige Mag. | C14: =IF(OR('Tabel 4F S'!C14<5,'Tabel 4 S'!C14<0.5),"-",IFERROR('Tabel 4 S'!C14/'Tabel 4F S'!C14*100,"-")) -> 7.769230769 | D14: =IF(OR('Tabel 4F S'!D14<5,'Tabel 4 S'!D14<0.5),"-",IFERROR('Tabel 4 S'!D14/'Tabel 4F S'!D14*100,"-")) -> 9.090909091 | E14: =IF(OR('Tabel 4F S'!E14<5,'Tabel 4 S'!E14<0.5),"-",IFERROR('Tabel 4 S'!E14/'Tabel 4F S'!E14*100,"-")) -> 7.142857143 | F14: =IF(OR('Tabel 4F S'!F14<5,'Tabel 4 S'!F14<0.5),"-",IFERROR('Tabel 4 S'!F14/'Tabel 4F S'!F14*100,"-")) -> 4.651162791 | G14: =IF(OR('Tabel 4F S'!G14<5,'Tabel 4 S'!G14<0.5),"-",IFERROR('Tabel 4 S'!G14/'Tabel 4F S'!G14*100,"-")) -> - | I14: =IF(OR('Tabel 4F S'!I14<5,'Tabel 4 S'!I14<0.5),"-",IFERROR('Tabel 4 S'!I14/'Tabel 4F S'!I14*100,"-")) -> 5.626506024
A15: Agronom | C15: =IF(OR('Tabel 4F S'!C15<5,'Tabel 4 S'!C15<0.5),"-",IFERROR('Tabel 4 S'!C15/'Tabel 4F S'!C15*100,"-")) -> 18.27272727 | D15: =IF(OR('Tabel 4F S'!D15<5,'Tabel 4 S'!D15<0.5),"-",IFERROR('Tabel 4 S'!D15/'Tabel 4F S'!D15*100,"-")) -> 10.16949153 | E15: =IF(OR('Tabel 4F S'!E15<5,'Tabel 4 S'!E15<0.5),"-",IFERROR('Tabel 4 S'!E15/'Tabel 4F S'!E15*100,"-")) -> 2.158273381 | F15: =IF(OR('Tabel 4F S'!F15<5,'Tabel 4 S'!F15<0.5),"-",IFERROR('Tabel 4 S'!F15/'Tabel 4F S'!F15*100,"-")) -> 1.129943503 | G15: =IF(OR('Tabel 4F S'!G15<5,'Tabel 4 S'!G15<0.5),"-",IFERROR('Tabel 4 S'!G15/'Tabel 4F S'!G15*100,"-")) -> 5.333333333 | I15: =IF(OR('Tabel 4F S'!I15<5,'Tabel 4 S'!I15<0.5),"-",IFERROR('Tabel 4 S'!I15/'Tabel 4F S'!I15*100,"-")) -> 3.689804772
A16: Landsk. Arkt. | C16: =IF(OR('Tabel 4F S'!C16<5,'Tabel 4 S'!C16<0.5),"-",IFERROR('Tabel 4 S'!C16/'Tabel 4F S'!C16*100,"-")) -> - | D16: =IF(OR('Tabel 4F S'!D16<5,'Tabel 4 S'!D16<0.5),"-",IFERROR('Tabel 4 S'!D16/'Tabel 4F S'!D16*100,"-")) -> 16.66666667 | E16: =IF(OR('Tabel 4F S'!E16<5,'Tabel 4 S'!E16<0.5),"-",IFERROR('Tabel 4 S'!E16/'Tabel 4F S'!E16*100,"-")) -> 2.777777778 | F16: =IF(OR('Tabel 4F S'!F16<5,'Tabel 4 S'!F16<0.5),"-",IFERROR('Tabel 4 S'!F16/'Tabel 4F S'!F16*100,"-")) -> 4.166666667 | G16: =IF(OR('Tabel 4F S'!G16<5,'Tabel 4 S'!G16<0.5),"-",IFERROR('Tabel 4 S'!G16/'Tabel 4F S'!G16*100,"-")) -> 10 | I16: =IF(OR('Tabel 4F S'!I16<5,'Tabel 4 S'!I16<0.5),"-",IFERROR('Tabel 4 S'!I16/'Tabel 4F S'!I16*100,"-")) -> 7.080808081
A17: Hortonom | C17: =IF(OR('Tabel 4F S'!C17<5,'Tabel 4 S'!C17<0.5),"-",IFERROR('Tabel 4 S'!C17/'Tabel 4F S'!C17*100,"-")) -> - | D17: =IF(OR('Tabel 4F S'!D17<5,'Tabel 4 S'!D17<0.5),"-",IFERROR('Tabel 4 S'!D17/'Tabel 4F S'!D17*100,"-")) -> - | E17: =IF(OR('Tabel 4F S'!E17<5,'Tabel 4 S'!E17<0.5),"-",IFERROR('Tabel 4 S'!E17/'Tabel 4F S'!E17*100,"-")) -> - | F17: =IF(OR('Tabel 4F S'!F17<5,'Tabel 4 S'!F17<0.5),"-",IFERROR('Tabel 4 S'!F17/'Tabel 4F S'!F17*100,"-")) -> - | G17: =IF(OR('Tabel 4F S'!G17<5,'Tabel 4 S'!G17<0.5),"-",IFERROR('Tabel 4 S'!G17/'Tabel 4F S'!G17*100,"-")) -> - | I17: =IF(OR('Tabel 4F S'!I17<5,'Tabel 4 S'!I17<0.5),"-",IFERROR('Tabel 4 S'!I17/'Tabel 4F S'!I17*100,"-")) -> -
A18: Forstkand. | C18: =IF(OR('Tabel 4F S'!C18<5,'Tabel 4 S'!C18<0.5),"-",IFERROR('Tabel 4 S'!C18/'Tabel 4F S'!C18*100,"-")) -> - | D18: =IF(OR('Tabel 4F S'!D18<5,'Tabel 4 S'!D18<0.5),"-",IFERROR('Tabel 4 S'!D18/'Tabel 4F S'!D18*100,"-")) -> - | E18: =IF(OR('Tabel 4F S'!E18<5,'Tabel 4 S'!E18<0.5),"-",IFERROR('Tabel 4 S'!E18/'Tabel 4F S'!E18*100,"-")) -> - | F18: =IF(OR('Tabel 4F S'!F18<5,'Tabel 4 S'!F18<0.5),"-",IFERROR('Tabel 4 S'!F18/'Tabel 4F S'!F18*100,"-")) -> - | G18: =IF(OR('Tabel 4F S'!G18<5,'Tabel 4 S'!G18<0.5),"-",IFERROR('Tabel 4 S'!G18/'Tabel 4F S'!G18*100,"-")) -> - | I18: =IF(OR('Tabel 4F S'!I18<5,'Tabel 4 S'!I18<0.5),"-",IFERROR('Tabel 4 S'!I18/'Tabel 4F S'!I18*100,"-")) -> 1.346666667
A19: Jordbrugsakad. | C19: =IF(OR('Tabel 4F S'!C19<5,'Tabel 4 S'!C19<0.5),"-",IFERROR('Tabel 4 S'!C19/'Tabel 4F S'!C19*100,"-")) -> 14.47619048 | D19: =IF(OR('Tabel 4F S'!D19<5,'Tabel 4 S'!D19<0.5),"-",IFERROR('Tabel 4 S'!D19/'Tabel 4F S'!D19*100,"-")) -> 10 | E19: =IF(OR('Tabel 4F S'!E19<5,'Tabel 4 S'!E19<0.5),"-",IFERROR('Tabel 4 S'!E19/'Tabel 4F S'!E19*100,"-")) -> 1.793721973 | F19: =IF(OR('Tabel 4F S'!F19<5,'Tabel 4 S'!F19<0.5),"-",IFERROR('Tabel 4 S'!F19/'Tabel 4F S'!F19*100,"-")) -> 1.244813278 | G19: =IF(OR('Tabel 4F S'!G19<5,'Tabel 4 S'!G19<0.5),"-",IFERROR('Tabel 4 S'!G19/'Tabel 4F S'!G19*100,"-")) -> 4.587155963 | I19: =IF(OR('Tabel 4F S'!I19<5,'Tabel 4 S'!I19<0.5),"-",IFERROR('Tabel 4 S'!I19/'Tabel 4F S'!I19*100,"-")) -> 3.608069164
A20: Mejeriing. | C20: =IF(OR('Tabel 4F S'!C20<5,'Tabel 4 S'!C20<0.5),"-",IFERROR('Tabel 4 S'!C20/'Tabel 4F S'!C20*100,"-")) -> - | D20: =IF(OR('Tabel 4F S'!D20<5,'Tabel 4 S'!D20<0.5),"-",IFERROR('Tabel 4 S'!D20/'Tabel 4F S'!D20*100,"-")) -> - | E20: =IF(OR('Tabel 4F S'!E20<5,'Tabel 4 S'!E20<0.5),"-",IFERROR('Tabel 4 S'!E20/'Tabel 4F S'!E20*100,"-")) -> - | F20: =IF(OR('Tabel 4F S'!F20<5,'Tabel 4 S'!F20<0.5),"-",IFERROR('Tabel 4 S'!F20/'Tabel 4F S'!F20*100,"-")) -> - | G20: =IF(OR('Tabel 4F S'!G20<5,'Tabel 4 S'!G20<0.5),"-",IFERROR('Tabel 4 S'!G20/'Tabel 4F S'!G20*100,"-")) -> - | I20: =IF(OR('Tabel 4F S'!I20<5,'Tabel 4 S'!I20<0.5),"-",IFERROR('Tabel 4 S'!I20/'Tabel 4F S'!I20*100,"-")) -> -
A21: Levn.m.kand. | C21: =IF(OR('Tabel 4F S'!C21<5,'Tabel 4 S'!C21<0.5),"-",IFERROR('Tabel 4 S'!C21/'Tabel 4F S'!C21*100,"-")) -> - | D21: =IF(OR('Tabel 4F S'!D21<5,'Tabel 4 S'!D21<0.5),"-",IFERROR('Tabel 4 S'!D21/'Tabel 4F S'!D21*100,"-")) -> 3.846153846 | E21: =IF(OR('Tabel 4F S'!E21<5,'Tabel 4 S'!E21<0.5),"-",IFERROR('Tabel 4 S'!E21/'Tabel 4F S'!E21*100,"-")) -> - | F21: =IF(OR('Tabel 4F S'!F21<5,'Tabel 4 S'!F21<0.5),"-",IFERROR('Tabel 4 S'!F21/'Tabel 4F S'!F21*100,"-")) -> 33.33333333 | G21: =IF(OR('Tabel 4F S'!G21<5,'Tabel 4 S'!G21<0.5),"-",IFERROR('Tabel 4 S'!G21/'Tabel 4F S'!G21*100,"-")) -> - | I21: =IF(OR('Tabel 4F S'!I21<5,'Tabel 4 S'!I21<0.5),"-",IFERROR('Tabel 4 S'!I21/'Tabel 4F S'!I21*100,"-")) -> 6.688888889
A22: Dyrlæge | C22: =IF(OR('Tabel 4F S'!C22<5,'Tabel 4 S'!C22<0.5),"-",IFERROR('Tabel 4 S'!C22/'Tabel 4F S'!C22*100,"-")) -> 6.7 | D22: =IF(OR('Tabel 4F S'!D22<5,'Tabel 4 S'!D22<0.5),"-",IFERROR('Tabel 4 S'!D22/'Tabel 4F S'!D22*100,"-")) -> 5.833333333 | E22: =IF(OR('Tabel 4F S'!E22<5,'Tabel 4 S'!E22<0.5),"-",IFERROR('Tabel 4 S'!E22/'Tabel 4F S'!E22*100,"-")) -> 0.8695652174 | F22: =IF(OR('Tabel 4F S'!F22<5,'Tabel 4 S'!F22<0.5),"-",IFERROR('Tabel 4 S'!F22/'Tabel 4F S'!F22*100,"-")) -> 1.052631579 | G22: =IF(OR('Tabel 4F S'!G22<5,'Tabel 4 S'!G22<0.5),"-",IFERROR('Tabel 4 S'!G22/'Tabel 4F S'!G22*100,"-")) -> - | I22: =IF(OR('Tabel 4F S'!I22<5,'Tabel 4 S'!I22<0.5),"-",IFERROR('Tabel 4 S'!I22/'Tabel 4F S'!I22*100,"-")) -> 2.787341772
A23: Farmaceut | C23: =IF(OR('Tabel 4F S'!C23<5,'Tabel 4 S'!C23<0.5),"-",IFERROR('Tabel 4 S'!C23/'Tabel 4F S'!C23*100,"-")) -> 7.952380952 | D23: =IF(OR('Tabel 4F S'!D23<5,'Tabel 4 S'!D23<0.5),"-",IFERROR('Tabel 4 S'!D23/'Tabel 4F S'!D23*100,"-")) -> 1.360544218 | E23: =IF(OR('Tabel 4F S'!E23<5,'Tabel 4 S'!E23<0.5),"-",IFERROR('Tabel 4 S'!E23/'Tabel 4F S'!E23*100,"-")) -> 0.5847953216 | F23: =IF(OR('Tabel 4F S'!F23<5,'Tabel 4 S'!F23<0.5),"-",IFERROR('Tabel 4 S'!F23/'Tabel 4F S'!F23*100,"-")) -> 0.78125 | G23: =IF(OR('Tabel 4F S'!G23<5,'Tabel 4 S'!G23<0.5),"-",IFERROR('Tabel 4 S'!G23/'Tabel 4F S'!G23*100,"-")) -> 2.702702703 | I23: =IF(OR('Tabel 4F S'!I23<5,'Tabel 4 S'!I23<0.5),"-",IFERROR('Tabel 4 S'!I23/'Tabel 4F S'!I23*100,"-")) -> 1.833333333
A24: Læge | C24: =IF(OR('Tabel 4F S'!C24<5,'Tabel 4 S'!C24<0.5),"-",IFERROR('Tabel 4 S'!C24/'Tabel 4F S'!C24*100,"-")) -> 3.810126582 | D24: =IF(OR('Tabel 4F S'!D24<5,'Tabel 4 S'!D24<0.5),"-",IFERROR('Tabel 4 S'!D24/'Tabel 4F S'!D24*100,"-")) -> 0.4098360656 | E24: =IF(OR('Tabel 4F S'!E24<5,'Tabel 4 S'!E24<0.5),"-",IFERROR('Tabel 4 S'!E24/'Tabel 4F S'!E24*100,"-")) -> 1.886792453 | F24: =IF(OR('Tabel 4F S'!F24<5,'Tabel 4 S'!F24<0.5),"-",IFERROR('Tabel 4 S'!F24/'Tabel 4F S'!F24*100,"-")) -> - | G24: =IF(OR('Tabel 4F S'!G24<5,'Tabel 4 S'!G24<0.5),"-",IFERROR('Tabel 4 S'!G24/'Tabel 4F S'!G24*100,"-")) -> 1.515151515 | I24: =IF(OR('Tabel 4F S'!I24<5,'Tabel 4 S'!I24<0.5),"-",IFERROR('Tabel 4 S'!I24/'Tabel 4F S'!I24*100,"-")) -> 1.167638484
A25: Tandlæge | C25: =IF(OR('Tabel 4F S'!C25<5,'Tabel 4 S'!C25<0.5),"-",IFERROR('Tabel 4 S'!C25/'Tabel 4F S'!C25*100,"-")) -> - | D25: =IF(OR('Tabel 4F S'!D25<5,'Tabel 4 S'!D25<0.5),"-",IFERROR('Tabel 4 S'!D25/'Tabel 4F S'!D25*100,"-")) -> - | E25: =IF(OR('Tabel 4F S'!E25<5,'Tabel 4 S'!E25<0.5),"-",IFERROR('Tabel 4 S'!E25/'Tabel 4F S'!E25*100,"-")) -> - | F25: =IF(OR('Tabel 4F S'!F25<5,'Tabel 4 S'!F25<0.5),"-",IFERROR('Tabel 4 S'!F25/'Tabel 4F S'!F25*100,"-")) -> 2.5 | G25: =IF(OR('Tabel 4F S'!G25<5,'Tabel 4 S'!G25<0.5),"-",IFERROR('Tabel 4 S'!G25/'Tabel 4F S'!G25*100,"-")) -> - | I25: =IF(OR('Tabel 4F S'!I25<5,'Tabel 4 S'!I25<0.5),"-",IFERROR('Tabel 4 S'!I25/'Tabel 4F S'!I25*100,"-")) -> 0.5804597701
A26: Arkitekt | C26: =IF(OR('Tabel 4F S'!C26<5,'Tabel 4 S'!C26<0.5),"-",IFERROR('Tabel 4 S'!C26/'Tabel 4F S'!C26*100,"-")) -> 27.36363636 | D26: =IF(OR('Tabel 4F S'!D26<5,'Tabel 4 S'!D26<0.5),"-",IFERROR('Tabel 4 S'!D26/'Tabel 4F S'!D26*100,"-")) -> 6.666666667 | E26: =IF(OR('Tabel 4F S'!E26<5,'Tabel 4 S'!E26<0.5),"-",IFERROR('Tabel 4 S'!E26/'Tabel 4F S'!E26*100,"-")) -> 4.166666667 | F26: =IF(OR('Tabel 4F S'!F26<5,'Tabel 4 S'!F26<0.5),"-",IFERROR('Tabel 4 S'!F26/'Tabel 4F S'!F26*100,"-")) -> 4.225352113 | G26: =IF(OR('Tabel 4F S'!G26<5,'Tabel 4 S'!G26<0.5),"-",IFERROR('Tabel 4 S'!G26/'Tabel 4F S'!G26*100,"-")) -> 2.43902439 | I26: =IF(OR('Tabel 4F S'!I26<5,'Tabel 4 S'!I26<0.5),"-",IFERROR('Tabel 4 S'!I26/'Tabel 4F S'!I26*100,"-")) -> 5.494117647
A27: Landinspek. | C27: =IF(OR('Tabel 4F S'!C27<5,'Tabel 4 S'!C27<0.5),"-",IFERROR('Tabel 4 S'!C27/'Tabel 4F S'!C27*100,"-")) -> - | D27: =IF(OR('Tabel 4F S'!D27<5,'Tabel 4 S'!D27<0.5),"-",IFERROR('Tabel 4 S'!D27/'Tabel 4F S'!D27*100,"-")) -> - | E27: =IF(OR('Tabel 4F S'!E27<5,'Tabel 4 S'!E27<0.5),"-",IFERROR('Tabel 4 S'!E27/'Tabel 4F S'!E27*100,"-")) -> 5.263157895 | F27: =IF(OR('Tabel 4F S'!F27<5,'Tabel 4 S'!F27<0.5),"-",IFERROR('Tabel 4 S'!F27/'Tabel 4F S'!F27*100,"-")) -> - | G27: =IF(OR('Tabel 4F S'!G27<5,'Tabel 4 S'!G27<0.5),"-",IFERROR('Tabel 4 S'!G27/'Tabel 4F S'!G27*100,"-")) -> - | I27: =IF(OR('Tabel 4F S'!I27<5,'Tabel 4 S'!I27<0.5),"-",IFERROR('Tabel 4 S'!I27/'Tabel 4F S'!I27*100,"-")) -> 1.311688312
A28: Bibliotekar | C28: =IF(OR('Tabel 4F S'!C28<5,'Tabel 4 S'!C28<0.5),"-",IFERROR('Tabel 4 S'!C28/'Tabel 4F S'!C28*100,"-")) -> 37.625 | D28: =IF(OR('Tabel 4F S'!D28<5,'Tabel 4 S'!D28<0.5),"-",IFERROR('Tabel 4 S'!D28/'Tabel 4F S'!D28*100,"-")) -> 7.462686567 | E28: =IF(OR('Tabel 4F S'!E28<5,'Tabel 4 S'!E28<0.5),"-",IFERROR('Tabel 4 S'!E28/'Tabel 4F S'!E28*100,"-")) -> 3.759398496 | F28: =IF(OR('Tabel 4F S'!F28<5,'Tabel 4 S'!F28<0.5),"-",IFERROR('Tabel 4 S'!F28/'Tabel 4F S'!F28*100,"-")) -> 2.654867257 | G28: =IF(OR('Tabel 4F S'!G28<5,'Tabel 4 S'!G28<0.5),"-",IFERROR('Tabel 4 S'!G28/'Tabel 4F S'!G28*100,"-")) -> 2.352941176 | I28: =IF(OR('Tabel 4F S'!I28<5,'Tabel 4 S'!I28<0.5),"-",IFERROR('Tabel 4 S'!I28/'Tabel 4F S'!I28*100,"-")) -> 4.435960591
A29: Musikudd. | C29: =IF(OR('Tabel 4F S'!C29<5,'Tabel 4 S'!C29<0.5),"-",IFERROR('Tabel 4 S'!C29/'Tabel 4F S'!C29*100,"-")) -> - | D29: =IF(OR('Tabel 4F S'!D29<5,'Tabel 4 S'!D29<0.5),"-",IFERROR('Tabel 4 S'!D29/'Tabel 4F S'!D29*100,"-")) -> - | E29: =IF(OR('Tabel 4F S'!E29<5,'Tabel 4 S'!E29<0.5),"-",IFERROR('Tabel 4 S'!E29/'Tabel 4F S'!E29*100,"-")) -> - | F29: =IF(OR('Tabel 4F S'!F29<5,'Tabel 4 S'!F29<0.5),"-",IFERROR('Tabel 4 S'!F29/'Tabel 4F S'!F29*100,"-")) -> - | G29: =IF(OR('Tabel 4F S'!G29<5,'Tabel 4 S'!G29<0.5),"-",IFERROR('Tabel 4 S'!G29/'Tabel 4F S'!G29*100,"-")) -> 3.125 | I29: =IF(OR('Tabel 4F S'!I29<5,'Tabel 4 S'!I29<0.5),"-",IFERROR('Tabel 4 S'!I29/'Tabel 4F S'!I29*100,"-")) -> 0.9181818182
A30: Teolog | C30: =IF(OR('Tabel 4F S'!C30<5,'Tabel 4 S'!C30<0.5),"-",IFERROR('Tabel 4 S'!C30/'Tabel 4F S'!C30*100,"-")) -> - | D30: =IF(OR('Tabel 4F S'!D30<5,'Tabel 4 S'!D30<0.5),"-",IFERROR('Tabel 4 S'!D30/'Tabel 4F S'!D30*100,"-")) -> 6.896551724 | E30: =IF(OR('Tabel 4F S'!E30<5,'Tabel 4 S'!E30<0.5),"-",IFERROR('Tabel 4 S'!E30/'Tabel 4F S'!E30*100,"-")) -> - | F30: =IF(OR('Tabel 4F S'!F30<5,'Tabel 4 S'!F30<0.5),"-",IFERROR('Tabel 4 S'!F30/'Tabel 4F S'!F30*100,"-")) -> 4.347826087 | G30: =IF(OR('Tabel 4F S'!G30<5,'Tabel 4 S'!G30<0.5),"-",IFERROR('Tabel 4 S'!G30/'Tabel 4F S'!G30*100,"-")) -> - | I30: =IF(OR('Tabel 4F S'!I30<5,'Tabel 4 S'!I30<0.5),"-",IFERROR('Tabel 4 S'!I30/'Tabel 4F S'!I30*100,"-")) -> 2.613043478
A31: Psykolog | C31: =IF(OR('Tabel 4F S'!C31<5,'Tabel 4 S'!C31<0.5),"-",IFERROR('Tabel 4 S'!C31/'Tabel 4F S'!C31*100,"-")) -> 21.93150685 | D31: =IF(OR('Tabel 4F S'!D31<5,'Tabel 4 S'!D31<0.5),"-",IFERROR('Tabel 4 S'!D31/'Tabel 4F S'!D31*100,"-")) -> 4.72972973 | E31: =IF(OR('Tabel 4F S'!E31<5,'Tabel 4 S'!E31<0.5),"-",IFERROR('Tabel 4 S'!E31/'Tabel 4F S'!E31*100,"-")) -> 0.641025641 | F31: =IF(OR('Tabel 4F S'!F31<5,'Tabel 4 S'!F31<0.5),"-",IFERROR('Tabel 4 S'!F31/'Tabel 4F S'!F31*100,"-")) -> 1.904761905 | G31: =IF(OR('Tabel 4F S'!G31<5,'Tabel 4 S'!G31<0.5),"-",IFERROR('Tabel 4 S'!G31/'Tabel 4F S'!G31*100,"-")) -> - | I31: =IF(OR('Tabel 4F S'!I31<5,'Tabel 4 S'!I31<0.5),"-",IFERROR('Tabel 4 S'!I31/'Tabel 4F S'!I31*100,"-")) -> 4.926136364
A32: Jurist | C32: =IF(OR('Tabel 4F S'!C32<5,'Tabel 4 S'!C32<0.5),"-",IFERROR('Tabel 4 S'!C32/'Tabel 4F S'!C32*100,"-")) -> 5.164948454 | D32: =IF(OR('Tabel 4F S'!D32<5,'Tabel 4 S'!D32<0.5),"-",IFERROR('Tabel 4 S'!D32/'Tabel 4F S'!D32*100,"-")) -> 1.742160279 | E32: =IF(OR('Tabel 4F S'!E32<5,'Tabel 4 S'!E32<0.5),"-",IFERROR('Tabel 4 S'!E32/'Tabel 4F S'!E32*100,"-")) -> 0.9554140127 | F32: =IF(OR('Tabel 4F S'!F32<5,'Tabel 4 S'!F32<0.5),"-",IFERROR('Tabel 4 S'!F32/'Tabel 4F S'!F32*100,"-")) -> 1.486988848 | G32: =IF(OR('Tabel 4F S'!G32<5,'Tabel 4 S'!G32<0.5),"-",IFERROR('Tabel 4 S'!G32/'Tabel 4F S'!G32*100,"-")) -> 1.388888889 | I32: =IF(OR('Tabel 4F S'!I32<5,'Tabel 4 S'!I32<0.5),"-",IFERROR('Tabel 4 S'!I32/'Tabel 4F S'!I32*100,"-")) -> 1.733397498
A33: Økonom | C33: =IF(OR('Tabel 4F S'!C33<5,'Tabel 4 S'!C33<0.5),"-",IFERROR('Tabel 4 S'!C33/'Tabel 4F S'!C33*100,"-")) -> 5.901960784 | D33: =IF(OR('Tabel 4F S'!D33<5,'Tabel 4 S'!D33<0.5),"-",IFERROR('Tabel 4 S'!D33/'Tabel 4F S'!D33*100,"-")) -> - | E33: =IF(OR('Tabel 4F S'!E33<5,'Tabel 4 S'!E33<0.5),"-",IFERROR('Tabel 4 S'!E33/'Tabel 4F S'!E33*100,"-")) -> 1.621621622 | F33: =IF(OR('Tabel 4F S'!F33<5,'Tabel 4 S'!F33<0.5),"-",IFERROR('Tabel 4 S'!F33/'Tabel 4F S'!F33*100,"-")) -> 2.857142857 | G33: =IF(OR('Tabel 4F S'!G33<5,'Tabel 4 S'!G33<0.5),"-",IFERROR('Tabel 4 S'!G33/'Tabel 4F S'!G33*100,"-")) -> 4.651162791 | I33: =IF(OR('Tabel 4F S'!I33<5,'Tabel 4 S'!I33<0.5),"-",IFERROR('Tabel 4 S'!I33/'Tabel 4F S'!I33*100,"-")) -> 2.428076256
A34: Samf. Adm. | C34: =IF(OR('Tabel 4F S'!C34<5,'Tabel 4 S'!C34<0.5),"-",IFERROR('Tabel 4 S'!C34/'Tabel 4F S'!C34*100,"-")) -> 29.65697674 | D34: =IF(OR('Tabel 4F S'!D34<5,'Tabel 4 S'!D34<0.5),"-",IFERROR('Tabel 4 S'!D34/'Tabel 4F S'!D34*100,"-")) -> 5.41958042 | E34: =IF(OR('Tabel 4F S'!E34<5,'Tabel 4 S'!E34<0.5),"-",IFERROR('Tabel 4 S'!E34/'Tabel 4F S'!E34*100,"-")) -> 2.955665025 | F34: =IF(OR('Tabel 4F S'!F34<5,'Tabel 4 S'!F34<0.5),"-",IFERROR('Tabel 4 S'!F34/'Tabel 4F S'!F34*100,"-")) -> 3.674540682 | G34: =IF(OR('Tabel 4F S'!G34<5,'Tabel 4 S'!G34<0.5),"-",IFERROR('Tabel 4 S'!G34/'Tabel 4F S'!G34*100,"-")) -> 5.769230769 | I34: =IF(OR('Tabel 4F S'!I34<5,'Tabel 4 S'!I34<0.5),"-",IFERROR('Tabel 4 S'!I34/'Tabel 4F S'!I34*100,"-")) -> 6.529379761
A35: Cand. Merc. | C35: =IF(OR('Tabel 4F S'!C35<5,'Tabel 4 S'!C35<0.5),"-",IFERROR('Tabel 4 S'!C35/'Tabel 4F S'!C35*100,"-")) -> 17.15899582 | D35: =IF(OR('Tabel 4F S'!D35<5,'Tabel 4 S'!D35<0.5),"-",IFERROR('Tabel 4 S'!D35/'Tabel 4F S'!D35*100,"-")) -> 2.891156463 | E35: =IF(OR('Tabel 4F S'!E35<5,'Tabel 4 S'!E35<0.5),"-",IFERROR('Tabel 4 S'!E35/'Tabel 4F S'!E35*100,"-")) -> 3.003003003 | F35: =IF(OR('Tabel 4F S'!F35<5,'Tabel 4 S'!F35<0.5),"-",IFERROR('Tabel 4 S'!F35/'Tabel 4F S'!F35*100,"-")) -> 3.899082569 | G35: =IF(OR('Tabel 4F S'!G35<5,'Tabel 4 S'!G35<0.5),"-",IFERROR('Tabel 4 S'!G35/'Tabel 4F S'!G35*100,"-")) -> 10.29411765 | I35: =IF(OR('Tabel 4F S'!I35<5,'Tabel 4 S'!I35<0.5),"-",IFERROR('Tabel 4 S'!I35/'Tabel 4F S'!I35*100,"-")) -> 5.108162243
A36: HA | C36: =IF(OR('Tabel 4F S'!C36<5,'Tabel 4 S'!C36<0.5),"-",IFERROR('Tabel 4 S'!C36/'Tabel 4F S'!C36*100,"-")) -> 11.65116279 | D36: =IF(OR('Tabel 4F S'!D36<5,'Tabel 4 S'!D36<0.5),"-",IFERROR('Tabel 4 S'!D36/'Tabel 4F S'!D36*100,"-")) -> 3.773584906 | E36: =IF(OR('Tabel 4F S'!E36<5,'Tabel 4 S'!E36<0.5),"-",IFERROR('Tabel 4 S'!E36/'Tabel 4F S'!E36*100,"-")) -> - | F36: =IF(OR('Tabel 4F S'!F36<5,'Tabel 4 S'!F36<0.5),"-",IFERROR('Tabel 4 S'!F36/'Tabel 4F S'!F36*100,"-")) -> 4.205607477 | G36: =IF(OR('Tabel 4F S'!G36<5,'Tabel 4 S'!G36<0.5),"-",IFERROR('Tabel 4 S'!G36/'Tabel 4F S'!G36*100,"-")) -> 4 | I36: =IF(OR('Tabel 4F S'!I36<5,'Tabel 4 S'!I36<0.5),"-",IFERROR('Tabel 4 S'!I36/'Tabel 4F S'!I36*100,"-")) -> 3.227598566
A37: HD | C37: =IF(OR('Tabel 4F S'!C37<5,'Tabel 4 S'!C37<0.5),"-",IFERROR('Tabel 4 S'!C37/'Tabel 4F S'!C37*100,"-")) -> 30.03333333 | D37: =IF(OR('Tabel 4F S'!D37<5,'Tabel 4 S'!D37<0.5),"-",IFERROR('Tabel 4 S'!D37/'Tabel 4F S'!D37*100,"-")) -> 2.325581395 | E37: =IF(OR('Tabel 4F S'!E37<5,'Tabel 4 S'!E37<0.5),"-",IFERROR('Tabel 4 S'!E37/'Tabel 4F S'!E37*100,"-")) -> 2.419354839 | F37: =IF(OR('Tabel 4F S'!F37<5,'Tabel 4 S'!F37<0.5),"-",IFERROR('Tabel 4 S'!F37/'Tabel 4F S'!F37*100,"-")) -> 3.448275862 | G37: =IF(OR('Tabel 4F S'!G37<5,'Tabel 4 S'!G37<0.5),"-",IFERROR('Tabel 4 S'!G37/'Tabel 4F S'!G37*100,"-")) -> 7.246376812 | I37: =IF(OR('Tabel 4F S'!I37<5,'Tabel 4 S'!I37<0.5),"-",IFERROR('Tabel 4 S'!I37/'Tabel 4F S'!I37*100,"-")) -> 5.125237192
A38: Komm. og Sprog | C38: =IF(OR('Tabel 4F S'!C38<5,'Tabel 4 S'!C38<0.5),"-",IFERROR('Tabel 4 S'!C38/'Tabel 4F S'!C38*100,"-")) -> 16.30232558 | D38: =IF(OR('Tabel 4F S'!D38<5,'Tabel 4 S'!D38<0.5),"-",IFERROR('Tabel 4 S'!D38/'Tabel 4F S'!D38*100,"-")) -> 7.462686567 | E38: =IF(OR('Tabel 4F S'!E38<5,'Tabel 4 S'!E38<0.5),"-",IFERROR('Tabel 4 S'!E38/'Tabel 4F S'!E38*100,"-")) -> 0.5780346821 | F38: =IF(OR('Tabel 4F S'!F38<5,'Tabel 4 S'!F38<0.5),"-",IFERROR('Tabel 4 S'!F38/'Tabel 4F S'!F38*100,"-")) -> 4.761904762 | G38: =IF(OR('Tabel 4F S'!G38<5,'Tabel 4 S'!G38<0.5),"-",IFERROR('Tabel 4 S'!G38/'Tabel 4F S'!G38*100,"-")) -> 10.11235955 | I38: =IF(OR('Tabel 4F S'!I38<5,'Tabel 4 S'!I38<0.5),"-",IFERROR('Tabel 4 S'!I38/'Tabel 4F S'!I38*100,"-")) -> 5.767710049
A39: Cand. IT. | C39: =IF(OR('Tabel 4F S'!C39<5,'Tabel 4 S'!C39<0.5),"-",IFERROR('Tabel 4 S'!C39/'Tabel 4F S'!C39*100,"-")) -> 21.24242424 | D39: =IF(OR('Tabel 4F S'!D39<5,'Tabel 4 S'!D39<0.5),"-",IFERROR('Tabel 4 S'!D39/'Tabel 4F S'!D39*100,"-")) -> 2.666666667 | E39: =IF(OR('Tabel 4F S'!E39<5,'Tabel 4 S'!E39<0.5),"-",IFERROR('Tabel 4 S'!E39/'Tabel 4F S'!E39*100,"-")) -> 1.851851852 | F39: =IF(OR('Tabel 4F S'!F39<5,'Tabel 4 S'!F39<0.5),"-",IFERROR('Tabel 4 S'!F39/'Tabel 4F S'!F39*100,"-")) -> 12.5 | G39: =IF(OR('Tabel 4F S'!G39<5,'Tabel 4 S'!G39<0.5),"-",IFERROR('Tabel 4 S'!G39/'Tabel 4F S'!G39*100,"-")) -> - | I39: =IF(OR('Tabel 4F S'!I39<5,'Tabel 4 S'!I39<0.5),"-",IFERROR('Tabel 4 S'!I39/'Tabel 4F S'!I39*100,"-")) -> 6.476470588
A40: Bac. Samf. | C40: =IF(OR('Tabel 4F S'!C40<5,'Tabel 4 S'!C40<0.5),"-",IFERROR('Tabel 4 S'!C40/'Tabel 4F S'!C40*100,"-")) -> 33.41666667 | D40: =IF(OR('Tabel 4F S'!D40<5,'Tabel 4 S'!D40<0.5),"-",IFERROR('Tabel 4 S'!D40/'Tabel 4F S'!D40*100,"-")) -> - | E40: =IF(OR('Tabel 4F S'!E40<5,'Tabel 4 S'!E40<0.5),"-",IFERROR('Tabel 4 S'!E40/'Tabel 4F S'!E40*100,"-")) -> - | F40: =IF(OR('Tabel 4F S'!F40<5,'Tabel 4 S'!F40<0.5),"-",IFERROR('Tabel 4 S'!F40/'Tabel 4F S'!F40*100,"-")) -> 10.71428571 | G40: =IF(OR('Tabel 4F S'!G40<5,'Tabel 4 S'!G40<0.5),"-",IFERROR('Tabel 4 S'!G40/'Tabel 4F S'!G40*100,"-")) -> - | I40: =IF(OR('Tabel 4F S'!I40<5,'Tabel 4 S'!I40<0.5),"-",IFERROR('Tabel 4 S'!I40/'Tabel 4F S'!I40*100,"-")) -> 7.703296703
A41: Bac. Hum. | C41: =IF(OR('Tabel 4F S'!C41<5,'Tabel 4 S'!C41<0.5),"-",IFERROR('Tabel 4 S'!C41/'Tabel 4F S'!C41*100,"-")) -> 18.47692308 | D41: =IF(OR('Tabel 4F S'!D41<5,'Tabel 4 S'!D41<0.5),"-",IFERROR('Tabel 4 S'!D41/'Tabel 4F S'!D41*100,"-")) -> 6.25 | E41: =IF(OR('Tabel 4F S'!E41<5,'Tabel 4 S'!E41<0.5),"-",IFERROR('Tabel 4 S'!E41/'Tabel 4F S'!E41*100,"-")) -> 2.857142857 | F41: =IF(OR('Tabel 4F S'!F41<5,'Tabel 4 S'!F41<0.5),"-",IFERROR('Tabel 4 S'!F41/'Tabel 4F S'!F41*100,"-")) -> 5.633802817 | G41: =IF(OR('Tabel 4F S'!G41<5,'Tabel 4 S'!G41<0.5),"-",IFERROR('Tabel 4 S'!G41/'Tabel 4F S'!G41*100,"-")) -> 25 | I41: =IF(OR('Tabel 4F S'!I41<5,'Tabel 4 S'!I41<0.5),"-",IFERROR('Tabel 4 S'!I41/'Tabel 4F S'!I41*100,"-")) -> 9.262962963
A42: Bac. Nat. | C42: =IF(OR('Tabel 4F S'!C42<5,'Tabel 4 S'!C42<0.5),"-",IFERROR('Tabel 4 S'!C42/'Tabel 4F S'!C42*100,"-")) -> 11.79411765 | D42: =IF(OR('Tabel 4F S'!D42<5,'Tabel 4 S'!D42<0.5),"-",IFERROR('Tabel 4 S'!D42/'Tabel 4F S'!D42*100,"-")) -> 5 | E42: =IF(OR('Tabel 4F S'!E42<5,'Tabel 4 S'!E42<0.5),"-",IFERROR('Tabel 4 S'!E42/'Tabel 4F S'!E42*100,"-")) -> 2.941176471 | F42: =IF(OR('Tabel 4F S'!F42<5,'Tabel 4 S'!F42<0.5),"-",IFERROR('Tabel 4 S'!F42/'Tabel 4F S'!F42*100,"-")) -> - | G42: =IF(OR('Tabel 4F S'!G42<5,'Tabel 4 S'!G42<0.5),"-",IFERROR('Tabel 4 S'!G42/'Tabel 4F S'!G42*100,"-")) -> - | I42: =IF(OR('Tabel 4F S'!I42<5,'Tabel 4 S'!I42<0.5),"-",IFERROR('Tabel 4 S'!I42/'Tabel 4F S'!I42*100,"-")) -> 4.914110429
A43: Andre | C43: =IF(OR('Tabel 4F S'!C43<5,'Tabel 4 S'!C43<0.5),"-",IFERROR('Tabel 4 S'!C43/'Tabel 4F S'!C43*100,"-")) -> 13.54135338 | D43: =IF(OR('Tabel 4F S'!D43<5,'Tabel 4 S'!D43<0.5),"-",IFERROR('Tabel 4 S'!D43/'Tabel 4F S'!D43*100,"-")) -> 5.643340858 | E43: =IF(OR('Tabel 4F S'!E43<5,'Tabel 4 S'!E43<0.5),"-",IFERROR('Tabel 4 S'!E43/'Tabel 4F S'!E43*100,"-")) -> 3.512396694 | F43: =IF(OR('Tabel 4F S'!F43<5,'Tabel 4 S'!F43<0.5),"-",IFERROR('Tabel 4 S'!F43/'Tabel 4F S'!F43*100,"-")) -> 6.329113924 | G43: =IF(OR('Tabel 4F S'!G43<5,'Tabel 4 S'!G43<0.5),"-",IFERROR('Tabel 4 S'!G43/'Tabel 4F S'!G43*100,"-")) -> 7.303370787 | I43: =IF(OR('Tabel 4F S'!I43<5,'Tabel 4 S'!I43<0.5),"-",IFERROR('Tabel 4 S'!I43/'Tabel 4F S'!I43*100,"-")) -> 6.00183711
A45: Total | C45: =IF(OR('Tabel 4F S'!C45<5,'Tabel 4 S'!C45<0.5),"-",IFERROR('Tabel 4 S'!C45/'Tabel 4F S'!C45*100,"-")) -> 16.47942108 | D45: =IF(OR('Tabel 4F S'!D45<5,'Tabel 4 S'!D45<0.5),"-",IFERROR('Tabel 4 S'!D45/'Tabel 4F S'!D45*100,"-")) -> 4.763416958 | E45: =IF(OR('Tabel 4F S'!E45<5,'Tabel 4 S'!E45<0.5),"-",IFERROR('Tabel 4 S'!E45/'Tabel 4F S'!E45*100,"-")) -> 2.283563363 | F45: =IF(OR('Tabel 4F S'!F45<5,'Tabel 4 S'!F45<0.5),"-",IFERROR('Tabel 4 S'!F45/'Tabel 4F S'!F45*100,"-")) -> 2.74974404 | G45: =IF(OR('Tabel 4F S'!G45<5,'Tabel 4 S'!G45<0.5),"-",IFERROR('Tabel 4 S'!G45/'Tabel 4F S'!G45*100,"-")) -> 4.155730534 | I45: =IF(OR('Tabel 4F S'!I45<5,'Tabel 4 S'!I45<0.5),"-",IFERROR('Tabel 4 S'!I45/'Tabel 4F S'!I45*100,"-")) -> 4.411217874
A47: Ingeniører i alt | C47: =IF(OR('Tabel 4F S'!C47<5,'Tabel 4 S'!C47<0.5),"-",IFERROR('Tabel 4 S'!C47/'Tabel 4F S'!C47*100,"-")) -> 7.586005831 | D47: =IF(OR('Tabel 4F S'!D47<5,'Tabel 4 S'!D47<0.5),"-",IFERROR('Tabel 4 S'!D47/'Tabel 4F S'!D47*100,"-")) -> 2.19047619 | E47: =IF(OR('Tabel 4F S'!E47<5,'Tabel 4 S'!E47<0.5),"-",IFERROR('Tabel 4 S'!E47/'Tabel 4F S'!E47*100,"-")) -> 1.459034792 | F47: =IF(OR('Tabel 4F S'!F47<5,'Tabel 4 S'!F47<0.5),"-",IFERROR('Tabel 4 S'!F47/'Tabel 4F S'!F47*100,"-")) -> 1.604032997 | G47: =IF(OR('Tabel 4F S'!G47<5,'Tabel 4 S'!G47<0.5),"-",IFERROR('Tabel 4 S'!G47/'Tabel 4F S'!G47*100,"-")) -> 2.987697715 | I47: =IF(OR('Tabel 4F S'!I47<5,'Tabel 4 S'!I47<0.5),"-",IFERROR('Tabel 4 S'!I47/'Tabel 4F S'!I47*100,"-")) -> 2.143435707
A48: Magistre i alt | C48: =IF(OR('Tabel 4F S'!C48<5,'Tabel 4 S'!C48<0.5),"-",IFERROR('Tabel 4 S'!C48/'Tabel 4F S'!C48*100,"-")) -> 25.36211699 | D48: =IF(OR('Tabel 4F S'!D48<5,'Tabel 4 S'!D48<0.5),"-",IFERROR('Tabel 4 S'!D48/'Tabel 4F S'!D48*100,"-")) -> 8.238851096 | E48: =IF(OR('Tabel 4F S'!E48<5,'Tabel 4 S'!E48<0.5),"-",IFERROR('Tabel 4 S'!E48/'Tabel 4F S'!E48*100,"-")) -> 3.476821192 | F48: =IF(OR('Tabel 4F S'!F48<5,'Tabel 4 S'!F48<0.5),"-",IFERROR('Tabel 4 S'!F48/'Tabel 4F S'!F48*100,"-")) -> 3.293413174 | G48: =IF(OR('Tabel 4F S'!G48<5,'Tabel 4 S'!G48<0.5),"-",IFERROR('Tabel 4 S'!G48/'Tabel 4F S'!G48*100,"-")) -> 3.389830508 | I48: =IF(OR('Tabel 4F S'!I48<5,'Tabel 4 S'!I48<0.5),"-",IFERROR('Tabel 4 S'!I48/'Tabel 4F S'!I48*100,"-")) -> 6.281199678
A49: DJØF'ere i alt | C49: =IF(OR('Tabel 4F S'!C49<5,'Tabel 4 S'!C49<0.5),"-",IFERROR('Tabel 4 S'!C49/'Tabel 4F S'!C49*100,"-")) -> 17.45016611 | D49: =IF(OR('Tabel 4F S'!D49<5,'Tabel 4 S'!D49<0.5),"-",IFERROR('Tabel 4 S'!D49/'Tabel 4F S'!D49*100,"-")) -> 3.463476071 | E49: =IF(OR('Tabel 4F S'!E49<5,'Tabel 4 S'!E49<0.5),"-",IFERROR('Tabel 4 S'!E49/'Tabel 4F S'!E49*100,"-")) -> 2.231237323 | F49: =IF(OR('Tabel 4F S'!F49<5,'Tabel 4 S'!F49<0.5),"-",IFERROR('Tabel 4 S'!F49/'Tabel 4F S'!F49*100,"-")) -> 3.311258278 | G49: =IF(OR('Tabel 4F S'!G49<5,'Tabel 4 S'!G49<0.5),"-",IFERROR('Tabel 4 S'!G49/'Tabel 4F S'!G49*100,"-")) -> 5.341246291 | I49: =IF(OR('Tabel 4F S'!I49<5,'Tabel 4 S'!I49<0.5),"-",IFERROR('Tabel 4 S'!I49/'Tabel 4F S'!I49*100,"-")) -> 4.527375603
A56: Greve
C58: Under 30 år | D58: 30 - 39 år | E58: 40 - 49 år | F58: 50 - 59 år | G58: Over 60 år | I58: I alt
A60: Civ. ing. | C60: =IF(OR('Tabel 4F S'!C60<5,'Tabel 4 S'!C60<0.5),"-",IFERROR('Tabel 4 S'!C60/'Tabel 4F S'!C60*100,"-")) -> 20 | D60: =IF(OR('Tabel 4F S'!D60<5,'Tabel 4 S'!D60<0.5),"-",IFERROR('Tabel 4 S'!D60/'Tabel 4F S'!D60*100,"-")) -> - | E60: =IF(OR('Tabel 4F S'!E60<5,'Tabel 4 S'!E60<0.5),"-",IFERROR('Tabel 4 S'!E60/'Tabel 4F S'!E60*100,"-")) -> 1.960784314 | F60: =IF(OR('Tabel 4F S'!F60<5,'Tabel 4 S'!F60<0.5),"-",IFERROR('Tabel 4 S'!F60/'Tabel 4F S'!F60*100,"-")) -> - | G60: =IF(OR('Tabel 4F S'!G60<5,'Tabel 4 S'!G60<0.5),"-",IFERROR('Tabel 4 S'!G60/'Tabel 4F S'!G60*100,"-")) -> - | I60: =IF(OR('Tabel 4F S'!I60<5,'Tabel 4 S'!I60<0.5),"-",IFERROR('Tabel 4 S'!I60/'Tabel 4F S'!I60*100,"-")) -> 1.694915254
A61: Diplom ing. | C61: =IF(OR('Tabel 4F S'!C61<5,'Tabel 4 S'!C61<0.5),"-",IFERROR('Tabel 4 S'!C61/'Tabel 4F S'!C61*100,"-")) -> 5.263157895 | D61: =IF(OR('Tabel 4F S'!D61<5,'Tabel 4 S'!D61<0.5),"-",IFERROR('Tabel 4 S'!D61/'Tabel 4F S'!D61*100,"-")) -> 4.761904762 | E61: =IF(OR('Tabel 4F S'!E61<5,'Tabel 4 S'!E61<0.5),"-",IFERROR('Tabel 4 S'!E61/'Tabel 4F S'!E61*100,"-")) -> - | F61: =IF(OR('Tabel 4F S'!F61<5,'Tabel 4 S'!F61<0.5),"-",IFERROR('Tabel 4 S'!F61/'Tabel 4F S'!F61*100,"-")) -> 2.173913043 | G61: =IF(OR('Tabel 4F S'!G61<5,'Tabel 4 S'!G61<0.5),"-",IFERROR('Tabel 4 S'!G61/'Tabel 4F S'!G61*100,"-")) -> 6.666666667 | I61: =IF(OR('Tabel 4F S'!I61<5,'Tabel 4 S'!I61<0.5),"-",IFERROR('Tabel 4 S'!I61/'Tabel 4F S'!I61*100,"-")) -> 2.359882006
A62: Cand. Scient. Tek | C62: =IF(OR('Tabel 4F S'!C62<5,'Tabel 4 S'!C62<0.5),"-",IFERROR('Tabel 4 S'!C62/'Tabel 4F S'!C62*100,"-")) -> 17.64705882 | D62: =IF(OR('Tabel 4F S'!D62<5,'Tabel 4 S'!D62<0.5),"-",IFERROR('Tabel 4 S'!D62/'Tabel 4F S'!D62*100,"-")) -> 6.25 | E62: =IF(OR('Tabel 4F S'!E62<5,'Tabel 4 S'!E62<0.5),"-",IFERROR('Tabel 4 S'!E62/'Tabel 4F S'!E62*100,"-")) -> - | F62: =IF(OR('Tabel 4F S'!F62<5,'Tabel 4 S'!F62<0.5),"-",IFERROR('Tabel 4 S'!F62/'Tabel 4F S'!F62*100,"-")) -> - | G62: =IF(OR('Tabel 4F S'!G62<5,'Tabel 4 S'!G62<0.5),"-",IFERROR('Tabel 4 S'!G62/'Tabel 4F S'!G62*100,"-")) -> - | I62: =IF(OR('Tabel 4F S'!I62<5,'Tabel 4 S'!I62<0.5),"-",IFERROR('Tabel 4 S'!I62/'Tabel 4F S'!I62*100,"-")) -> 6.976744186
A63: MA. Hum. | C63: =IF(OR('Tabel 4F S'!C63<5,'Tabel 4 S'!C63<0.5),"-",IFERROR('Tabel 4 S'!C63/'Tabel 4F S'!C63*100,"-")) -> 25 | D63: =IF(OR('Tabel 4F S'!D63<5,'Tabel 4 S'!D63<0.5),"-",IFERROR('Tabel 4 S'!D63/'Tabel 4F S'!D63*100,"-")) -> 6.818181818 | E63: =IF(OR('Tabel 4F S'!E63<5,'Tabel 4 S'!E63<0.5),"-",IFERROR('Tabel 4 S'!E63/'Tabel 4F S'!E63*100,"-")) -> 1.886792453 | F63: =IF(OR('Tabel 4F S'!F63<5,'Tabel 4 S'!F63<0.5),"-",IFERROR('Tabel 4 S'!F63/'Tabel 4F S'!F63*100,"-")) -> 16.66666667 | G63: =IF(OR('Tabel 4F S'!G63<5,'Tabel 4 S'!G63<0.5),"-",IFERROR('Tabel 4 S'!G63/'Tabel 4F S'!G63*100,"-")) -> 9.090909091 | I63: =IF(OR('Tabel 4F S'!I63<5,'Tabel 4 S'!I63<0.5),"-",IFERROR('Tabel 4 S'!I63/'Tabel 4F S'!I63*100,"-")) -> 7.03125
A64: MA. Nat. | C64: =IF(OR('Tabel 4F S'!C64<5,'Tabel 4 S'!C64<0.5),"-",IFERROR('Tabel 4 S'!C64/'Tabel 4F S'!C64*100,"-")) -> - | D64: =IF(OR('Tabel 4F S'!D64<5,'Tabel 4 S'!D64<0.5),"-",IFERROR('Tabel 4 S'!D64/'Tabel 4F S'!D64*100,"-")) -> - | E64: =IF(OR('Tabel 4F S'!E64<5,'Tabel 4 S'!E64<0.5),"-",IFERROR('Tabel 4 S'!E64/'Tabel 4F S'!E64*100,"-")) -> - | F64: =IF(OR('Tabel 4F S'!F64<5,'Tabel 4 S'!F64<0.5),"-",IFERROR('Tabel 4 S'!F64/'Tabel 4F S'!F64*100,"-")) -> - | G64: =IF(OR('Tabel 4F S'!G64<5,'Tabel 4 S'!G64<0.5),"-",IFERROR('Tabel 4 S'!G64/'Tabel 4F S'!G64*100,"-")) -> 9.090909091 | I64: =IF(OR('Tabel 4F S'!I64<5,'Tabel 4 S'!I64<0.5),"-",IFERROR('Tabel 4 S'!I64/'Tabel 4F S'!I64*100,"-")) -> 1.136363636
A65: MA. Ph.d. | C65: =IF(OR('Tabel 4F S'!C65<5,'Tabel 4 S'!C65<0.5),"-",IFERROR('Tabel 4 S'!C65/'Tabel 4F S'!C65*100,"-")) -> - | D65: =IF(OR('Tabel 4F S'!D65<5,'Tabel 4 S'!D65<0.5),"-",IFERROR('Tabel 4 S'!D65/'Tabel 4F S'!D65*100,"-")) -> - | E65: =IF(OR('Tabel 4F S'!E65<5,'Tabel 4 S'!E65<0.5),"-",IFERROR('Tabel 4 S'!E65/'Tabel 4F S'!E65*100,"-")) -> - | F65: =IF(OR('Tabel 4F S'!F65<5,'Tabel 4 S'!F65<0.5),"-",IFERROR('Tabel 4 S'!F65/'Tabel 4F S'!F65*100,"-")) -> - | G65: =IF(OR('Tabel 4F S'!G65<5,'Tabel 4 S'!G65<0.5),"-",IFERROR('Tabel 4 S'!G65/'Tabel 4F S'!G65*100,"-")) -> - | I65: =IF(OR('Tabel 4F S'!I65<5,'Tabel 4 S'!I65<0.5),"-",IFERROR('Tabel 4 S'!I65/'Tabel 4F S'!I65*100,"-")) -> 14.28571429
A66: MA. Samf. | C66: =IF(OR('Tabel 4F S'!C66<5,'Tabel 4 S'!C66<0.5),"-",IFERROR('Tabel 4 S'!C66/'Tabel 4F S'!C66*100,"-")) -> - | D66: =IF(OR('Tabel 4F S'!D66<5,'Tabel 4 S'!D66<0.5),"-",IFERROR('Tabel 4 S'!D66/'Tabel 4F S'!D66*100,"-")) -> - | E66: =IF(OR('Tabel 4F S'!E66<5,'Tabel 4 S'!E66<0.5),"-",IFERROR('Tabel 4 S'!E66/'Tabel 4F S'!E66*100,"-")) -> - | F66: =IF(OR('Tabel 4F S'!F66<5,'Tabel 4 S'!F66<0.5),"-",IFERROR('Tabel 4 S'!F66/'Tabel 4F S'!F66*100,"-")) -> - | G66: =IF(OR('Tabel 4F S'!G66<5,'Tabel 4 S'!G66<0.5),"-",IFERROR('Tabel 4 S'!G66/'Tabel 4F S'!G66*100,"-")) -> - | I66: =IF(OR('Tabel 4F S'!I66<5,'Tabel 4 S'!I66<0.5),"-",IFERROR('Tabel 4 S'!I66/'Tabel 4F S'!I66*100,"-")) -> 30.76923077
A67: Øvrige Mag. | C67: =IF(OR('Tabel 4F S'!C67<5,'Tabel 4 S'!C67<0.5),"-",IFERROR('Tabel 4 S'!C67/'Tabel 4F S'!C67*100,"-")) -> - | D67: =IF(OR('Tabel 4F S'!D67<5,'Tabel 4 S'!D67<0.5),"-",IFERROR('Tabel 4 S'!D67/'Tabel 4F S'!D67*100,"-")) -> - | E67: =IF(OR('Tabel 4F S'!E67<5,'Tabel 4 S'!E67<0.5),"-",IFERROR('Tabel 4 S'!E67/'Tabel 4F S'!E67*100,"-")) -> - | F67: =IF(OR('Tabel 4F S'!F67<5,'Tabel 4 S'!F67<0.5),"-",IFERROR('Tabel 4 S'!F67/'Tabel 4F S'!F67*100,"-")) -> 16.66666667 | G67: =IF(OR('Tabel 4F S'!G67<5,'Tabel 4 S'!G67<0.5),"-",IFERROR('Tabel 4 S'!G67/'Tabel 4F S'!G67*100,"-")) -> - | I67: =IF(OR('Tabel 4F S'!I67<5,'Tabel 4 S'!I67<0.5),"-",IFERROR('Tabel 4 S'!I67/'Tabel 4F S'!I67*100,"-")) -> 13.33333333
A68: Agronom | C68: =IF(OR('Tabel 4F S'!C68<5,'Tabel 4 S'!C68<0.5),"-",IFERROR('Tabel 4 S'!C68/'Tabel 4F S'!C68*100,"-")) -> - | D68: =IF(OR('Tabel 4F S'!D68<5,'Tabel 4 S'!D68<0.5),"-",IFERROR('Tabel 4 S'!D68/'Tabel 4F S'!D68*100,"-")) -> - | E68: =IF(OR('Tabel 4F S'!E68<5,'Tabel 4 S'!E68<0.5),"-",IFERROR('Tabel 4 S'!E68/'Tabel 4F S'!E68*100,"-")) -> - | F68: =IF(OR('Tabel 4F S'!F68<5,'Tabel 4 S'!F68<0.5),"-",IFERROR('Tabel 4 S'!F68/'Tabel 4F S'!F68*100,"-")) -> - | G68: =IF(OR('Tabel 4F S'!G68<5,'Tabel 4 S'!G68<0.5),"-",IFERROR('Tabel 4 S'!G68/'Tabel 4F S'!G68*100,"-")) -> - | I68: =IF(OR('Tabel 4F S'!I68<5,'Tabel 4 S'!I68<0.5),"-",IFERROR('Tabel 4 S'!I68/'Tabel 4F S'!I68*100,"-")) -> -
A69: Landsk. Arkt. | C69: =IF(OR('Tabel 4F S'!C69<5,'Tabel 4 S'!C69<0.5),"-",IFERROR('Tabel 4 S'!C69/'Tabel 4F S'!C69*100,"-")) -> - | D69: =IF(OR('Tabel 4F S'!D69<5,'Tabel 4 S'!D69<0.5),"-",IFERROR('Tabel 4 S'!D69/'Tabel 4F S'!D69*100,"-")) -> - | E69: =IF(OR('Tabel 4F S'!E69<5,'Tabel 4 S'!E69<0.5),"-",IFERROR('Tabel 4 S'!E69/'Tabel 4F S'!E69*100,"-")) -> - | F69: =IF(OR('Tabel 4F S'!F69<5,'Tabel 4 S'!F69<0.5),"-",IFERROR('Tabel 4 S'!F69/'Tabel 4F S'!F69*100,"-")) -> - | G69: =IF(OR('Tabel 4F S'!G69<5,'Tabel 4 S'!G69<0.5),"-",IFERROR('Tabel 4 S'!G69/'Tabel 4F S'!G69*100,"-")) -> - | I69: =IF(OR('Tabel 4F S'!I69<5,'Tabel 4 S'!I69<0.5),"-",IFERROR('Tabel 4 S'!I69/'Tabel 4F S'!I69*100,"-")) -> -
A70: Hortonom | C70: =IF(OR('Tabel 4F S'!C70<5,'Tabel 4 S'!C70<0.5),"-",IFERROR('Tabel 4 S'!C70/'Tabel 4F S'!C70*100,"-")) -> - | D70: =IF(OR('Tabel 4F S'!D70<5,'Tabel 4 S'!D70<0.5),"-",IFERROR('Tabel 4 S'!D70/'Tabel 4F S'!D70*100,"-")) -> - | E70: =IF(OR('Tabel 4F S'!E70<5,'Tabel 4 S'!E70<0.5),"-",IFERROR('Tabel 4 S'!E70/'Tabel 4F S'!E70*100,"-")) -> - | F70: =IF(OR('Tabel 4F S'!F70<5,'Tabel 4 S'!F70<0.5),"-",IFERROR('Tabel 4 S'!F70/'Tabel 4F S'!F70*100,"-")) -> - | G70: =IF(OR('Tabel 4F S'!G70<5,'Tabel 4 S'!G70<0.5),"-",IFERROR('Tabel 4 S'!G70/'Tabel 4F S'!G70*100,"-")) -> - | I70: =IF(OR('Tabel 4F S'!I70<5,'Tabel 4 S'!I70<0.5),"-",IFERROR('Tabel 4 S'!I70/'Tabel 4F S'!I70*100,"-")) -> -
A71: Forstkand. | C71: =IF(OR('Tabel 4F S'!C71<5,'Tabel 4 S'!C71<0.5),"-",IFERROR('Tabel 4 S'!C71/'Tabel 4F S'!C71*100,"-")) -> - | D71: =IF(OR('Tabel 4F S'!D71<5,'Tabel 4 S'!D71<0.5),"-",IFERROR('Tabel 4 S'!D71/'Tabel 4F S'!D71*100,"-")) -> - | E71: =IF(OR('Tabel 4F S'!E71<5,'Tabel 4 S'!E71<0.5),"-",IFERROR('Tabel 4 S'!E71/'Tabel 4F S'!E71*100,"-")) -> - | F71: =IF(OR('Tabel 4F S'!F71<5,'Tabel 4 S'!F71<0.5),"-",IFERROR('Tabel 4 S'!F71/'Tabel 4F S'!F71*100,"-")) -> - | G71: =IF(OR('Tabel 4F S'!G71<5,'Tabel 4 S'!G71<0.5),"-",IFERROR('Tabel 4 S'!G71/'Tabel 4F S'!G71*100,"-")) -> - | I71: =IF(OR('Tabel 4F S'!I71<5,'Tabel 4 S'!I71<0.5),"-",IFERROR('Tabel 4 S'!I71/'Tabel 4F S'!I71*100,"-")) -> -
A72: Jordbrugsakad. | C72: =IF(OR('Tabel 4F S'!C72<5,'Tabel 4 S'!C72<0.5),"-",IFERROR('Tabel 4 S'!C72/'Tabel 4F S'!C72*100,"-")) -> - | D72: =IF(OR('Tabel 4F S'!D72<5,'Tabel 4 S'!D72<0.5),"-",IFERROR('Tabel 4 S'!D72/'Tabel 4F S'!D72*100,"-")) -> - | E72: =IF(OR('Tabel 4F S'!E72<5,'Tabel 4 S'!E72<0.5),"-",IFERROR('Tabel 4 S'!E72/'Tabel 4F S'!E72*100,"-")) -> - | F72: =IF(OR('Tabel 4F S'!F72<5,'Tabel 4 S'!F72<0.5),"-",IFERROR('Tabel 4 S'!F72/'Tabel 4F S'!F72*100,"-")) -> - | G72: =IF(OR('Tabel 4F S'!G72<5,'Tabel 4 S'!G72<0.5),"-",IFERROR('Tabel 4 S'!G72/'Tabel 4F S'!G72*100,"-")) -> - | I72: =IF(OR('Tabel 4F S'!I72<5,'Tabel 4 S'!I72<0.5),"-",IFERROR('Tabel 4 S'!I72/'Tabel 4F S'!I72*100,"-")) -> -
A73: Mejeriing. | C73: =IF(OR('Tabel 4F S'!C73<5,'Tabel 4 S'!C73<0.5),"-",IFERROR('Tabel 4 S'!C73/'Tabel 4F S'!C73*100,"-")) -> - | D73: =IF(OR('Tabel 4F S'!D73<5,'Tabel 4 S'!D73<0.5),"-",IFERROR('Tabel 4 S'!D73/'Tabel 4F S'!D73*100,"-")) -> - | E73: =IF(OR('Tabel 4F S'!E73<5,'Tabel 4 S'!E73<0.5),"-",IFERROR('Tabel 4 S'!E73/'Tabel 4F S'!E73*100,"-")) -> - | F73: =IF(OR('Tabel 4F S'!F73<5,'Tabel 4 S'!F73<0.5),"-",IFERROR('Tabel 4 S'!F73/'Tabel 4F S'!F73*100,"-")) -> - | G73: =IF(OR('Tabel 4F S'!G73<5,'Tabel 4 S'!G73<0.5),"-",IFERROR('Tabel 4 S'!G73/'Tabel 4F S'!G73*100,"-")) -> - | I73: =IF(OR('Tabel 4F S'!I73<5,'Tabel 4 S'!I73<0.5),"-",IFERROR('Tabel 4 S'!I73/'Tabel 4F S'!I73*100,"-")) -> -
A74: Levn.m.kand. | C74: =IF(OR('Tabel 4F S'!C74<5,'Tabel 4 S'!C74<0.5),"-",IFERROR('Tabel 4 S'!C74/'Tabel 4F S'!C74*100,"-")) -> - | D74: =IF(OR('Tabel 4F S'!D74<5,'Tabel 4 S'!D74<0.5),"-",IFERROR('Tabel 4 S'!D74/'Tabel 4F S'!D74*100,"-")) -> - | E74: =IF(OR('Tabel 4F S'!E74<5,'Tabel 4 S'!E74<0.5),"-",IFERROR('Tabel 4 S'!E74/'Tabel 4F S'!E74*100,"-")) -> - | F74: =IF(OR('Tabel 4F S'!F74<5,'Tabel 4 S'!F74<0.5),"-",IFERROR('Tabel 4 S'!F74/'Tabel 4F S'!F74*100,"-")) -> - | G74: =IF(OR('Tabel 4F S'!G74<5,'Tabel 4 S'!G74<0.5),"-",IFERROR('Tabel 4 S'!G74/'Tabel 4F S'!G74*100,"-")) -> - | I74: =IF(OR('Tabel 4F S'!I74<5,'Tabel 4 S'!I74<0.5),"-",IFERROR('Tabel 4 S'!I74/'Tabel 4F S'!I74*100,"-")) -> -
A75: Dyrlæge | C75: =IF(OR('Tabel 4F S'!C75<5,'Tabel 4 S'!C75<0.5),"-",IFERROR('Tabel 4 S'!C75/'Tabel 4F S'!C75*100,"-")) -> - | D75: =IF(OR('Tabel 4F S'!D75<5,'Tabel 4 S'!D75<0.5),"-",IFERROR('Tabel 4 S'!D75/'Tabel 4F S'!D75*100,"-")) -> - | E75: =IF(OR('Tabel 4F S'!E75<5,'Tabel 4 S'!E75<0.5),"-",IFERROR('Tabel 4 S'!E75/'Tabel 4F S'!E75*100,"-")) -> - | F75: =IF(OR('Tabel 4F S'!F75<5,'Tabel 4 S'!F75<0.5),"-",IFERROR('Tabel 4 S'!F75/'Tabel 4F S'!F75*100,"-")) -> - | G75: =IF(OR('Tabel 4F S'!G75<5,'Tabel 4 S'!G75<0.5),"-",IFERROR('Tabel 4 S'!G75/'Tabel 4F S'!G75*100,"-")) -> - | I75: =IF(OR('Tabel 4F S'!I75<5,'Tabel 4 S'!I75<0.5),"-",IFERROR('Tabel 4 S'!I75/'Tabel 4F S'!I75*100,"-")) -> 7.142857143
A76: Farmaceut | C76: =IF(OR('Tabel 4F S'!C76<5,'Tabel 4 S'!C76<0.5),"-",IFERROR('Tabel 4 S'!C76/'Tabel 4F S'!C76*100,"-")) -> - | D76: =IF(OR('Tabel 4F S'!D76<5,'Tabel 4 S'!D76<0.5),"-",IFERROR('Tabel 4 S'!D76/'Tabel 4F S'!D76*100,"-")) -> - | E76: =IF(OR('Tabel 4F S'!E76<5,'Tabel 4 S'!E76<0.5),"-",IFERROR('Tabel 4 S'!E76/'Tabel 4F S'!E76*100,"-")) -> - | F76: =IF(OR('Tabel 4F S'!F76<5,'Tabel 4 S'!F76<0.5),"-",IFERROR('Tabel 4 S'!F76/'Tabel 4F S'!F76*100,"-")) -> - | G76: =IF(OR('Tabel 4F S'!G76<5,'Tabel 4 S'!G76<0.5),"-",IFERROR('Tabel 4 S'!G76/'Tabel 4F S'!G76*100,"-")) -> - | I76: =IF(OR('Tabel 4F S'!I76<5,'Tabel 4 S'!I76<0.5),"-",IFERROR('Tabel 4 S'!I76/'Tabel 4F S'!I76*100,"-")) -> -
A77: Læge | C77: =IF(OR('Tabel 4F S'!C77<5,'Tabel 4 S'!C77<0.5),"-",IFERROR('Tabel 4 S'!C77/'Tabel 4F S'!C77*100,"-")) -> 14.28571429 | D77: =IF(OR('Tabel 4F S'!D77<5,'Tabel 4 S'!D77<0.5),"-",IFERROR('Tabel 4 S'!D77/'Tabel 4F S'!D77*100,"-")) -> - | E77: =IF(OR('Tabel 4F S'!E77<5,'Tabel 4 S'!E77<0.5),"-",IFERROR('Tabel 4 S'!E77/'Tabel 4F S'!E77*100,"-")) -> 12.5 | F77: =IF(OR('Tabel 4F S'!F77<5,'Tabel 4 S'!F77<0.5),"-",IFERROR('Tabel 4 S'!F77/'Tabel 4F S'!F77*100,"-")) -> - | G77: =IF(OR('Tabel 4F S'!G77<5,'Tabel 4 S'!G77<0.5),"-",IFERROR('Tabel 4 S'!G77/'Tabel 4F S'!G77*100,"-")) -> 10 | I77: =IF(OR('Tabel 4F S'!I77<5,'Tabel 4 S'!I77<0.5),"-",IFERROR('Tabel 4 S'!I77/'Tabel 4F S'!I77*100,"-")) -> 6.382978723
A78: Tandlæge | C78: =IF(OR('Tabel 4F S'!C78<5,'Tabel 4 S'!C78<0.5),"-",IFERROR('Tabel 4 S'!C78/'Tabel 4F S'!C78*100,"-")) -> - | D78: =IF(OR('Tabel 4F S'!D78<5,'Tabel 4 S'!D78<0.5),"-",IFERROR('Tabel 4 S'!D78/'Tabel 4F S'!D78*100,"-")) -> - | E78: =IF(OR('Tabel 4F S'!E78<5,'Tabel 4 S'!E78<0.5),"-",IFERROR('Tabel 4 S'!E78/'Tabel 4F S'!E78*100,"-")) -> - | F78: =IF(OR('Tabel 4F S'!F78<5,'Tabel 4 S'!F78<0.5),"-",IFERROR('Tabel 4 S'!F78/'Tabel 4F S'!F78*100,"-")) -> 16.66666667 | G78: =IF(OR('Tabel 4F S'!G78<5,'Tabel 4 S'!G78<0.5),"-",IFERROR('Tabel 4 S'!G78/'Tabel 4F S'!G78*100,"-")) -> - | I78: =IF(OR('Tabel 4F S'!I78<5,'Tabel 4 S'!I78<0.5),"-",IFERROR('Tabel 4 S'!I78/'Tabel 4F S'!I78*100,"-")) -> 5.263157895
A79: Arkitekt | C79: =IF(OR('Tabel 4F S'!C79<5,'Tabel 4 S'!C79<0.5),"-",IFERROR('Tabel 4 S'!C79/'Tabel 4F S'!C79*100,"-")) -> - | D79: =IF(OR('Tabel 4F S'!D79<5,'Tabel 4 S'!D79<0.5),"-",IFERROR('Tabel 4 S'!D79/'Tabel 4F S'!D79*100,"-")) -> - | E79: =IF(OR('Tabel 4F S'!E79<5,'Tabel 4 S'!E79<0.5),"-",IFERROR('Tabel 4 S'!E79/'Tabel 4F S'!E79*100,"-")) -> - | F79: =IF(OR('Tabel 4F S'!F79<5,'Tabel 4 S'!F79<0.5),"-",IFERROR('Tabel 4 S'!F79/'Tabel 4F S'!F79*100,"-")) -> - | G79: =IF(OR('Tabel 4F S'!G79<5,'Tabel 4 S'!G79<0.5),"-",IFERROR('Tabel 4 S'!G79/'Tabel 4F S'!G79*100,"-")) -> - | I79: =IF(OR('Tabel 4F S'!I79<5,'Tabel 4 S'!I79<0.5),"-",IFERROR('Tabel 4 S'!I79/'Tabel 4F S'!I79*100,"-")) -> 14.28571429
A80: Landinspek. | C80: =IF(OR('Tabel 4F S'!C80<5,'Tabel 4 S'!C80<0.5),"-",IFERROR('Tabel 4 S'!C80/'Tabel 4F S'!C80*100,"-")) -> - | D80: =IF(OR('Tabel 4F S'!D80<5,'Tabel 4 S'!D80<0.5),"-",IFERROR('Tabel 4 S'!D80/'Tabel 4F S'!D80*100,"-")) -> - | E80: =IF(OR('Tabel 4F S'!E80<5,'Tabel 4 S'!E80<0.5),"-",IFERROR('Tabel 4 S'!E80/'Tabel 4F S'!E80*100,"-")) -> - | F80: =IF(OR('Tabel 4F S'!F80<5,'Tabel 4 S'!F80<0.5),"-",IFERROR('Tabel 4 S'!F80/'Tabel 4F S'!F80*100,"-")) -> - | G80: =IF(OR('Tabel 4F S'!G80<5,'Tabel 4 S'!G80<0.5),"-",IFERROR('Tabel 4 S'!G80/'Tabel 4F S'!G80*100,"-")) -> - | I80: =IF(OR('Tabel 4F S'!I80<5,'Tabel 4 S'!I80<0.5),"-",IFERROR('Tabel 4 S'!I80/'Tabel 4F S'!I80*100,"-")) -> -
A81: Bibliotekar | C81: =IF(OR('Tabel 4F S'!C81<5,'Tabel 4 S'!C81<0.5),"-",IFERROR('Tabel 4 S'!C81/'Tabel 4F S'!C81*100,"-")) -> - | D81: =IF(OR('Tabel 4F S'!D81<5,'Tabel 4 S'!D81<0.5),"-",IFERROR('Tabel 4 S'!D81/'Tabel 4F S'!D81*100,"-")) -> - | E81: =IF(OR('Tabel 4F S'!E81<5,'Tabel 4 S'!E81<0.5),"-",IFERROR('Tabel 4 S'!E81/'Tabel 4F S'!E81*100,"-")) -> - | F81: =IF(OR('Tabel 4F S'!F81<5,'Tabel 4 S'!F81<0.5),"-",IFERROR('Tabel 4 S'!F81/'Tabel 4F S'!F81*100,"-")) -> - | G81: =IF(OR('Tabel 4F S'!G81<5,'Tabel 4 S'!G81<0.5),"-",IFERROR('Tabel 4 S'!G81/'Tabel 4F S'!G81*100,"-")) -> - | I81: =IF(OR('Tabel 4F S'!I81<5,'Tabel 4 S'!I81<0.5),"-",IFERROR('Tabel 4 S'!I81/'Tabel 4F S'!I81*100,"-")) -> 5.555555556
A82: Musikudd. | C82: =IF(OR('Tabel 4F S'!C82<5,'Tabel 4 S'!C82<0.5),"-",IFERROR('Tabel 4 S'!C82/'Tabel 4F S'!C82*100,"-")) -> - | D82: =IF(OR('Tabel 4F S'!D82<5,'Tabel 4 S'!D82<0.5),"-",IFERROR('Tabel 4 S'!D82/'Tabel 4F S'!D82*100,"-")) -> - | E82: =IF(OR('Tabel 4F S'!E82<5,'Tabel 4 S'!E82<0.5),"-",IFERROR('Tabel 4 S'!E82/'Tabel 4F S'!E82*100,"-")) -> - | F82: =IF(OR('Tabel 4F S'!F82<5,'Tabel 4 S'!F82<0.5),"-",IFERROR('Tabel 4 S'!F82/'Tabel 4F S'!F82*100,"-")) -> - | G82: =IF(OR('Tabel 4F S'!G82<5,'Tabel 4 S'!G82<0.5),"-",IFERROR('Tabel 4 S'!G82/'Tabel 4F S'!G82*100,"-")) -> - | I82: =IF(OR('Tabel 4F S'!I82<5,'Tabel 4 S'!I82<0.5),"-",IFERROR('Tabel 4 S'!I82/'Tabel 4F S'!I82*100,"-")) -> -
A83: Teolog | C83: =IF(OR('Tabel 4F S'!C83<5,'Tabel 4 S'!C83<0.5),"-",IFERROR('Tabel 4 S'!C83/'Tabel 4F S'!C83*100,"-")) -> - | D83: =IF(OR('Tabel 4F S'!D83<5,'Tabel 4 S'!D83<0.5),"-",IFERROR('Tabel 4 S'!D83/'Tabel 4F S'!D83*100,"-")) -> - | E83: =IF(OR('Tabel 4F S'!E83<5,'Tabel 4 S'!E83<0.5),"-",IFERROR('Tabel 4 S'!E83/'Tabel 4F S'!E83*100,"-")) -> - | F83: =IF(OR('Tabel 4F S'!F83<5,'Tabel 4 S'!F83<0.5),"-",IFERROR('Tabel 4 S'!F83/'Tabel 4F S'!F83*100,"-")) -> - | G83: =IF(OR('Tabel 4F S'!G83<5,'Tabel 4 S'!G83<0.5),"-",IFERROR('Tabel 4 S'!G83/'Tabel 4F S'!G83*100,"-")) -> - | I83: =IF(OR('Tabel 4F S'!I83<5,'Tabel 4 S'!I83<0.5),"-",IFERROR('Tabel 4 S'!I83/'Tabel 4F S'!I83*100,"-")) -> -
A84: Psykolog | C84: =IF(OR('Tabel 4F S'!C84<5,'Tabel 4 S'!C84<0.5),"-",IFERROR('Tabel 4 S'!C84/'Tabel 4F S'!C84*100,"-")) -> - | D84: =IF(OR('Tabel 4F S'!D84<5,'Tabel 4 S'!D84<0.5),"-",IFERROR('Tabel 4 S'!D84/'Tabel 4F S'!D84*100,"-")) -> - | E84: =IF(OR('Tabel 4F S'!E84<5,'Tabel 4 S'!E84<0.5),"-",IFERROR('Tabel 4 S'!E84/'Tabel 4F S'!E84*100,"-")) -> - | F84: =IF(OR('Tabel 4F S'!F84<5,'Tabel 4 S'!F84<0.5),"-",IFERROR('Tabel 4 S'!F84/'Tabel 4F S'!F84*100,"-")) -> - | G84: =IF(OR('Tabel 4F S'!G84<5,'Tabel 4 S'!G84<0.5),"-",IFERROR('Tabel 4 S'!G84/'Tabel 4F S'!G84*100,"-")) -> - | I84: =IF(OR('Tabel 4F S'!I84<5,'Tabel 4 S'!I84<0.5),"-",IFERROR('Tabel 4 S'!I84/'Tabel 4F S'!I84*100,"-")) -> 4.545454545
A85: Jurist | C85: =IF(OR('Tabel 4F S'!C85<5,'Tabel 4 S'!C85<0.5),"-",IFERROR('Tabel 4 S'!C85/'Tabel 4F S'!C85*100,"-")) -> - | D85: =IF(OR('Tabel 4F S'!D85<5,'Tabel 4 S'!D85<0.5),"-",IFERROR('Tabel 4 S'!D85/'Tabel 4F S'!D85*100,"-")) -> - | E85: =IF(OR('Tabel 4F S'!E85<5,'Tabel 4 S'!E85<0.5),"-",IFERROR('Tabel 4 S'!E85/'Tabel 4F S'!E85*100,"-")) -> - | F85: =IF(OR('Tabel 4F S'!F85<5,'Tabel 4 S'!F85<0.5),"-",IFERROR('Tabel 4 S'!F85/'Tabel 4F S'!F85*100,"-")) -> - | G85: =IF(OR('Tabel 4F S'!G85<5,'Tabel 4 S'!G85<0.5),"-",IFERROR('Tabel 4 S'!G85/'Tabel 4F S'!G85*100,"-")) -> - | I85: =IF(OR('Tabel 4F S'!I85<5,'Tabel 4 S'!I85<0.5),"-",IFERROR('Tabel 4 S'!I85/'Tabel 4F S'!I85*100,"-")) -> -
A86: Økonom | C86: =IF(OR('Tabel 4F S'!C86<5,'Tabel 4 S'!C86<0.5),"-",IFERROR('Tabel 4 S'!C86/'Tabel 4F S'!C86*100,"-")) -> - | D86: =IF(OR('Tabel 4F S'!D86<5,'Tabel 4 S'!D86<0.5),"-",IFERROR('Tabel 4 S'!D86/'Tabel 4F S'!D86*100,"-")) -> - | E86: =IF(OR('Tabel 4F S'!E86<5,'Tabel 4 S'!E86<0.5),"-",IFERROR('Tabel 4 S'!E86/'Tabel 4F S'!E86*100,"-")) -> - | F86: =IF(OR('Tabel 4F S'!F86<5,'Tabel 4 S'!F86<0.5),"-",IFERROR('Tabel 4 S'!F86/'Tabel 4F S'!F86*100,"-")) -> - | G86: =IF(OR('Tabel 4F S'!G86<5,'Tabel 4 S'!G86<0.5),"-",IFERROR('Tabel 4 S'!G86/'Tabel 4F S'!G86*100,"-")) -> - | I86: =IF(OR('Tabel 4F S'!I86<5,'Tabel 4 S'!I86<0.5),"-",IFERROR('Tabel 4 S'!I86/'Tabel 4F S'!I86*100,"-")) -> -
A87: Samf. Adm. | C87: =IF(OR('Tabel 4F S'!C87<5,'Tabel 4 S'!C87<0.5),"-",IFERROR('Tabel 4 S'!C87/'Tabel 4F S'!C87*100,"-")) -> 31.25 | D87: =IF(OR('Tabel 4F S'!D87<5,'Tabel 4 S'!D87<0.5),"-",IFERROR('Tabel 4 S'!D87/'Tabel 4F S'!D87*100,"-")) -> 10.41666667 | E87: =IF(OR('Tabel 4F S'!E87<5,'Tabel 4 S'!E87<0.5),"-",IFERROR('Tabel 4 S'!E87/'Tabel 4F S'!E87*100,"-")) -> 8.823529412 | F87: =IF(OR('Tabel 4F S'!F87<5,'Tabel 4 S'!F87<0.5),"-",IFERROR('Tabel 4 S'!F87/'Tabel 4F S'!F87*100,"-")) -> - | G87: =IF(OR('Tabel 4F S'!G87<5,'Tabel 4 S'!G87<0.5),"-",IFERROR('Tabel 4 S'!G87/'Tabel 4F S'!G87*100,"-")) -> - | I87: =IF(OR('Tabel 4F S'!I87<5,'Tabel 4 S'!I87<0.5),"-",IFERROR('Tabel 4 S'!I87/'Tabel 4F S'!I87*100,"-")) -> 10.74380165
A88: Cand. Merc. | C88: =IF(OR('Tabel 4F S'!C88<5,'Tabel 4 S'!C88<0.5),"-",IFERROR('Tabel 4 S'!C88/'Tabel 4F S'!C88*100,"-")) -> 22.22222222 | D88: =IF(OR('Tabel 4F S'!D88<5,'Tabel 4 S'!D88<0.5),"-",IFERROR('Tabel 4 S'!D88/'Tabel 4F S'!D88*100,"-")) -> 4 | E88: =IF(OR('Tabel 4F S'!E88<5,'Tabel 4 S'!E88<0.5),"-",IFERROR('Tabel 4 S'!E88/'Tabel 4F S'!E88*100,"-")) -> 0.9900990099 | F88: =IF(OR('Tabel 4F S'!F88<5,'Tabel 4 S'!F88<0.5),"-",IFERROR('Tabel 4 S'!F88/'Tabel 4F S'!F88*100,"-")) -> 1.851851852 | G88: =IF(OR('Tabel 4F S'!G88<5,'Tabel 4 S'!G88<0.5),"-",IFERROR('Tabel 4 S'!G88/'Tabel 4F S'!G88*100,"-")) -> 11.11111111 | I88: =IF(OR('Tabel 4F S'!I88<5,'Tabel 4 S'!I88<0.5),"-",IFERROR('Tabel 4 S'!I88/'Tabel 4F S'!I88*100,"-")) -> 5.090909091
A89: HA | C89: =IF(OR('Tabel 4F S'!C89<5,'Tabel 4 S'!C89<0.5),"-",IFERROR('Tabel 4 S'!C89/'Tabel 4F S'!C89*100,"-")) -> - | D89: =IF(OR('Tabel 4F S'!D89<5,'Tabel 4 S'!D89<0.5),"-",IFERROR('Tabel 4 S'!D89/'Tabel 4F S'!D89*100,"-")) -> - | E89: =IF(OR('Tabel 4F S'!E89<5,'Tabel 4 S'!E89<0.5),"-",IFERROR('Tabel 4 S'!E89/'Tabel 4F S'!E89*100,"-")) -> - | F89: =IF(OR('Tabel 4F S'!F89<5,'Tabel 4 S'!F89<0.5),"-",IFERROR('Tabel 4 S'!F89/'Tabel 4F S'!F89*100,"-")) -> 13.04347826 | G89: =IF(OR('Tabel 4F S'!G89<5,'Tabel 4 S'!G89<0.5),"-",IFERROR('Tabel 4 S'!G89/'Tabel 4F S'!G89*100,"-")) -> - | I89: =IF(OR('Tabel 4F S'!I89<5,'Tabel 4 S'!I89<0.5),"-",IFERROR('Tabel 4 S'!I89/'Tabel 4F S'!I89*100,"-")) -> 4.166666667
A90: HD | C90: =IF(OR('Tabel 4F S'!C90<5,'Tabel 4 S'!C90<0.5),"-",IFERROR('Tabel 4 S'!C90/'Tabel 4F S'!C90*100,"-")) -> - | D90: =IF(OR('Tabel 4F S'!D90<5,'Tabel 4 S'!D90<0.5),"-",IFERROR('Tabel 4 S'!D90/'Tabel 4F S'!D90*100,"-")) -> - | E90: =IF(OR('Tabel 4F S'!E90<5,'Tabel 4 S'!E90<0.5),"-",IFERROR('Tabel 4 S'!E90/'Tabel 4F S'!E90*100,"-")) -> - | F90: =IF(OR('Tabel 4F S'!F90<5,'Tabel 4 S'!F90<0.5),"-",IFERROR('Tabel 4 S'!F90/'Tabel 4F S'!F90*100,"-")) -> 2.631578947 | G90: =IF(OR('Tabel 4F S'!G90<5,'Tabel 4 S'!G90<0.5),"-",IFERROR('Tabel 4 S'!G90/'Tabel 4F S'!G90*100,"-")) -> - | I90: =IF(OR('Tabel 4F S'!I90<5,'Tabel 4 S'!I90<0.5),"-",IFERROR('Tabel 4 S'!I90/'Tabel 4F S'!I90*100,"-")) -> 2.666666667
A91: Komm. og Sprog | C91: =IF(OR('Tabel 4F S'!C91<5,'Tabel 4 S'!C91<0.5),"-",IFERROR('Tabel 4 S'!C91/'Tabel 4F S'!C91*100,"-")) -> - | D91: =IF(OR('Tabel 4F S'!D91<5,'Tabel 4 S'!D91<0.5),"-",IFERROR('Tabel 4 S'!D91/'Tabel 4F S'!D91*100,"-")) -> - | E91: =IF(OR('Tabel 4F S'!E91<5,'Tabel 4 S'!E91<0.5),"-",IFERROR('Tabel 4 S'!E91/'Tabel 4F S'!E91*100,"-")) -> - | F91: =IF(OR('Tabel 4F S'!F91<5,'Tabel 4 S'!F91<0.5),"-",IFERROR('Tabel 4 S'!F91/'Tabel 4F S'!F91*100,"-")) -> 6.666666667 | G91: =IF(OR('Tabel 4F S'!G91<5,'Tabel 4 S'!G91<0.5),"-",IFERROR('Tabel 4 S'!G91/'Tabel 4F S'!G91*100,"-")) -> 20 | I91: =IF(OR('Tabel 4F S'!I91<5,'Tabel 4 S'!I91<0.5),"-",IFERROR('Tabel 4 S'!I91/'Tabel 4F S'!I91*100,"-")) -> 5
A92: Cand. IT. | C92: =IF(OR('Tabel 4F S'!C92<5,'Tabel 4 S'!C92<0.5),"-",IFERROR('Tabel 4 S'!C92/'Tabel 4F S'!C92*100,"-")) -> 20 | D92: =IF(OR('Tabel 4F S'!D92<5,'Tabel 4 S'!D92<0.5),"-",IFERROR('Tabel 4 S'!D92/'Tabel 4F S'!D92*100,"-")) -> - | E92: =IF(OR('Tabel 4F S'!E92<5,'Tabel 4 S'!E92<0.5),"-",IFERROR('Tabel 4 S'!E92/'Tabel 4F S'!E92*100,"-")) -> - | F92: =IF(OR('Tabel 4F S'!F92<5,'Tabel 4 S'!F92<0.5),"-",IFERROR('Tabel 4 S'!F92/'Tabel 4F S'!F92*100,"-")) -> - | G92: =IF(OR('Tabel 4F S'!G92<5,'Tabel 4 S'!G92<0.5),"-",IFERROR('Tabel 4 S'!G92/'Tabel 4F S'!G92*100,"-")) -> - | I92: =IF(OR('Tabel 4F S'!I92<5,'Tabel 4 S'!I92<0.5),"-",IFERROR('Tabel 4 S'!I92/'Tabel 4F S'!I92*100,"-")) -> 4.347826087
A93: Bac. Samf. | C93: =IF(OR('Tabel 4F S'!C93<5,'Tabel 4 S'!C93<0.5),"-",IFERROR('Tabel 4 S'!C93/'Tabel 4F S'!C93*100,"-")) -> - | D93: =IF(OR('Tabel 4F S'!D93<5,'Tabel 4 S'!D93<0.5),"-",IFERROR('Tabel 4 S'!D93/'Tabel 4F S'!D93*100,"-")) -> - | E93: =IF(OR('Tabel 4F S'!E93<5,'Tabel 4 S'!E93<0.5),"-",IFERROR('Tabel 4 S'!E93/'Tabel 4F S'!E93*100,"-")) -> - | F93: =IF(OR('Tabel 4F S'!F93<5,'Tabel 4 S'!F93<0.5),"-",IFERROR('Tabel 4 S'!F93/'Tabel 4F S'!F93*100,"-")) -> - | G93: =IF(OR('Tabel 4F S'!G93<5,'Tabel 4 S'!G93<0.5),"-",IFERROR('Tabel 4 S'!G93/'Tabel 4F S'!G93*100,"-")) -> - | I93: =IF(OR('Tabel 4F S'!I93<5,'Tabel 4 S'!I93<0.5),"-",IFERROR('Tabel 4 S'!I93/'Tabel 4F S'!I93*100,"-")) -> -
A94: Bac. Hum. | C94: =IF(OR('Tabel 4F S'!C94<5,'Tabel 4 S'!C94<0.5),"-",IFERROR('Tabel 4 S'!C94/'Tabel 4F S'!C94*100,"-")) -> - | D94: =IF(OR('Tabel 4F S'!D94<5,'Tabel 4 S'!D94<0.5),"-",IFERROR('Tabel 4 S'!D94/'Tabel 4F S'!D94*100,"-")) -> - | E94: =IF(OR('Tabel 4F S'!E94<5,'Tabel 4 S'!E94<0.5),"-",IFERROR('Tabel 4 S'!E94/'Tabel 4F S'!E94*100,"-")) -> - | F94: =IF(OR('Tabel 4F S'!F94<5,'Tabel 4 S'!F94<0.5),"-",IFERROR('Tabel 4 S'!F94/'Tabel 4F S'!F94*100,"-")) -> - | G94: =IF(OR('Tabel 4F S'!G94<5,'Tabel 4 S'!G94<0.5),"-",IFERROR('Tabel 4 S'!G94/'Tabel 4F S'!G94*100,"-")) -> - | I94: =IF(OR('Tabel 4F S'!I94<5,'Tabel 4 S'!I94<0.5),"-",IFERROR('Tabel 4 S'!I94/'Tabel 4F S'!I94*100,"-")) -> 6.666666667
A95: Bac. Nat. | C95: =IF(OR('Tabel 4F S'!C95<5,'Tabel 4 S'!C95<0.5),"-",IFERROR('Tabel 4 S'!C95/'Tabel 4F S'!C95*100,"-")) -> - | D95: =IF(OR('Tabel 4F S'!D95<5,'Tabel 4 S'!D95<0.5),"-",IFERROR('Tabel 4 S'!D95/'Tabel 4F S'!D95*100,"-")) -> - | E95: =IF(OR('Tabel 4F S'!E95<5,'Tabel 4 S'!E95<0.5),"-",IFERROR('Tabel 4 S'!E95/'Tabel 4F S'!E95*100,"-")) -> - | F95: =IF(OR('Tabel 4F S'!F95<5,'Tabel 4 S'!F95<0.5),"-",IFERROR('Tabel 4 S'!F95/'Tabel 4F S'!F95*100,"-")) -> - | G95: =IF(OR('Tabel 4F S'!G95<5,'Tabel 4 S'!G95<0.5),"-",IFERROR('Tabel 4 S'!G95/'Tabel 4F S'!G95*100,"-")) -> - | I95: =IF(OR('Tabel 4F S'!I95<5,'Tabel 4 S'!I95<0.5),"-",IFERROR('Tabel 4 S'!I95/'Tabel 4F S'!I95*100,"-")) -> 14.28571429
A96: Andre | C96: =IF(OR('Tabel 4F S'!C96<5,'Tabel 4 S'!C96<0.5),"-",IFERROR('Tabel 4 S'!C96/'Tabel 4F S'!C96*100,"-")) -> 25 | D96: =IF(OR('Tabel 4F S'!D96<5,'Tabel 4 S'!D96<0.5),"-",IFERROR('Tabel 4 S'!D96/'Tabel 4F S'!D96*100,"-")) -> 2 | E96: =IF(OR('Tabel 4F S'!E96<5,'Tabel 4 S'!E96<0.5),"-",IFERROR('Tabel 4 S'!E96/'Tabel 4F S'!E96*100,"-")) -> 2.173913043 | F96: =IF(OR('Tabel 4F S'!F96<5,'Tabel 4 S'!F96<0.5),"-",IFERROR('Tabel 4 S'!F96/'Tabel 4F S'!F96*100,"-")) -> 3.125 | G96: =IF(OR('Tabel 4F S'!G96<5,'Tabel 4 S'!G96<0.5),"-",IFERROR('Tabel 4 S'!G96/'Tabel 4F S'!G96*100,"-")) -> - | I96: =IF(OR('Tabel 4F S'!I96<5,'Tabel 4 S'!I96<0.5),"-",IFERROR('Tabel 4 S'!I96/'Tabel 4F S'!I96*100,"-")) -> 3.521126761
A98: Total | C98: =IF(OR('Tabel 4F S'!C98<5,'Tabel 4 S'!C98<0.5),"-",IFERROR('Tabel 4 S'!C98/'Tabel 4F S'!C98*100,"-")) -> 18.18181818 | D98: =IF(OR('Tabel 4F S'!D98<5,'Tabel 4 S'!D98<0.5),"-",IFERROR('Tabel 4 S'!D98/'Tabel 4F S'!D98*100,"-")) -> 3.238095238 | E98: =IF(OR('Tabel 4F S'!E98<5,'Tabel 4 S'!E98<0.5),"-",IFERROR('Tabel 4 S'!E98/'Tabel 4F S'!E98*100,"-")) -> 1.664145234 | F98: =IF(OR('Tabel 4F S'!F98<5,'Tabel 4 S'!F98<0.5),"-",IFERROR('Tabel 4 S'!F98/'Tabel 4F S'!F98*100,"-")) -> 2.540834846 | G98: =IF(OR('Tabel 4F S'!G98<5,'Tabel 4 S'!G98<0.5),"-",IFERROR('Tabel 4 S'!G98/'Tabel 4F S'!G98*100,"-")) -> 7.142857143 | I98: =IF(OR('Tabel 4F S'!I98<5,'Tabel 4 S'!I98<0.5),"-",IFERROR('Tabel 4 S'!I98/'Tabel 4F S'!I98*100,"-")) -> 4.186717998
A100: Ingeniører i alt | C100: =IF(OR('Tabel 4F S'!C100<5,'Tabel 4 S'!C100<0.5),"-",IFERROR('Tabel 4 S'!C100/'Tabel 4F S'!C100*100,"-")) -> 10.34482759 | D100: =IF(OR('Tabel 4F S'!D100<5,'Tabel 4 S'!D100<0.5),"-",IFERROR('Tabel 4 S'!D100/'Tabel 4F S'!D100*100,"-")) -> 2.083333333 | E100: =IF(OR('Tabel 4F S'!E100<5,'Tabel 4 S'!E100<0.5),"-",IFERROR('Tabel 4 S'!E100/'Tabel 4F S'!E100*100,"-")) -> 0.6211180124 | F100: =IF(OR('Tabel 4F S'!F100<5,'Tabel 4 S'!F100<0.5),"-",IFERROR('Tabel 4 S'!F100/'Tabel 4F S'!F100*100,"-")) -> 1.595744681 | G100: =IF(OR('Tabel 4F S'!G100<5,'Tabel 4 S'!G100<0.5),"-",IFERROR('Tabel 4 S'!G100/'Tabel 4F S'!G100*100,"-")) -> 4.761904762 | I100: =IF(OR('Tabel 4F S'!I100<5,'Tabel 4 S'!I100<0.5),"-",IFERROR('Tabel 4 S'!I100/'Tabel 4F S'!I100*100,"-")) -> 2.131782946
A101: Magistre i alt | C101: =IF(OR('Tabel 4F S'!C101<5,'Tabel 4 S'!C101<0.5),"-",IFERROR('Tabel 4 S'!C101/'Tabel 4F S'!C101*100,"-")) -> 29.41176471 | D101: =IF(OR('Tabel 4F S'!D101<5,'Tabel 4 S'!D101<0.5),"-",IFERROR('Tabel 4 S'!D101/'Tabel 4F S'!D101*100,"-")) -> 4.054054054 | E101: =IF(OR('Tabel 4F S'!E101<5,'Tabel 4 S'!E101<0.5),"-",IFERROR('Tabel 4 S'!E101/'Tabel 4F S'!E101*100,"-")) -> 3.448275862 | F101: =IF(OR('Tabel 4F S'!F101<5,'Tabel 4 S'!F101<0.5),"-",IFERROR('Tabel 4 S'!F101/'Tabel 4F S'!F101*100,"-")) -> 6.382978723 | G101: =IF(OR('Tabel 4F S'!G101<5,'Tabel 4 S'!G101<0.5),"-",IFERROR('Tabel 4 S'!G101/'Tabel 4F S'!G101*100,"-")) -> 11.53846154 | I101: =IF(OR('Tabel 4F S'!I101<5,'Tabel 4 S'!I101<0.5),"-",IFERROR('Tabel 4 S'!I101/'Tabel 4F S'!I101*100,"-")) -> 6.772908367
A102: DJØF'ere i alt | C102: =IF(OR('Tabel 4F S'!C102<5,'Tabel 4 S'!C102<0.5),"-",IFERROR('Tabel 4 S'!C102/'Tabel 4F S'!C102*100,"-")) -> 17.33333333 | D102: =IF(OR('Tabel 4F S'!D102<5,'Tabel 4 S'!D102<0.5),"-",IFERROR('Tabel 4 S'!D102/'Tabel 4F S'!D102*100,"-")) -> 4.705882353 | E102: =IF(OR('Tabel 4F S'!E102<5,'Tabel 4 S'!E102<0.5),"-",IFERROR('Tabel 4 S'!E102/'Tabel 4F S'!E102*100,"-")) -> 1.860465116 | F102: =IF(OR('Tabel 4F S'!F102<5,'Tabel 4 S'!F102<0.5),"-",IFERROR('Tabel 4 S'!F102/'Tabel 4F S'!F102*100,"-")) -> 2.721088435 | G102: =IF(OR('Tabel 4F S'!G102<5,'Tabel 4 S'!G102<0.5),"-",IFERROR('Tabel 4 S'!G102/'Tabel 4F S'!G102*100,"-")) -> 3.571428571 | I102: =IF(OR('Tabel 4F S'!I102<5,'Tabel 4 S'!I102<0.5),"-",IFERROR('Tabel 4 S'!I102/'Tabel 4F S'!I102*100,"-")) -> 4.724409449
A109: Køge
C111: Under 30 år | D111: 30 - 39 år | E111: 40 - 49 år | F111: 50 - 59 år | G111: Over 60 år | I111: I alt
A113: Civ. ing. | C113: =IF(OR('Tabel 4F S'!C113<5,'Tabel 4 S'!C113<0.5),"-",IFERROR('Tabel 4 S'!C113/'Tabel 4F S'!C113*100,"-")) -> 13.04347826 | D113: =IF(OR('Tabel 4F S'!D113<5,'Tabel 4 S'!D113<0.5),"-",IFERROR('Tabel 4 S'!D113/'Tabel 4F S'!D113*100,"-")) -> 2.43902439 | E113: =IF(OR('Tabel 4F S'!E113<5,'Tabel 4 S'!E113<0.5),"-",IFERROR('Tabel 4 S'!E113/'Tabel 4F S'!E113*100,"-")) -> 4.166666667 | F113: =IF(OR('Tabel 4F S'!F113<5,'Tabel 4 S'!F113<0.5),"-",IFERROR('Tabel 4 S'!F113/'Tabel 4F S'!F113*100,"-")) -> - | G113: =IF(OR('Tabel 4F S'!G113<5,'Tabel 4 S'!G113<0.5),"-",IFERROR('Tabel 4 S'!G113/'Tabel 4F S'!G113*100,"-")) -> - | I113: =IF(OR('Tabel 4F S'!I113<5,'Tabel 4 S'!I113<0.5),"-",IFERROR('Tabel 4 S'!I113/'Tabel 4F S'!I113*100,"-")) -> 3.243243243
A114: Diplom ing. | C114: =IF(OR('Tabel 4F S'!C114<5,'Tabel 4 S'!C114<0.5),"-",IFERROR('Tabel 4 S'!C114/'Tabel 4F S'!C114*100,"-")) -> - | D114: =IF(OR('Tabel 4F S'!D114<5,'Tabel 4 S'!D114<0.5),"-",IFERROR('Tabel 4 S'!D114/'Tabel 4F S'!D114*100,"-")) -> 3.636363636 | E114: =IF(OR('Tabel 4F S'!E114<5,'Tabel 4 S'!E114<0.5),"-",IFERROR('Tabel 4 S'!E114/'Tabel 4F S'!E114*100,"-")) -> 1.020408163 | F114: =IF(OR('Tabel 4F S'!F114<5,'Tabel 4 S'!F114<0.5),"-",IFERROR('Tabel 4 S'!F114/'Tabel 4F S'!F114*100,"-")) -> 1.369863014 | G114: =IF(OR('Tabel 4F S'!G114<5,'Tabel 4 S'!G114<0.5),"-",IFERROR('Tabel 4 S'!G114/'Tabel 4F S'!G114*100,"-")) -> 3.703703704 | I114: =IF(OR('Tabel 4F S'!I114<5,'Tabel 4 S'!I114<0.5),"-",IFERROR('Tabel 4 S'!I114/'Tabel 4F S'!I114*100,"-")) -> 1.749271137
A115: Cand. Scient. Tek | C115: =IF(OR('Tabel 4F S'!C115<5,'Tabel 4 S'!C115<0.5),"-",IFERROR('Tabel 4 S'!C115/'Tabel 4F S'!C115*100,"-")) -> 28.57142857 | D115: =IF(OR('Tabel 4F S'!D115<5,'Tabel 4 S'!D115<0.5),"-",IFERROR('Tabel 4 S'!D115/'Tabel 4F S'!D115*100,"-")) -> 9.375 | E115: =IF(OR('Tabel 4F S'!E115<5,'Tabel 4 S'!E115<0.5),"-",IFERROR('Tabel 4 S'!E115/'Tabel 4F S'!E115*100,"-")) -> 6.666666667 | F115: =IF(OR('Tabel 4F S'!F115<5,'Tabel 4 S'!F115<0.5),"-",IFERROR('Tabel 4 S'!F115/'Tabel 4F S'!F115*100,"-")) -> - | G115: =IF(OR('Tabel 4F S'!G115<5,'Tabel 4 S'!G115<0.5),"-",IFERROR('Tabel 4 S'!G115/'Tabel 4F S'!G115*100,"-")) -> - | I115: =IF(OR('Tabel 4F S'!I115<5,'Tabel 4 S'!I115<0.5),"-",IFERROR('Tabel 4 S'!I115/'Tabel 4F S'!I115*100,"-")) -> 11.94029851
A116: MA. Hum. | C116: =IF(OR('Tabel 4F S'!C116<5,'Tabel 4 S'!C116<0.5),"-",IFERROR('Tabel 4 S'!C116/'Tabel 4F S'!C116*100,"-")) -> 30.76923077 | D116: =IF(OR('Tabel 4F S'!D116<5,'Tabel 4 S'!D116<0.5),"-",IFERROR('Tabel 4 S'!D116/'Tabel 4F S'!D116*100,"-")) -> 2.857142857 | E116: =IF(OR('Tabel 4F S'!E116<5,'Tabel 4 S'!E116<0.5),"-",IFERROR('Tabel 4 S'!E116/'Tabel 4F S'!E116*100,"-")) -> 4.109589041 | F116: =IF(OR('Tabel 4F S'!F116<5,'Tabel 4 S'!F116<0.5),"-",IFERROR('Tabel 4 S'!F116/'Tabel 4F S'!F116*100,"-")) -> - | G116: =IF(OR('Tabel 4F S'!G116<5,'Tabel 4 S'!G116<0.5),"-",IFERROR('Tabel 4 S'!G116/'Tabel 4F S'!G116*100,"-")) -> - | I116: =IF(OR('Tabel 4F S'!I116<5,'Tabel 4 S'!I116<0.5),"-",IFERROR('Tabel 4 S'!I116/'Tabel 4F S'!I116*100,"-")) -> 4.639175258
A117: MA. Nat. | C117: =IF(OR('Tabel 4F S'!C117<5,'Tabel 4 S'!C117<0.5),"-",IFERROR('Tabel 4 S'!C117/'Tabel 4F S'!C117*100,"-")) -> - | D117: =IF(OR('Tabel 4F S'!D117<5,'Tabel 4 S'!D117<0.5),"-",IFERROR('Tabel 4 S'!D117/'Tabel 4F S'!D117*100,"-")) -> 11.11111111 | E117: =IF(OR('Tabel 4F S'!E117<5,'Tabel 4 S'!E117<0.5),"-",IFERROR('Tabel 4 S'!E117/'Tabel 4F S'!E117*100,"-")) -> 3.448275862 | F117: =IF(OR('Tabel 4F S'!F117<5,'Tabel 4 S'!F117<0.5),"-",IFERROR('Tabel 4 S'!F117/'Tabel 4F S'!F117*100,"-")) -> 3.125 | G117: =IF(OR('Tabel 4F S'!G117<5,'Tabel 4 S'!G117<0.5),"-",IFERROR('Tabel 4 S'!G117/'Tabel 4F S'!G117*100,"-")) -> - | I117: =IF(OR('Tabel 4F S'!I117<5,'Tabel 4 S'!I117<0.5),"-",IFERROR('Tabel 4 S'!I117/'Tabel 4F S'!I117*100,"-")) -> 4.210526316
A118: MA. Ph.d. | C118: =IF(OR('Tabel 4F S'!C118<5,'Tabel 4 S'!C118<0.5),"-",IFERROR('Tabel 4 S'!C118/'Tabel 4F S'!C118*100,"-")) -> - | D118: =IF(OR('Tabel 4F S'!D118<5,'Tabel 4 S'!D118<0.5),"-",IFERROR('Tabel 4 S'!D118/'Tabel 4F S'!D118*100,"-")) -> - | E118: =IF(OR('Tabel 4F S'!E118<5,'Tabel 4 S'!E118<0.5),"-",IFERROR('Tabel 4 S'!E118/'Tabel 4F S'!E118*100,"-")) -> - | F118: =IF(OR('Tabel 4F S'!F118<5,'Tabel 4 S'!F118<0.5),"-",IFERROR('Tabel 4 S'!F118/'Tabel 4F S'!F118*100,"-")) -> - | G118: =IF(OR('Tabel 4F S'!G118<5,'Tabel 4 S'!G118<0.5),"-",IFERROR('Tabel 4 S'!G118/'Tabel 4F S'!G118*100,"-")) -> - | I118: =IF(OR('Tabel 4F S'!I118<5,'Tabel 4 S'!I118<0.5),"-",IFERROR('Tabel 4 S'!I118/'Tabel 4F S'!I118*100,"-")) -> -
A119: MA. Samf. | C119: =IF(OR('Tabel 4F S'!C119<5,'Tabel 4 S'!C119<0.5),"-",IFERROR('Tabel 4 S'!C119/'Tabel 4F S'!C119*100,"-")) -> 45.45454545 | D119: =IF(OR('Tabel 4F S'!D119<5,'Tabel 4 S'!D119<0.5),"-",IFERROR('Tabel 4 S'!D119/'Tabel 4F S'!D119*100,"-")) -> 9.090909091 | E119: =IF(OR('Tabel 4F S'!E119<5,'Tabel 4 S'!E119<0.5),"-",IFERROR('Tabel 4 S'!E119/'Tabel 4F S'!E119*100,"-")) -> - | F119: =IF(OR('Tabel 4F S'!F119<5,'Tabel 4 S'!F119<0.5),"-",IFERROR('Tabel 4 S'!F119/'Tabel 4F S'!F119*100,"-")) -> - | G119: =IF(OR('Tabel 4F S'!G119<5,'Tabel 4 S'!G119<0.5),"-",IFERROR('Tabel 4 S'!G119/'Tabel 4F S'!G119*100,"-")) -> - | I119: =IF(OR('Tabel 4F S'!I119<5,'Tabel 4 S'!I119<0.5),"-",IFERROR('Tabel 4 S'!I119/'Tabel 4F S'!I119*100,"-")) -> 18.18181818
A120: Øvrige Mag. | C120: =IF(OR('Tabel 4F S'!C120<5,'Tabel 4 S'!C120<0.5),"-",IFERROR('Tabel 4 S'!C120/'Tabel 4F S'!C120*100,"-")) -> - | D120: =IF(OR('Tabel 4F S'!D120<5,'Tabel 4 S'!D120<0.5),"-",IFERROR('Tabel 4 S'!D120/'Tabel 4F S'!D120*100,"-")) -> - | E120: =IF(OR('Tabel 4F S'!E120<5,'Tabel 4 S'!E120<0.5),"-",IFERROR('Tabel 4 S'!E120/'Tabel 4F S'!E120*100,"-")) -> 14.28571429 | F120: =IF(OR('Tabel 4F S'!F120<5,'Tabel 4 S'!F120<0.5),"-",IFERROR('Tabel 4 S'!F120/'Tabel 4F S'!F120*100,"-")) -> 16.66666667 | G120: =IF(OR('Tabel 4F S'!G120<5,'Tabel 4 S'!G120<0.5),"-",IFERROR('Tabel 4 S'!G120/'Tabel 4F S'!G120*100,"-")) -> - | I120: =IF(OR('Tabel 4F S'!I120<5,'Tabel 4 S'!I120<0.5),"-",IFERROR('Tabel 4 S'!I120/'Tabel 4F S'!I120*100,"-")) -> 19.04761905
A121: Agronom | C121: =IF(OR('Tabel 4F S'!C121<5,'Tabel 4 S'!C121<0.5),"-",IFERROR('Tabel 4 S'!C121/'Tabel 4F S'!C121*100,"-")) -> - | D121: =IF(OR('Tabel 4F S'!D121<5,'Tabel 4 S'!D121<0.5),"-",IFERROR('Tabel 4 S'!D121/'Tabel 4F S'!D121*100,"-")) -> 33.33333333 | E121: =IF(OR('Tabel 4F S'!E121<5,'Tabel 4 S'!E121<0.5),"-",IFERROR('Tabel 4 S'!E121/'Tabel 4F S'!E121*100,"-")) -> - | F121: =IF(OR('Tabel 4F S'!F121<5,'Tabel 4 S'!F121<0.5),"-",IFERROR('Tabel 4 S'!F121/'Tabel 4F S'!F121*100,"-")) -> - | G121: =IF(OR('Tabel 4F S'!G121<5,'Tabel 4 S'!G121<0.5),"-",IFERROR('Tabel 4 S'!G121/'Tabel 4F S'!G121*100,"-")) -> 12.5 | I121: =IF(OR('Tabel 4F S'!I121<5,'Tabel 4 S'!I121<0.5),"-",IFERROR('Tabel 4 S'!I121/'Tabel 4F S'!I121*100,"-")) -> 10.52631579
A122: Landsk. Arkt. | C122: =IF(OR('Tabel 4F S'!C122<5,'Tabel 4 S'!C122<0.5),"-",IFERROR('Tabel 4 S'!C122/'Tabel 4F S'!C122*100,"-")) -> - | D122: =IF(OR('Tabel 4F S'!D122<5,'Tabel 4 S'!D122<0.5),"-",IFERROR('Tabel 4 S'!D122/'Tabel 4F S'!D122*100,"-")) -> - | E122: =IF(OR('Tabel 4F S'!E122<5,'Tabel 4 S'!E122<0.5),"-",IFERROR('Tabel 4 S'!E122/'Tabel 4F S'!E122*100,"-")) -> - | F122: =IF(OR('Tabel 4F S'!F122<5,'Tabel 4 S'!F122<0.5),"-",IFERROR('Tabel 4 S'!F122/'Tabel 4F S'!F122*100,"-")) -> - | G122: =IF(OR('Tabel 4F S'!G122<5,'Tabel 4 S'!G122<0.5),"-",IFERROR('Tabel 4 S'!G122/'Tabel 4F S'!G122*100,"-")) -> - | I122: =IF(OR('Tabel 4F S'!I122<5,'Tabel 4 S'!I122<0.5),"-",IFERROR('Tabel 4 S'!I122/'Tabel 4F S'!I122*100,"-")) -> 25
A123: Hortonom | C123: =IF(OR('Tabel 4F S'!C123<5,'Tabel 4 S'!C123<0.5),"-",IFERROR('Tabel 4 S'!C123/'Tabel 4F S'!C123*100,"-")) -> - | D123: =IF(OR('Tabel 4F S'!D123<5,'Tabel 4 S'!D123<0.5),"-",IFERROR('Tabel 4 S'!D123/'Tabel 4F S'!D123*100,"-")) -> - | E123: =IF(OR('Tabel 4F S'!E123<5,'Tabel 4 S'!E123<0.5),"-",IFERROR('Tabel 4 S'!E123/'Tabel 4F S'!E123*100,"-")) -> - | F123: =IF(OR('Tabel 4F S'!F123<5,'Tabel 4 S'!F123<0.5),"-",IFERROR('Tabel 4 S'!F123/'Tabel 4F S'!F123*100,"-")) -> - | G123: =IF(OR('Tabel 4F S'!G123<5,'Tabel 4 S'!G123<0.5),"-",IFERROR('Tabel 4 S'!G123/'Tabel 4F S'!G123*100,"-")) -> - | I123: =IF(OR('Tabel 4F S'!I123<5,'Tabel 4 S'!I123<0.5),"-",IFERROR('Tabel 4 S'!I123/'Tabel 4F S'!I123*100,"-")) -> -
A124: Forstkand. | C124: =IF(OR('Tabel 4F S'!C124<5,'Tabel 4 S'!C124<0.5),"-",IFERROR('Tabel 4 S'!C124/'Tabel 4F S'!C124*100,"-")) -> - | D124: =IF(OR('Tabel 4F S'!D124<5,'Tabel 4 S'!D124<0.5),"-",IFERROR('Tabel 4 S'!D124/'Tabel 4F S'!D124*100,"-")) -> - | E124: =IF(OR('Tabel 4F S'!E124<5,'Tabel 4 S'!E124<0.5),"-",IFERROR('Tabel 4 S'!E124/'Tabel 4F S'!E124*100,"-")) -> - | F124: =IF(OR('Tabel 4F S'!F124<5,'Tabel 4 S'!F124<0.5),"-",IFERROR('Tabel 4 S'!F124/'Tabel 4F S'!F124*100,"-")) -> - | G124: =IF(OR('Tabel 4F S'!G124<5,'Tabel 4 S'!G124<0.5),"-",IFERROR('Tabel 4 S'!G124/'Tabel 4F S'!G124*100,"-")) -> - | I124: =IF(OR('Tabel 4F S'!I124<5,'Tabel 4 S'!I124<0.5),"-",IFERROR('Tabel 4 S'!I124/'Tabel 4F S'!I124*100,"-")) -> 20
A125: Jordbrugsakad. | C125: =IF(OR('Tabel 4F S'!C125<5,'Tabel 4 S'!C125<0.5),"-",IFERROR('Tabel 4 S'!C125/'Tabel 4F S'!C125*100,"-")) -> - | D125: =IF(OR('Tabel 4F S'!D125<5,'Tabel 4 S'!D125<0.5),"-",IFERROR('Tabel 4 S'!D125/'Tabel 4F S'!D125*100,"-")) -> 37.5 | E125: =IF(OR('Tabel 4F S'!E125<5,'Tabel 4 S'!E125<0.5),"-",IFERROR('Tabel 4 S'!E125/'Tabel 4F S'!E125*100,"-")) -> - | F125: =IF(OR('Tabel 4F S'!F125<5,'Tabel 4 S'!F125<0.5),"-",IFERROR('Tabel 4 S'!F125/'Tabel 4F S'!F125*100,"-")) -> - | G125: =IF(OR('Tabel 4F S'!G125<5,'Tabel 4 S'!G125<0.5),"-",IFERROR('Tabel 4 S'!G125/'Tabel 4F S'!G125*100,"-")) -> 16.66666667 | I125: =IF(OR('Tabel 4F S'!I125<5,'Tabel 4 S'!I125<0.5),"-",IFERROR('Tabel 4 S'!I125/'Tabel 4F S'!I125*100,"-")) -> 12.06896552
A126: Mejeriing. | C126: =IF(OR('Tabel 4F S'!C126<5,'Tabel 4 S'!C126<0.5),"-",IFERROR('Tabel 4 S'!C126/'Tabel 4F S'!C126*100,"-")) -> - | D126: =IF(OR('Tabel 4F S'!D126<5,'Tabel 4 S'!D126<0.5),"-",IFERROR('Tabel 4 S'!D126/'Tabel 4F S'!D126*100,"-")) -> - | E126: =IF(OR('Tabel 4F S'!E126<5,'Tabel 4 S'!E126<0.5),"-",IFERROR('Tabel 4 S'!E126/'Tabel 4F S'!E126*100,"-")) -> - | F126: =IF(OR('Tabel 4F S'!F126<5,'Tabel 4 S'!F126<0.5),"-",IFERROR('Tabel 4 S'!F126/'Tabel 4F S'!F126*100,"-")) -> - | G126: =IF(OR('Tabel 4F S'!G126<5,'Tabel 4 S'!G126<0.5),"-",IFERROR('Tabel 4 S'!G126/'Tabel 4F S'!G126*100,"-")) -> - | I126: =IF(OR('Tabel 4F S'!I126<5,'Tabel 4 S'!I126<0.5),"-",IFERROR('Tabel 4 S'!I126/'Tabel 4F S'!I126*100,"-")) -> -
A127: Levn.m.kand. | C127: =IF(OR('Tabel 4F S'!C127<5,'Tabel 4 S'!C127<0.5),"-",IFERROR('Tabel 4 S'!C127/'Tabel 4F S'!C127*100,"-")) -> - | D127: =IF(OR('Tabel 4F S'!D127<5,'Tabel 4 S'!D127<0.5),"-",IFERROR('Tabel 4 S'!D127/'Tabel 4F S'!D127*100,"-")) -> - | E127: =IF(OR('Tabel 4F S'!E127<5,'Tabel 4 S'!E127<0.5),"-",IFERROR('Tabel 4 S'!E127/'Tabel 4F S'!E127*100,"-")) -> - | F127: =IF(OR('Tabel 4F S'!F127<5,'Tabel 4 S'!F127<0.5),"-",IFERROR('Tabel 4 S'!F127/'Tabel 4F S'!F127*100,"-")) -> - | G127: =IF(OR('Tabel 4F S'!G127<5,'Tabel 4 S'!G127<0.5),"-",IFERROR('Tabel 4 S'!G127/'Tabel 4F S'!G127*100,"-")) -> - | I127: =IF(OR('Tabel 4F S'!I127<5,'Tabel 4 S'!I127<0.5),"-",IFERROR('Tabel 4 S'!I127/'Tabel 4F S'!I127*100,"-")) -> -
A128: Dyrlæge | C128: =IF(OR('Tabel 4F S'!C128<5,'Tabel 4 S'!C128<0.5),"-",IFERROR('Tabel 4 S'!C128/'Tabel 4F S'!C128*100,"-")) -> - | D128: =IF(OR('Tabel 4F S'!D128<5,'Tabel 4 S'!D128<0.5),"-",IFERROR('Tabel 4 S'!D128/'Tabel 4F S'!D128*100,"-")) -> - | E128: =IF(OR('Tabel 4F S'!E128<5,'Tabel 4 S'!E128<0.5),"-",IFERROR('Tabel 4 S'!E128/'Tabel 4F S'!E128*100,"-")) -> - | F128: =IF(OR('Tabel 4F S'!F128<5,'Tabel 4 S'!F128<0.5),"-",IFERROR('Tabel 4 S'!F128/'Tabel 4F S'!F128*100,"-")) -> - | G128: =IF(OR('Tabel 4F S'!G128<5,'Tabel 4 S'!G128<0.5),"-",IFERROR('Tabel 4 S'!G128/'Tabel 4F S'!G128*100,"-")) -> - | I128: =IF(OR('Tabel 4F S'!I128<5,'Tabel 4 S'!I128<0.5),"-",IFERROR('Tabel 4 S'!I128/'Tabel 4F S'!I128*100,"-")) -> -
A129: Farmaceut | C129: =IF(OR('Tabel 4F S'!C129<5,'Tabel 4 S'!C129<0.5),"-",IFERROR('Tabel 4 S'!C129/'Tabel 4F S'!C129*100,"-")) -> - | D129: =IF(OR('Tabel 4F S'!D129<5,'Tabel 4 S'!D129<0.5),"-",IFERROR('Tabel 4 S'!D129/'Tabel 4F S'!D129*100,"-")) -> 6.666666667 | E129: =IF(OR('Tabel 4F S'!E129<5,'Tabel 4 S'!E129<0.5),"-",IFERROR('Tabel 4 S'!E129/'Tabel 4F S'!E129*100,"-")) -> - | F129: =IF(OR('Tabel 4F S'!F129<5,'Tabel 4 S'!F129<0.5),"-",IFERROR('Tabel 4 S'!F129/'Tabel 4F S'!F129*100,"-")) -> - | G129: =IF(OR('Tabel 4F S'!G129<5,'Tabel 4 S'!G129<0.5),"-",IFERROR('Tabel 4 S'!G129/'Tabel 4F S'!G129*100,"-")) -> - | I129: =IF(OR('Tabel 4F S'!I129<5,'Tabel 4 S'!I129<0.5),"-",IFERROR('Tabel 4 S'!I129/'Tabel 4F S'!I129*100,"-")) -> 4.347826087
A130: Læge | C130: =IF(OR('Tabel 4F S'!C130<5,'Tabel 4 S'!C130<0.5),"-",IFERROR('Tabel 4 S'!C130/'Tabel 4F S'!C130*100,"-")) -> - | D130: =IF(OR('Tabel 4F S'!D130<5,'Tabel 4 S'!D130<0.5),"-",IFERROR('Tabel 4 S'!D130/'Tabel 4F S'!D130*100,"-")) -> - | E130: =IF(OR('Tabel 4F S'!E130<5,'Tabel 4 S'!E130<0.5),"-",IFERROR('Tabel 4 S'!E130/'Tabel 4F S'!E130*100,"-")) -> - | F130: =IF(OR('Tabel 4F S'!F130<5,'Tabel 4 S'!F130<0.5),"-",IFERROR('Tabel 4 S'!F130/'Tabel 4F S'!F130*100,"-")) -> - | G130: =IF(OR('Tabel 4F S'!G130<5,'Tabel 4 S'!G130<0.5),"-",IFERROR('Tabel 4 S'!G130/'Tabel 4F S'!G130*100,"-")) -> - | I130: =IF(OR('Tabel 4F S'!I130<5,'Tabel 4 S'!I130<0.5),"-",IFERROR('Tabel 4 S'!I130/'Tabel 4F S'!I130*100,"-")) -> -
A131: Tandlæge | C131: =IF(OR('Tabel 4F S'!C131<5,'Tabel 4 S'!C131<0.5),"-",IFERROR('Tabel 4 S'!C131/'Tabel 4F S'!C131*100,"-")) -> - | D131: =IF(OR('Tabel 4F S'!D131<5,'Tabel 4 S'!D131<0.5),"-",IFERROR('Tabel 4 S'!D131/'Tabel 4F S'!D131*100,"-")) -> - | E131: =IF(OR('Tabel 4F S'!E131<5,'Tabel 4 S'!E131<0.5),"-",IFERROR('Tabel 4 S'!E131/'Tabel 4F S'!E131*100,"-")) -> - | F131: =IF(OR('Tabel 4F S'!F131<5,'Tabel 4 S'!F131<0.5),"-",IFERROR('Tabel 4 S'!F131/'Tabel 4F S'!F131*100,"-")) -> - | G131: =IF(OR('Tabel 4F S'!G131<5,'Tabel 4 S'!G131<0.5),"-",IFERROR('Tabel 4 S'!G131/'Tabel 4F S'!G131*100,"-")) -> - | I131: =IF(OR('Tabel 4F S'!I131<5,'Tabel 4 S'!I131<0.5),"-",IFERROR('Tabel 4 S'!I131/'Tabel 4F S'!I131*100,"-")) -> -
A132: Arkitekt | C132: =IF(OR('Tabel 4F S'!C132<5,'Tabel 4 S'!C132<0.5),"-",IFERROR('Tabel 4 S'!C132/'Tabel 4F S'!C132*100,"-")) -> - | D132: =IF(OR('Tabel 4F S'!D132<5,'Tabel 4 S'!D132<0.5),"-",IFERROR('Tabel 4 S'!D132/'Tabel 4F S'!D132*100,"-")) -> - | E132: =IF(OR('Tabel 4F S'!E132<5,'Tabel 4 S'!E132<0.5),"-",IFERROR('Tabel 4 S'!E132/'Tabel 4F S'!E132*100,"-")) -> - | F132: =IF(OR('Tabel 4F S'!F132<5,'Tabel 4 S'!F132<0.5),"-",IFERROR('Tabel 4 S'!F132/'Tabel 4F S'!F132*100,"-")) -> - | G132: =IF(OR('Tabel 4F S'!G132<5,'Tabel 4 S'!G132<0.5),"-",IFERROR('Tabel 4 S'!G132/'Tabel 4F S'!G132*100,"-")) -> - | I132: =IF(OR('Tabel 4F S'!I132<5,'Tabel 4 S'!I132<0.5),"-",IFERROR('Tabel 4 S'!I132/'Tabel 4F S'!I132*100,"-")) -> -
A133: Landinspek. | C133: =IF(OR('Tabel 4F S'!C133<5,'Tabel 4 S'!C133<0.5),"-",IFERROR('Tabel 4 S'!C133/'Tabel 4F S'!C133*100,"-")) -> - | D133: =IF(OR('Tabel 4F S'!D133<5,'Tabel 4 S'!D133<0.5),"-",IFERROR('Tabel 4 S'!D133/'Tabel 4F S'!D133*100,"-")) -> - | E133: =IF(OR('Tabel 4F S'!E133<5,'Tabel 4 S'!E133<0.5),"-",IFERROR('Tabel 4 S'!E133/'Tabel 4F S'!E133*100,"-")) -> - | F133: =IF(OR('Tabel 4F S'!F133<5,'Tabel 4 S'!F133<0.5),"-",IFERROR('Tabel 4 S'!F133/'Tabel 4F S'!F133*100,"-")) -> - | G133: =IF(OR('Tabel 4F S'!G133<5,'Tabel 4 S'!G133<0.5),"-",IFERROR('Tabel 4 S'!G133/'Tabel 4F S'!G133*100,"-")) -> - | I133: =IF(OR('Tabel 4F S'!I133<5,'Tabel 4 S'!I133<0.5),"-",IFERROR('Tabel 4 S'!I133/'Tabel 4F S'!I133*100,"-")) -> -
A134: Bibliotekar | C134: =IF(OR('Tabel 4F S'!C134<5,'Tabel 4 S'!C134<0.5),"-",IFERROR('Tabel 4 S'!C134/'Tabel 4F S'!C134*100,"-")) -> - | D134: =IF(OR('Tabel 4F S'!D134<5,'Tabel 4 S'!D134<0.5),"-",IFERROR('Tabel 4 S'!D134/'Tabel 4F S'!D134*100,"-")) -> - | E134: =IF(OR('Tabel 4F S'!E134<5,'Tabel 4 S'!E134<0.5),"-",IFERROR('Tabel 4 S'!E134/'Tabel 4F S'!E134*100,"-")) -> - | F134: =IF(OR('Tabel 4F S'!F134<5,'Tabel 4 S'!F134<0.5),"-",IFERROR('Tabel 4 S'!F134/'Tabel 4F S'!F134*100,"-")) -> - | G134: =IF(OR('Tabel 4F S'!G134<5,'Tabel 4 S'!G134<0.5),"-",IFERROR('Tabel 4 S'!G134/'Tabel 4F S'!G134*100,"-")) -> 14.28571429 | I134: =IF(OR('Tabel 4F S'!I134<5,'Tabel 4 S'!I134<0.5),"-",IFERROR('Tabel 4 S'!I134/'Tabel 4F S'!I134*100,"-")) -> 3.703703704
A135: Musikudd. | C135: =IF(OR('Tabel 4F S'!C135<5,'Tabel 4 S'!C135<0.5),"-",IFERROR('Tabel 4 S'!C135/'Tabel 4F S'!C135*100,"-")) -> - | D135: =IF(OR('Tabel 4F S'!D135<5,'Tabel 4 S'!D135<0.5),"-",IFERROR('Tabel 4 S'!D135/'Tabel 4F S'!D135*100,"-")) -> - | E135: =IF(OR('Tabel 4F S'!E135<5,'Tabel 4 S'!E135<0.5),"-",IFERROR('Tabel 4 S'!E135/'Tabel 4F S'!E135*100,"-")) -> - | F135: =IF(OR('Tabel 4F S'!F135<5,'Tabel 4 S'!F135<0.5),"-",IFERROR('Tabel 4 S'!F135/'Tabel 4F S'!F135*100,"-")) -> - | G135: =IF(OR('Tabel 4F S'!G135<5,'Tabel 4 S'!G135<0.5),"-",IFERROR('Tabel 4 S'!G135/'Tabel 4F S'!G135*100,"-")) -> - | I135: =IF(OR('Tabel 4F S'!I135<5,'Tabel 4 S'!I135<0.5),"-",IFERROR('Tabel 4 S'!I135/'Tabel 4F S'!I135*100,"-")) -> -
A136: Teolog | C136: =IF(OR('Tabel 4F S'!C136<5,'Tabel 4 S'!C136<0.5),"-",IFERROR('Tabel 4 S'!C136/'Tabel 4F S'!C136*100,"-")) -> - | D136: =IF(OR('Tabel 4F S'!D136<5,'Tabel 4 S'!D136<0.5),"-",IFERROR('Tabel 4 S'!D136/'Tabel 4F S'!D136*100,"-")) -> - | E136: =IF(OR('Tabel 4F S'!E136<5,'Tabel 4 S'!E136<0.5),"-",IFERROR('Tabel 4 S'!E136/'Tabel 4F S'!E136*100,"-")) -> - | F136: =IF(OR('Tabel 4F S'!F136<5,'Tabel 4 S'!F136<0.5),"-",IFERROR('Tabel 4 S'!F136/'Tabel 4F S'!F136*100,"-")) -> - | G136: =IF(OR('Tabel 4F S'!G136<5,'Tabel 4 S'!G136<0.5),"-",IFERROR('Tabel 4 S'!G136/'Tabel 4F S'!G136*100,"-")) -> - | I136: =IF(OR('Tabel 4F S'!I136<5,'Tabel 4 S'!I136<0.5),"-",IFERROR('Tabel 4 S'!I136/'Tabel 4F S'!I136*100,"-")) -> 10
